Workbook

Sheet info
B2: цель финмоделирования - поддержка принятия решений - а значит должно быть доверие к отчетности - а это значит ПОЛНОТА ДАННЫХ
C5: ОПЕРАЦИОННОЕ УПРАВЛЕНИЕ | I5: СТРАТЕГИЧЕСКОЕ УПРАВЛЕНИЕ
D9: Продукт | I9: Каналы продаж - Объемы спроса
E10: товары
E11: услуги
E12: работы
C14: повторение бизнес-процесса
D15: производства
D16: продаж
B18: В целях финмоделирования мы под продуктом понимаем БИЗНЕС-ПРОЦЕСС производства и продажи продукта
E20: БИЗНЕС - это деятельность по бесконечному повторению одного и того же бизнес-процесса в соответствии с потоком спроса

Sheet RepM
A1: =ROW() -> 1 | B1: =COLUMN() -> 2 | C1: =COLUMN() -> 3 | D1: =COLUMN() -> 4 | E1: =COLUMN() -> 5 | F1: =COLUMN() -> 6 | G1: =COLUMN() -> 7 | H1: =COLUMN() -> 8 | I1: =COLUMN() -> 9 | J1: =COLUMN() -> 10 | K1: =COLUMN() -> 11 | L1: =COLUMN() -> 12 | M1: =COLUMN() -> 13 | N1: =COLUMN() -> 14 | O1: =COLUMN() -> 15 | P1: =COLUMN() -> 16 | Q1: =COLUMN() -> 17 | S1: =COLUMN() -> 19 | T1: =COLUMN() -> 20 | U1: =COLUMN() -> 21 | V1: =COLUMN() -> 22 | W1: =COLUMN() -> 23 | X1: =COLUMN() -> 24 | Y1: =COLUMN() -> 25 | Z1: =COLUMN() -> 26 | AA1: =COLUMN() -> 27 | AB1: =COLUMN() -> 28 | AC1: =COLUMN() -> 29 | AD1: =COLUMN() -> 30 | AE1: =COLUMN() -> 31 | AF1: =COLUMN() -> 32 | AG1: =COLUMN() -> 33 | AH1: =COLUMN() -> 34 | AI1: =COLUMN() -> 35 | AJ1: =COLUMN() -> 36 | AK1: =COLUMN() -> 37 | AL1: =COLUMN() -> 38 | AM1: =COLUMN() -> 39 | AN1: =COLUMN() -> 40 | AO1: =COLUMN() -> 41 | AP1: =COLUMN() -> 42 | AQ1: =COLUMN() -> 43 | AR1: =COLUMN() -> 44 | AS1: =COLUMN() -> 45 | AT1: =COLUMN() -> 46 | AU1: =COLUMN() -> 47 | AV1: =COLUMN() -> 48 | AW1: =COLUMN() -> 49 | AX1: =COLUMN() -> 50 | AY1: =COLUMN() -> 51 | AZ1: =COLUMN() -> 52 | BA1: =COLUMN() -> 53 | BB1: =COLUMN() -> 54 | BC1: =COLUMN() -> 55 | BD1: =COLUMN() -> 56 | BE1: =COLUMN() -> 57 | BF1: =COLUMN() -> 58 | BG1: =COLUMN() -> 59 | BH1: =COLUMN() -> 60 | BI1: =COLUMN() -> 61 | BJ1: =COLUMN() -> 62 | BK1: =COLUMN() -> 63 | BL1: =COLUMN() -> 64 | BM1: =COLUMN() -> 65 | BN1: =COLUMN() -> 66 | BO1: =COLUMN() -> 67 | BP1: =COLUMN() -> 68 | BQ1: =COLUMN() -> 69 | BR1: =COLUMN() -> 70 | BS1: =COLUMN() -> 71 | BT1: =COLUMN() -> 72 | BU1: =COLUMN() -> 73 | BV1: =COLUMN() -> 74 | BW1: =COLUMN() -> 75 | BX1: =COLUMN() -> 76 | BY1: =COLUMN() -> 77 | BZ1: =COLUMN() -> 78 | CA1: =COLUMN() -> 79 | CB1: =COLUMN() -> 80 | CC1: =COLUMN() -> 81 | CD1: =COLUMN() -> 82 | CE1: =COLUMN() -> 83 | CF1: =COLUMN() -> 84 | CG1: =COLUMN() -> 85 | CH1: =COLUMN() -> 86 | CI1: =COLUMN() -> 87 | CJ1: =COLUMN() -> 88 | CK1: =COLUMN() -> 89 | CL1: =COLUMN() -> 90 | CM1: =COLUMN() -> 91 | CN1: =COLUMN() -> 92 | CO1: =COLUMN() -> 93 | CP1: =COLUMN() -> 94 | CQ1: =COLUMN() -> 95 | CR1: =COLUMN() -> 96 | CS1: =COLUMN() -> 97 | CT1: =COLUMN() -> 98
A2: =ROW() -> 2
F3: =Potoki!F3 -> Кол-во периодов | S3: =Potoki!S3 -> 48 | W3: =IF(Potoki!W3="","",Potoki!W3) -> 2022-01-01 | Z3: =IF(Potoki!Z3="","",Potoki!Z3) -> 2022-01-01 | AA3: =IF(Potoki!AA3="","",Potoki!AA3) -> 2022-02-01 | AB3: =IF(Potoki!AB3="","",Potoki!AB3) -> 2022-03-01 | AC3: =IF(Potoki!AC3="","",Potoki!AC3) -> 2022-04-01 | AD3: =IF(Potoki!AD3="","",Potoki!AD3) -> 2022-05-01 | AE3: =IF(Potoki!AE3="","",Potoki!AE3) -> 2022-06-01 | AF3: =IF(Potoki!AF3="","",Potoki!AF3) -> 2022-07-01 | AG3: =IF(Potoki!AG3="","",Potoki!AG3) -> 2022-08-01 | AH3: =IF(Potoki!AH3="","",Potoki!AH3) -> 2022-09-01 | AI3: =IF(Potoki!AI3="","",Potoki!AI3) -> 2022-10-01 | AJ3: =IF(Potoki!AJ3="","",Potoki!AJ3) -> 2022-11-01 | AK3: =IF(Potoki!AK3="","",Potoki!AK3) -> 2022-12-01 | AL3: =IF(Potoki!AL3="","",Potoki!AL3) -> 2023-01-01 | AM3: =IF(Potoki!AM3="","",Potoki!AM3) -> 2023-02-01 | AN3: =IF(Potoki!AN3="","",Potoki!AN3) -> 2023-03-01 | AO3: =IF(Potoki!AO3="","",Potoki!AO3) -> 2023-04-01 | AP3: =IF(Potoki!AP3="","",Potoki!AP3) -> 2023-05-01 | AQ3: =IF(Potoki!AQ3="","",Potoki!AQ3) -> 2023-06-01 | AR3: =IF(Potoki!AR3="","",Potoki!AR3) -> 2023-07-01 | AS3: =IF(Potoki!AS3="","",Potoki!AS3) -> 2023-08-01 | AT3: =IF(Potoki!AT3="","",Potoki!AT3) -> 2023-09-01 | AU3: =IF(Potoki!AU3="","",Potoki!AU3) -> 2023-10-01 | AV3: =IF(Potoki!AV3="","",Potoki!AV3) -> 2023-11-01 | AW3: =IF(Potoki!AW3="","",Potoki!AW3) -> 2023-12-01 | AX3: =IF(Potoki!AX3="","",Potoki!AX3) -> 2024-01-01 | AY3: =IF(Potoki!AY3="","",Potoki!AY3) -> 2024-02-01 | AZ3: =IF(Potoki!AZ3="","",Potoki!AZ3) -> 2024-03-01 | BA3: =IF(Potoki!BA3="","",Potoki!BA3) -> 2024-04-01 | BB3: =IF(Potoki!BB3="","",Potoki!BB3) -> 2024-05-01 | BC3: =IF(Potoki!BC3="","",Potoki!BC3) -> 2024-06-01 | BD3: =IF(Potoki!BD3="","",Potoki!BD3) -> 2024-07-01 | BE3: =IF(Potoki!BE3="","",Potoki!BE3) -> 2024-08-01 | BF3: =IF(Potoki!BF3="","",Potoki!BF3) -> 2024-09-01 | BG3: =IF(Potoki!BG3="","",Potoki!BG3) -> 2024-10-01 | BH3: =IF(Potoki!BH3="","",Potoki!BH3) -> 2024-11-01 | BI3: =IF(Potoki!BI3="","",Potoki!BI3) -> 2024-12-01 | BJ3: =IF(Potoki!BJ3="","",Potoki!BJ3) -> 2025-01-01 | BK3: =IF(Potoki!BK3="","",Potoki!BK3) -> 2025-02-01 | BL3: =IF(Potoki!BL3="","",Potoki!BL3) -> 2025-03-01 | BM3: =IF(Potoki!BM3="","",Potoki!BM3) -> 2025-04-01 | BN3: =IF(Potoki!BN3="","",Potoki!BN3) -> 2025-05-01 | BO3: =IF(Potoki!BO3="","",Potoki!BO3) -> 2025-06-01 | BP3: =IF(Potoki!BP3="","",Potoki!BP3) -> 2025-07-01 | BQ3: =IF(Potoki!BQ3="","",Potoki!BQ3) -> 2025-08-01 | BR3: =IF(Potoki!BR3="","",Potoki!BR3) -> 2025-09-01 | BS3: =IF(Potoki!BS3="","",Potoki!BS3) -> 2025-10-01 | BT3: =IF(Potoki!BT3="","",Potoki!BT3) -> 2025-11-01 | BU3: =IF(Potoki!BU3="","",Potoki!BU3) -> 2025-12-01 | BV3: =IF(Potoki!BV3="","",Potoki!BV3) ->  | BW3: =IF(Potoki!BW3="","",Potoki!BW3) ->  | BX3: =IF(Potoki!BX3="","",Potoki!BX3) ->  | BY3: =IF(Potoki!BY3="","",Potoki!BY3) ->  | BZ3: =IF(Potoki!BZ3="","",Potoki!BZ3) ->  | CA3: =IF(Potoki!CA3="","",Potoki!CA3) ->  | CB3: =IF(Potoki!CB3="","",Potoki!CB3) ->  | CC3: =IF(Potoki!CC3="","",Potoki!CC3) ->  | CD3: =IF(Potoki!CD3="","",Potoki!CD3) ->  | CE3: =IF(Potoki!CE3="","",Potoki!CE3) ->  | CF3: =IF(Potoki!CF3="","",Potoki!CF3) ->  | CG3: =IF(Potoki!CG3="","",Potoki!CG3) ->  | CH3: =IF(Potoki!CH3="","",Potoki!CH3) ->  | CI3: =IF(Potoki!CI3="","",Potoki!CI3) ->  | CJ3: =IF(Potoki!CJ3="","",Potoki!CJ3) ->  | CK3: =IF(Potoki!CK3="","",Potoki!CK3) ->  | CL3: =IF(Potoki!CL3="","",Potoki!CL3) ->  | CM3: =IF(Potoki!CM3="","",Potoki!CM3) ->  | CN3: =IF(Potoki!CN3="","",Potoki!CN3) ->  | CO3: =IF(Potoki!CO3="","",Potoki!CO3) ->  | CP3: =IF(Potoki!CP3="","",Potoki!CP3) ->  | CQ3: =IF(Potoki!CQ3="","",Potoki!CQ3) ->  | CR3: =IF(Potoki!CR3="","",Potoki!CR3) ->  | CS3: =IF(Potoki!CS3="","",Potoki!CS3) ->  | CT3: =IF(Potoki!CT3="","",Potoki!CT3) -> 
W4: =IF(Potoki!W4="","",Potoki!W4) -> 2025-12-31 | Z4: =IF(Potoki!Z4="","",Potoki!Z4) -> 2022-01-31 | AA4: =IF(Potoki!AA4="","",Potoki!AA4) -> 2022-02-28 | AB4: =IF(Potoki!AB4="","",Potoki!AB4) -> 2022-03-31 | AC4: =IF(Potoki!AC4="","",Potoki!AC4) -> 2022-04-30 | AD4: =IF(Potoki!AD4="","",Potoki!AD4) -> 2022-05-31 | AE4: =IF(Potoki!AE4="","",Potoki!AE4) -> 2022-06-30 | AF4: =IF(Potoki!AF4="","",Potoki!AF4) -> 2022-07-31 | AG4: =IF(Potoki!AG4="","",Potoki!AG4) -> 2022-08-31 | AH4: =IF(Potoki!AH4="","",Potoki!AH4) -> 2022-09-30 | AI4: =IF(Potoki!AI4="","",Potoki!AI4) -> 2022-10-31 | AJ4: =IF(Potoki!AJ4="","",Potoki!AJ4) -> 2022-11-30 | AK4: =IF(Potoki!AK4="","",Potoki!AK4) -> 2022-12-31 | AL4: =IF(Potoki!AL4="","",Potoki!AL4) -> 2023-01-31 | AM4: =IF(Potoki!AM4="","",Potoki!AM4) -> 2023-02-28 | AN4: =IF(Potoki!AN4="","",Potoki!AN4) -> 2023-03-31 | AO4: =IF(Potoki!AO4="","",Potoki!AO4) -> 2023-04-30 | AP4: =IF(Potoki!AP4="","",Potoki!AP4) -> 2023-05-31 | AQ4: =IF(Potoki!AQ4="","",Potoki!AQ4) -> 2023-06-30 | AR4: =IF(Potoki!AR4="","",Potoki!AR4) -> 2023-07-31 | AS4: =IF(Potoki!AS4="","",Potoki!AS4) -> 2023-08-31 | AT4: =IF(Potoki!AT4="","",Potoki!AT4) -> 2023-09-30 | AU4: =IF(Potoki!AU4="","",Potoki!AU4) -> 2023-10-31 | AV4: =IF(Potoki!AV4="","",Potoki!AV4) -> 2023-11-30 | AW4: =IF(Potoki!AW4="","",Potoki!AW4) -> 2023-12-31 | AX4: =IF(Potoki!AX4="","",Potoki!AX4) -> 2024-01-31 | AY4: =IF(Potoki!AY4="","",Potoki!AY4) -> 2024-02-29 | AZ4: =IF(Potoki!AZ4="","",Potoki!AZ4) -> 2024-03-31 | BA4: =IF(Potoki!BA4="","",Potoki!BA4) -> 2024-04-30 | BB4: =IF(Potoki!BB4="","",Potoki!BB4) -> 2024-05-31 | BC4: =IF(Potoki!BC4="","",Potoki!BC4) -> 2024-06-30 | BD4: =IF(Potoki!BD4="","",Potoki!BD4) -> 2024-07-31 | BE4: =IF(Potoki!BE4="","",Potoki!BE4) -> 2024-08-31 | BF4: =IF(Potoki!BF4="","",Potoki!BF4) -> 2024-09-30 | BG4: =IF(Potoki!BG4="","",Potoki!BG4) -> 2024-10-31 | BH4: =IF(Potoki!BH4="","",Potoki!BH4) -> 2024-11-30 | BI4: =IF(Potoki!BI4="","",Potoki!BI4) -> 2024-12-31 | BJ4: =IF(Potoki!BJ4="","",Potoki!BJ4) -> 2025-01-31 | BK4: =IF(Potoki!BK4="","",Potoki!BK4) -> 2025-02-28 | BL4: =IF(Potoki!BL4="","",Potoki!BL4) -> 2025-03-31 | BM4: =IF(Potoki!BM4="","",Potoki!BM4) -> 2025-04-30 | BN4: =IF(Potoki!BN4="","",Potoki!BN4) -> 2025-05-31 | BO4: =IF(Potoki!BO4="","",Potoki!BO4) -> 2025-06-30 | BP4: =IF(Potoki!BP4="","",Potoki!BP4) -> 2025-07-31 | BQ4: =IF(Potoki!BQ4="","",Potoki!BQ4) -> 2025-08-31 | BR4: =IF(Potoki!BR4="","",Potoki!BR4) -> 2025-09-30 | BS4: =IF(Potoki!BS4="","",Potoki!BS4) -> 2025-10-31 | BT4: =IF(Potoki!BT4="","",Potoki!BT4) -> 2025-11-30 | BU4: =IF(Potoki!BU4="","",Potoki!BU4) -> 2025-12-31 | BV4: =IF(Potoki!BV4="","",Potoki!BV4) ->  | BW4: =IF(Potoki!BW4="","",Potoki!BW4) ->  | BX4: =IF(Potoki!BX4="","",Potoki!BX4) ->  | BY4: =IF(Potoki!BY4="","",Potoki!BY4) ->  | BZ4: =IF(Potoki!BZ4="","",Potoki!BZ4) ->  | CA4: =IF(Potoki!CA4="","",Potoki!CA4) ->  | CB4: =IF(Potoki!CB4="","",Potoki!CB4) ->  | CC4: =IF(Potoki!CC4="","",Potoki!CC4) ->  | CD4: =IF(Potoki!CD4="","",Potoki!CD4) ->  | CE4: =IF(Potoki!CE4="","",Potoki!CE4) ->  | CF4: =IF(Potoki!CF4="","",Potoki!CF4) ->  | CG4: =IF(Potoki!CG4="","",Potoki!CG4) ->  | CH4: =IF(Potoki!CH4="","",Potoki!CH4) ->  | CI4: =IF(Potoki!CI4="","",Potoki!CI4) ->  | CJ4: =IF(Potoki!CJ4="","",Potoki!CJ4) ->  | CK4: =IF(Potoki!CK4="","",Potoki!CK4) ->  | CL4: =IF(Potoki!CL4="","",Potoki!CL4) ->  | CM4: =IF(Potoki!CM4="","",Potoki!CM4) ->  | CN4: =IF(Potoki!CN4="","",Potoki!CN4) ->  | CO4: =IF(Potoki!CO4="","",Potoki!CO4) ->  | CP4: =IF(Potoki!CP4="","",Potoki!CP4) ->  | CQ4: =IF(Potoki!CQ4="","",Potoki!CQ4) ->  | CR4: =IF(Potoki!CR4="","",Potoki!CR4) ->  | CS4: =IF(Potoki!CS4="","",Potoki!CS4) ->  | CT4: =IF(Potoki!CT4="","",Potoki!CT4) -> 
F5: =Potoki!F5 -> показатель | M5: =Potoki!M5 -> ед.изм. | P5: =Potoki!P5 -> значение | S5: =Potoki!S5 -> параметр | W5: =Potoki!W5 -> итого | Z5: =IF(Potoki!Z5="","",Potoki!Z5) -> 1 | AA5: =IF(Potoki!AA5="","",Potoki!AA5) -> 2 | AB5: =IF(Potoki!AB5="","",Potoki!AB5) -> 3 | AC5: =IF(Potoki!AC5="","",Potoki!AC5) -> 4 | AD5: =IF(Potoki!AD5="","",Potoki!AD5) -> 5 | AE5: =IF(Potoki!AE5="","",Potoki!AE5) -> 6 | AF5: =IF(Potoki!AF5="","",Potoki!AF5) -> 7 | AG5: =IF(Potoki!AG5="","",Potoki!AG5) -> 8 | AH5: =IF(Potoki!AH5="","",Potoki!AH5) -> 9 | AI5: =IF(Potoki!AI5="","",Potoki!AI5) -> 10 | AJ5: =IF(Potoki!AJ5="","",Potoki!AJ5) -> 11 | AK5: =IF(Potoki!AK5="","",Potoki!AK5) -> 12 | AL5: =IF(Potoki!AL5="","",Potoki!AL5) -> 13 | AM5: =IF(Potoki!AM5="","",Potoki!AM5) -> 14 | AN5: =IF(Potoki!AN5="","",Potoki!AN5) -> 15 | AO5: =IF(Potoki!AO5="","",Potoki!AO5) -> 16 | AP5: =IF(Potoki!AP5="","",Potoki!AP5) -> 17 | AQ5: =IF(Potoki!AQ5="","",Potoki!AQ5) -> 18 | AR5: =IF(Potoki!AR5="","",Potoki!AR5) -> 19 | AS5: =IF(Potoki!AS5="","",Potoki!AS5) -> 20 | AT5: =IF(Potoki!AT5="","",Potoki!AT5) -> 21 | AU5: =IF(Potoki!AU5="","",Potoki!AU5) -> 22 | AV5: =IF(Potoki!AV5="","",Potoki!AV5) -> 23 | AW5: =IF(Potoki!AW5="","",Potoki!AW5) -> 24 | AX5: =IF(Potoki!AX5="","",Potoki!AX5) -> 25 | AY5: =IF(Potoki!AY5="","",Potoki!AY5) -> 26 | AZ5: =IF(Potoki!AZ5="","",Potoki!AZ5) -> 27 | BA5: =IF(Potoki!BA5="","",Potoki!BA5) -> 28 | BB5: =IF(Potoki!BB5="","",Potoki!BB5) -> 29 | BC5: =IF(Potoki!BC5="","",Potoki!BC5) -> 30 | BD5: =IF(Potoki!BD5="","",Potoki!BD5) -> 31 | BE5: =IF(Potoki!BE5="","",Potoki!BE5) -> 32 | BF5: =IF(Potoki!BF5="","",Potoki!BF5) -> 33 | BG5: =IF(Potoki!BG5="","",Potoki!BG5) -> 34 | BH5: =IF(Potoki!BH5="","",Potoki!BH5) -> 35 | BI5: =IF(Potoki!BI5="","",Potoki!BI5) -> 36 | BJ5: =IF(Potoki!BJ5="","",Potoki!BJ5) -> 37 | BK5: =IF(Potoki!BK5="","",Potoki!BK5) -> 38 | BL5: =IF(Potoki!BL5="","",Potoki!BL5) -> 39 | BM5: =IF(Potoki!BM5="","",Potoki!BM5) -> 40 | BN5: =IF(Potoki!BN5="","",Potoki!BN5) -> 41 | BO5: =IF(Potoki!BO5="","",Potoki!BO5) -> 42 | BP5: =IF(Potoki!BP5="","",Potoki!BP5) -> 43 | BQ5: =IF(Potoki!BQ5="","",Potoki!BQ5) -> 44 | BR5: =IF(Potoki!BR5="","",Potoki!BR5) -> 45 | BS5: =IF(Potoki!BS5="","",Potoki!BS5) -> 46 | BT5: =IF(Potoki!BT5="","",Potoki!BT5) -> 47 | BU5: =IF(Potoki!BU5="","",Potoki!BU5) -> 48 | BV5: =IF(Potoki!BV5="","",Potoki!BV5) ->  | BW5: =IF(Potoki!BW5="","",Potoki!BW5) ->  | BX5: =IF(Potoki!BX5="","",Potoki!BX5) ->  | BY5: =IF(Potoki!BY5="","",Potoki!BY5) ->  | BZ5: =IF(Potoki!BZ5="","",Potoki!BZ5) ->  | CA5: =IF(Potoki!CA5="","",Potoki!CA5) ->  | CB5: =IF(Potoki!CB5="","",Potoki!CB5) ->  | CC5: =IF(Potoki!CC5="","",Potoki!CC5) ->  | CD5: =IF(Potoki!CD5="","",Potoki!CD5) ->  | CE5: =IF(Potoki!CE5="","",Potoki!CE5) ->  | CF5: =IF(Potoki!CF5="","",Potoki!CF5) ->  | CG5: =IF(Potoki!CG5="","",Potoki!CG5) ->  | CH5: =IF(Potoki!CH5="","",Potoki!CH5) ->  | CI5: =IF(Potoki!CI5="","",Potoki!CI5) ->  | CJ5: =IF(Potoki!CJ5="","",Potoki!CJ5) ->  | CK5: =IF(Potoki!CK5="","",Potoki!CK5) ->  | CL5: =IF(Potoki!CL5="","",Potoki!CL5) ->  | CM5: =IF(Potoki!CM5="","",Potoki!CM5) ->  | CN5: =IF(Potoki!CN5="","",Potoki!CN5) ->  | CO5: =IF(Potoki!CO5="","",Potoki!CO5) ->  | CP5: =IF(Potoki!CP5="","",Potoki!CP5) ->  | CQ5: =IF(Potoki!CQ5="","",Potoki!CQ5) ->  | CR5: =IF(Potoki!CR5="","",Potoki!CR5) ->  | CS5: =IF(Potoki!CS5="","",Potoki!CS5) ->  | CT5: =IF(Potoki!CT5="","",Potoki!CT5) -> 
A6: =ROW() -> 6
A7: =ROW() -> 7
A8: =ROW() -> 8 | F8: Баланс на начало периода | W8: =SUM(INDIRECT(ADDRESS(ROW(),SUMIFS($1:$1,$5:$5,1))):INDIRECT(ADDRESS(ROW(),SUMIFS($1:$1,$5:$5,MAX($5:$5))))) -> 0 | Z8: =Repdd!Z8 -> 0 | AA8: =Repdd!AA8 -> 0 | AB8: =Repdd!AB8 -> 0 | AC8: =Repdd!AC8 -> 0 | AD8: =Repdd!AD8 -> 0 | AE8: =Repdd!AE8 -> 0 | AF8: =Repdd!AF8 -> 0 | AG8: =Repdd!AG8 -> 0 | AH8: =Repdd!AH8 -> 0 | AI8: =Repdd!AI8 -> 0 | AJ8: =Repdd!AJ8 -> 0 | AK8: =Repdd!AK8 -> 0 | AL8: =Repdd!AL8 -> 0 | AM8: =Repdd!AM8 -> 0 | AN8: =Repdd!AN8 -> 0 | AO8: =Repdd!AO8 -> 0 | AP8: =Repdd!AP8 -> 0 | AQ8: =Repdd!AQ8 -> 0 | AR8: =Repdd!AR8 -> 0 | AS8: =Repdd!AS8 -> 0 | AT8: =Repdd!AT8 -> 0 | AU8: =Repdd!AU8 -> 0 | AV8: =Repdd!AV8 -> 0 | AW8: =Repdd!AW8 -> 0 | AX8: =Repdd!AX8 -> 0 | AY8: =Repdd!AY8 -> 0 | AZ8: =Repdd!AZ8 -> 0 | BA8: =Repdd!BA8 -> 0 | BB8: =Repdd!BB8 -> 0 | BC8: =Repdd!BC8 -> 0 | BD8: =Repdd!BD8 -> 0 | BE8: =Repdd!BE8 -> 0 | BF8: =Repdd!BF8 -> 0 | BG8: =Repdd!BG8 -> 0 | BH8: =Repdd!BH8 -> 0 | BI8: =Repdd!BI8 -> 0 | BJ8: =Repdd!BJ8 -> 0 | BK8: =Repdd!BK8 -> 0 | BL8: =Repdd!BL8 -> 0 | BM8: =Repdd!BM8 -> 0 | BN8: =Repdd!BN8 -> 0 | BO8: =Repdd!BO8 -> 0 | BP8: =Repdd!BP8 -> 0 | BQ8: =Repdd!BQ8 -> 0 | BR8: =Repdd!BR8 -> 0 | BS8: =Repdd!BS8 -> 0 | BT8: =Repdd!BT8 -> 0 | BU8: =Repdd!BU8 -> 0 | BV8: =Repdd!BV8 -> 0 | BW8: =Repdd!BW8 -> 0 | BX8: =Repdd!BX8 -> 0 | BY8: =Repdd!BY8 -> 0 | BZ8: =Repdd!BZ8 -> 0 | CA8: =Repdd!CA8 -> 0 | CB8: =Repdd!CB8 -> 0 | CC8: =Repdd!CC8 -> 0 | CD8: =Repdd!CD8 -> 0 | CE8: =Repdd!CE8 -> 0 | CF8: =Repdd!CF8 -> 0 | CG8: =Repdd!CG8 -> 0 | CH8: =Repdd!CH8 -> 0 | CI8: =Repdd!CI8 -> 0 | CJ8: =Repdd!CJ8 -> 0 | CK8: =Repdd!CK8 -> 0 | CL8: =Repdd!CL8 -> 0 | CM8: =Repdd!CM8 -> 0 | CN8: =Repdd!CN8 -> 0 | CO8: =Repdd!CO8 -> 0 | CP8: =Repdd!CP8 -> 0 | CQ8: =Repdd!CQ8 -> 0 | CR8: =Repdd!CR8 -> 0 | CS8: =Repdd!CS8 -> 0 | CT8: =Repdd!CT8 -> 0
A9: =ROW() -> 9 | F9: АКТИВЫ | W9: =Z9 -> 0 | Z9: =Repdd!Z9 -> 0 | AA9: =Repdd!AA9 -> 71679732.56 | AB9: =Repdd!AB9 -> 74597611.34 | AC9: =Repdd!AC9 -> 82369143.47 | AD9: =Repdd!AD9 -> 79724649.87 | AE9: =Repdd!AE9 -> 77001654.28 | AF9: =Repdd!AF9 -> 74310252.35 | AG9: =Repdd!AG9 -> 71655914.06 | AH9: =Repdd!AH9 -> 69009858.38 | AI9: =Repdd!AI9 -> 66337269.53 | AJ9: =Repdd!AJ9 -> 63642740.87 | AK9: =Repdd!AK9 -> 60969168.92 | AL9: =Repdd!AL9 -> 58366799.04 | AM9: =Repdd!AM9 -> 55885877.99 | AN9: =Repdd!AN9 -> 53551065.12 | AO9: =Repdd!AO9 -> 51419758.13 | AP9: =Repdd!AP9 -> 49625649.67 | AQ9: =Repdd!AQ9 -> 48306273.6 | AR9: =Repdd!AR9 -> 47604052.83 | AS9: =Repdd!AS9 -> 87633273.72 | AT9: =Repdd!AT9 -> 86385682.35 | AU9: =Repdd!AU9 -> 80972960.01 | AV9: =Repdd!AV9 -> 71406538.78 | AW9: =Repdd!AW9 -> 86056140.05 | AX9: =Repdd!AX9 -> 101810474.9 | AY9: =Repdd!AY9 -> 106445883.3 | AZ9: =Repdd!AZ9 -> 109419219.1 | BA9: =Repdd!BA9 -> 113217702.3 | BB9: =Repdd!BB9 -> 118637527.9 | BC9: =Repdd!BC9 -> 123943867.3 | BD9: =Repdd!BD9 -> 129019727.7 | BE9: =Repdd!BE9 -> 133718144 | BF9: =Repdd!BF9 -> 138150779.7 | BG9: =Repdd!BG9 -> 141344393.9 | BH9: =Repdd!BH9 -> 147958647.7 | BI9: =Repdd!BI9 -> 155940590.4 | BJ9: =Repdd!BJ9 -> 164057194.6 | BK9: =Repdd!BK9 -> 172224390.2 | BL9: =Repdd!BL9 -> 180410281.5 | BM9: =Repdd!BM9 -> 188604504.1 | BN9: =Repdd!BN9 -> 196806062 | BO9: =Repdd!BO9 -> 205015434.5 | BP9: =Repdd!BP9 -> 213234468.8 | BQ9: =Repdd!BQ9 -> 221465363.2 | BR9: =Repdd!BR9 -> 231375594.5 | BS9: =Repdd!BS9 -> 241285537.9 | BT9: =Repdd!BT9 -> 251195401.7 | BU9: =Repdd!BU9 -> 261105248.1 | BV9: =Repdd!BV9 -> 0 | BW9: =Repdd!BW9 -> 0 | BX9: =Repdd!BX9 -> 0 | BY9: =Repdd!BY9 -> 0 | BZ9: =Repdd!BZ9 -> 0 | CA9: =Repdd!CA9 -> 0 | CB9: =Repdd!CB9 -> 0 | CC9: =Repdd!CC9 -> 0 | CD9: =Repdd!CD9 -> 0 | CE9: =Repdd!CE9 -> 0 | CF9: =Repdd!CF9 -> 0 | CG9: =Repdd!CG9 -> 0 | CH9: =Repdd!CH9 -> 0 | CI9: =Repdd!CI9 -> 0 | CJ9: =Repdd!CJ9 -> 0 | CK9: =Repdd!CK9 -> 0 | CL9: =Repdd!CL9 -> 0 | CM9: =Repdd!CM9 -> 0 | CN9: =Repdd!CN9 -> 0 | CO9: =Repdd!CO9 -> 0 | CP9: =Repdd!CP9 -> 0 | CQ9: =Repdd!CQ9 -> 0 | CR9: =Repdd!CR9 -> 0 | CS9: =Repdd!CS9 -> 0 | CT9: =Repdd!CT9 -> 0
A10: =ROW() -> 10 | F10: =$F$9 -> АКТИВЫ
A11: =ROW() -> 11 | F11: =$F$9 -> АКТИВЫ | G11: =G220 -> Внеоборотные активы | W11: =Z11 -> 0 | Z11: =Repdd!Z11 -> 0 | AA11: =Repdd!AA11 -> 4166666.667 | AB11: =Repdd!AB11 -> 16666666.67 | AC11: =Repdd!AC11 -> 25000000 | AD11: =Repdd!AD11 -> 24702380.95 | AE11: =Repdd!AE11 -> 24404761.9 | AF11: =Repdd!AF11 -> 24107142.86 | AG11: =Repdd!AG11 -> 23809523.81 | AH11: =Repdd!AH11 -> 23511904.76 | AI11: =Repdd!AI11 -> 23214285.71 | AJ11: =Repdd!AJ11 -> 22916666.67 | AK11: =Repdd!AK11 -> 22619047.62 | AL11: =Repdd!AL11 -> 22321428.57 | AM11: =Repdd!AM11 -> 22023809.52 | AN11: =Repdd!AN11 -> 21726190.48 | AO11: =Repdd!AO11 -> 21428571.43 | AP11: =Repdd!AP11 -> 21130952.38 | AQ11: =Repdd!AQ11 -> 20833333.33 | AR11: =Repdd!AR11 -> 20535714.29 | AS11: =Repdd!AS11 -> 20238095.24 | AT11: =Repdd!AT11 -> 19940476.19 | AU11: =Repdd!AU11 -> 19642857.14 | AV11: =Repdd!AV11 -> 23511904.76 | AW11: =Repdd!AW11 -> 35714285.71 | AX11: =Repdd!AX11 -> 43750000 | AY11: =Repdd!AY11 -> 43154761.9 | AZ11: =Repdd!AZ11 -> 42559523.81 | BA11: =Repdd!BA11 -> 41964285.71 | BB11: =Repdd!BB11 -> 41369047.62 | BC11: =Repdd!BC11 -> 40773809.52 | BD11: =Repdd!BD11 -> 40178571.43 | BE11: =Repdd!BE11 -> 39583333.33 | BF11: =Repdd!BF11 -> 38988095.24 | BG11: =Repdd!BG11 -> 38392857.14 | BH11: =Repdd!BH11 -> 37797619.05 | BI11: =Repdd!BI11 -> 37202380.95 | BJ11: =Repdd!BJ11 -> 36607142.86 | BK11: =Repdd!BK11 -> 36011904.76 | BL11: =Repdd!BL11 -> 35416666.67 | BM11: =Repdd!BM11 -> 34821428.57 | BN11: =Repdd!BN11 -> 34226190.48 | BO11: =Repdd!BO11 -> 33630952.38 | BP11: =Repdd!BP11 -> 33035714.29 | BQ11: =Repdd!BQ11 -> 32440476.19 | BR11: =Repdd!BR11 -> 31845238.1 | BS11: =Repdd!BS11 -> 31250000 | BT11: =Repdd!BT11 -> 30654761.9 | BU11: =Repdd!BU11 -> 30059523.81 | BV11: =Repdd!BV11 -> 0 | BW11: =Repdd!BW11 -> 0 | BX11: =Repdd!BX11 -> 0 | BY11: =Repdd!BY11 -> 0 | BZ11: =Repdd!BZ11 -> 0 | CA11: =Repdd!CA11 -> 0 | CB11: =Repdd!CB11 -> 0 | CC11: =Repdd!CC11 -> 0 | CD11: =Repdd!CD11 -> 0 | CE11: =Repdd!CE11 -> 0 | CF11: =Repdd!CF11 -> 0 | CG11: =Repdd!CG11 -> 0 | CH11: =Repdd!CH11 -> 0 | CI11: =Repdd!CI11 -> 0 | CJ11: =Repdd!CJ11 -> 0 | CK11: =Repdd!CK11 -> 0 | CL11: =Repdd!CL11 -> 0 | CM11: =Repdd!CM11 -> 0 | CN11: =Repdd!CN11 -> 0 | CO11: =Repdd!CO11 -> 0 | CP11: =Repdd!CP11 -> 0 | CQ11: =Repdd!CQ11 -> 0 | CR11: =Repdd!CR11 -> 0 | CS11: =Repdd!CS11 -> 0 | CT11: =Repdd!CT11 -> 0
A12: =ROW() -> 12 | F12: =$F$9 -> АКТИВЫ | G12: =$G$224 -> Денежные средства | S12: =Repdd!S15 -> 0 | W12: 0 | Z12: =Repdd!Z15 -> 0 | AA12: =Repdd!AA15 -> 61679732.56 | AB12: =Repdd!AB15 -> 52597611.34 | AC12: =Repdd!AC15 -> 51369143.47 | AD12: =Repdd!AD15 -> 50851702.25 | AE12: =Repdd!AE15 -> 50908038.37 | AF12: =Repdd!AF15 -> 50135492.83 | AG12: =Repdd!AG15 -> 47686577.28 | AH12: =Repdd!AH15 -> 45187162.97 | AI12: =Repdd!AI15 -> 42589818.35 | AJ12: =Repdd!AJ15 -> 39849228.71 | AK12: =Repdd!AK15 -> 36950838.18 | AL12: =Repdd!AL15 -> 33895652.08 | AM12: =Repdd!AM15 -> 30623462.38 | AN12: =Repdd!AN15 -> 27033550.12 | AO12: =Repdd!AO15 -> 23009873.91 | AP12: =Repdd!AP15 -> 18504665.8 | AQ12: =Repdd!AQ15 -> 13640641.63 | AR12: =Repdd!AR15 -> 8639613.147 | AS12: =Repdd!AS15 -> 43774027.91 | AT12: =Repdd!AT15 -> 37236890.15 | AU12: =Repdd!AU15 -> 26297202.14 | AV12: =Repdd!AV15 -> 6073898.505 | AW12: =Repdd!AW15 -> 0 | AX12: =Repdd!AX15 -> 0 | AY12: =Repdd!AY15 -> 0 | AZ12: =Repdd!AZ15 -> 0 | BA12: =Repdd!BA15 -> 0 | BB12: =Repdd!BB15 -> 0 | BC12: =Repdd!BC15 -> 0 | BD12: =Repdd!BD15 -> 0 | BE12: =Repdd!BE15 -> -2.328306437e-10 | BF12: =Repdd!BF15 -> 265781.5284 | BG12: =Repdd!BG15 -> 13070.76441 | BH12: =Repdd!BH15 -> 4064489.524 | BI12: =Repdd!BI15 -> 10360854.23 | BJ12: =Repdd!BJ15 -> 17571658.2 | BK12: =Repdd!BK15 -> 25443503.01 | BL12: =Repdd!BL15 -> 33736344.39 | BM12: =Repdd!BM15 -> 42277919.41 | BN12: =Repdd!BN15 -> 50957960.25 | BO12: =Repdd!BO15 -> 59712901.09 | BP12: =Repdd!BP15 -> 68508461.45 | BQ12: =Repdd!BQ15 -> 77327938.22 | BR12: =Repdd!BR15 -> 87831350.53 | BS12: =Repdd!BS15 -> 98336038.97 | BT12: =Repdd!BT15 -> 108841042 | BU12: =Repdd!BU15 -> 119346114.7 | BV12: =Repdd!BV15 -> 0 | BW12: =Repdd!BW15 -> 0 | BX12: =Repdd!BX15 -> 0 | BY12: =Repdd!BY15 -> 0 | BZ12: =Repdd!BZ15 -> 0 | CA12: =Repdd!CA15 -> 0 | CB12: =Repdd!CB15 -> 0 | CC12: =Repdd!CC15 -> 0 | CD12: =Repdd!CD15 -> 0 | CE12: =Repdd!CE15 -> 0 | CF12: =Repdd!CF15 -> 0 | CG12: =Repdd!CG15 -> 0 | CH12: =Repdd!CH15 -> 0 | CI12: =Repdd!CI15 -> 0 | CJ12: =Repdd!CJ15 -> 0 | CK12: =Repdd!CK15 -> 0 | CL12: =Repdd!CL15 -> 0 | CM12: =Repdd!CM15 -> 0 | CN12: =Repdd!CN15 -> 0 | CO12: =Repdd!CO15 -> 0 | CP12: =Repdd!CP15 -> 0 | CQ12: =Repdd!CQ15 -> 0 | CR12: =Repdd!CR15 -> 0 | CS12: =Repdd!CS15 -> 0 | CT12: =Repdd!CT15 -> 0
A13: =ROW() -> 13 | E13: * | F13: =$F$9 -> АКТИВЫ | G13: Запасы СиМ | W13: 0 | Z13: =Repdd!Z16 -> 0 | AA13: =Repdd!AA16 -> 0 | AB13: =Repdd!AB16 -> 0 | AC13: =Repdd!AC16 -> 0 | AD13: =Repdd!AD16 -> 3900 | AE13: =Repdd!AE16 -> 17400 | AF13: =Repdd!AF16 -> 37080 | AG13: =Repdd!AG16 -> 63007.5 | AH13: =Repdd!AH16 -> 91462.5 | AI13: =Repdd!AI16 -> 124846.5 | AJ13: =Repdd!AJ16 -> 186529.5 | AK13: =Repdd!AK16 -> 291355.5 | AL13: =Repdd!AL16 -> 455760.75 | AM13: =Repdd!AM16 -> 688116 | AN13: =Repdd!AN16 -> 977621.25 | AO13: =Repdd!AO16 -> 1311643.5 | AP13: =Repdd!AP16 -> 1675473.75 | AQ13: =Repdd!AQ16 -> 2056293.75 | AR13: =Repdd!AR16 -> 2446307.25 | AS13: =Repdd!AS16 -> 2840703.75 | AT13: =Repdd!AT16 -> 3237150 | AU13: =Repdd!AU16 -> 3634387.5 | AV13: =Repdd!AV16 -> 4031850 | AW13: =Repdd!AW16 -> 4429402.5 | AX13: =Repdd!AX16 -> 4826977.5 | AY13: =Repdd!AY16 -> 5224552.5 | AZ13: =Repdd!AZ16 -> 5622127.5 | BA13: =Repdd!BA16 -> 6009952.5 | BB13: =Repdd!BB16 -> 6364027.5 | BC13: =Repdd!BC16 -> 6668902.5 | BD13: =Repdd!BD16 -> 6908958.75 | BE13: =Repdd!BE16 -> 7077877.5 | BF13: =Repdd!BF16 -> 7187711.25 | BG13: =Repdd!BG16 -> 7252087.5 | BH13: =Repdd!BH16 -> 7286148.75 | BI13: =Repdd!BI16 -> 7302993.75 | BJ13: =Repdd!BJ16 -> 7310591.25 | BK13: =Repdd!BK16 -> 7313778.75 | BL13: =Repdd!BL16 -> 7314907.5 | BM13: =Repdd!BM16 -> 7315245 | BN13: =Repdd!BN16 -> 7315357.5 | BO13: =Repdd!BO16 -> 7315380 | BP13: =Repdd!BP16 -> 7315380 | BQ13: =Repdd!BQ16 -> 7315380 | BR13: =Repdd!BR16 -> 7315380 | BS13: =Repdd!BS16 -> 7315380 | BT13: =Repdd!BT16 -> 7315380 | BU13: =Repdd!BU16 -> 7315380 | BV13: =Repdd!BV16 -> 0 | BW13: =Repdd!BW16 -> 0 | BX13: =Repdd!BX16 -> 0 | BY13: =Repdd!BY16 -> 0 | BZ13: =Repdd!BZ16 -> 0 | CA13: =Repdd!CA16 -> 0 | CB13: =Repdd!CB16 -> 0 | CC13: =Repdd!CC16 -> 0 | CD13: =Repdd!CD16 -> 0 | CE13: =Repdd!CE16 -> 0 | CF13: =Repdd!CF16 -> 0 | CG13: =Repdd!CG16 -> 0 | CH13: =Repdd!CH16 -> 0 | CI13: =Repdd!CI16 -> 0 | CJ13: =Repdd!CJ16 -> 0 | CK13: =Repdd!CK16 -> 0 | CL13: =Repdd!CL16 -> 0 | CM13: =Repdd!CM16 -> 0 | CN13: =Repdd!CN16 -> 0 | CO13: =Repdd!CO16 -> 0 | CP13: =Repdd!CP16 -> 0 | CQ13: =Repdd!CQ16 -> 0 | CR13: =Repdd!CR16 -> 0 | CS13: =Repdd!CS16 -> 0 | CT13: =Repdd!CT16 -> 0
A14: =ROW() -> 14 | F14: =$F$218 -> АКТИВЫ | G14: =$G$231 -> Производство | W14: 0 | Z14: =Repdd!Z22 -> 0 | AA14: =Repdd!AA22 -> 0 | AB14: =Repdd!AB22 -> 0 | AC14: =Repdd!AC22 -> 0 | AD14: =Repdd!AD22 -> 0 | AE14: =Repdd!AE22 -> 4787.333333 | AF14: =Repdd!AF22 -> 30536.66667 | AG14: =Repdd!AG22 -> 96805.46667 | AH14: =Repdd!AH22 -> 219328.15 | AI14: =Repdd!AI22 -> 384203.7667 | AJ14: =Repdd!AJ22 -> 556570.2567 | AK14: =Repdd!AK22 -> 771700.9467 | AL14: =Repdd!AL22 -> 1113727.367 | AM14: =Repdd!AM22 -> 1719936.705 | AN14: =Repdd!AN22 -> 2712684.865 | AO14: =Repdd!AO22 -> 4090614.023 | AP14: =Repdd!AP22 -> 5806965.217 | AQ14: =Repdd!AQ22 -> 7768549.233 | AR14: =Repdd!AR22 -> 9872683.738 | AS14: =Repdd!AS22 -> 12056893.24 | AT14: =Repdd!AT22 -> 14281881.65 | AU14: =Repdd!AU22 -> 16526455.61 | AV14: =Repdd!AV22 -> 18778716.48 | AW14: =Repdd!AW22 -> 21033234.48 | AX14: =Repdd!AX22 -> 23288704.93 | AY14: =Repdd!AY22 -> 25544422.93 | AZ14: =Repdd!AZ22 -> 27800140.93 | BA14: =Repdd!BA22 -> 30055858.93 | BB14: =Repdd!BB22 -> 32299608.6 | BC14: =Repdd!BC22 -> 34478984.93 | BD14: =Repdd!BD22 -> 36492689.27 | BE14: =Repdd!BE22 -> 38200086.89 | BF14: =Repdd!BF22 -> 39495295.47 | BG14: =Repdd!BG22 -> 40389508.67 | BH14: =Repdd!BH22 -> 40936749.3 | BI14: =Repdd!BI22 -> 41233958.05 | BJ14: =Repdd!BJ22 -> 41386444.39 | BK14: =Repdd!BK22 -> 41458333.88 | BL14: =Repdd!BL22 -> 41489162.48 | BM14: =Repdd!BM22 -> 41500306.52 | BN14: =Repdd!BN22 -> 41503763.65 | BO14: =Repdd!BO22 -> 41504963.66 | BP14: =Repdd!BP22 -> 41505211.2 | BQ14: =Repdd!BQ22 -> 41505211.2 | BR14: =Repdd!BR22 -> 41505211.2 | BS14: =Repdd!BS22 -> 41505211.2 | BT14: =Repdd!BT22 -> 41505211.2 | BU14: =Repdd!BU22 -> 41505211.2 | BV14: =Repdd!BV22 -> 0 | BW14: =Repdd!BW22 -> 0 | BX14: =Repdd!BX22 -> 0 | BY14: =Repdd!BY22 -> 0 | BZ14: =Repdd!BZ22 -> 0 | CA14: =Repdd!CA22 -> 0 | CB14: =Repdd!CB22 -> 0 | CC14: =Repdd!CC22 -> 0 | CD14: =Repdd!CD22 -> 0 | CE14: =Repdd!CE22 -> 0 | CF14: =Repdd!CF22 -> 0 | CG14: =Repdd!CG22 -> 0 | CH14: =Repdd!CH22 -> 0 | CI14: =Repdd!CI22 -> 0 | CJ14: =Repdd!CJ22 -> 0 | CK14: =Repdd!CK22 -> 0 | CL14: =Repdd!CL22 -> 0 | CM14: =Repdd!CM22 -> 0 | CN14: =Repdd!CN22 -> 0 | CO14: =Repdd!CO22 -> 0 | CP14: =Repdd!CP22 -> 0 | CQ14: =Repdd!CQ22 -> 0 | CR14: =Repdd!CR22 -> 0 | CS14: =Repdd!CS22 -> 0 | CT14: =Repdd!CT22 -> 0
A15: =ROW() -> 15 | F15: АКТИВЫ | G15: =$G$225 -> Запасы СиМ | H15: =$H$232 -> Цех-1 | W15: 0 | Z15: =Repdd!Z23 -> 0 | AA15: =Repdd!AA23 -> 0 | AB15: =Repdd!AB23 -> 0 | AC15: =Repdd!AC23 -> 0 | AD15: =Repdd!AD23 -> 0 | AE15: =Repdd!AE23 -> 4787.333333 | AF15: =Repdd!AF23 -> 19149.33333 | AG15: =Repdd!AG23 -> 34468.8 | AH15: =Repdd!AH23 -> 50386.68333 | AI15: =Repdd!AI23 -> 64269.95 | AJ15: =Repdd!AJ23 -> 84424.62333 | AK15: =Repdd!AK23 -> 137085.29 | AL15: =Repdd!AL23 -> 225746.7033 | AM15: =Repdd!AM23 -> 353029.9283 | AN15: =Repdd!AN23 -> 514279.2833 | AO15: =Repdd!AO23 -> 695563.6283 | AP15: =Repdd!AP23 -> 888744.4967 | AQ15: =Repdd!AQ23 -> 1088101.025 | AR15: =Repdd!AR23 -> 1290724.908 | AS15: =Repdd!AS23 -> 1494784.992 | AT15: =Repdd!AT23 -> 1699204.125 | AU15: =Repdd!AU23 -> 1903802.783 | AV15: =Repdd!AV23 -> 2108461.283 | AW15: =Repdd!AW23 -> 2313119.783 | AX15: =Repdd!AX23 -> 2517778.283 | AY15: =Repdd!AY23 -> 2722436.783 | AZ15: =Repdd!AZ23 -> 2927095.283 | BA15: =Repdd!BA23 -> 3131753.783 | BB15: =Repdd!BB23 -> 3324443.95 | BC15: =Repdd!BC23 -> 3481229.117 | BD15: =Repdd!BD23 -> 3599715.617 | BE15: =Repdd!BE23 -> 3678407.408 | BF15: =Repdd!BF23 -> 3722391.033 | BG15: =Repdd!BG23 -> 3745908.808 | BH15: =Repdd!BH23 -> 3757458.25 | BI15: =Repdd!BI23 -> 3762784.158 | BJ15: =Repdd!BJ23 -> 3764818.775 | BK15: =Repdd!BK23 -> 3765417.192 | BL15: =Repdd!BL23 -> 3765656.558 | BM15: =Repdd!BM23 -> 3765716.4 | BN15: =Repdd!BN23 -> 3765716.4 | BO15: =Repdd!BO23 -> 3765716.4 | BP15: =Repdd!BP23 -> 3765716.4 | BQ15: =Repdd!BQ23 -> 3765716.4 | BR15: =Repdd!BR23 -> 3765716.4 | BS15: =Repdd!BS23 -> 3765716.4 | BT15: =Repdd!BT23 -> 3765716.4 | BU15: =Repdd!BU23 -> 3765716.4 | BV15: =Repdd!BV23 -> 0 | BW15: =Repdd!BW23 -> 0 | BX15: =Repdd!BX23 -> 0 | BY15: =Repdd!BY23 -> 0 | BZ15: =Repdd!BZ23 -> 0 | CA15: =Repdd!CA23 -> 0 | CB15: =Repdd!CB23 -> 0 | CC15: =Repdd!CC23 -> 0 | CD15: =Repdd!CD23 -> 0 | CE15: =Repdd!CE23 -> 0 | CF15: =Repdd!CF23 -> 0 | CG15: =Repdd!CG23 -> 0 | CH15: =Repdd!CH23 -> 0 | CI15: =Repdd!CI23 -> 0 | CJ15: =Repdd!CJ23 -> 0 | CK15: =Repdd!CK23 -> 0 | CL15: =Repdd!CL23 -> 0 | CM15: =Repdd!CM23 -> 0 | CN15: =Repdd!CN23 -> 0 | CO15: =Repdd!CO23 -> 0 | CP15: =Repdd!CP23 -> 0 | CQ15: =Repdd!CQ23 -> 0 | CR15: =Repdd!CR23 -> 0 | CS15: =Repdd!CS23 -> 0 | CT15: =Repdd!CT23 -> 0
A16: =ROW() -> 16 | F16: АКТИВЫ | G16: =$G$225 -> Запасы СиМ | H16: =BP!$F$24 -> Вн.пр-во | W16: 0 | Z16: =Repdd!Z30 -> 0 | AA16: =Repdd!AA30 -> 0 | AB16: =Repdd!AB30 -> 0 | AC16: =Repdd!AC30 -> 0 | AD16: =Repdd!AD30 -> 0 | AE16: =Repdd!AE30 -> 0 | AF16: =Repdd!AF30 -> 11387.33333 | AG16: =Repdd!AG30 -> 62336.66667 | AH16: =Repdd!AH30 -> 149138.1333 | AI16: =Repdd!AI30 -> 240720.4833 | AJ16: =Repdd!AJ30 -> 329561.6333 | AK16: =Repdd!AK30 -> 426185.5733 | AL16: =Repdd!AL30 -> 622120.9133 | AM16: =Repdd!AM30 -> 1017674.993 | AN16: =Repdd!AN30 -> 1631337.132 | AO16: =Repdd!AO30 -> 2461224.212 | AP16: =Repdd!AP30 -> 3457873.412 | AQ16: =Repdd!AQ30 -> 4553075.125 | AR16: =Repdd!AR30 -> 5704683.022 | AS16: =Repdd!AS30 -> 6885718.433 | AT16: =Repdd!AT30 -> 8081627.4 | AU16: =Repdd!AU30 -> 9283426.617 | AV16: =Repdd!AV30 -> 10486911.91 | AW16: =Repdd!AW30 -> 11691169.07 | AX16: =Repdd!AX30 -> 12895636.07 | AY16: =Repdd!AY30 -> 14100103.07 | AZ16: =Repdd!AZ30 -> 15304570.07 | BA16: =Repdd!BA30 -> 16509037.07 | BB16: =Repdd!BB30 -> 17713504.07 | BC16: =Repdd!BC30 -> 18889502.73 | BD16: =Repdd!BD30 -> 19938128.07 | BE16: =Repdd!BE30 -> 20769749.73 | BF16: =Repdd!BF30 -> 21372415.52 | BG16: =Repdd!BG30 -> 21752978.44 | BH16: =Repdd!BH30 -> 21963152.34 | BI16: =Repdd!BI30 -> 22073092.06 | BJ16: =Repdd!BJ30 -> 22126259.91 | BK16: =Repdd!BK30 -> 22149775.43 | BL16: =Repdd!BL30 -> 22158333.47 | BM16: =Repdd!BM30 -> 22161001.25 | BN16: =Repdd!BN30 -> 22161982.96 | BO16: =Repdd!BO30 -> 22162192.8 | BP16: =Repdd!BP30 -> 22162192.8 | BQ16: =Repdd!BQ30 -> 22162192.8 | BR16: =Repdd!BR30 -> 22162192.8 | BS16: =Repdd!BS30 -> 22162192.8 | BT16: =Repdd!BT30 -> 22162192.8 | BU16: =Repdd!BU30 -> 22162192.8 | BV16: =Repdd!BV30 -> 0 | BW16: =Repdd!BW30 -> 0 | BX16: =Repdd!BX30 -> 0 | BY16: =Repdd!BY30 -> 0 | BZ16: =Repdd!BZ30 -> 0 | CA16: =Repdd!CA30 -> 0 | CB16: =Repdd!CB30 -> 0 | CC16: =Repdd!CC30 -> 0 | CD16: =Repdd!CD30 -> 0 | CE16: =Repdd!CE30 -> 0 | CF16: =Repdd!CF30 -> 0 | CG16: =Repdd!CG30 -> 0 | CH16: =Repdd!CH30 -> 0 | CI16: =Repdd!CI30 -> 0 | CJ16: =Repdd!CJ30 -> 0 | CK16: =Repdd!CK30 -> 0 | CL16: =Repdd!CL30 -> 0 | CM16: =Repdd!CM30 -> 0 | CN16: =Repdd!CN30 -> 0 | CO16: =Repdd!CO30 -> 0 | CP16: =Repdd!CP30 -> 0 | CQ16: =Repdd!CQ30 -> 0 | CR16: =Repdd!CR30 -> 0 | CS16: =Repdd!CS30 -> 0 | CT16: =Repdd!CT30 -> 0
A17: =ROW() -> 17 | F17: АКТИВЫ | G17: =$G$225 -> Запасы СиМ | H17: =$H$234 -> Цех-2 | W17: 0 | Z17: =Repdd!Z38 -> 0 | AA17: =Repdd!AA38 -> 0 | AB17: =Repdd!AB38 -> 0 | AC17: =Repdd!AC38 -> 0 | AD17: =Repdd!AD38 -> 0 | AE17: =Repdd!AE38 -> 0 | AF17: =Repdd!AF38 -> 0 | AG17: =Repdd!AG38 -> 0 | AH17: =Repdd!AH38 -> 19803.33333 | AI17: =Repdd!AI38 -> 79213.33333 | AJ17: =Repdd!AJ38 -> 142584 | AK17: =Repdd!AK38 -> 208430.0833 | AL17: =Repdd!AL38 -> 265859.75 | AM17: =Repdd!AM38 -> 349231.7833 | AN17: =Repdd!AN38 -> 567068.45 | AO17: =Repdd!AO38 -> 933826.1833 | AP17: =Repdd!AP38 -> 1460347.308 | AQ17: =Repdd!AQ38 -> 2127373.083 | AR17: =Repdd!AR38 -> 2877275.808 | AS17: =Repdd!AS38 -> 3676389.817 | AT17: =Repdd!AT38 -> 4501050.125 | AU17: =Repdd!AU38 -> 5339226.208 | AV17: =Repdd!AV38 -> 6183343.292 | AW17: =Repdd!AW38 -> 7028945.625 | AX17: =Repdd!AX38 -> 7875290.583 | AY17: =Repdd!AY38 -> 8721883.083 | AZ17: =Repdd!AZ38 -> 9568475.583 | BA17: =Repdd!BA38 -> 10415068.08 | BB17: =Repdd!BB38 -> 11261660.58 | BC17: =Repdd!BC38 -> 12108253.08 | BD17: =Repdd!BD38 -> 12954845.58 | BE17: =Repdd!BE38 -> 13751929.75 | BF17: =Repdd!BF38 -> 14400488.92 | BG17: =Repdd!BG38 -> 14890621.42 | BH17: =Repdd!BH38 -> 15216138.71 | BI17: =Repdd!BI38 -> 15398081.83 | BJ17: =Repdd!BJ38 -> 15495365.71 | BK17: =Repdd!BK38 -> 15543141.25 | BL17: =Repdd!BL38 -> 15565172.46 | BM17: =Repdd!BM38 -> 15573588.88 | BN17: =Repdd!BN38 -> 15576064.29 | BO17: =Repdd!BO38 -> 15577054.46 | BP17: =Repdd!BP38 -> 15577302 | BQ17: =Repdd!BQ38 -> 15577302 | BR17: =Repdd!BR38 -> 15577302 | BS17: =Repdd!BS38 -> 15577302 | BT17: =Repdd!BT38 -> 15577302 | BU17: =Repdd!BU38 -> 15577302 | BV17: =Repdd!BV38 -> 0 | BW17: =Repdd!BW38 -> 0 | BX17: =Repdd!BX38 -> 0 | BY17: =Repdd!BY38 -> 0 | BZ17: =Repdd!BZ38 -> 0 | CA17: =Repdd!CA38 -> 0 | CB17: =Repdd!CB38 -> 0 | CC17: =Repdd!CC38 -> 0 | CD17: =Repdd!CD38 -> 0 | CE17: =Repdd!CE38 -> 0 | CF17: =Repdd!CF38 -> 0 | CG17: =Repdd!CG38 -> 0 | CH17: =Repdd!CH38 -> 0 | CI17: =Repdd!CI38 -> 0 | CJ17: =Repdd!CJ38 -> 0 | CK17: =Repdd!CK38 -> 0 | CL17: =Repdd!CL38 -> 0 | CM17: =Repdd!CM38 -> 0 | CN17: =Repdd!CN38 -> 0 | CO17: =Repdd!CO38 -> 0 | CP17: =Repdd!CP38 -> 0 | CQ17: =Repdd!CQ38 -> 0 | CR17: =Repdd!CR38 -> 0 | CS17: =Repdd!CS38 -> 0 | CT17: =Repdd!CT38 -> 0
A18: =ROW() -> 18 | F18: АКТИВЫ | G18: =$G$235 -> Склад ГП | W18: 0 | Z18: =Repdd!Z49 -> 0 | AA18: =Repdd!AA49 -> 0 | AB18: =Repdd!AB49 -> 0 | AC18: =Repdd!AC49 -> 0 | AD18: =Repdd!AD49 -> 0 | AE18: =Repdd!AE49 -> 0 | AF18: =Repdd!AF49 -> 0 | AG18: =Repdd!AG49 -> 0 | AH18: =Repdd!AH49 -> 0 | AI18: =Repdd!AI49 -> 17823 | AJ18: =Repdd!AJ49 -> 79213.33333 | AK18: =Repdd!AK49 -> 162981.4333 | AL18: =Repdd!AL49 -> 257492.8417 | AM18: =Repdd!AM49 -> 347994.075 | AN18: =Repdd!AN49 -> 459046.2175 | AO18: =Repdd!AO49 -> 700354.785 | AP18: =Repdd!AP49 -> 1132948.7 | AQ18: =Repdd!AQ49 -> 1790364.907 | AR18: =Repdd!AR49 -> 2667202.048 | AS18: =Repdd!AS49 -> 3706240.866 | AT18: =Repdd!AT49 -> 4851784.486 | AU18: =Repdd!AU49 -> 6059461.065 | AV18: =Repdd!AV49 -> 7301045.9 | AW18: =Repdd!AW49 -> 8559676.455 | AX18: =Repdd!AX49 -> 9825324.817 | AY18: =Repdd!AY49 -> 11093802.58 | AZ18: =Repdd!AZ49 -> 12363320.02 | BA18: =Repdd!BA49 -> 13633122.13 | BB18: =Repdd!BB49 -> 14902998.5 | BC18: =Repdd!BC49 -> 16172887.25 | BD18: =Repdd!BD49 -> 17442776 | BE18: =Repdd!BE49 -> 18712664.75 | BF18: =Repdd!BF49 -> 19937996 | BG18: =Repdd!BG49 -> 21009851.42 | BH18: =Repdd!BH49 -> 21872286.58 | BI18: =Repdd!BI49 -> 22498443.23 | BJ18: =Repdd!BJ49 -> 22898346.79 | BK18: =Repdd!BK49 -> 23132013.75 | BL18: =Repdd!BL49 -> 23257492.62 | BM18: =Repdd!BM49 -> 23320120.66 | BN18: =Repdd!BN49 -> 23348538.44 | BO18: =Repdd!BO49 -> 23359826.34 | BP18: =Repdd!BP49 -> 23364071.68 | BQ18: =Repdd!BQ49 -> 23365482.67 | BR18: =Repdd!BR49 -> 23365853.98 | BS18: =Repdd!BS49 -> 23365940.62 | BT18: =Repdd!BT49 -> 23365953 | BU18: =Repdd!BU49 -> 23365953 | BV18: =Repdd!BV49 -> 0 | BW18: =Repdd!BW49 -> 0 | BX18: =Repdd!BX49 -> 0 | BY18: =Repdd!BY49 -> 0 | BZ18: =Repdd!BZ49 -> 0 | CA18: =Repdd!CA49 -> 0 | CB18: =Repdd!CB49 -> 0 | CC18: =Repdd!CC49 -> 0 | CD18: =Repdd!CD49 -> 0 | CE18: =Repdd!CE49 -> 0 | CF18: =Repdd!CF49 -> 0 | CG18: =Repdd!CG49 -> 0 | CH18: =Repdd!CH49 -> 0 | CI18: =Repdd!CI49 -> 0 | CJ18: =Repdd!CJ49 -> 0 | CK18: =Repdd!CK49 -> 0 | CL18: =Repdd!CL49 -> 0 | CM18: =Repdd!CM49 -> 0 | CN18: =Repdd!CN49 -> 0 | CO18: =Repdd!CO49 -> 0 | CP18: =Repdd!CP49 -> 0 | CQ18: =Repdd!CQ49 -> 0 | CR18: =Repdd!CR49 -> 0 | CS18: =Repdd!CS49 -> 0 | CT18: =Repdd!CT49 -> 0
A19: =ROW() -> 19 | F19: АКТИВЫ | G19: =G236 -> Деб.задолженность Учр. по опл УК | S19: =Repdd!S60 -> 0 | W19: 0 | Z19: =Repdd!Z60 -> 0 | AA19: =Repdd!AA60 -> 5000000 | AB19: =Repdd!AB60 -> 2000000 | AC19: =Repdd!AC60 -> 1000000 | AD19: =Repdd!AD60 -> 0 | AE19: =Repdd!AE60 -> 0 | AF19: =Repdd!AF60 -> 0 | AG19: =Repdd!AG60 -> 0 | AH19: =Repdd!AH60 -> 0 | AI19: =Repdd!AI60 -> 0 | AJ19: =Repdd!AJ60 -> 0 | AK19: =Repdd!AK60 -> 0 | AL19: =Repdd!AL60 -> 0 | AM19: =Repdd!AM60 -> 0 | AN19: =Repdd!AN60 -> 0 | AO19: =Repdd!AO60 -> 0 | AP19: =Repdd!AP60 -> 0 | AQ19: =Repdd!AQ60 -> 0 | AR19: =Repdd!AR60 -> 0 | AS19: =Repdd!AS60 -> 0 | AT19: =Repdd!AT60 -> 0 | AU19: =Repdd!AU60 -> 0 | AV19: =Repdd!AV60 -> 0 | AW19: =Repdd!AW60 -> 0 | AX19: =Repdd!AX60 -> 0 | AY19: =Repdd!AY60 -> 0 | AZ19: =Repdd!AZ60 -> 0 | BA19: =Repdd!BA60 -> 0 | BB19: =Repdd!BB60 -> 0 | BC19: =Repdd!BC60 -> 0 | BD19: =Repdd!BD60 -> 0 | BE19: =Repdd!BE60 -> 0 | BF19: =Repdd!BF60 -> 0 | BG19: =Repdd!BG60 -> 0 | BH19: =Repdd!BH60 -> 0 | BI19: =Repdd!BI60 -> 0 | BJ19: =Repdd!BJ60 -> 0 | BK19: =Repdd!BK60 -> 0 | BL19: =Repdd!BL60 -> 0 | BM19: =Repdd!BM60 -> 0 | BN19: =Repdd!BN60 -> 0 | BO19: =Repdd!BO60 -> 0 | BP19: =Repdd!BP60 -> 0 | BQ19: =Repdd!BQ60 -> 0 | BR19: =Repdd!BR60 -> 0 | BS19: =Repdd!BS60 -> 0 | BT19: =Repdd!BT60 -> 0 | BU19: =Repdd!BU60 -> 0 | BV19: =Repdd!BV60 -> 0 | BW19: =Repdd!BW60 -> 0 | BX19: =Repdd!BX60 -> 0 | BY19: =Repdd!BY60 -> 0 | BZ19: =Repdd!BZ60 -> 0 | CA19: =Repdd!CA60 -> 0 | CB19: =Repdd!CB60 -> 0 | CC19: =Repdd!CC60 -> 0 | CD19: =Repdd!CD60 -> 0 | CE19: =Repdd!CE60 -> 0 | CF19: =Repdd!CF60 -> 0 | CG19: =Repdd!CG60 -> 0 | CH19: =Repdd!CH60 -> 0 | CI19: =Repdd!CI60 -> 0 | CJ19: =Repdd!CJ60 -> 0 | CK19: =Repdd!CK60 -> 0 | CL19: =Repdd!CL60 -> 0 | CM19: =Repdd!CM60 -> 0 | CN19: =Repdd!CN60 -> 0 | CO19: =Repdd!CO60 -> 0 | CP19: =Repdd!CP60 -> 0 | CQ19: =Repdd!CQ60 -> 0 | CR19: =Repdd!CR60 -> 0 | CS19: =Repdd!CS60 -> 0 | CT19: =Repdd!CT60 -> 0
A20: =ROW() -> 20 | F20: АКТИВЫ | G20: =G237 -> Дебиторская задолженность | S20: =Repdd!S61 -> 0 | W20: 0 | Z20: =Repdd!Z61 -> 0 | AA20: =Repdd!AA61 -> 0 | AB20: =Repdd!AB61 -> 0 | AC20: =Repdd!AC61 -> 0 | AD20: =Repdd!AD61 -> 0 | AE20: =Repdd!AE61 -> 0 | AF20: =Repdd!AF61 -> 0 | AG20: =Repdd!AG61 -> 0 | AH20: =Repdd!AH61 -> 0 | AI20: =Repdd!AI61 -> 6292.2 | AJ20: =Repdd!AJ61 -> 54532.4 | AK20: =Repdd!AK61 -> 173245.24 | AL20: =Repdd!AL61 -> 322737.425 | AM20: =Repdd!AM61 -> 482559.305 | AN20: =Repdd!AN61 -> 641972.192 | AO20: =Repdd!AO61 -> 878700.4865 | AP20: =Repdd!AP61 -> 1374643.825 | AQ20: =Repdd!AQ61 -> 2217090.753 | AR20: =Repdd!AR61 -> 3442532.359 | AS20: =Repdd!AS61 -> 5017312.714 | AT20: =Repdd!AT61 -> 6837499.88 | AU20: =Repdd!AU61 -> 8812596.553 | AV20: =Repdd!AV61 -> 10875789.79 | AW20: =Repdd!AW61 -> 12986207.57 | AX20: =Repdd!AX61 -> 15119467.6 | AY20: =Repdd!AY61 -> 17261676.72 | AZ20: =Repdd!AZ61 -> 19407440.14 | BA20: =Repdd!BA61 -> 21554482.98 | BB20: =Repdd!BB61 -> 23701845.67 | BC20: =Repdd!BC61 -> 25849283.08 | BD20: =Repdd!BD61 -> 27996732.29 | BE20: =Repdd!BE61 -> 30144181.49 | BF20: =Repdd!BF61 -> 32275900.2 | BG20: =Repdd!BG61 -> 34287018.41 | BH20: =Repdd!BH61 -> 36001354.52 | BI20: =Repdd!BI61 -> 37341960.16 | BJ20: =Repdd!BJ61 -> 38283011.11 | BK20: =Repdd!BK61 -> 38864856.08 | BL20: =Repdd!BL61 -> 39195707.82 | BM20: =Repdd!BM61 -> 39369483.97 | BN20: =Repdd!BN61 -> 39454251.7 | BO20: =Repdd!BO61 -> 39491411.07 | BP20: =Repdd!BP61 -> 39505630.13 | BQ20: =Repdd!BQ61 -> 39510874.95 | BR20: =Repdd!BR61 -> 39512560.73 | BS20: =Repdd!BS61 -> 39512967.1 | BT20: =Repdd!BT61 -> 39513053.62 | BU20: =Repdd!BU61 -> 39513065.42 | BV20: =Repdd!BV61 -> 0 | BW20: =Repdd!BW61 -> 0 | BX20: =Repdd!BX61 -> 0 | BY20: =Repdd!BY61 -> 0 | BZ20: =Repdd!BZ61 -> 0 | CA20: =Repdd!CA61 -> 0 | CB20: =Repdd!CB61 -> 0 | CC20: =Repdd!CC61 -> 0 | CD20: =Repdd!CD61 -> 0 | CE20: =Repdd!CE61 -> 0 | CF20: =Repdd!CF61 -> 0 | CG20: =Repdd!CG61 -> 0 | CH20: =Repdd!CH61 -> 0 | CI20: =Repdd!CI61 -> 0 | CJ20: =Repdd!CJ61 -> 0 | CK20: =Repdd!CK61 -> 0 | CL20: =Repdd!CL61 -> 0 | CM20: =Repdd!CM61 -> 0 | CN20: =Repdd!CN61 -> 0 | CO20: =Repdd!CO61 -> 0 | CP20: =Repdd!CP61 -> 0 | CQ20: =Repdd!CQ61 -> 0 | CR20: =Repdd!CR61 -> 0 | CS20: =Repdd!CS61 -> 0 | CT20: =Repdd!CT61 -> 0
A21: =ROW() -> 21 | F21: АКТИВЫ | G21: =G238 -> Задолженность бюджета по возмещению НДС по капзатратам | S21: =Repdd!S62 -> 0 | W21: 0 | Z21: =Repdd!Z62 -> 0 | AA21: =Repdd!AA62 -> 833333.3333 | AB21: =Repdd!AB62 -> 3333333.333 | AC21: =Repdd!AC62 -> 5000000 | AD21: =Repdd!AD62 -> 4166666.667 | AE21: =Repdd!AE62 -> 1666666.667 | AF21: =Repdd!AF62 -> 0 | AG21: =Repdd!AG62 -> 0 | AH21: =Repdd!AH62 -> 0 | AI21: =Repdd!AI62 -> 0 | AJ21: =Repdd!AJ62 -> 0 | AK21: =Repdd!AK62 -> 0 | AL21: =Repdd!AL62 -> 0 | AM21: =Repdd!AM62 -> 0 | AN21: =Repdd!AN62 -> 0 | AO21: =Repdd!AO62 -> 0 | AP21: =Repdd!AP62 -> 0 | AQ21: =Repdd!AQ62 -> 0 | AR21: =Repdd!AR62 -> 0 | AS21: =Repdd!AS62 -> 0 | AT21: =Repdd!AT62 -> 0 | AU21: =Repdd!AU62 -> 0 | AV21: =Repdd!AV62 -> 833333.3333 | AW21: =Repdd!AW62 -> 3333333.333 | AX21: =Repdd!AX62 -> 5000000 | AY21: =Repdd!AY62 -> 4166666.667 | AZ21: =Repdd!AZ62 -> 1666666.667 | BA21: =Repdd!BA62 -> 0 | BB21: =Repdd!BB62 -> 0 | BC21: =Repdd!BC62 -> 0 | BD21: =Repdd!BD62 -> 0 | BE21: =Repdd!BE62 -> 0 | BF21: =Repdd!BF62 -> 0 | BG21: =Repdd!BG62 -> 0 | BH21: =Repdd!BH62 -> 0 | BI21: =Repdd!BI62 -> 0 | BJ21: =Repdd!BJ62 -> 0 | BK21: =Repdd!BK62 -> 0 | BL21: =Repdd!BL62 -> 0 | BM21: =Repdd!BM62 -> 0 | BN21: =Repdd!BN62 -> 0 | BO21: =Repdd!BO62 -> 0 | BP21: =Repdd!BP62 -> 0 | BQ21: =Repdd!BQ62 -> 0 | BR21: =Repdd!BR62 -> 0 | BS21: =Repdd!BS62 -> 0 | BT21: =Repdd!BT62 -> 0 | BU21: =Repdd!BU62 -> 0 | BV21: =Repdd!BV62 -> 0 | BW21: =Repdd!BW62 -> 0 | BX21: =Repdd!BX62 -> 0 | BY21: =Repdd!BY62 -> 0 | BZ21: =Repdd!BZ62 -> 0 | CA21: =Repdd!CA62 -> 0 | CB21: =Repdd!CB62 -> 0 | CC21: =Repdd!CC62 -> 0 | CD21: =Repdd!CD62 -> 0 | CE21: =Repdd!CE62 -> 0 | CF21: =Repdd!CF62 -> 0 | CG21: =Repdd!CG62 -> 0 | CH21: =Repdd!CH62 -> 0 | CI21: =Repdd!CI62 -> 0 | CJ21: =Repdd!CJ62 -> 0 | CK21: =Repdd!CK62 -> 0 | CL21: =Repdd!CL62 -> 0 | CM21: =Repdd!CM62 -> 0 | CN21: =Repdd!CN62 -> 0 | CO21: =Repdd!CO62 -> 0 | CP21: =Repdd!CP62 -> 0 | CQ21: =Repdd!CQ62 -> 0 | CR21: =Repdd!CR62 -> 0 | CS21: =Repdd!CS62 -> 0 | CT21: =Repdd!CT62 -> 0
A22: =ROW() -> 22 | F22: =$F$9 -> АКТИВЫ
A23: =ROW() -> 23 | F23: ПАССИВЫ | W23: 0 | Z23: =Repdd!Z64 -> 0 | AA23: =Repdd!AA64 -> 71679732.56 | AB23: =Repdd!AB64 -> 74597611.34 | AC23: =Repdd!AC64 -> 82369143.47 | AD23: =Repdd!AD64 -> 79724649.87 | AE23: =Repdd!AE64 -> 77001654.28 | AF23: =Repdd!AF64 -> 74310252.35 | AG23: =Repdd!AG64 -> 71655914.06 | AH23: =Repdd!AH64 -> 69009858.38 | AI23: =Repdd!AI64 -> 66337269.53 | AJ23: =Repdd!AJ64 -> 63642740.87 | AK23: =Repdd!AK64 -> 60969168.92 | AL23: =Repdd!AL64 -> 58366799.04 | AM23: =Repdd!AM64 -> 55885877.99 | AN23: =Repdd!AN64 -> 53551065.12 | AO23: =Repdd!AO64 -> 51419758.13 | AP23: =Repdd!AP64 -> 49625649.67 | AQ23: =Repdd!AQ64 -> 48306273.6 | AR23: =Repdd!AR64 -> 47604052.83 | AS23: =Repdd!AS64 -> 87633273.72 | AT23: =Repdd!AT64 -> 86385682.35 | AU23: =Repdd!AU64 -> 80972960.01 | AV23: =Repdd!AV64 -> 71406538.78 | AW23: =Repdd!AW64 -> 86056140.05 | AX23: =Repdd!AX64 -> 101810474.9 | AY23: =Repdd!AY64 -> 106445883.3 | AZ23: =Repdd!AZ64 -> 109419219.1 | BA23: =Repdd!BA64 -> 113217702.3 | BB23: =Repdd!BB64 -> 118637527.9 | BC23: =Repdd!BC64 -> 123943867.3 | BD23: =Repdd!BD64 -> 129019727.7 | BE23: =Repdd!BE64 -> 133718144 | BF23: =Repdd!BF64 -> 138150779.7 | BG23: =Repdd!BG64 -> 141344393.9 | BH23: =Repdd!BH64 -> 147958647.7 | BI23: =Repdd!BI64 -> 155940590.4 | BJ23: =Repdd!BJ64 -> 164057194.6 | BK23: =Repdd!BK64 -> 172224390.2 | BL23: =Repdd!BL64 -> 180410281.5 | BM23: =Repdd!BM64 -> 188604504.1 | BN23: =Repdd!BN64 -> 196806062 | BO23: =Repdd!BO64 -> 205015434.5 | BP23: =Repdd!BP64 -> 213234468.8 | BQ23: =Repdd!BQ64 -> 221465363.2 | BR23: =Repdd!BR64 -> 231375594.5 | BS23: =Repdd!BS64 -> 241285537.9 | BT23: =Repdd!BT64 -> 251195401.7 | BU23: =Repdd!BU64 -> 261105248.1 | BV23: =Repdd!BV64 -> 0 | BW23: =Repdd!BW64 -> 0 | BX23: =Repdd!BX64 -> 0 | BY23: =Repdd!BY64 -> 0 | BZ23: =Repdd!BZ64 -> 0 | CA23: =Repdd!CA64 -> 0 | CB23: =Repdd!CB64 -> 0 | CC23: =Repdd!CC64 -> 0 | CD23: =Repdd!CD64 -> 0 | CE23: =Repdd!CE64 -> 0 | CF23: =Repdd!CF64 -> 0 | CG23: =Repdd!CG64 -> 0 | CH23: =Repdd!CH64 -> 0 | CI23: =Repdd!CI64 -> 0 | CJ23: =Repdd!CJ64 -> 0 | CK23: =Repdd!CK64 -> 0 | CL23: =Repdd!CL64 -> 0 | CM23: =Repdd!CM64 -> 0 | CN23: =Repdd!CN64 -> 0 | CO23: =Repdd!CO64 -> 0 | CP23: =Repdd!CP64 -> 0 | CQ23: =Repdd!CQ64 -> 0 | CR23: =Repdd!CR64 -> 0 | CS23: =Repdd!CS64 -> 0 | CT23: =Repdd!CT64 -> 0
A24: =ROW() -> 24
A25: =ROW() -> 25 | F25: =$F$218 -> АКТИВЫ | G25: =G242 -> Собственный капитал (СК) | W25: 0 | Z25: =Repdd!Z66 -> 0 | AA25: =Repdd!AA66 -> 13287878.79 | AB25: =Repdd!AB66 -> 11484090.91 | AC25: =Repdd!AC66 -> 9463636.364 | AD25: =Repdd!AD66 -> 7012229.437 | AE25: =Repdd!AE66 -> 4435822.511 | AF25: =Repdd!AF66 -> 1776082.251 | AG25: =Repdd!AG66 -> -883658.0087 | AH25: =Repdd!AH66 -> -3543398.268 | AI25: =Repdd!AI66 -> -6200194.738 | AJ25: =Repdd!AJ66 -> -8835082.264 | AK25: =Repdd!AK66 -> -11418060.9 | AL25: =Repdd!AL66 -> -13939153.35 | AM25: =Repdd!AM66 -> -16396612.91 | AN25: =Repdd!AN66 -> -18792140.94 | AO25: =Repdd!AO66 -> -21089991.38 | AP25: =Repdd!AP66 -> -23175200.98 | AQ25: =Repdd!AQ66 -> -24902830.86 | AR25: =Repdd!AR66 -> -26119064.69 | AS25: =Repdd!AS66 -> -27090614.65 | AT25: =Repdd!AT66 -> -27313672.79 | AU25: =Repdd!AU66 -> -26736928.84 | AV25: =Repdd!AV66 -> -25333181.03 | AW25: =Repdd!AW66 -> -23192834.81 | AX25: =Repdd!AX66 -> -20250182.06 | AY25: =Repdd!AY66 -> -16779859.9 | AZ25: =Repdd!AZ66 -> -12457299.52 | BA25: =Repdd!BA66 -> -7278217.416 | BB25: =Repdd!BB66 -> -1249380.032 | BC25: =Repdd!BC66 -> 5637562.622 | BD25: =Repdd!BD66 -> 13398123.82 | BE25: =Repdd!BE66 -> 20637718.85 | BF25: =Repdd!BF66 -> 28258272.52 | BG25: =Repdd!BG66 -> 36550817.24 | BH25: =Repdd!BH66 -> 45381410.62 | BI25: =Repdd!BI66 -> 54615201.07 | BJ25: =Repdd!BJ66 -> 64124922.81 | BK25: =Repdd!BK66 -> 73801431.71 | BL25: =Repdd!BL66 -> 83573636.29 | BM25: =Repdd!BM66 -> 93400062.97 | BN25: =Repdd!BN66 -> 103258791.4 | BO25: =Repdd!BO66 -> 113138432.9 | BP25: =Repdd!BP66 -> 123033883.6 | BQ25: =Repdd!BQ66 -> 132943485.6 | BR25: =Repdd!BR66 -> 142853311.4 | BS25: =Repdd!BS66 -> 152763163.8 | BT25: =Repdd!BT66 -> 162673010.9 | BU25: =Repdd!BU66 -> 172582855.5 | BV25: =Repdd!BV66 -> 0 | BW25: =Repdd!BW66 -> 0 | BX25: =Repdd!BX66 -> 0 | BY25: =Repdd!BY66 -> 0 | BZ25: =Repdd!BZ66 -> 0 | CA25: =Repdd!CA66 -> 0 | CB25: =Repdd!CB66 -> 0 | CC25: =Repdd!CC66 -> 0 | CD25: =Repdd!CD66 -> 0 | CE25: =Repdd!CE66 -> 0 | CF25: =Repdd!CF66 -> 0 | CG25: =Repdd!CG66 -> 0 | CH25: =Repdd!CH66 -> 0 | CI25: =Repdd!CI66 -> 0 | CJ25: =Repdd!CJ66 -> 0 | CK25: =Repdd!CK66 -> 0 | CL25: =Repdd!CL66 -> 0 | CM25: =Repdd!CM66 -> 0 | CN25: =Repdd!CN66 -> 0 | CO25: =Repdd!CO66 -> 0 | CP25: =Repdd!CP66 -> 0 | CQ25: =Repdd!CQ66 -> 0 | CR25: =Repdd!CR66 -> 0 | CS25: =Repdd!CS66 -> 0 | CT25: =Repdd!CT66 -> 0
A26: =ROW() -> 26 | F26: =$F$218 -> АКТИВЫ | G26: =G246 -> Инвестиционный капитал (ИК) | S26: =Repdd!S70 -> 0 | W26: 0 | Z26: =Repdd!Z70 -> 0 | AA26: =Repdd!AA70 -> 72579732.56 | AB26: =Repdd!AB70 -> 72579732.56 | AC26: =Repdd!AC70 -> 72579732.56 | AD26: =Repdd!AD70 -> 72579732.56 | AE26: =Repdd!AE70 -> 72579732.56 | AF26: =Repdd!AF70 -> 72579732.56 | AG26: =Repdd!AG70 -> 72579732.56 | AH26: =Repdd!AH70 -> 72579732.56 | AI26: =Repdd!AI70 -> 72579732.56 | AJ26: =Repdd!AJ70 -> 72579732.56 | AK26: =Repdd!AK70 -> 72579732.56 | AL26: =Repdd!AL70 -> 72579732.56 | AM26: =Repdd!AM70 -> 72579732.56 | AN26: =Repdd!AN70 -> 72579732.56 | AO26: =Repdd!AO70 -> 72579732.56 | AP26: =Repdd!AP70 -> 72579732.56 | AQ26: =Repdd!AQ70 -> 72579732.56 | AR26: =Repdd!AR70 -> 72579732.56 | AS26: =Repdd!AS70 -> 72579732.56 | AT26: =Repdd!AT70 -> 72579732.56 | AU26: =Repdd!AU70 -> 72579732.56 | AV26: =Repdd!AV70 -> 72579732.56 | AW26: =Repdd!AW70 -> 72579732.56 | AX26: =Repdd!AX70 -> 72579732.56 | AY26: =Repdd!AY70 -> 72579732.56 | AZ26: =Repdd!AZ70 -> 72579732.56 | BA26: =Repdd!BA70 -> 72579732.56 | BB26: =Repdd!BB70 -> 72579732.56 | BC26: =Repdd!BC70 -> 72579732.56 | BD26: =Repdd!BD70 -> 72579732.56 | BE26: =Repdd!BE70 -> 72579732.56 | BF26: =Repdd!BF70 -> 72579732.56 | BG26: =Repdd!BG70 -> 72579732.56 | BH26: =Repdd!BH70 -> 72579732.56 | BI26: =Repdd!BI70 -> 72579732.56 | BJ26: =Repdd!BJ70 -> 72579732.56 | BK26: =Repdd!BK70 -> 72579732.56 | BL26: =Repdd!BL70 -> 72579732.56 | BM26: =Repdd!BM70 -> 72579732.56 | BN26: =Repdd!BN70 -> 72579732.56 | BO26: =Repdd!BO70 -> 72579732.56 | BP26: =Repdd!BP70 -> 72579732.56 | BQ26: =Repdd!BQ70 -> 72579732.56 | BR26: =Repdd!BR70 -> 72579732.56 | BS26: =Repdd!BS70 -> 72579732.56 | BT26: =Repdd!BT70 -> 72579732.56 | BU26: =Repdd!BU70 -> 72579732.56 | BV26: =Repdd!BV70 -> 0 | BW26: =Repdd!BW70 -> 0 | BX26: =Repdd!BX70 -> 0 | BY26: =Repdd!BY70 -> 0 | BZ26: =Repdd!BZ70 -> 0 | CA26: =Repdd!CA70 -> 0 | CB26: =Repdd!CB70 -> 0 | CC26: =Repdd!CC70 -> 0 | CD26: =Repdd!CD70 -> 0 | CE26: =Repdd!CE70 -> 0 | CF26: =Repdd!CF70 -> 0 | CG26: =Repdd!CG70 -> 0 | CH26: =Repdd!CH70 -> 0 | CI26: =Repdd!CI70 -> 0 | CJ26: =Repdd!CJ70 -> 0 | CK26: =Repdd!CK70 -> 0 | CL26: =Repdd!CL70 -> 0 | CM26: =Repdd!CM70 -> 0 | CN26: =Repdd!CN70 -> 0 | CO26: =Repdd!CO70 -> 0 | CP26: =Repdd!CP70 -> 0 | CQ26: =Repdd!CQ70 -> 0 | CR26: =Repdd!CR70 -> 0 | CS26: =Repdd!CS70 -> 0 | CT26: =Repdd!CT70 -> 0
A27: =ROW() -> 27 | E27: * | F27: =$F$9 -> АКТИВЫ | G27: Кредиторская задолженность по СиМ | W27: 0 | Z27: =Repdd!Z71 -> 0 | AA27: =Repdd!AA71 -> 0 | AB27: =Repdd!AB71 -> 0 | AC27: =Repdd!AC71 -> -4680 | AD27: =Repdd!AD71 -> -20320 | AE27: =Repdd!AE71 -> -39187.2 | AF27: =Repdd!AF71 -> -50541.8 | AG27: =Repdd!AG71 -> -41325.64 | AH27: =Repdd!AH71 -> -24101.48 | AI27: =Repdd!AI71 -> -36781.36 | AJ27: =Repdd!AJ71 -> -96213.272 | AK27: =Repdd!AK71 -> -192758.182 | AL27: =Repdd!AL71 -> -277214.226 | AM27: =Repdd!AM71 -> -297373.314 | AN27: =Repdd!AN71 -> -227237.658 | AO27: =Repdd!AO71 -> -63706.87 | AP27: =Repdd!AP71 -> 172642.487 | AQ27: =Repdd!AQ71 -> 455360.99 | AR27: =Repdd!AR71 -> 764929.211 | AS27: =Repdd!AS71 -> 1088989.694 | AT27: =Repdd!AT71 -> 1420245.845 | AU27: =Repdd!AU71 -> 1754467.275 | AV27: =Repdd!AV71 -> 2089720.125 | AW27: =Repdd!AW71 -> 2425349.865 | AX27: =Repdd!AX71 -> 2761093.05 | AY27: =Repdd!AY71 -> 3096851.55 | AZ27: =Repdd!AZ71 -> 3444310.05 | BA27: =Repdd!BA71 -> 3830868.55 | BB27: =Repdd!BB71 -> 4264595.05 | BC27: =Repdd!BC71 -> 4726708.05 | BD27: =Repdd!BD71 -> 5165780.65 | BE27: =Repdd!BE71 -> 5532542.85 | BF27: =Repdd!BF71 -> 5804004.75 | BG27: =Repdd!BG71 -> 5979126.43 | BH27: =Repdd!BH71 -> 6079724.135 | BI27: =Repdd!BI71 -> 6133176.7 | BJ27: =Repdd!BJ71 -> 6159517.735 | BK27: =Repdd!BK71 -> 6171261.13 | BL27: =Repdd!BL71 -> 6175769.605 | BM27: =Repdd!BM71 -> 6177306.675 | BN27: =Repdd!BN71 -> 6177812.325 | BO27: =Repdd!BO71 -> 6177941.085 | BP27: =Repdd!BP71 -> 6177956.4 | BQ27: =Repdd!BQ71 -> 6177956.4 | BR27: =Repdd!BR71 -> 6177956.4 | BS27: =Repdd!BS71 -> 6177956.4 | BT27: =Repdd!BT71 -> 6177956.4 | BU27: =Repdd!BU71 -> 6177956.4 | BV27: =Repdd!BV71 -> 0 | BW27: =Repdd!BW71 -> 0 | BX27: =Repdd!BX71 -> 0 | BY27: =Repdd!BY71 -> 0 | BZ27: =Repdd!BZ71 -> 0 | CA27: =Repdd!CA71 -> 0 | CB27: =Repdd!CB71 -> 0 | CC27: =Repdd!CC71 -> 0 | CD27: =Repdd!CD71 -> 0 | CE27: =Repdd!CE71 -> 0 | CF27: =Repdd!CF71 -> 0 | CG27: =Repdd!CG71 -> 0 | CH27: =Repdd!CH71 -> 0 | CI27: =Repdd!CI71 -> 0 | CJ27: =Repdd!CJ71 -> 0 | CK27: =Repdd!CK71 -> 0 | CL27: =Repdd!CL71 -> 0 | CM27: =Repdd!CM71 -> 0 | CN27: =Repdd!CN71 -> 0 | CO27: =Repdd!CO71 -> 0 | CP27: =Repdd!CP71 -> 0 | CQ27: =Repdd!CQ71 -> 0 | CR27: =Repdd!CR71 -> 0 | CS27: =Repdd!CS71 -> 0 | CT27: =Repdd!CT71 -> 0
A28: =ROW() -> 28 | F28: АКТИВЫ | G28: =$G$258 -> Кредиторская задолженность по капзатратам | S28: =Repdd!S82 -> 0 | W28: 0 | Z28: =Repdd!Z82 -> 0 | AA28: =Repdd!AA82 -> -15000000 | AB28: =Repdd!AB82 -> -10000000 | AC28: =Repdd!AC82 -> 0 | AD28: =Repdd!AD82 -> 0 | AE28: =Repdd!AE82 -> 0 | AF28: =Repdd!AF82 -> 0 | AG28: =Repdd!AG82 -> 0 | AH28: =Repdd!AH82 -> 0 | AI28: =Repdd!AI82 -> 0 | AJ28: =Repdd!AJ82 -> 0 | AK28: =Repdd!AK82 -> 0 | AL28: =Repdd!AL82 -> 0 | AM28: =Repdd!AM82 -> 0 | AN28: =Repdd!AN82 -> 0 | AO28: =Repdd!AO82 -> 0 | AP28: =Repdd!AP82 -> 0 | AQ28: =Repdd!AQ82 -> 0 | AR28: =Repdd!AR82 -> 0 | AS28: =Repdd!AS82 -> 0 | AT28: =Repdd!AT82 -> 0 | AU28: =Repdd!AU82 -> -5000000 | AV28: =Repdd!AV82 -> -15000000 | AW28: =Repdd!AW82 -> -10000000 | AX28: =Repdd!AX82 -> 0 | AY28: =Repdd!AY82 -> 0 | AZ28: =Repdd!AZ82 -> 0 | BA28: =Repdd!BA82 -> 0 | BB28: =Repdd!BB82 -> 0 | BC28: =Repdd!BC82 -> 0 | BD28: =Repdd!BD82 -> 0 | BE28: =Repdd!BE82 -> 0 | BF28: =Repdd!BF82 -> 0 | BG28: =Repdd!BG82 -> 0 | BH28: =Repdd!BH82 -> 0 | BI28: =Repdd!BI82 -> 0 | BJ28: =Repdd!BJ82 -> 0 | BK28: =Repdd!BK82 -> 0 | BL28: =Repdd!BL82 -> 0 | BM28: =Repdd!BM82 -> 0 | BN28: =Repdd!BN82 -> 0 | BO28: =Repdd!BO82 -> 0 | BP28: =Repdd!BP82 -> 0 | BQ28: =Repdd!BQ82 -> 0 | BR28: =Repdd!BR82 -> 0 | BS28: =Repdd!BS82 -> 0 | BT28: =Repdd!BT82 -> 0 | BU28: =Repdd!BU82 -> 0 | BV28: =Repdd!BV82 -> 0 | BW28: =Repdd!BW82 -> 0 | BX28: =Repdd!BX82 -> 0 | BY28: =Repdd!BY82 -> 0 | BZ28: =Repdd!BZ82 -> 0 | CA28: =Repdd!CA82 -> 0 | CB28: =Repdd!CB82 -> 0 | CC28: =Repdd!CC82 -> 0 | CD28: =Repdd!CD82 -> 0 | CE28: =Repdd!CE82 -> 0 | CF28: =Repdd!CF82 -> 0 | CG28: =Repdd!CG82 -> 0 | CH28: =Repdd!CH82 -> 0 | CI28: =Repdd!CI82 -> 0 | CJ28: =Repdd!CJ82 -> 0 | CK28: =Repdd!CK82 -> 0 | CL28: =Repdd!CL82 -> 0 | CM28: =Repdd!CM82 -> 0 | CN28: =Repdd!CN82 -> 0 | CO28: =Repdd!CO82 -> 0 | CP28: =Repdd!CP82 -> 0 | CQ28: =Repdd!CQ82 -> 0 | CR28: =Repdd!CR82 -> 0 | CS28: =Repdd!CS82 -> 0 | CT28: =Repdd!CT82 -> 0
A29: =ROW() -> 29 | F29: АКТИВЫ | G29: =G259 -> Кредиторская задолженность по переменным расходам | W29: 0 | Z29: =Repdd!Z83 -> 0 | AA29: =Repdd!AA83 -> -130000 | AB29: =Repdd!AB83 -> -390000 | AC29: =Repdd!AC83 -> -550000 | AD29: =Repdd!AD83 -> -700000 | AE29: =Repdd!AE83 -> -800000 | AF29: =Repdd!AF83 -> -800000 | AG29: =Repdd!AG83 -> -800000 | AH29: =Repdd!AH83 -> -800000 | AI29: =Repdd!AI83 -> -799685.39 | AJ29: =Repdd!AJ83 -> -797273.38 | AK29: =Repdd!AK83 -> -791337.738 | AL29: =Repdd!AL83 -> -783863.1288 | AM29: =Repdd!AM83 -> -775872.0347 | AN29: =Repdd!AN83 -> -767901.3904 | AO29: =Repdd!AO83 -> -756064.9757 | AP29: =Repdd!AP83 -> -731267.8087 | AQ29: =Repdd!AQ83 -> -689145.4624 | AR29: =Repdd!AR83 -> -627873.3821 | AS29: =Repdd!AS83 -> -549134.3643 | AT29: =Repdd!AT83 -> -458125.006 | AU29: =Repdd!AU83 -> -359370.1723 | AV29: =Repdd!AV83 -> -256210.5103 | AW29: =Repdd!AW83 -> -150689.6215 | AX29: =Repdd!AX83 -> -44026.6198 | AY29: =Repdd!AY83 -> 63083.83599 | AZ29: =Repdd!AZ83 -> 170372.0071 | BA29: =Repdd!BA83 -> 277724.1489 | BB29: =Repdd!BB83 -> 385092.2834 | BC29: =Repdd!BC83 -> 492464.1539 | BD29: =Repdd!BD83 -> 599836.6143 | BE29: =Repdd!BE83 -> 707209.0746 | BF29: =Repdd!BF83 -> 813795.01 | BG29: =Repdd!BG83 -> 914350.9204 | BH29: =Repdd!BH83 -> 1000067.726 | BI29: =Repdd!BI83 -> 1067098.008 | BJ29: =Repdd!BJ83 -> 1114150.555 | BK29: =Repdd!BK83 -> 1143242.804 | BL29: =Repdd!BL83 -> 1159785.391 | BM29: =Repdd!BM83 -> 1168474.198 | BN29: =Repdd!BN83 -> 1172712.585 | BO29: =Repdd!BO83 -> 1174570.554 | BP29: =Repdd!BP83 -> 1175281.507 | BQ29: =Repdd!BQ83 -> 1175543.747 | BR29: =Repdd!BR83 -> 1175628.037 | BS29: =Repdd!BS83 -> 1175648.355 | BT29: =Repdd!BT83 -> 1175652.681 | BU29: =Repdd!BU83 -> 1175653.271 | BV29: =Repdd!BV83 -> 0 | BW29: =Repdd!BW83 -> 0 | BX29: =Repdd!BX83 -> 0 | BY29: =Repdd!BY83 -> 0 | BZ29: =Repdd!BZ83 -> 0 | CA29: =Repdd!CA83 -> 0 | CB29: =Repdd!CB83 -> 0 | CC29: =Repdd!CC83 -> 0 | CD29: =Repdd!CD83 -> 0 | CE29: =Repdd!CE83 -> 0 | CF29: =Repdd!CF83 -> 0 | CG29: =Repdd!CG83 -> 0 | CH29: =Repdd!CH83 -> 0 | CI29: =Repdd!CI83 -> 0 | CJ29: =Repdd!CJ83 -> 0 | CK29: =Repdd!CK83 -> 0 | CL29: =Repdd!CL83 -> 0 | CM29: =Repdd!CM83 -> 0 | CN29: =Repdd!CN83 -> 0 | CO29: =Repdd!CO83 -> 0 | CP29: =Repdd!CP83 -> 0 | CQ29: =Repdd!CQ83 -> 0 | CR29: =Repdd!CR83 -> 0 | CS29: =Repdd!CS83 -> 0 | CT29: =Repdd!CT83 -> 0
A30: =ROW() -> 30 | F30: АКТИВЫ | G30: =G264 -> Кредиторская задолженность по постоянным расходам | W30: 0 | Z30: =Repdd!Z88 -> 0 | AA30: =Repdd!AA88 -> 1000000 | AB30: =Repdd!AB88 -> 1000000 | AC30: =Repdd!AC88 -> 1000000 | AD30: =Repdd!AD88 -> 1000000 | AE30: =Repdd!AE88 -> 1000000 | AF30: =Repdd!AF88 -> 1000000 | AG30: =Repdd!AG88 -> 1000000 | AH30: =Repdd!AH88 -> 1000000 | AI30: =Repdd!AI88 -> 1000000 | AJ30: =Repdd!AJ88 -> 1000000 | AK30: =Repdd!AK88 -> 1000000 | AL30: =Repdd!AL88 -> 1000000 | AM30: =Repdd!AM88 -> 1000000 | AN30: =Repdd!AN88 -> 1000000 | AO30: =Repdd!AO88 -> 1000000 | AP30: =Repdd!AP88 -> 1000000 | AQ30: =Repdd!AQ88 -> 1000000 | AR30: =Repdd!AR88 -> 1000000 | AS30: =Repdd!AS88 -> 1000000 | AT30: =Repdd!AT88 -> 1000000 | AU30: =Repdd!AU88 -> 1000000 | AV30: =Repdd!AV88 -> 1000000 | AW30: =Repdd!AW88 -> 1000000 | AX30: =Repdd!AX88 -> 1000000 | AY30: =Repdd!AY88 -> 1000000 | AZ30: =Repdd!AZ88 -> 1000000 | BA30: =Repdd!BA88 -> 1000000 | BB30: =Repdd!BB88 -> 1000000 | BC30: =Repdd!BC88 -> 1000000 | BD30: =Repdd!BD88 -> 1000000 | BE30: =Repdd!BE88 -> 1000000 | BF30: =Repdd!BF88 -> 1000000 | BG30: =Repdd!BG88 -> 1000000 | BH30: =Repdd!BH88 -> 1000000 | BI30: =Repdd!BI88 -> 1000000 | BJ30: =Repdd!BJ88 -> 1000000 | BK30: =Repdd!BK88 -> 1000000 | BL30: =Repdd!BL88 -> 1000000 | BM30: =Repdd!BM88 -> 1000000 | BN30: =Repdd!BN88 -> 1000000 | BO30: =Repdd!BO88 -> 1000000 | BP30: =Repdd!BP88 -> 1000000 | BQ30: =Repdd!BQ88 -> 1000000 | BR30: =Repdd!BR88 -> 1000000 | BS30: =Repdd!BS88 -> 1000000 | BT30: =Repdd!BT88 -> 1000000 | BU30: =Repdd!BU88 -> 1000000 | BV30: =Repdd!BV88 -> 0 | BW30: =Repdd!BW88 -> 0 | BX30: =Repdd!BX88 -> 0 | BY30: =Repdd!BY88 -> 0 | BZ30: =Repdd!BZ88 -> 0 | CA30: =Repdd!CA88 -> 0 | CB30: =Repdd!CB88 -> 0 | CC30: =Repdd!CC88 -> 0 | CD30: =Repdd!CD88 -> 0 | CE30: =Repdd!CE88 -> 0 | CF30: =Repdd!CF88 -> 0 | CG30: =Repdd!CG88 -> 0 | CH30: =Repdd!CH88 -> 0 | CI30: =Repdd!CI88 -> 0 | CJ30: =Repdd!CJ88 -> 0 | CK30: =Repdd!CK88 -> 0 | CL30: =Repdd!CL88 -> 0 | CM30: =Repdd!CM88 -> 0 | CN30: =Repdd!CN88 -> 0 | CO30: =Repdd!CO88 -> 0 | CP30: =Repdd!CP88 -> 0 | CQ30: =Repdd!CQ88 -> 0 | CR30: =Repdd!CR88 -> 0 | CS30: =Repdd!CS88 -> 0 | CT30: =Repdd!CT88 -> 0
A31: =ROW() -> 31 | F31: АКТИВЫ | G31: =G271 -> Задолженность перед бюджетом по НП | S31: =Repdd!S95 -> 0 | W31: 0 | Z31: =Repdd!Z95 -> 0 | AA31: =Repdd!AA95 -> 0 | AB31: =Repdd!AB95 -> 0 | AC31: =Repdd!AC95 -> 0 | AD31: =Repdd!AD95 -> 0 | AE31: =Repdd!AE95 -> 0 | AF31: =Repdd!AF95 -> 0 | AG31: =Repdd!AG95 -> 0 | AH31: =Repdd!AH95 -> 0 | AI31: =Repdd!AI95 -> 0 | AJ31: =Repdd!AJ95 -> 0 | AK31: =Repdd!AK95 -> 0 | AL31: =Repdd!AL95 -> 0 | AM31: =Repdd!AM95 -> 0 | AN31: =Repdd!AN95 -> 0 | AO31: =Repdd!AO95 -> 0 | AP31: =Repdd!AP95 -> 0 | AQ31: =Repdd!AQ95 -> 0 | AR31: =Repdd!AR95 -> 0 | AS31: =Repdd!AS95 -> 0 | AT31: =Repdd!AT95 -> 0 | AU31: =Repdd!AU95 -> 0 | AV31: =Repdd!AV95 -> 0 | AW31: =Repdd!AW95 -> 0 | AX31: =Repdd!AX95 -> 0 | AY31: =Repdd!AY95 -> 0 | AZ31: =Repdd!AZ95 -> 0 | BA31: =Repdd!BA95 -> 0 | BB31: =Repdd!BB95 -> 0 | BC31: =Repdd!BC95 -> 0 | BD31: =Repdd!BD95 -> 0 | BE31: =Repdd!BE95 -> 1409429.713 | BF31: =Repdd!BF95 -> 1905138.418 | BG31: =Repdd!BG95 -> 2073136.18 | BH31: =Repdd!BH95 -> 2207648.345 | BI31: =Repdd!BI95 -> 2308447.612 | BJ31: =Repdd!BJ95 -> 2377430.435 | BK31: =Repdd!BK95 -> 2419127.227 | BL31: =Repdd!BL95 -> 2443051.145 | BM31: =Repdd!BM95 -> 2456606.67 | BN31: =Repdd!BN95 -> 2464682.103 | BO31: =Repdd!BO95 -> 2469910.381 | BP31: =Repdd!BP95 -> 2473862.668 | BQ31: =Repdd!BQ95 -> 2477400.515 | BR31: =Repdd!BR95 -> 2477456.431 | BS31: =Repdd!BS95 -> 2477463.099 | BT31: =Repdd!BT95 -> 2477461.788 | BU31: =Repdd!BU95 -> 2477461.159 | BV31: =Repdd!BV95 -> 0 | BW31: =Repdd!BW95 -> 0 | BX31: =Repdd!BX95 -> 0 | BY31: =Repdd!BY95 -> 0 | BZ31: =Repdd!BZ95 -> 0 | CA31: =Repdd!CA95 -> 0 | CB31: =Repdd!CB95 -> 0 | CC31: =Repdd!CC95 -> 0 | CD31: =Repdd!CD95 -> 0 | CE31: =Repdd!CE95 -> 0 | CF31: =Repdd!CF95 -> 0 | CG31: =Repdd!CG95 -> 0 | CH31: =Repdd!CH95 -> 0 | CI31: =Repdd!CI95 -> 0 | CJ31: =Repdd!CJ95 -> 0 | CK31: =Repdd!CK95 -> 0 | CL31: =Repdd!CL95 -> 0 | CM31: =Repdd!CM95 -> 0 | CN31: =Repdd!CN95 -> 0 | CO31: =Repdd!CO95 -> 0 | CP31: =Repdd!CP95 -> 0 | CQ31: =Repdd!CQ95 -> 0 | CR31: =Repdd!CR95 -> 0 | CS31: =Repdd!CS95 -> 0 | CT31: =Repdd!CT95 -> 0
A32: =ROW() -> 32 | F32: АКТИВЫ | G32: Задолженность перед бюджетом по НДС | S32: =Repdd!S96 -> 0 | W32: 0 | Z32: =Repdd!Z96 -> 0 | AA32: =Repdd!AA96 -> -57878.78788 | AB32: =Repdd!AB96 -> -76212.12121 | AC32: =Repdd!AC96 -> -119545.4545 | AD32: =Repdd!AD96 -> -146992.1212 | AE32: =Repdd!AE96 -> -174713.5879 | AF32: =Repdd!AF96 -> -195020.6545 | AG32: =Repdd!AG96 -> -198834.8479 | AH32: =Repdd!AH96 -> -202374.4245 | AI32: =Repdd!AI96 -> -205801.5331 | AJ32: =Repdd!AJ96 -> -208422.7708 | AK32: =Repdd!AK96 -> -208406.8152 | AL32: =Repdd!AL96 -> -212702.8139 | AM32: =Repdd!AM96 -> -223996.3025 | AN32: =Repdd!AN96 -> -241387.4506 | AO32: =Repdd!AO96 -> -250211.2011 | AP32: =Repdd!AP96 -> -220256.5854 | AQ32: =Repdd!AQ96 -> -136843.6207 | AR32: =Repdd!AR96 -> 6329.13802 | AS32: =Repdd!AS96 -> 204300.4827 | AT32: =Repdd!AT96 -> 440835.0808 | AU32: =Repdd!AU96 -> 701725.8566 | AV32: =Repdd!AV96 -> 976477.6396 | AW32: =Repdd!AW96 -> 1258663.019 | AX32: =Repdd!AX96 -> 1544443.979 | AY32: =Repdd!AY96 -> 1831633.626 | AZ32: =Repdd!AZ96 -> 2119382.807 | BA32: =Repdd!BA96 -> 2409283.399 | BB32: =Repdd!BB96 -> 2706038.01 | BC32: =Repdd!BC96 -> 3011905.385 | BD32: =Repdd!BD96 -> 3327310.099 | BE32: =Repdd!BE96 -> 3651563.755 | BF32: =Repdd!BF96 -> 3979510.183 | BG32: =Repdd!BG96 -> 4292125.538 | BH32: =Repdd!BH96 -> 4560064.338 | BI32: =Repdd!BI96 -> 4770267.759 | BJ32: =Repdd!BJ96 -> 4918107.173 | BK32: =Repdd!BK96 -> 5009594.8 | BL32: =Repdd!BL96 -> 5061639.826 | BM32: =Repdd!BM96 -> 5088987.725 | BN32: =Repdd!BN96 -> 5102331.071 | BO32: =Repdd!BO96 -> 5108180.398 | BP32: =Repdd!BP96 -> 5110418.708 | BQ32: =Repdd!BQ96 -> 5111244.368 | BR32: =Repdd!BR96 -> 5111509.751 | BS32: =Repdd!BS96 -> 5111573.724 | BT32: =Repdd!BT96 -> 5111587.344 | BU32: =Repdd!BU96 -> 5111589.201 | BV32: =Repdd!BV96 -> 0 | BW32: =Repdd!BW96 -> 0 | BX32: =Repdd!BX96 -> 0 | BY32: =Repdd!BY96 -> 0 | BZ32: =Repdd!BZ96 -> 0 | CA32: =Repdd!CA96 -> 0 | CB32: =Repdd!CB96 -> 0 | CC32: =Repdd!CC96 -> 0 | CD32: =Repdd!CD96 -> 0 | CE32: =Repdd!CE96 -> 0 | CF32: =Repdd!CF96 -> 0 | CG32: =Repdd!CG96 -> 0 | CH32: =Repdd!CH96 -> 0 | CI32: =Repdd!CI96 -> 0 | CJ32: =Repdd!CJ96 -> 0 | CK32: =Repdd!CK96 -> 0 | CL32: =Repdd!CL96 -> 0 | CM32: =Repdd!CM96 -> 0 | CN32: =Repdd!CN96 -> 0 | CO32: =Repdd!CO96 -> 0 | CP32: =Repdd!CP96 -> 0 | CQ32: =Repdd!CQ96 -> 0 | CR32: =Repdd!CR96 -> 0 | CS32: =Repdd!CS96 -> 0 | CT32: =Repdd!CT96 -> 0
A33: =ROW() -> 33 | F33: АКТИВЫ | G33: Задолженность перед банком по телу кредита | S33: =Repdd!S97 -> 0 | W33: 0 | Z33: =Repdd!Z97 -> 0 | AA33: =Repdd!AA97 -> 0 | AB33: =Repdd!AB97 -> 0 | AC33: =Repdd!AC97 -> 0 | AD33: =Repdd!AD97 -> 0 | AE33: =Repdd!AE97 -> 0 | AF33: =Repdd!AF97 -> 0 | AG33: =Repdd!AG97 -> 0 | AH33: =Repdd!AH97 -> 0 | AI33: =Repdd!AI97 -> 0 | AJ33: =Repdd!AJ97 -> 0 | AK33: =Repdd!AK97 -> 0 | AL33: =Repdd!AL97 -> 0 | AM33: =Repdd!AM97 -> 0 | AN33: =Repdd!AN97 -> 0 | AO33: =Repdd!AO97 -> 0 | AP33: =Repdd!AP97 -> 0 | AQ33: =Repdd!AQ97 -> 0 | AR33: =Repdd!AR97 -> 0 | AS33: =Repdd!AS97 -> 40000000 | AT33: =Repdd!AT97 -> 38333333.33 | AU33: =Repdd!AU97 -> 36666666.67 | AV33: =Repdd!AV97 -> 35000000 | AW33: =Repdd!AW97 -> 33333333.33 | AX33: =Repdd!AX97 -> 31666666.67 | AY33: =Repdd!AY97 -> 30000000 | AZ33: =Repdd!AZ97 -> 28333333.33 | BA33: =Repdd!BA97 -> 26666666.67 | BB33: =Repdd!BB97 -> 25000000 | BC33: =Repdd!BC97 -> 23333333.33 | BD33: =Repdd!BD97 -> 21666666.67 | BE33: =Repdd!BE97 -> 20000000 | BF33: =Repdd!BF97 -> 18333333.33 | BG33: =Repdd!BG97 -> 16666666.67 | BH33: =Repdd!BH97 -> 15000000 | BI33: =Repdd!BI97 -> 13333333.33 | BJ33: =Repdd!BJ97 -> 11666666.67 | BK33: =Repdd!BK97 -> 10000000 | BL33: =Repdd!BL97 -> 8333333.333 | BM33: =Repdd!BM97 -> 6666666.667 | BN33: =Repdd!BN97 -> 5000000 | BO33: =Repdd!BO97 -> 3333333.333 | BP33: =Repdd!BP97 -> 1666666.667 | BQ33: =Repdd!BQ97 -> -3.259629011e-09 | BR33: =Repdd!BR97 -> -3.259629011e-09 | BS33: =Repdd!BS97 -> -3.259629011e-09 | BT33: =Repdd!BT97 -> -3.259629011e-09 | BU33: =Repdd!BU97 -> -3.259629011e-09 | BV33: =Repdd!BV97 -> 0 | BW33: =Repdd!BW97 -> 0 | BX33: =Repdd!BX97 -> 0 | BY33: =Repdd!BY97 -> 0 | BZ33: =Repdd!BZ97 -> 0 | CA33: =Repdd!CA97 -> 0 | CB33: =Repdd!CB97 -> 0 | CC33: =Repdd!CC97 -> 0 | CD33: =Repdd!CD97 -> 0 | CE33: =Repdd!CE97 -> 0 | CF33: =Repdd!CF97 -> 0 | CG33: =Repdd!CG97 -> 0 | CH33: =Repdd!CH97 -> 0 | CI33: =Repdd!CI97 -> 0 | CJ33: =Repdd!CJ97 -> 0 | CK33: =Repdd!CK97 -> 0 | CL33: =Repdd!CL97 -> 0 | CM33: =Repdd!CM97 -> 0 | CN33: =Repdd!CN97 -> 0 | CO33: =Repdd!CO97 -> 0 | CP33: =Repdd!CP97 -> 0 | CQ33: =Repdd!CQ97 -> 0 | CR33: =Repdd!CR97 -> 0 | CS33: =Repdd!CS97 -> 0 | CT33: =Repdd!CT97 -> 0
A34: =ROW() -> 34 | F34: АКТИВЫ | G34: Задолженность перед банком по %% кредита | S34: =Repdd!S98 -> 0 | W34: 0 | Z34: =Repdd!Z98 -> 0 | AA34: =Repdd!AA98 -> 0 | AB34: =Repdd!AB98 -> 0 | AC34: =Repdd!AC98 -> 0 | AD34: =Repdd!AD98 -> 0 | AE34: =Repdd!AE98 -> 0 | AF34: =Repdd!AF98 -> 0 | AG34: =Repdd!AG98 -> 0 | AH34: =Repdd!AH98 -> 0 | AI34: =Repdd!AI98 -> 0 | AJ34: =Repdd!AJ98 -> 0 | AK34: =Repdd!AK98 -> 0 | AL34: =Repdd!AL98 -> 0 | AM34: =Repdd!AM98 -> 0 | AN34: =Repdd!AN98 -> 0 | AO34: =Repdd!AO98 -> 0 | AP34: =Repdd!AP98 -> 0 | AQ34: =Repdd!AQ98 -> 0 | AR34: =Repdd!AR98 -> 0 | AS34: =Repdd!AS98 -> 400000 | AT34: =Repdd!AT98 -> 383333.3333 | AU34: =Repdd!AU98 -> 366666.6667 | AV34: =Repdd!AV98 -> 350000 | AW34: =Repdd!AW98 -> 333333.3333 | AX34: =Repdd!AX98 -> 316666.6667 | AY34: =Repdd!AY98 -> 300000 | AZ34: =Repdd!AZ98 -> 283333.3333 | BA34: =Repdd!BA98 -> 266666.6667 | BB34: =Repdd!BB98 -> 250000 | BC34: =Repdd!BC98 -> 233333.3333 | BD34: =Repdd!BD98 -> 216666.6667 | BE34: =Repdd!BE98 -> 200000 | BF34: =Repdd!BF98 -> 183333.3333 | BG34: =Repdd!BG98 -> 166666.6667 | BH34: =Repdd!BH98 -> 150000 | BI34: =Repdd!BI98 -> 133333.3333 | BJ34: =Repdd!BJ98 -> 116666.6667 | BK34: =Repdd!BK98 -> 100000 | BL34: =Repdd!BL98 -> 83333.33333 | BM34: =Repdd!BM98 -> 66666.66667 | BN34: =Repdd!BN98 -> 50000 | BO34: =Repdd!BO98 -> 33333.33333 | BP34: =Repdd!BP98 -> 16666.66667 | BQ34: =Repdd!BQ98 -> 1.964508556e-10 | BR34: =Repdd!BR98 -> 1.964508556e-10 | BS34: =Repdd!BS98 -> 1.964508556e-10 | BT34: =Repdd!BT98 -> 1.964508556e-10 | BU34: =Repdd!BU98 -> 1.964508556e-10 | BV34: =Repdd!BV98 -> 0 | BW34: =Repdd!BW98 -> 0 | BX34: =Repdd!BX98 -> 0 | BY34: =Repdd!BY98 -> 0 | BZ34: =Repdd!BZ98 -> 0 | CA34: =Repdd!CA98 -> 0 | CB34: =Repdd!CB98 -> 0 | CC34: =Repdd!CC98 -> 0 | CD34: =Repdd!CD98 -> 0 | CE34: =Repdd!CE98 -> 0 | CF34: =Repdd!CF98 -> 0 | CG34: =Repdd!CG98 -> 0 | CH34: =Repdd!CH98 -> 0 | CI34: =Repdd!CI98 -> 0 | CJ34: =Repdd!CJ98 -> 0 | CK34: =Repdd!CK98 -> 0 | CL34: =Repdd!CL98 -> 0 | CM34: =Repdd!CM98 -> 0 | CN34: =Repdd!CN98 -> 0 | CO34: =Repdd!CO98 -> 0 | CP34: =Repdd!CP98 -> 0 | CQ34: =Repdd!CQ98 -> 0 | CR34: =Repdd!CR98 -> 0 | CS34: =Repdd!CS98 -> 0 | CT34: =Repdd!CT98 -> 0
A35: =ROW() -> 35 | F35: АКТИВЫ | G35: Задолженность по телу кредитной линии | S35: =Repdd!S99 -> 0 | W35: 0 | Z35: =Repdd!Z99 -> 0 | AA35: =Repdd!AA99 -> 0 | AB35: =Repdd!AB99 -> 0 | AC35: =Repdd!AC99 -> 0 | AD35: =Repdd!AD99 -> 0 | AE35: =Repdd!AE99 -> 0 | AF35: =Repdd!AF99 -> 0 | AG35: =Repdd!AG99 -> 0 | AH35: =Repdd!AH99 -> 0 | AI35: =Repdd!AI99 -> 0 | AJ35: =Repdd!AJ99 -> 0 | AK35: =Repdd!AK99 -> 0 | AL35: =Repdd!AL99 -> 0 | AM35: =Repdd!AM99 -> 0 | AN35: =Repdd!AN99 -> 0 | AO35: =Repdd!AO99 -> 0 | AP35: =Repdd!AP99 -> 0 | AQ35: =Repdd!AQ99 -> 0 | AR35: =Repdd!AR99 -> 0 | AS35: =Repdd!AS99 -> 0 | AT35: =Repdd!AT99 -> 0 | AU35: =Repdd!AU99 -> 0 | AV35: =Repdd!AV99 -> 0 | AW35: =Repdd!AW99 -> 8364693.697 | AX35: =Repdd!AX99 -> 11981750.07 | AY35: =Repdd!AY99 -> 13926035.64 | AZ35: =Repdd!AZ99 -> 13773880.99 | BA35: =Repdd!BA99 -> 13298743.39 | BB35: =Repdd!BB99 -> 13368114.3 | BC35: =Repdd!BC99 -> 12769212.69 | BD35: =Repdd!BD99 -> 10928998.19 | BE35: =Repdd!BE99 -> 7901182.389 | BF35: =Repdd!BF99 -> 5228305.766 | BG35: =Repdd!BG99 -> 1107922.668 | BH35: =Repdd!BH99 -> 0 | BI35: =Repdd!BI99 -> 0 | BJ35: =Repdd!BJ99 -> 0 | BK35: =Repdd!BK99 -> 0 | BL35: =Repdd!BL99 -> 0 | BM35: =Repdd!BM99 -> 0 | BN35: =Repdd!BN99 -> 0 | BO35: =Repdd!BO99 -> 0 | BP35: =Repdd!BP99 -> 0 | BQ35: =Repdd!BQ99 -> 0 | BR35: =Repdd!BR99 -> 0 | BS35: =Repdd!BS99 -> 0 | BT35: =Repdd!BT99 -> 0 | BU35: =Repdd!BU99 -> 0 | BV35: =Repdd!BV99 -> 0 | BW35: =Repdd!BW99 -> 0 | BX35: =Repdd!BX99 -> 0 | BY35: =Repdd!BY99 -> 0 | BZ35: =Repdd!BZ99 -> 0 | CA35: =Repdd!CA99 -> 0 | CB35: =Repdd!CB99 -> 0 | CC35: =Repdd!CC99 -> 0 | CD35: =Repdd!CD99 -> 0 | CE35: =Repdd!CE99 -> 0 | CF35: =Repdd!CF99 -> 0 | CG35: =Repdd!CG99 -> 0 | CH35: =Repdd!CH99 -> 0 | CI35: =Repdd!CI99 -> 0 | CJ35: =Repdd!CJ99 -> 0 | CK35: =Repdd!CK99 -> 0 | CL35: =Repdd!CL99 -> 0 | CM35: =Repdd!CM99 -> 0 | CN35: =Repdd!CN99 -> 0 | CO35: =Repdd!CO99 -> 0 | CP35: =Repdd!CP99 -> 0 | CQ35: =Repdd!CQ99 -> 0 | CR35: =Repdd!CR99 -> 0 | CS35: =Repdd!CS99 -> 0 | CT35: =Repdd!CT99 -> 0
A36: =ROW() -> 36 | F36: АКТИВЫ | G36: Задолженность по %% кредитной линии | S36: =Repdd!S100 -> 0 | W36: 0 | Z36: =Repdd!Z100 -> 0 | AA36: =Repdd!AA100 -> 0 | AB36: =Repdd!AB100 -> 0 | AC36: =Repdd!AC100 -> 0 | AD36: =Repdd!AD100 -> 0 | AE36: =Repdd!AE100 -> 0 | AF36: =Repdd!AF100 -> 0 | AG36: =Repdd!AG100 -> 0 | AH36: =Repdd!AH100 -> 0 | AI36: =Repdd!AI100 -> 0 | AJ36: =Repdd!AJ100 -> 0 | AK36: =Repdd!AK100 -> 0 | AL36: =Repdd!AL100 -> 0 | AM36: =Repdd!AM100 -> 0 | AN36: =Repdd!AN100 -> 0 | AO36: =Repdd!AO100 -> 0 | AP36: =Repdd!AP100 -> 0 | AQ36: =Repdd!AQ100 -> 0 | AR36: =Repdd!AR100 -> 0 | AS36: =Repdd!AS100 -> 0 | AT36: =Repdd!AT100 -> 0 | AU36: =Repdd!AU100 -> 0 | AV36: =Repdd!AV100 -> 0 | AW36: =Repdd!AW100 -> 104558.6712 | AX36: =Repdd!AX100 -> 254330.547 | AY36: =Repdd!AY100 -> 428405.9925 | AZ36: =Repdd!AZ100 -> 172173.5124 | BA36: =Repdd!BA100 -> 166234.2924 | BB36: =Repdd!BB100 -> 333335.7211 | BC36: =Repdd!BC100 -> 159615.1587 | BD36: =Repdd!BD100 -> 136612.4773 | BE36: =Repdd!BE100 -> 98764.77986 | BF36: =Repdd!BF100 -> 65353.82207 | BG36: =Repdd!BG100 -> 13849.03335 | BH36: =Repdd!BH100 -> 3.492459655e-10 | BI36: =Repdd!BI100 -> 3.492459655e-10 | BJ36: =Repdd!BJ100 -> 3.492459655e-10 | BK36: =Repdd!BK100 -> 3.492459655e-10 | BL36: =Repdd!BL100 -> 3.492459655e-10 | BM36: =Repdd!BM100 -> 3.492459655e-10 | BN36: =Repdd!BN100 -> 3.492459655e-10 | BO36: =Repdd!BO100 -> 3.492459655e-10 | BP36: =Repdd!BP100 -> 3.492459655e-10 | BQ36: =Repdd!BQ100 -> 3.492459655e-10 | BR36: =Repdd!BR100 -> 3.492459655e-10 | BS36: =Repdd!BS100 -> 3.492459655e-10 | BT36: =Repdd!BT100 -> 3.492459655e-10 | BU36: =Repdd!BU100 -> 3.492459655e-10 | BV36: =Repdd!BV100 -> 0 | BW36: =Repdd!BW100 -> 0 | BX36: =Repdd!BX100 -> 0 | BY36: =Repdd!BY100 -> 0 | BZ36: =Repdd!BZ100 -> 0 | CA36: =Repdd!CA100 -> 0 | CB36: =Repdd!CB100 -> 0 | CC36: =Repdd!CC100 -> 0 | CD36: =Repdd!CD100 -> 0 | CE36: =Repdd!CE100 -> 0 | CF36: =Repdd!CF100 -> 0 | CG36: =Repdd!CG100 -> 0 | CH36: =Repdd!CH100 -> 0 | CI36: =Repdd!CI100 -> 0 | CJ36: =Repdd!CJ100 -> 0 | CK36: =Repdd!CK100 -> 0 | CL36: =Repdd!CL100 -> 0 | CM36: =Repdd!CM100 -> 0 | CN36: =Repdd!CN100 -> 0 | CO36: =Repdd!CO100 -> 0 | CP36: =Repdd!CP100 -> 0 | CQ36: =Repdd!CQ100 -> 0 | CR36: =Repdd!CR100 -> 0 | CS36: =Repdd!CS100 -> 0 | CT36: =Repdd!CT100 -> 0
A37: =ROW() -> 37
A38: =ROW() -> 38
A39: =ROW() -> 39
A40: =ROW() -> 40
A41: =ROW() -> 41 | F41: Внеоборотная (Инвестиционная) деятельность с ндс
A42: =ROW() -> 42 | C42: =Lists!$N$10 -> в натуральных величинах | F42: =BP!$F$211 -> Капитальные затраты | M42: =Lists!$R$8 -> руб. | V42: =W42-SUMIFS(Potoki!$W:$W,Potoki!$F:$F,$F42,Potoki!$G:$G,"") -> 0 | W42: =SUM(INDIRECT(ADDRESS(ROW(),SUMIFS($1:$1,$5:$5,1))):INDIRECT(ADDRESS(ROW(),SUMIFS($1:$1,$5:$5,MAX($5:$5))))) -> 60000000 | Z42: =Repdd!Z108 -> 5000000 | AA42: =Repdd!AA108 -> 15000000 | AB42: =Repdd!AB108 -> 10000000 | AC42: =Repdd!AC108 -> 0 | AD42: =Repdd!AD108 -> 0 | AE42: =Repdd!AE108 -> 0 | AF42: =Repdd!AF108 -> 0 | AG42: =Repdd!AG108 -> 0 | AH42: =Repdd!AH108 -> 0 | AI42: =Repdd!AI108 -> 0 | AJ42: =Repdd!AJ108 -> 0 | AK42: =Repdd!AK108 -> 0 | AL42: =Repdd!AL108 -> 0 | AM42: =Repdd!AM108 -> 0 | AN42: =Repdd!AN108 -> 0 | AO42: =Repdd!AO108 -> 0 | AP42: =Repdd!AP108 -> 0 | AQ42: =Repdd!AQ108 -> 0 | AR42: =Repdd!AR108 -> 0 | AS42: =Repdd!AS108 -> 0 | AT42: =Repdd!AT108 -> 0 | AU42: =Repdd!AU108 -> 5000000 | AV42: =Repdd!AV108 -> 15000000 | AW42: =Repdd!AW108 -> 10000000 | AX42: =Repdd!AX108 -> 0 | AY42: =Repdd!AY108 -> 0 | AZ42: =Repdd!AZ108 -> 0 | BA42: =Repdd!BA108 -> 0 | BB42: =Repdd!BB108 -> 0 | BC42: =Repdd!BC108 -> 0 | BD42: =Repdd!BD108 -> 0 | BE42: =Repdd!BE108 -> 0 | BF42: =Repdd!BF108 -> 0 | BG42: =Repdd!BG108 -> 0 | BH42: =Repdd!BH108 -> 0 | BI42: =Repdd!BI108 -> 0 | BJ42: =Repdd!BJ108 -> 0 | BK42: =Repdd!BK108 -> 0 | BL42: =Repdd!BL108 -> 0 | BM42: =Repdd!BM108 -> 0 | BN42: =Repdd!BN108 -> 0 | BO42: =Repdd!BO108 -> 0 | BP42: =Repdd!BP108 -> 0 | BQ42: =Repdd!BQ108 -> 0 | BR42: =Repdd!BR108 -> 0 | BS42: =Repdd!BS108 -> 0 | BT42: =Repdd!BT108 -> 0 | BU42: =Repdd!BU108 -> 0 | BV42: =Repdd!BV108 -> 0 | BW42: =Repdd!BW108 -> 0 | BX42: =Repdd!BX108 -> 0 | BY42: =Repdd!BY108 -> 0 | BZ42: =Repdd!BZ108 -> 0 | CA42: =Repdd!CA108 -> 0 | CB42: =Repdd!CB108 -> 0 | CC42: =Repdd!CC108 -> 0 | CD42: =Repdd!CD108 -> 0 | CE42: =Repdd!CE108 -> 0 | CF42: =Repdd!CF108 -> 0 | CG42: =Repdd!CG108 -> 0 | CH42: =Repdd!CH108 -> 0 | CI42: =Repdd!CI108 -> 0 | CJ42: =Repdd!CJ108 -> 0 | CK42: =Repdd!CK108 -> 0 | CL42: =Repdd!CL108 -> 0 | CM42: =Repdd!CM108 -> 0 | CN42: =Repdd!CN108 -> 0 | CO42: =Repdd!CO108 -> 0 | CP42: =Repdd!CP108 -> 0 | CQ42: =Repdd!CQ108 -> 0 | CR42: =Repdd!CR108 -> 0 | CS42: =Repdd!CS108 -> 0 | CT42: =Repdd!CT108 -> 0
A43: =ROW() -> 43 | F43: =BP!$F$213 -> Ввод в эксплуатацию | M43: =Lists!$R$8 -> руб. | V43: =W43-SUMIFS(Potoki!$W:$W,Potoki!$F:$F,$F43,Potoki!$G:$G,"") -> 0 | W43: =SUM(INDIRECT(ADDRESS(ROW(),SUMIFS($1:$1,$5:$5,1))):INDIRECT(ADDRESS(ROW(),SUMIFS($1:$1,$5:$5,MAX($5:$5))))) -> 60000000 | Z43: =Repdd!Z109 -> 0 | AA43: =Repdd!AA109 -> 0 | AB43: =Repdd!AB109 -> 30000000 | AC43: =Repdd!AC109 -> 0 | AD43: =Repdd!AD109 -> 0 | AE43: =Repdd!AE109 -> 0 | AF43: =Repdd!AF109 -> 0 | AG43: =Repdd!AG109 -> 0 | AH43: =Repdd!AH109 -> 0 | AI43: =Repdd!AI109 -> 0 | AJ43: =Repdd!AJ109 -> 0 | AK43: =Repdd!AK109 -> 0 | AL43: =Repdd!AL109 -> 0 | AM43: =Repdd!AM109 -> 0 | AN43: =Repdd!AN109 -> 0 | AO43: =Repdd!AO109 -> 0 | AP43: =Repdd!AP109 -> 0 | AQ43: =Repdd!AQ109 -> 0 | AR43: =Repdd!AR109 -> 0 | AS43: =Repdd!AS109 -> 0 | AT43: =Repdd!AT109 -> 0 | AU43: =Repdd!AU109 -> 0 | AV43: =Repdd!AV109 -> 0 | AW43: =Repdd!AW109 -> 30000000 | AX43: =Repdd!AX109 -> 0 | AY43: =Repdd!AY109 -> 0 | AZ43: =Repdd!AZ109 -> 0 | BA43: =Repdd!BA109 -> 0 | BB43: =Repdd!BB109 -> 0 | BC43: =Repdd!BC109 -> 0 | BD43: =Repdd!BD109 -> 0 | BE43: =Repdd!BE109 -> 0 | BF43: =Repdd!BF109 -> 0 | BG43: =Repdd!BG109 -> 0 | BH43: =Repdd!BH109 -> 0 | BI43: =Repdd!BI109 -> 0 | BJ43: =Repdd!BJ109 -> 0 | BK43: =Repdd!BK109 -> 0 | BL43: =Repdd!BL109 -> 0 | BM43: =Repdd!BM109 -> 0 | BN43: =Repdd!BN109 -> 0 | BO43: =Repdd!BO109 -> 0 | BP43: =Repdd!BP109 -> 0 | BQ43: =Repdd!BQ109 -> 0 | BR43: =Repdd!BR109 -> 0 | BS43: =Repdd!BS109 -> 0 | BT43: =Repdd!BT109 -> 0 | BU43: =Repdd!BU109 -> 0 | BV43: =Repdd!BV109 -> 0 | BW43: =Repdd!BW109 -> 0 | BX43: =Repdd!BX109 -> 0 | BY43: =Repdd!BY109 -> 0 | BZ43: =Repdd!BZ109 -> 0 | CA43: =Repdd!CA109 -> 0 | CB43: =Repdd!CB109 -> 0 | CC43: =Repdd!CC109 -> 0 | CD43: =Repdd!CD109 -> 0 | CE43: =Repdd!CE109 -> 0 | CF43: =Repdd!CF109 -> 0 | CG43: =Repdd!CG109 -> 0 | CH43: =Repdd!CH109 -> 0 | CI43: =Repdd!CI109 -> 0 | CJ43: =Repdd!CJ109 -> 0 | CK43: =Repdd!CK109 -> 0 | CL43: =Repdd!CL109 -> 0 | CM43: =Repdd!CM109 -> 0 | CN43: =Repdd!CN109 -> 0 | CO43: =Repdd!CO109 -> 0 | CP43: =Repdd!CP109 -> 0 | CQ43: =Repdd!CQ109 -> 0 | CR43: =Repdd!CR109 -> 0 | CS43: =Repdd!CS109 -> 0 | CT43: =Repdd!CT109 -> 0
A44: =ROW() -> 44 | F44: Движения по складам и производствам (операционная деятельность) с ндс
A45: =ROW() -> 45 | C45: =Lists!$N$10 -> в натуральных величинах | F45: =BP!$F$67 -> Закупка сырья и материалов | M45: =Lists!$R$8 -> руб. | V45: =W45-SUM(W46:W50) -> 0 | W45: =SUM(INDIRECT(ADDRESS(ROW(),SUMIFS($1:$1,$5:$5,1))):INDIRECT(ADDRESS(ROW(),SUMIFS($1:$1,$5:$5,MAX($5:$5))))) -> 152694313.2 | Z45: =Repdd!Z114 -> 0 | AA45: =Repdd!AA114 -> 0 | AB45: =Repdd!AB114 -> 0 | AC45: =Repdd!AC114 -> 4680 | AD45: =Repdd!AD114 -> 20880 | AE45: =Repdd!AE114 -> 42336 | AF45: =Repdd!AF114 -> 64809 | AG45: =Repdd!AG114 -> 85563 | AH45: =Repdd!AH114 -> 111529.8 | AI45: =Repdd!AI114 -> 172103.4 | AJ45: =Repdd!AJ114 -> 282537 | AK45: =Repdd!AK114 -> 446969.7 | AL45: =Repdd!AL114 -> 662032.8 | AM45: =Repdd!AM114 -> 912006.9 | AN45: =Repdd!AN114 -> 1182650.4 | AO45: =Repdd!AO114 -> 1464698.7 | AP45: =Repdd!AP114 -> 1752727.5 | AQ45: =Repdd!AQ114 -> 2043634.5 | AR45: =Repdd!AR114 -> 2335540.5 | AS45: =Repdd!AS114 -> 2627784 | AT45: =Repdd!AT114 -> 2920167 | AU45: =Repdd!AU114 -> 3212577 | AV45: =Repdd!AV114 -> 3504987 | AW45: =Repdd!AW114 -> 3797397 | AX45: =Repdd!AX114 -> 4089807 | AY45: =Repdd!AY114 -> 4382217 | AZ45: =Repdd!AZ114 -> 4662927 | BA45: =Repdd!BA114 -> 4903137 | BB45: =Repdd!BB114 -> 5089707 | BC45: =Repdd!BC114 -> 5220094.5 | BD45: =Repdd!BD114 -> 5298597 | BE45: =Repdd!BE114 -> 5341432.5 | BF45: =Repdd!BF114 -> 5363334 | BG45: =Repdd!BG114 -> 5373751.5 | BH45: =Repdd!BH114 -> 5378143.5 | BI45: =Repdd!BI114 -> 5379646.5 | BJ45: =Repdd!BJ114 -> 5380150.5 | BK45: =Repdd!BK114 -> 5380317 | BL45: =Repdd!BL114 -> 5380344 | BM45: =Repdd!BM114 -> 5380344 | BN45: =Repdd!BN114 -> 5380344 | BO45: =Repdd!BO114 -> 5380344 | BP45: =Repdd!BP114 -> 5380344 | BQ45: =Repdd!BQ114 -> 5380344 | BR45: =Repdd!BR114 -> 5380344 | BS45: =Repdd!BS114 -> 5380344 | BT45: =Repdd!BT114 -> 5380344 | BU45: =Repdd!BU114 -> 5380344 | BV45: =Repdd!BV114 -> 0 | BW45: =Repdd!BW114 -> 0 | BX45: =Repdd!BX114 -> 0 | BY45: =Repdd!BY114 -> 0 | BZ45: =Repdd!BZ114 -> 0 | CA45: =Repdd!CA114 -> 0 | CB45: =Repdd!CB114 -> 0 | CC45: =Repdd!CC114 -> 0 | CD45: =Repdd!CD114 -> 0 | CE45: =Repdd!CE114 -> 0 | CF45: =Repdd!CF114 -> 0 | CG45: =Repdd!CG114 -> 0 | CH45: =Repdd!CH114 -> 0 | CI45: =Repdd!CI114 -> 0 | CJ45: =Repdd!CJ114 -> 0 | CK45: =Repdd!CK114 -> 0 | CL45: =Repdd!CL114 -> 0 | CM45: =Repdd!CM114 -> 0 | CN45: =Repdd!CN114 -> 0 | CO45: =Repdd!CO114 -> 0 | CP45: =Repdd!CP114 -> 0 | CQ45: =Repdd!CQ114 -> 0 | CR45: =Repdd!CR114 -> 0 | CS45: =Repdd!CS114 -> 0 | CT45: =Repdd!CT114 -> 0
A46: =ROW() -> 46 | F46: =F45 -> Закупка сырья и материалов | G46: =BP!$F$21 -> Основа | M46: =Lists!$R$8 -> руб. | W46: =SUM(INDIRECT(ADDRESS(ROW(),SUMIFS($1:$1,$5:$5,1))):INDIRECT(ADDRESS(ROW(),SUMIFS($1:$1,$5:$5,MAX($5:$5))))) -> 94802946 | Z46: =Repdd!Z115 -> 0 | AA46: =Repdd!AA115 -> 0 | AB46: =Repdd!AB115 -> 0 | AC46: =Repdd!AC115 -> 4200 | AD46: =Repdd!AD115 -> 16800 | AE46: =Repdd!AE115 -> 30240 | AF46: =Repdd!AF115 -> 44205 | AG46: =Repdd!AG115 -> 56385 | AH46: =Repdd!AH115 -> 74067 | AI46: =Repdd!AI115 -> 120267 | AJ46: =Repdd!AJ115 -> 198051 | AK46: =Repdd!AK115 -> 309718.5 | AL46: =Repdd!AL115 -> 451185 | AM46: =Repdd!AM115 -> 610228.5 | AN46: =Repdd!AN115 -> 779709 | AO46: =Repdd!AO115 -> 954607.5 | AP46: =Repdd!AP115 -> 1132372.5 | AQ46: =Repdd!AQ115 -> 1311397.5 | AR46: =Repdd!AR115 -> 1490737.5 | AS46: =Repdd!AS115 -> 1670235 | AT46: =Repdd!AT115 -> 1849785 | AU46: =Repdd!AU115 -> 2029335 | AV46: =Repdd!AV115 -> 2208885 | AW46: =Repdd!AW115 -> 2388435 | AX46: =Repdd!AX115 -> 2567985 | AY46: =Repdd!AY115 -> 2747535 | AZ46: =Repdd!AZ115 -> 2916585 | BA46: =Repdd!BA115 -> 3054135 | BB46: =Repdd!BB115 -> 3158085 | BC46: =Repdd!BC115 -> 3227122.5 | BD46: =Repdd!BD115 -> 3265710 | BE46: =Repdd!BE115 -> 3286342.5 | BF46: =Repdd!BF115 -> 3296475 | BG46: =Repdd!BG115 -> 3301147.5 | BH46: =Repdd!BH115 -> 3302932.5 | BI46: =Repdd!BI115 -> 3303457.5 | BJ46: =Repdd!BJ115 -> 3303667.5 | BK46: =Repdd!BK115 -> 3303720 | BL46: =Repdd!BL115 -> 3303720 | BM46: =Repdd!BM115 -> 3303720 | BN46: =Repdd!BN115 -> 3303720 | BO46: =Repdd!BO115 -> 3303720 | BP46: =Repdd!BP115 -> 3303720 | BQ46: =Repdd!BQ115 -> 3303720 | BR46: =Repdd!BR115 -> 3303720 | BS46: =Repdd!BS115 -> 3303720 | BT46: =Repdd!BT115 -> 3303720 | BU46: =Repdd!BU115 -> 3303720 | BV46: =Repdd!BV115 -> 0 | BW46: =Repdd!BW115 -> 0 | BX46: =Repdd!BX115 -> 0 | BY46: =Repdd!BY115 -> 0 | BZ46: =Repdd!BZ115 -> 0 | CA46: =Repdd!CA115 -> 0 | CB46: =Repdd!CB115 -> 0 | CC46: =Repdd!CC115 -> 0 | CD46: =Repdd!CD115 -> 0 | CE46: =Repdd!CE115 -> 0 | CF46: =Repdd!CF115 -> 0 | CG46: =Repdd!CG115 -> 0 | CH46: =Repdd!CH115 -> 0 | CI46: =Repdd!CI115 -> 0 | CJ46: =Repdd!CJ115 -> 0 | CK46: =Repdd!CK115 -> 0 | CL46: =Repdd!CL115 -> 0 | CM46: =Repdd!CM115 -> 0 | CN46: =Repdd!CN115 -> 0 | CO46: =Repdd!CO115 -> 0 | CP46: =Repdd!CP115 -> 0 | CQ46: =Repdd!CQ115 -> 0 | CR46: =Repdd!CR115 -> 0 | CS46: =Repdd!CS115 -> 0 | CT46: =Repdd!CT115 -> 0
A47: =ROW() -> 47 | F47: =F45 -> Закупка сырья и материалов | G47: =BP!$F$22 -> Сырье | M47: =Lists!$R$8 -> руб. | W47: =SUM(INDIRECT(ADDRESS(ROW(),SUMIFS($1:$1,$5:$5,1))):INDIRECT(ADDRESS(ROW(),SUMIFS($1:$1,$5:$5,MAX($5:$5))))) -> 10834622.4 | Z47: =Repdd!Z116 -> 0 | AA47: =Repdd!AA116 -> 0 | AB47: =Repdd!AB116 -> 0 | AC47: =Repdd!AC116 -> 480 | AD47: =Repdd!AD116 -> 1920 | AE47: =Repdd!AE116 -> 3456 | AF47: =Repdd!AF116 -> 5052 | AG47: =Repdd!AG116 -> 6444 | AH47: =Repdd!AH116 -> 8464.8 | AI47: =Repdd!AI116 -> 13744.8 | AJ47: =Repdd!AJ116 -> 22634.4 | AK47: =Repdd!AK116 -> 35396.4 | AL47: =Repdd!AL116 -> 51564 | AM47: =Repdd!AM116 -> 69740.4 | AN47: =Repdd!AN116 -> 89109.6 | AO47: =Repdd!AO116 -> 109098 | AP47: =Repdd!AP116 -> 129414 | AQ47: =Repdd!AQ116 -> 149874 | AR47: =Repdd!AR116 -> 170370 | AS47: =Repdd!AS116 -> 190884 | AT47: =Repdd!AT116 -> 211404 | AU47: =Repdd!AU116 -> 231924 | AV47: =Repdd!AV116 -> 252444 | AW47: =Repdd!AW116 -> 272964 | AX47: =Repdd!AX116 -> 293484 | AY47: =Repdd!AY116 -> 314004 | AZ47: =Repdd!AZ116 -> 333324 | BA47: =Repdd!BA116 -> 349044 | BB47: =Repdd!BB116 -> 360924 | BC47: =Repdd!BC116 -> 368814 | BD47: =Repdd!BD116 -> 373224 | BE47: =Repdd!BE116 -> 375582 | BF47: =Repdd!BF116 -> 376740 | BG47: =Repdd!BG116 -> 377274 | BH47: =Repdd!BH116 -> 377478 | BI47: =Repdd!BI116 -> 377538 | BJ47: =Repdd!BJ116 -> 377562 | BK47: =Repdd!BK116 -> 377568 | BL47: =Repdd!BL116 -> 377568 | BM47: =Repdd!BM116 -> 377568 | BN47: =Repdd!BN116 -> 377568 | BO47: =Repdd!BO116 -> 377568 | BP47: =Repdd!BP116 -> 377568 | BQ47: =Repdd!BQ116 -> 377568 | BR47: =Repdd!BR116 -> 377568 | BS47: =Repdd!BS116 -> 377568 | BT47: =Repdd!BT116 -> 377568 | BU47: =Repdd!BU116 -> 377568 | BV47: =Repdd!BV116 -> 0 | BW47: =Repdd!BW116 -> 0 | BX47: =Repdd!BX116 -> 0 | BY47: =Repdd!BY116 -> 0 | BZ47: =Repdd!BZ116 -> 0 | CA47: =Repdd!CA116 -> 0 | CB47: =Repdd!CB116 -> 0 | CC47: =Repdd!CC116 -> 0 | CD47: =Repdd!CD116 -> 0 | CE47: =Repdd!CE116 -> 0 | CF47: =Repdd!CF116 -> 0 | CG47: =Repdd!CG116 -> 0 | CH47: =Repdd!CH116 -> 0 | CI47: =Repdd!CI116 -> 0 | CJ47: =Repdd!CJ116 -> 0 | CK47: =Repdd!CK116 -> 0 | CL47: =Repdd!CL116 -> 0 | CM47: =Repdd!CM116 -> 0 | CN47: =Repdd!CN116 -> 0 | CO47: =Repdd!CO116 -> 0 | CP47: =Repdd!CP116 -> 0 | CQ47: =Repdd!CQ116 -> 0 | CR47: =Repdd!CR116 -> 0 | CS47: =Repdd!CS116 -> 0 | CT47: =Repdd!CT116 -> 0
A48: =ROW() -> 48 | F48: =F45 -> Закупка сырья и материалов | G48: =BP!$F$23 -> Материал | M48: =Lists!$R$8 -> руб. | W48: =SUM(INDIRECT(ADDRESS(ROW(),SUMIFS($1:$1,$5:$5,1))):INDIRECT(ADDRESS(ROW(),SUMIFS($1:$1,$5:$5,MAX($5:$5))))) -> 12199896.8 | Z48: =Repdd!Z117 -> 0 | AA48: =Repdd!AA117 -> 0 | AB48: =Repdd!AB117 -> 0 | AC48: =Repdd!AC117 -> 0 | AD48: =Repdd!AD117 -> 560 | AE48: =Repdd!AE117 -> 2240 | AF48: =Repdd!AF117 -> 4032 | AG48: =Repdd!AG117 -> 5894 | AH48: =Repdd!AH117 -> 7518 | AI48: =Repdd!AI117 -> 9875.6 | AJ48: =Repdd!AJ117 -> 16035.6 | AK48: =Repdd!AK117 -> 26406.8 | AL48: =Repdd!AL117 -> 41295.8 | AM48: =Repdd!AM117 -> 60158 | AN48: =Repdd!AN117 -> 81363.8 | AO48: =Repdd!AO117 -> 103961.2 | AP48: =Repdd!AP117 -> 127281 | AQ48: =Repdd!AQ117 -> 150983 | AR48: =Repdd!AR117 -> 174853 | AS48: =Repdd!AS117 -> 198765 | AT48: =Repdd!AT117 -> 222698 | AU48: =Repdd!AU117 -> 246638 | AV48: =Repdd!AV117 -> 270578 | AW48: =Repdd!AW117 -> 294518 | AX48: =Repdd!AX117 -> 318458 | AY48: =Repdd!AY117 -> 342398 | AZ48: =Repdd!AZ117 -> 366338 | BA48: =Repdd!BA117 -> 388878 | BB48: =Repdd!BB117 -> 407218 | BC48: =Repdd!BC117 -> 421078 | BD48: =Repdd!BD117 -> 430283 | BE48: =Repdd!BE117 -> 435428 | BF48: =Repdd!BF117 -> 438179 | BG48: =Repdd!BG117 -> 439530 | BH48: =Repdd!BH117 -> 440153 | BI48: =Repdd!BI117 -> 440391 | BJ48: =Repdd!BJ117 -> 440461 | BK48: =Repdd!BK117 -> 440489 | BL48: =Repdd!BL117 -> 440496 | BM48: =Repdd!BM117 -> 440496 | BN48: =Repdd!BN117 -> 440496 | BO48: =Repdd!BO117 -> 440496 | BP48: =Repdd!BP117 -> 440496 | BQ48: =Repdd!BQ117 -> 440496 | BR48: =Repdd!BR117 -> 440496 | BS48: =Repdd!BS117 -> 440496 | BT48: =Repdd!BT117 -> 440496 | BU48: =Repdd!BU117 -> 440496 | BV48: =Repdd!BV117 -> 0 | BW48: =Repdd!BW117 -> 0 | BX48: =Repdd!BX117 -> 0 | BY48: =Repdd!BY117 -> 0 | BZ48: =Repdd!BZ117 -> 0 | CA48: =Repdd!CA117 -> 0 | CB48: =Repdd!CB117 -> 0 | CC48: =Repdd!CC117 -> 0 | CD48: =Repdd!CD117 -> 0 | CE48: =Repdd!CE117 -> 0 | CF48: =Repdd!CF117 -> 0 | CG48: =Repdd!CG117 -> 0 | CH48: =Repdd!CH117 -> 0 | CI48: =Repdd!CI117 -> 0 | CJ48: =Repdd!CJ117 -> 0 | CK48: =Repdd!CK117 -> 0 | CL48: =Repdd!CL117 -> 0 | CM48: =Repdd!CM117 -> 0 | CN48: =Repdd!CN117 -> 0 | CO48: =Repdd!CO117 -> 0 | CP48: =Repdd!CP117 -> 0 | CQ48: =Repdd!CQ117 -> 0 | CR48: =Repdd!CR117 -> 0 | CS48: =Repdd!CS117 -> 0 | CT48: =Repdd!CT117 -> 0
A49: =ROW() -> 49 | F49: =F45 -> Закупка сырья и материалов | G49: =BP!$F$25 -> Упаковка | M49: =Lists!$R$8 -> руб. | W49: =SUM(INDIRECT(ADDRESS(ROW(),SUMIFS($1:$1,$5:$5,1))):INDIRECT(ADDRESS(ROW(),SUMIFS($1:$1,$5:$5,MAX($5:$5))))) -> 34856848 | Z49: =Repdd!Z118 -> 0 | AA49: =Repdd!AA118 -> 0 | AB49: =Repdd!AB118 -> 0 | AC49: =Repdd!AC118 -> 0 | AD49: =Repdd!AD118 -> 1600 | AE49: =Repdd!AE118 -> 6400 | AF49: =Repdd!AF118 -> 11520 | AG49: =Repdd!AG118 -> 16840 | AH49: =Repdd!AH118 -> 21480 | AI49: =Repdd!AI118 -> 28216 | AJ49: =Repdd!AJ118 -> 45816 | AK49: =Repdd!AK118 -> 75448 | AL49: =Repdd!AL118 -> 117988 | AM49: =Repdd!AM118 -> 171880 | AN49: =Repdd!AN118 -> 232468 | AO49: =Repdd!AO118 -> 297032 | AP49: =Repdd!AP118 -> 363660 | AQ49: =Repdd!AQ118 -> 431380 | AR49: =Repdd!AR118 -> 499580 | AS49: =Repdd!AS118 -> 567900 | AT49: =Repdd!AT118 -> 636280 | AU49: =Repdd!AU118 -> 704680 | AV49: =Repdd!AV118 -> 773080 | AW49: =Repdd!AW118 -> 841480 | AX49: =Repdd!AX118 -> 909880 | AY49: =Repdd!AY118 -> 978280 | AZ49: =Repdd!AZ118 -> 1046680 | BA49: =Repdd!BA118 -> 1111080 | BB49: =Repdd!BB118 -> 1163480 | BC49: =Repdd!BC118 -> 1203080 | BD49: =Repdd!BD118 -> 1229380 | BE49: =Repdd!BE118 -> 1244080 | BF49: =Repdd!BF118 -> 1251940 | BG49: =Repdd!BG118 -> 1255800 | BH49: =Repdd!BH118 -> 1257580 | BI49: =Repdd!BI118 -> 1258260 | BJ49: =Repdd!BJ118 -> 1258460 | BK49: =Repdd!BK118 -> 1258540 | BL49: =Repdd!BL118 -> 1258560 | BM49: =Repdd!BM118 -> 1258560 | BN49: =Repdd!BN118 -> 1258560 | BO49: =Repdd!BO118 -> 1258560 | BP49: =Repdd!BP118 -> 1258560 | BQ49: =Repdd!BQ118 -> 1258560 | BR49: =Repdd!BR118 -> 1258560 | BS49: =Repdd!BS118 -> 1258560 | BT49: =Repdd!BT118 -> 1258560 | BU49: =Repdd!BU118 -> 1258560 | BV49: =Repdd!BV118 -> 0 | BW49: =Repdd!BW118 -> 0 | BX49: =Repdd!BX118 -> 0 | BY49: =Repdd!BY118 -> 0 | BZ49: =Repdd!BZ118 -> 0 | CA49: =Repdd!CA118 -> 0 | CB49: =Repdd!CB118 -> 0 | CC49: =Repdd!CC118 -> 0 | CD49: =Repdd!CD118 -> 0 | CE49: =Repdd!CE118 -> 0 | CF49: =Repdd!CF118 -> 0 | CG49: =Repdd!CG118 -> 0 | CH49: =Repdd!CH118 -> 0 | CI49: =Repdd!CI118 -> 0 | CJ49: =Repdd!CJ118 -> 0 | CK49: =Repdd!CK118 -> 0 | CL49: =Repdd!CL118 -> 0 | CM49: =Repdd!CM118 -> 0 | CN49: =Repdd!CN118 -> 0 | CO49: =Repdd!CO118 -> 0 | CP49: =Repdd!CP118 -> 0 | CQ49: =Repdd!CQ118 -> 0 | CR49: =Repdd!CR118 -> 0 | CS49: =Repdd!CS118 -> 0 | CT49: =Repdd!CT118 -> 0
A50: =ROW() -> 50 | E50: =Lists!$N$9 -> пустая строка | V50: =W45-SUMIFS(Potoki!$W:$W,Potoki!$F:$F,$F45,Potoki!$G:$G,"") -> 0
A51: =ROW() -> 51 | F51: =BP!$F$91 -> Поступление в пр-во ПФ | M51: =Lists!$R$8 -> руб. | V51: =W51-SUM(#REF!) ->  | W51: =SUM(INDIRECT(ADDRESS(ROW(),SUMIFS($1:$1,$5:$5,1))):INDIRECT(ADDRESS(ROW(),SUMIFS($1:$1,$5:$5,MAX($5:$5))))) -> 121754970.1 | Z51: =Repdd!Z120 -> 0 | AA51: =Repdd!AA120 -> 0 | AB51: =Repdd!AB120 -> 0 | AC51: =Repdd!AC120 -> 0 | AD51: =Repdd!AD120 -> 5588.8 | AE51: =Repdd!AE120 -> 22355.2 | AF51: =Repdd!AF120 -> 40239.36 | AG51: =Repdd!AG120 -> 58822.12 | AH51: =Repdd!AH120 -> 75029.64 | AI51: =Repdd!AI120 -> 98558.488 | AJ51: =Repdd!AJ120 -> 160035.288 | AK51: =Repdd!AK120 -> 263539.864 | AL51: =Repdd!AL120 -> 412132.084 | AM51: =Repdd!AM120 -> 600376.84 | AN51: =Repdd!AN120 -> 812010.724 | AO51: =Repdd!AO120 -> 1037532.776 | AP51: =Repdd!AP120 -> 1270264.38 | AQ51: =Repdd!AQ120 -> 1506810.34 | AR51: =Repdd!AR120 -> 1745032.94 | AS51: =Repdd!AS120 -> 1983674.7 | AT51: =Repdd!AT120 -> 2222526.04 | AU51: =Repdd!AU120 -> 2461447.24 | AV51: =Repdd!AV120 -> 2700368.44 | AW51: =Repdd!AW120 -> 2939289.64 | AX51: =Repdd!AX120 -> 3178210.84 | AY51: =Repdd!AY120 -> 3417132.04 | AZ51: =Repdd!AZ120 -> 3656053.24 | BA51: =Repdd!BA120 -> 3881002.44 | BB51: =Repdd!BB120 -> 4064035.64 | BC51: =Repdd!BC120 -> 4202358.44 | BD51: =Repdd!BD120 -> 4294224.34 | BE51: =Repdd!BE120 -> 4345571.44 | BF51: =Repdd!BF120 -> 4373026.42 | BG51: =Repdd!BG120 -> 4386509.4 | BH51: =Repdd!BH120 -> 4392726.94 | BI51: =Repdd!BI120 -> 4395102.18 | BJ51: =Repdd!BJ120 -> 4395800.78 | BK51: =Repdd!BK120 -> 4396080.22 | BL51: =Repdd!BL120 -> 4396150.08 | BM51: =Repdd!BM120 -> 4396150.08 | BN51: =Repdd!BN120 -> 4396150.08 | BO51: =Repdd!BO120 -> 4396150.08 | BP51: =Repdd!BP120 -> 4396150.08 | BQ51: =Repdd!BQ120 -> 4396150.08 | BR51: =Repdd!BR120 -> 4396150.08 | BS51: =Repdd!BS120 -> 4396150.08 | BT51: =Repdd!BT120 -> 4396150.08 | BU51: =Repdd!BU120 -> 4396150.08 | BV51: =Repdd!BV120 -> 0 | BW51: =Repdd!BW120 -> 0 | BX51: =Repdd!BX120 -> 0 | BY51: =Repdd!BY120 -> 0 | BZ51: =Repdd!BZ120 -> 0 | CA51: =Repdd!CA120 -> 0 | CB51: =Repdd!CB120 -> 0 | CC51: =Repdd!CC120 -> 0 | CD51: =Repdd!CD120 -> 0 | CE51: =Repdd!CE120 -> 0 | CF51: =Repdd!CF120 -> 0 | CG51: =Repdd!CG120 -> 0 | CH51: =Repdd!CH120 -> 0 | CI51: =Repdd!CI120 -> 0 | CJ51: =Repdd!CJ120 -> 0 | CK51: =Repdd!CK120 -> 0 | CL51: =Repdd!CL120 -> 0 | CM51: =Repdd!CM120 -> 0 | CN51: =Repdd!CN120 -> 0 | CO51: =Repdd!CO120 -> 0 | CP51: =Repdd!CP120 -> 0 | CQ51: =Repdd!CQ120 -> 0 | CR51: =Repdd!CR120 -> 0 | CS51: =Repdd!CS120 -> 0 | CT51: =Repdd!CT120 -> 0
A52: =ROW() -> 52 | F52: =BP!$F$115 -> Вн.пр-во | M52: =Lists!$R$8 -> руб. | V52: =W52-SUM(W53:W59) -> 0 | W52: =SUM(INDIRECT(ADDRESS(ROW(),SUMIFS($1:$1,$5:$5,1))):INDIRECT(ADDRESS(ROW(),SUMIFS($1:$1,$5:$5,MAX($5:$5))))) -> 365098340 | Z52: =Repdd!Z127 -> 0 | AA52: =Repdd!AA127 -> 0 | AB52: =Repdd!AB127 -> 0 | AC52: =Repdd!AC127 -> 0 | AD52: =Repdd!AD127 -> 0 | AE52: =Repdd!AE127 -> 12188.8 | AF52: =Repdd!AF127 -> 54155.2 | AG52: =Repdd!AG127 -> 109359.36 | AH52: =Repdd!AH127 -> 167167.12 | AI52: =Repdd!AI127 -> 220469.64 | AJ52: =Repdd!AJ127 -> 287444.488 | AK52: =Repdd!AK127 -> 444255.288 | AL52: =Repdd!AL127 -> 729391.864 | AM52: =Repdd!AM127 -> 1153469.584 | AN52: =Repdd!AN127 -> 1707591.34 | AO52: =Repdd!AO127 -> 2351036.224 | AP52: =Repdd!AP127 -> 3047369.276 | AQ52: =Repdd!AQ127 -> 3772844.88 | AR52: =Repdd!AR127 -> 4513605.34 | AS52: =Repdd!AS127 -> 5261707.94 | AT52: =Repdd!AT127 -> 6012344.7 | AU52: =Repdd!AU127 -> 6763843.54 | AV52: =Repdd!AV127 -> 7515697.24 | AW52: =Repdd!AW127 -> 8267618.44 | AX52: =Repdd!AX127 -> 9019539.64 | AY52: =Repdd!AY127 -> 9771460.84 | AZ52: =Repdd!AZ127 -> 10523382.04 | BA52: =Repdd!BA127 -> 11275303.24 | BB52: =Repdd!BB127 -> 11996752.44 | BC52: =Repdd!BC127 -> 12613285.64 | BD52: =Repdd!BD127 -> 13091808.44 | BE52: =Repdd!BE127 -> 13425811.84 | BF52: =Repdd!BF127 -> 13626558.94 | BG52: =Repdd!BG127 -> 13736048.92 | BH52: =Repdd!BH127 -> 13791981.9 | BI52: =Repdd!BI127 -> 13818569.44 | BJ52: =Repdd!BJ127 -> 13829757.18 | BK52: =Repdd!BK127 -> 13833575.78 | BL52: =Repdd!BL127 -> 13834860.22 | BM52: =Repdd!BM127 -> 13835282.58 | BN52: =Repdd!BN127 -> 13835350.08 | BO52: =Repdd!BO127 -> 13835350.08 | BP52: =Repdd!BP127 -> 13835350.08 | BQ52: =Repdd!BQ127 -> 13835350.08 | BR52: =Repdd!BR127 -> 13835350.08 | BS52: =Repdd!BS127 -> 13835350.08 | BT52: =Repdd!BT127 -> 13835350.08 | BU52: =Repdd!BU127 -> 13835350.08 | BV52: =Repdd!BV127 -> 0 | BW52: =Repdd!BW127 -> 0 | BX52: =Repdd!BX127 -> 0 | BY52: =Repdd!BY127 -> 0 | BZ52: =Repdd!BZ127 -> 0 | CA52: =Repdd!CA127 -> 0 | CB52: =Repdd!CB127 -> 0 | CC52: =Repdd!CC127 -> 0 | CD52: =Repdd!CD127 -> 0 | CE52: =Repdd!CE127 -> 0 | CF52: =Repdd!CF127 -> 0 | CG52: =Repdd!CG127 -> 0 | CH52: =Repdd!CH127 -> 0 | CI52: =Repdd!CI127 -> 0 | CJ52: =Repdd!CJ127 -> 0 | CK52: =Repdd!CK127 -> 0 | CL52: =Repdd!CL127 -> 0 | CM52: =Repdd!CM127 -> 0 | CN52: =Repdd!CN127 -> 0 | CO52: =Repdd!CO127 -> 0 | CP52: =Repdd!CP127 -> 0 | CQ52: =Repdd!CQ127 -> 0 | CR52: =Repdd!CR127 -> 0 | CS52: =Repdd!CS127 -> 0 | CT52: =Repdd!CT127 -> 0
A53: =ROW() -> 53 | F53: =$F$52 -> Вн.пр-во | G53: =BP!$F$21 -> Основа | M53: =Lists!$R$8 -> руб. | W53: =SUM(INDIRECT(ADDRESS(ROW(),SUMIFS($1:$1,$5:$5,1))):INDIRECT(ADDRESS(ROW(),SUMIFS($1:$1,$5:$5,MAX($5:$5))))) -> 88195506 | Z53: =Repdd!Z128 -> 0 | AA53: =Repdd!AA128 -> 0 | AB53: =Repdd!AB128 -> 0 | AC53: =Repdd!AC128 -> 0 | AD53: =Repdd!AD128 -> 0 | AE53: =Repdd!AE128 -> 4200 | AF53: =Repdd!AF128 -> 16800 | AG53: =Repdd!AG128 -> 30240 | AH53: =Repdd!AH128 -> 44205 | AI53: =Repdd!AI128 -> 56385 | AJ53: =Repdd!AJ128 -> 74067 | AK53: =Repdd!AK128 -> 120267 | AL53: =Repdd!AL128 -> 198051 | AM53: =Repdd!AM128 -> 309718.5 | AN53: =Repdd!AN128 -> 451185 | AO53: =Repdd!AO128 -> 610228.5 | AP53: =Repdd!AP128 -> 779709 | AQ53: =Repdd!AQ128 -> 954607.5 | AR53: =Repdd!AR128 -> 1132372.5 | AS53: =Repdd!AS128 -> 1311397.5 | AT53: =Repdd!AT128 -> 1490737.5 | AU53: =Repdd!AU128 -> 1670235 | AV53: =Repdd!AV128 -> 1849785 | AW53: =Repdd!AW128 -> 2029335 | AX53: =Repdd!AX128 -> 2208885 | AY53: =Repdd!AY128 -> 2388435 | AZ53: =Repdd!AZ128 -> 2567985 | BA53: =Repdd!BA128 -> 2747535 | BB53: =Repdd!BB128 -> 2916585 | BC53: =Repdd!BC128 -> 3054135 | BD53: =Repdd!BD128 -> 3158085 | BE53: =Repdd!BE128 -> 3227122.5 | BF53: =Repdd!BF128 -> 3265710 | BG53: =Repdd!BG128 -> 3286342.5 | BH53: =Repdd!BH128 -> 3296475 | BI53: =Repdd!BI128 -> 3301147.5 | BJ53: =Repdd!BJ128 -> 3302932.5 | BK53: =Repdd!BK128 -> 3303457.5 | BL53: =Repdd!BL128 -> 3303667.5 | BM53: =Repdd!BM128 -> 3303720 | BN53: =Repdd!BN128 -> 3303720 | BO53: =Repdd!BO128 -> 3303720 | BP53: =Repdd!BP128 -> 3303720 | BQ53: =Repdd!BQ128 -> 3303720 | BR53: =Repdd!BR128 -> 3303720 | BS53: =Repdd!BS128 -> 3303720 | BT53: =Repdd!BT128 -> 3303720 | BU53: =Repdd!BU128 -> 3303720 | BV53: =Repdd!BV128 -> 0 | BW53: =Repdd!BW128 -> 0 | BX53: =Repdd!BX128 -> 0 | BY53: =Repdd!BY128 -> 0 | BZ53: =Repdd!BZ128 -> 0 | CA53: =Repdd!CA128 -> 0 | CB53: =Repdd!CB128 -> 0 | CC53: =Repdd!CC128 -> 0 | CD53: =Repdd!CD128 -> 0 | CE53: =Repdd!CE128 -> 0 | CF53: =Repdd!CF128 -> 0 | CG53: =Repdd!CG128 -> 0 | CH53: =Repdd!CH128 -> 0 | CI53: =Repdd!CI128 -> 0 | CJ53: =Repdd!CJ128 -> 0 | CK53: =Repdd!CK128 -> 0 | CL53: =Repdd!CL128 -> 0 | CM53: =Repdd!CM128 -> 0 | CN53: =Repdd!CN128 -> 0 | CO53: =Repdd!CO128 -> 0 | CP53: =Repdd!CP128 -> 0 | CQ53: =Repdd!CQ128 -> 0 | CR53: =Repdd!CR128 -> 0 | CS53: =Repdd!CS128 -> 0 | CT53: =Repdd!CT128 -> 0
A54: =ROW() -> 54 | F54: =$F$52 -> Вн.пр-во | G54: =BP!$F$22 -> Сырье | M54: =Lists!$R$8 -> руб. | W54: =SUM(INDIRECT(ADDRESS(ROW(),SUMIFS($1:$1,$5:$5,1))):INDIRECT(ADDRESS(ROW(),SUMIFS($1:$1,$5:$5,MAX($5:$5))))) -> 10079486.4 | Z54: =Repdd!Z129 -> 0 | AA54: =Repdd!AA129 -> 0 | AB54: =Repdd!AB129 -> 0 | AC54: =Repdd!AC129 -> 0 | AD54: =Repdd!AD129 -> 0 | AE54: =Repdd!AE129 -> 480 | AF54: =Repdd!AF129 -> 1920 | AG54: =Repdd!AG129 -> 3456 | AH54: =Repdd!AH129 -> 5052 | AI54: =Repdd!AI129 -> 6444 | AJ54: =Repdd!AJ129 -> 8464.8 | AK54: =Repdd!AK129 -> 13744.8 | AL54: =Repdd!AL129 -> 22634.4 | AM54: =Repdd!AM129 -> 35396.4 | AN54: =Repdd!AN129 -> 51564 | AO54: =Repdd!AO129 -> 69740.4 | AP54: =Repdd!AP129 -> 89109.6 | AQ54: =Repdd!AQ129 -> 109098 | AR54: =Repdd!AR129 -> 129414 | AS54: =Repdd!AS129 -> 149874 | AT54: =Repdd!AT129 -> 170370 | AU54: =Repdd!AU129 -> 190884 | AV54: =Repdd!AV129 -> 211404 | AW54: =Repdd!AW129 -> 231924 | AX54: =Repdd!AX129 -> 252444 | AY54: =Repdd!AY129 -> 272964 | AZ54: =Repdd!AZ129 -> 293484 | BA54: =Repdd!BA129 -> 314004 | BB54: =Repdd!BB129 -> 333324 | BC54: =Repdd!BC129 -> 349044 | BD54: =Repdd!BD129 -> 360924 | BE54: =Repdd!BE129 -> 368814 | BF54: =Repdd!BF129 -> 373224 | BG54: =Repdd!BG129 -> 375582 | BH54: =Repdd!BH129 -> 376740 | BI54: =Repdd!BI129 -> 377274 | BJ54: =Repdd!BJ129 -> 377478 | BK54: =Repdd!BK129 -> 377538 | BL54: =Repdd!BL129 -> 377562 | BM54: =Repdd!BM129 -> 377568 | BN54: =Repdd!BN129 -> 377568 | BO54: =Repdd!BO129 -> 377568 | BP54: =Repdd!BP129 -> 377568 | BQ54: =Repdd!BQ129 -> 377568 | BR54: =Repdd!BR129 -> 377568 | BS54: =Repdd!BS129 -> 377568 | BT54: =Repdd!BT129 -> 377568 | BU54: =Repdd!BU129 -> 377568 | BV54: =Repdd!BV129 -> 0 | BW54: =Repdd!BW129 -> 0 | BX54: =Repdd!BX129 -> 0 | BY54: =Repdd!BY129 -> 0 | BZ54: =Repdd!BZ129 -> 0 | CA54: =Repdd!CA129 -> 0 | CB54: =Repdd!CB129 -> 0 | CC54: =Repdd!CC129 -> 0 | CD54: =Repdd!CD129 -> 0 | CE54: =Repdd!CE129 -> 0 | CF54: =Repdd!CF129 -> 0 | CG54: =Repdd!CG129 -> 0 | CH54: =Repdd!CH129 -> 0 | CI54: =Repdd!CI129 -> 0 | CJ54: =Repdd!CJ129 -> 0 | CK54: =Repdd!CK129 -> 0 | CL54: =Repdd!CL129 -> 0 | CM54: =Repdd!CM129 -> 0 | CN54: =Repdd!CN129 -> 0 | CO54: =Repdd!CO129 -> 0 | CP54: =Repdd!CP129 -> 0 | CQ54: =Repdd!CQ129 -> 0 | CR54: =Repdd!CR129 -> 0 | CS54: =Repdd!CS129 -> 0 | CT54: =Repdd!CT129 -> 0
A55: =ROW() -> 55 | F55: Вн.пр-во | G55: =BP!$F$24 -> Вн.пр-во | M55: =Lists!$R$8 -> руб. | W55: =SUM(INDIRECT(ADDRESS(ROW(),SUMIFS($1:$1,$5:$5,1))):INDIRECT(ADDRESS(ROW(),SUMIFS($1:$1,$5:$5,MAX($5:$5))))) -> 247739520 | Z55: =Repdd!Z130 -> 0 | AA55: =Repdd!AA130 -> 0 | AB55: =Repdd!AB130 -> 0 | AC55: =Repdd!AC130 -> 0 | AD55: =Repdd!AD130 -> 0 | AE55: =Repdd!AE130 -> 6600 | AF55: =Repdd!AF130 -> 31800 | AG55: =Repdd!AG130 -> 69120 | AH55: =Repdd!AH130 -> 108345 | AI55: =Repdd!AI130 -> 145440 | AJ55: =Repdd!AJ130 -> 188886 | AK55: =Repdd!AK130 -> 284220 | AL55: =Repdd!AL130 -> 465852 | AM55: =Repdd!AM130 -> 741337.5 | AN55: =Repdd!AN130 -> 1107214.5 | AO55: =Repdd!AO130 -> 1539025.5 | AP55: =Repdd!AP130 -> 2009836.5 | AQ55: =Repdd!AQ130 -> 2502580.5 | AR55: =Repdd!AR130 -> 3006795 | AS55: =Repdd!AS130 -> 3516675 | AT55: =Repdd!AT130 -> 4028670 | AU55: =Repdd!AU130 -> 4541317.5 | AV55: =Repdd!AV130 -> 5054250 | AW55: =Repdd!AW130 -> 5567250 | AX55: =Repdd!AX130 -> 6080250 | AY55: =Repdd!AY130 -> 6593250 | AZ55: =Repdd!AZ130 -> 7106250 | BA55: =Repdd!BA130 -> 7619250 | BB55: =Repdd!BB130 -> 8115750 | BC55: =Repdd!BC130 -> 8549250 | BD55: =Repdd!BD130 -> 8889450 | BE55: =Repdd!BE130 -> 9131587.5 | BF55: =Repdd!BF130 -> 9280987.5 | BG55: =Repdd!BG130 -> 9363022.5 | BH55: =Repdd!BH130 -> 9405472.5 | BI55: =Repdd!BI130 -> 9425842.5 | BJ55: =Repdd!BJ130 -> 9434655 | BK55: =Repdd!BK130 -> 9437775 | BL55: =Repdd!BL130 -> 9438780 | BM55: =Repdd!BM130 -> 9439132.5 | BN55: =Repdd!BN130 -> 9439200 | BO55: =Repdd!BO130 -> 9439200 | BP55: =Repdd!BP130 -> 9439200 | BQ55: =Repdd!BQ130 -> 9439200 | BR55: =Repdd!BR130 -> 9439200 | BS55: =Repdd!BS130 -> 9439200 | BT55: =Repdd!BT130 -> 9439200 | BU55: =Repdd!BU130 -> 9439200 | BV55: =Repdd!BV130 -> 0 | BW55: =Repdd!BW130 -> 0 | BX55: =Repdd!BX130 -> 0 | BY55: =Repdd!BY130 -> 0 | BZ55: =Repdd!BZ130 -> 0 | CA55: =Repdd!CA130 -> 0 | CB55: =Repdd!CB130 -> 0 | CC55: =Repdd!CC130 -> 0 | CD55: =Repdd!CD130 -> 0 | CE55: =Repdd!CE130 -> 0 | CF55: =Repdd!CF130 -> 0 | CG55: =Repdd!CG130 -> 0 | CH55: =Repdd!CH130 -> 0 | CI55: =Repdd!CI130 -> 0 | CJ55: =Repdd!CJ130 -> 0 | CK55: =Repdd!CK130 -> 0 | CL55: =Repdd!CL130 -> 0 | CM55: =Repdd!CM130 -> 0 | CN55: =Repdd!CN130 -> 0 | CO55: =Repdd!CO130 -> 0 | CP55: =Repdd!CP130 -> 0 | CQ55: =Repdd!CQ130 -> 0 | CR55: =Repdd!CR130 -> 0 | CS55: =Repdd!CS130 -> 0 | CT55: =Repdd!CT130 -> 0
A56: =ROW() -> 56 | F56: Вн.пр-во | G56: =BP!$F$26 -> ФОТ првПерс | M56: =Lists!$R$8 -> руб. | W56: =SUM(INDIRECT(ADDRESS(ROW(),SUMIFS($1:$1,$5:$5,1))):INDIRECT(ADDRESS(ROW(),SUMIFS($1:$1,$5:$5,MAX($5:$5))))) -> 12599358 | Z56: =Repdd!Z131 -> 0 | AA56: =Repdd!AA131 -> 0 | AB56: =Repdd!AB131 -> 0 | AC56: =Repdd!AC131 -> 0 | AD56: =Repdd!AD131 -> 0 | AE56: =Repdd!AE131 -> 600 | AF56: =Repdd!AF131 -> 2400 | AG56: =Repdd!AG131 -> 4320 | AH56: =Repdd!AH131 -> 6315 | AI56: =Repdd!AI131 -> 8055 | AJ56: =Repdd!AJ131 -> 10581 | AK56: =Repdd!AK131 -> 17181 | AL56: =Repdd!AL131 -> 28293 | AM56: =Repdd!AM131 -> 44245.5 | AN56: =Repdd!AN131 -> 64455 | AO56: =Repdd!AO131 -> 87175.5 | AP56: =Repdd!AP131 -> 111387 | AQ56: =Repdd!AQ131 -> 136372.5 | AR56: =Repdd!AR131 -> 161767.5 | AS56: =Repdd!AS131 -> 187342.5 | AT56: =Repdd!AT131 -> 212962.5 | AU56: =Repdd!AU131 -> 238605 | AV56: =Repdd!AV131 -> 264255 | AW56: =Repdd!AW131 -> 289905 | AX56: =Repdd!AX131 -> 315555 | AY56: =Repdd!AY131 -> 341205 | AZ56: =Repdd!AZ131 -> 366855 | BA56: =Repdd!BA131 -> 392505 | BB56: =Repdd!BB131 -> 416655 | BC56: =Repdd!BC131 -> 436305 | BD56: =Repdd!BD131 -> 451155 | BE56: =Repdd!BE131 -> 461017.5 | BF56: =Repdd!BF131 -> 466530 | BG56: =Repdd!BG131 -> 469477.5 | BH56: =Repdd!BH131 -> 470925 | BI56: =Repdd!BI131 -> 471592.5 | BJ56: =Repdd!BJ131 -> 471847.5 | BK56: =Repdd!BK131 -> 471922.5 | BL56: =Repdd!BL131 -> 471952.5 | BM56: =Repdd!BM131 -> 471960 | BN56: =Repdd!BN131 -> 471960 | BO56: =Repdd!BO131 -> 471960 | BP56: =Repdd!BP131 -> 471960 | BQ56: =Repdd!BQ131 -> 471960 | BR56: =Repdd!BR131 -> 471960 | BS56: =Repdd!BS131 -> 471960 | BT56: =Repdd!BT131 -> 471960 | BU56: =Repdd!BU131 -> 471960 | BV56: =Repdd!BV131 -> 0 | BW56: =Repdd!BW131 -> 0 | BX56: =Repdd!BX131 -> 0 | BY56: =Repdd!BY131 -> 0 | BZ56: =Repdd!BZ131 -> 0 | CA56: =Repdd!CA131 -> 0 | CB56: =Repdd!CB131 -> 0 | CC56: =Repdd!CC131 -> 0 | CD56: =Repdd!CD131 -> 0 | CE56: =Repdd!CE131 -> 0 | CF56: =Repdd!CF131 -> 0 | CG56: =Repdd!CG131 -> 0 | CH56: =Repdd!CH131 -> 0 | CI56: =Repdd!CI131 -> 0 | CJ56: =Repdd!CJ131 -> 0 | CK56: =Repdd!CK131 -> 0 | CL56: =Repdd!CL131 -> 0 | CM56: =Repdd!CM131 -> 0 | CN56: =Repdd!CN131 -> 0 | CO56: =Repdd!CO131 -> 0 | CP56: =Repdd!CP131 -> 0 | CQ56: =Repdd!CQ131 -> 0 | CR56: =Repdd!CR131 -> 0 | CS56: =Repdd!CS131 -> 0 | CT56: =Repdd!CT131 -> 0
A57: =ROW() -> 57 | F57: Вн.пр-во | G57: =BP!$F$28 -> Соцсборы | M57: =Lists!$R$8 -> руб. | W57: =SUM(INDIRECT(ADDRESS(ROW(),SUMIFS($1:$1,$5:$5,1))):INDIRECT(ADDRESS(ROW(),SUMIFS($1:$1,$5:$5,MAX($5:$5))))) -> 3779807.4 | Z57: =Repdd!Z132 -> 0 | AA57: =Repdd!AA132 -> 0 | AB57: =Repdd!AB132 -> 0 | AC57: =Repdd!AC132 -> 0 | AD57: =Repdd!AD132 -> 0 | AE57: =Repdd!AE132 -> 180 | AF57: =Repdd!AF132 -> 720 | AG57: =Repdd!AG132 -> 1296 | AH57: =Repdd!AH132 -> 1894.5 | AI57: =Repdd!AI132 -> 2416.5 | AJ57: =Repdd!AJ132 -> 3174.3 | AK57: =Repdd!AK132 -> 5154.3 | AL57: =Repdd!AL132 -> 8487.9 | AM57: =Repdd!AM132 -> 13273.65 | AN57: =Repdd!AN132 -> 19336.5 | AO57: =Repdd!AO132 -> 26152.65 | AP57: =Repdd!AP132 -> 33416.1 | AQ57: =Repdd!AQ132 -> 40911.75 | AR57: =Repdd!AR132 -> 48530.25 | AS57: =Repdd!AS132 -> 56202.75 | AT57: =Repdd!AT132 -> 63888.75 | AU57: =Repdd!AU132 -> 71581.5 | AV57: =Repdd!AV132 -> 79276.5 | AW57: =Repdd!AW132 -> 86971.5 | AX57: =Repdd!AX132 -> 94666.5 | AY57: =Repdd!AY132 -> 102361.5 | AZ57: =Repdd!AZ132 -> 110056.5 | BA57: =Repdd!BA132 -> 117751.5 | BB57: =Repdd!BB132 -> 124996.5 | BC57: =Repdd!BC132 -> 130891.5 | BD57: =Repdd!BD132 -> 135346.5 | BE57: =Repdd!BE132 -> 138305.25 | BF57: =Repdd!BF132 -> 139959 | BG57: =Repdd!BG132 -> 140843.25 | BH57: =Repdd!BH132 -> 141277.5 | BI57: =Repdd!BI132 -> 141477.75 | BJ57: =Repdd!BJ132 -> 141554.25 | BK57: =Repdd!BK132 -> 141576.75 | BL57: =Repdd!BL132 -> 141585.75 | BM57: =Repdd!BM132 -> 141588 | BN57: =Repdd!BN132 -> 141588 | BO57: =Repdd!BO132 -> 141588 | BP57: =Repdd!BP132 -> 141588 | BQ57: =Repdd!BQ132 -> 141588 | BR57: =Repdd!BR132 -> 141588 | BS57: =Repdd!BS132 -> 141588 | BT57: =Repdd!BT132 -> 141588 | BU57: =Repdd!BU132 -> 141588 | BV57: =Repdd!BV132 -> 0 | BW57: =Repdd!BW132 -> 0 | BX57: =Repdd!BX132 -> 0 | BY57: =Repdd!BY132 -> 0 | BZ57: =Repdd!BZ132 -> 0 | CA57: =Repdd!CA132 -> 0 | CB57: =Repdd!CB132 -> 0 | CC57: =Repdd!CC132 -> 0 | CD57: =Repdd!CD132 -> 0 | CE57: =Repdd!CE132 -> 0 | CF57: =Repdd!CF132 -> 0 | CG57: =Repdd!CG132 -> 0 | CH57: =Repdd!CH132 -> 0 | CI57: =Repdd!CI132 -> 0 | CJ57: =Repdd!CJ132 -> 0 | CK57: =Repdd!CK132 -> 0 | CL57: =Repdd!CL132 -> 0 | CM57: =Repdd!CM132 -> 0 | CN57: =Repdd!CN132 -> 0 | CO57: =Repdd!CO132 -> 0 | CP57: =Repdd!CP132 -> 0 | CQ57: =Repdd!CQ132 -> 0 | CR57: =Repdd!CR132 -> 0 | CS57: =Repdd!CS132 -> 0 | CT57: =Repdd!CT132 -> 0
A58: =ROW() -> 58 | F58: Вн.пр-во | G58: =BP!$F$29 -> ЭлЭн | M58: =Lists!$R$8 -> руб. | W58: =SUM(INDIRECT(ADDRESS(ROW(),SUMIFS($1:$1,$5:$5,1))):INDIRECT(ADDRESS(ROW(),SUMIFS($1:$1,$5:$5,MAX($5:$5))))) -> 2704662.184 | Z58: =Repdd!Z133 -> 0 | AA58: =Repdd!AA133 -> 0 | AB58: =Repdd!AB133 -> 0 | AC58: =Repdd!AC133 -> 0 | AD58: =Repdd!AD133 -> 0 | AE58: =Repdd!AE133 -> 128.8 | AF58: =Repdd!AF133 -> 515.2 | AG58: =Repdd!AG133 -> 927.36 | AH58: =Repdd!AH133 -> 1355.62 | AI58: =Repdd!AI133 -> 1729.14 | AJ58: =Repdd!AJ133 -> 2271.388 | AK58: =Repdd!AK133 -> 3688.188 | AL58: =Repdd!AL133 -> 6073.564 | AM58: =Repdd!AM133 -> 9498.034 | AN58: =Repdd!AN133 -> 13836.34 | AO58: =Repdd!AO133 -> 18713.674 | AP58: =Repdd!AP133 -> 23911.076 | AQ58: =Repdd!AQ133 -> 29274.63 | AR58: =Repdd!AR133 -> 34726.09 | AS58: =Repdd!AS133 -> 40216.19 | AT58: =Repdd!AT133 -> 45715.95 | AU58: =Repdd!AU133 -> 51220.54 | AV58: =Repdd!AV133 -> 56726.74 | AW58: =Repdd!AW133 -> 62232.94 | AX58: =Repdd!AX133 -> 67739.14 | AY58: =Repdd!AY133 -> 73245.34 | AZ58: =Repdd!AZ133 -> 78751.54 | BA58: =Repdd!BA133 -> 84257.74 | BB58: =Repdd!BB133 -> 89441.94 | BC58: =Repdd!BC133 -> 93660.14 | BD58: =Repdd!BD133 -> 96847.94 | BE58: =Repdd!BE133 -> 98965.09 | BF58: =Repdd!BF133 -> 100148.44 | BG58: =Repdd!BG133 -> 100781.17 | BH58: =Repdd!BH133 -> 101091.9 | BI58: =Repdd!BI133 -> 101235.19 | BJ58: =Repdd!BJ133 -> 101289.93 | BK58: =Repdd!BK133 -> 101306.03 | BL58: =Repdd!BL133 -> 101312.47 | BM58: =Repdd!BM133 -> 101314.08 | BN58: =Repdd!BN133 -> 101314.08 | BO58: =Repdd!BO133 -> 101314.08 | BP58: =Repdd!BP133 -> 101314.08 | BQ58: =Repdd!BQ133 -> 101314.08 | BR58: =Repdd!BR133 -> 101314.08 | BS58: =Repdd!BS133 -> 101314.08 | BT58: =Repdd!BT133 -> 101314.08 | BU58: =Repdd!BU133 -> 101314.08 | BV58: =Repdd!BV133 -> 0 | BW58: =Repdd!BW133 -> 0 | BX58: =Repdd!BX133 -> 0 | BY58: =Repdd!BY133 -> 0 | BZ58: =Repdd!BZ133 -> 0 | CA58: =Repdd!CA133 -> 0 | CB58: =Repdd!CB133 -> 0 | CC58: =Repdd!CC133 -> 0 | CD58: =Repdd!CD133 -> 0 | CE58: =Repdd!CE133 -> 0 | CF58: =Repdd!CF133 -> 0 | CG58: =Repdd!CG133 -> 0 | CH58: =Repdd!CH133 -> 0 | CI58: =Repdd!CI133 -> 0 | CJ58: =Repdd!CJ133 -> 0 | CK58: =Repdd!CK133 -> 0 | CL58: =Repdd!CL133 -> 0 | CM58: =Repdd!CM133 -> 0 | CN58: =Repdd!CN133 -> 0 | CO58: =Repdd!CO133 -> 0 | CP58: =Repdd!CP133 -> 0 | CQ58: =Repdd!CQ133 -> 0 | CR58: =Repdd!CR133 -> 0 | CS58: =Repdd!CS133 -> 0 | CT58: =Repdd!CT133 -> 0
A59: =ROW() -> 59 | E59: =Lists!$N$9 -> пустая строка | V59: =W52-SUMIFS(Potoki!$W:$W,Potoki!$F:$F,$F53,Potoki!$G:$G,"") -> 0
A60: =ROW() -> 60 | F60: =BP!$F$139 -> Поступление в пр-во ГП | M60: =Lists!$R$8 -> руб. | V60: =Repdd!V135 -> 0 | W60: =SUM(INDIRECT(ADDRESS(ROW(),SUMIFS($1:$1,$5:$5,1))):INDIRECT(ADDRESS(ROW(),SUMIFS($1:$1,$5:$5,MAX($5:$5))))) -> 407435261 | Z60: =Repdd!Z135 -> 0 | AA60: =Repdd!AA135 -> 0 | AB60: =Repdd!AB135 -> 0 | AC60: =Repdd!AC135 -> 0 | AD60: =Repdd!AD135 -> 0 | AE60: =Repdd!AE135 -> 0 | AF60: =Repdd!AF135 -> 0 | AG60: =Repdd!AG135 -> 20974 | AH60: =Repdd!AH135 -> 83896 | AI60: =Repdd!AI135 -> 151012.8 | AJ60: =Repdd!AJ135 -> 220751.35 | AK60: =Repdd!AK135 -> 281575.95 | AL60: =Repdd!AL135 -> 369876.49 | AM60: =Repdd!AM135 -> 600590.49 | AN60: =Repdd!AN135 -> 989028.97 | AO60: =Repdd!AO135 -> 1546675.195 | AP60: =Repdd!AP135 -> 2253131.95 | AQ60: =Repdd!AQ135 -> 3047364.895 | AR60: =Repdd!AR135 -> 3893718.23 | AS60: =Repdd!AS135 -> 4767128.025 | AT60: =Repdd!AT135 -> 5654852.575 | AU60: =Repdd!AU135 -> 6548869.325 | AV60: =Repdd!AV135 -> 7444459.125 | AW60: =Repdd!AW135 -> 8340835.45 | AX60: =Repdd!AX135 -> 9237473.95 | AY60: =Repdd!AY135 -> 10134112.45 | AZ60: =Repdd!AZ135 -> 11030750.95 | BA60: =Repdd!BA135 -> 11927389.45 | BB60: =Repdd!BB135 -> 12824027.95 | BC60: =Repdd!BC135 -> 13720666.45 | BD60: =Repdd!BD135 -> 14564869.95 | BE60: =Repdd!BE135 -> 15251768.45 | BF60: =Repdd!BF135 -> 15770874.95 | BG60: =Repdd!BG135 -> 16115635.07 | BH60: =Repdd!BH135 -> 16308333.7 | BI60: =Repdd!BI135 -> 16411368.47 | BJ60: =Repdd!BJ135 -> 16461968.25 | BK60: =Repdd!BK135 -> 16485301.82 | BL60: =Repdd!BL135 -> 16494215.78 | BM60: =Repdd!BM135 -> 16496837.53 | BN60: =Repdd!BN135 -> 16497886.22 | BO60: =Repdd!BO135 -> 16498148.4 | BP60: =Repdd!BP135 -> 16498148.4 | BQ60: =Repdd!BQ135 -> 16498148.4 | BR60: =Repdd!BR135 -> 16498148.4 | BS60: =Repdd!BS135 -> 16498148.4 | BT60: =Repdd!BT135 -> 16498148.4 | BU60: =Repdd!BU135 -> 16498148.4 | BV60: =Repdd!BV135 -> 0 | BW60: =Repdd!BW135 -> 0 | BX60: =Repdd!BX135 -> 0 | BY60: =Repdd!BY135 -> 0 | BZ60: =Repdd!BZ135 -> 0 | CA60: =Repdd!CA135 -> 0 | CB60: =Repdd!CB135 -> 0 | CC60: =Repdd!CC135 -> 0 | CD60: =Repdd!CD135 -> 0 | CE60: =Repdd!CE135 -> 0 | CF60: =Repdd!CF135 -> 0 | CG60: =Repdd!CG135 -> 0 | CH60: =Repdd!CH135 -> 0 | CI60: =Repdd!CI135 -> 0 | CJ60: =Repdd!CJ135 -> 0 | CK60: =Repdd!CK135 -> 0 | CL60: =Repdd!CL135 -> 0 | CM60: =Repdd!CM135 -> 0 | CN60: =Repdd!CN135 -> 0 | CO60: =Repdd!CO135 -> 0 | CP60: =Repdd!CP135 -> 0 | CQ60: =Repdd!CQ135 -> 0 | CR60: =Repdd!CR135 -> 0 | CS60: =Repdd!CS135 -> 0 | CT60: =Repdd!CT135 -> 0
A61: =ROW() -> 61 | F61: =BP!$F$163 -> Поступление ГП на склад ГП | M61: =Lists!$R$8 -> руб. | V61: =Repdd!V146 -> 0 | W61: =SUM(INDIRECT(ADDRESS(ROW(),SUMIFS($1:$1,$5:$5,1))):INDIRECT(ADDRESS(ROW(),SUMIFS($1:$1,$5:$5,MAX($5:$5))))) -> 390937112.6 | Z61: =Repdd!Z146 -> 0 | AA61: =Repdd!AA146 -> 0 | AB61: =Repdd!AB146 -> 0 | AC61: =Repdd!AC146 -> 0 | AD61: =Repdd!AD146 -> 0 | AE61: =Repdd!AE146 -> 0 | AF61: =Repdd!AF146 -> 0 | AG61: =Repdd!AG146 -> 0 | AH61: =Repdd!AH146 -> 20974 | AI61: =Repdd!AI146 -> 83896 | AJ61: =Repdd!AJ146 -> 151012.8 | AK61: =Repdd!AK146 -> 220751.35 | AL61: =Repdd!AL146 -> 281575.95 | AM61: =Repdd!AM146 -> 369876.49 | AN61: =Repdd!AN146 -> 600590.49 | AO61: =Repdd!AO146 -> 989028.97 | AP61: =Repdd!AP146 -> 1546675.195 | AQ61: =Repdd!AQ146 -> 2253131.95 | AR61: =Repdd!AR146 -> 3047364.895 | AS61: =Repdd!AS146 -> 3893718.23 | AT61: =Repdd!AT146 -> 4767128.025 | AU61: =Repdd!AU146 -> 5654852.575 | AV61: =Repdd!AV146 -> 6548869.325 | AW61: =Repdd!AW146 -> 7444459.125 | AX61: =Repdd!AX146 -> 8340835.45 | AY61: =Repdd!AY146 -> 9237473.95 | AZ61: =Repdd!AZ146 -> 10134112.45 | BA61: =Repdd!BA146 -> 11030750.95 | BB61: =Repdd!BB146 -> 11927389.45 | BC61: =Repdd!BC146 -> 12824027.95 | BD61: =Repdd!BD146 -> 13720666.45 | BE61: =Repdd!BE146 -> 14564869.95 | BF61: =Repdd!BF146 -> 15251768.45 | BG61: =Repdd!BG146 -> 15770874.95 | BH61: =Repdd!BH146 -> 16115635.07 | BI61: =Repdd!BI146 -> 16308333.7 | BJ61: =Repdd!BJ146 -> 16411368.47 | BK61: =Repdd!BK146 -> 16461968.25 | BL61: =Repdd!BL146 -> 16485301.82 | BM61: =Repdd!BM146 -> 16494215.78 | BN61: =Repdd!BN146 -> 16496837.53 | BO61: =Repdd!BO146 -> 16497886.22 | BP61: =Repdd!BP146 -> 16498148.4 | BQ61: =Repdd!BQ146 -> 16498148.4 | BR61: =Repdd!BR146 -> 16498148.4 | BS61: =Repdd!BS146 -> 16498148.4 | BT61: =Repdd!BT146 -> 16498148.4 | BU61: =Repdd!BU146 -> 16498148.4 | BV61: =Repdd!BV146 -> 0 | BW61: =Repdd!BW146 -> 0 | BX61: =Repdd!BX146 -> 0 | BY61: =Repdd!BY146 -> 0 | BZ61: =Repdd!BZ146 -> 0 | CA61: =Repdd!CA146 -> 0 | CB61: =Repdd!CB146 -> 0 | CC61: =Repdd!CC146 -> 0 | CD61: =Repdd!CD146 -> 0 | CE61: =Repdd!CE146 -> 0 | CF61: =Repdd!CF146 -> 0 | CG61: =Repdd!CG146 -> 0 | CH61: =Repdd!CH146 -> 0 | CI61: =Repdd!CI146 -> 0 | CJ61: =Repdd!CJ146 -> 0 | CK61: =Repdd!CK146 -> 0 | CL61: =Repdd!CL146 -> 0 | CM61: =Repdd!CM146 -> 0 | CN61: =Repdd!CN146 -> 0 | CO61: =Repdd!CO146 -> 0 | CP61: =Repdd!CP146 -> 0 | CQ61: =Repdd!CQ146 -> 0 | CR61: =Repdd!CR146 -> 0 | CS61: =Repdd!CS146 -> 0 | CT61: =Repdd!CT146 -> 0
A62: =ROW() -> 62
A63: =ROW() -> 63 | F63: Движения по складам и производствам (операционная деятельность) без ндс
A64: =ROW() -> 64 | C64: =Lists!$N$11 -> 24 | F64: =BP!$F$67 -> Закупка сырья и материалов | M64: =Lists!$R$8 -> руб. | V64: =W64-SUM(W65:W69) -> 0 | W64: =SUM(INDIRECT(ADDRESS(ROW(),SUMIFS($1:$1,$5:$5,1))):INDIRECT(ADDRESS(ROW(),SUMIFS($1:$1,$5:$5,MAX($5:$5))))) -> 127245261 | Z64: =Repdd!Z159 -> 0 | AA64: =Repdd!AA159 -> 0 | AB64: =Repdd!AB159 -> 0 | AC64: =Repdd!AC159 -> 3900 | AD64: =Repdd!AD159 -> 17400 | AE64: =Repdd!AE159 -> 35280 | AF64: =Repdd!AF159 -> 54007.5 | AG64: =Repdd!AG159 -> 71302.5 | AH64: =Repdd!AH159 -> 92941.5 | AI64: =Repdd!AI159 -> 143419.5 | AJ64: =Repdd!AJ159 -> 235447.5 | AK64: =Repdd!AK159 -> 372474.75 | AL64: =Repdd!AL159 -> 551694 | AM64: =Repdd!AM159 -> 760005.75 | AN64: =Repdd!AN159 -> 985542 | AO64: =Repdd!AO159 -> 1220582.25 | AP64: =Repdd!AP159 -> 1460606.25 | AQ64: =Repdd!AQ159 -> 1703028.75 | AR64: =Repdd!AR159 -> 1946283.75 | AS64: =Repdd!AS159 -> 2189820 | AT64: =Repdd!AT159 -> 2433472.5 | AU64: =Repdd!AU159 -> 2677147.5 | AV64: =Repdd!AV159 -> 2920822.5 | AW64: =Repdd!AW159 -> 3164497.5 | AX64: =Repdd!AX159 -> 3408172.5 | AY64: =Repdd!AY159 -> 3651847.5 | AZ64: =Repdd!AZ159 -> 3885772.5 | BA64: =Repdd!BA159 -> 4085947.5 | BB64: =Repdd!BB159 -> 4241422.5 | BC64: =Repdd!BC159 -> 4350078.75 | BD64: =Repdd!BD159 -> 4415497.5 | BE64: =Repdd!BE159 -> 4451193.75 | BF64: =Repdd!BF159 -> 4469445 | BG64: =Repdd!BG159 -> 4478126.25 | BH64: =Repdd!BH159 -> 4481786.25 | BI64: =Repdd!BI159 -> 4483038.75 | BJ64: =Repdd!BJ159 -> 4483458.75 | BK64: =Repdd!BK159 -> 4483597.5 | BL64: =Repdd!BL159 -> 4483620 | BM64: =Repdd!BM159 -> 4483620 | BN64: =Repdd!BN159 -> 4483620 | BO64: =Repdd!BO159 -> 4483620 | BP64: =Repdd!BP159 -> 4483620 | BQ64: =Repdd!BQ159 -> 4483620 | BR64: =Repdd!BR159 -> 4483620 | BS64: =Repdd!BS159 -> 4483620 | BT64: =Repdd!BT159 -> 4483620 | BU64: =Repdd!BU159 -> 4483620 | BV64: =Repdd!BV159 -> 0 | BW64: =Repdd!BW159 -> 0 | BX64: =Repdd!BX159 -> 0 | BY64: =Repdd!BY159 -> 0 | BZ64: =Repdd!BZ159 -> 0 | CA64: =Repdd!CA159 -> 0 | CB64: =Repdd!CB159 -> 0 | CC64: =Repdd!CC159 -> 0 | CD64: =Repdd!CD159 -> 0 | CE64: =Repdd!CE159 -> 0 | CF64: =Repdd!CF159 -> 0 | CG64: =Repdd!CG159 -> 0 | CH64: =Repdd!CH159 -> 0 | CI64: =Repdd!CI159 -> 0 | CJ64: =Repdd!CJ159 -> 0 | CK64: =Repdd!CK159 -> 0 | CL64: =Repdd!CL159 -> 0 | CM64: =Repdd!CM159 -> 0 | CN64: =Repdd!CN159 -> 0 | CO64: =Repdd!CO159 -> 0 | CP64: =Repdd!CP159 -> 0 | CQ64: =Repdd!CQ159 -> 0 | CR64: =Repdd!CR159 -> 0 | CS64: =Repdd!CS159 -> 0 | CT64: =Repdd!CT159 -> 0
A65: =ROW() -> 65 | C65: =Lists!$N$13 -> v | F65: =F64 -> Закупка сырья и материалов | G65: =BP!$F$21 -> Основа | M65: =Lists!$R$8 -> руб. | S65: =Repdd!S160 -> 0.2 | W65: =SUM(INDIRECT(ADDRESS(ROW(),SUMIFS($1:$1,$5:$5,1))):INDIRECT(ADDRESS(ROW(),SUMIFS($1:$1,$5:$5,MAX($5:$5))))) -> 79002455 | Z65: =Repdd!Z160 -> 0 | AA65: =Repdd!AA160 -> 0 | AB65: =Repdd!AB160 -> 0 | AC65: =Repdd!AC160 -> 3500 | AD65: =Repdd!AD160 -> 14000 | AE65: =Repdd!AE160 -> 25200 | AF65: =Repdd!AF160 -> 36837.5 | AG65: =Repdd!AG160 -> 46987.5 | AH65: =Repdd!AH160 -> 61722.5 | AI65: =Repdd!AI160 -> 100222.5 | AJ65: =Repdd!AJ160 -> 165042.5 | AK65: =Repdd!AK160 -> 258098.75 | AL65: =Repdd!AL160 -> 375987.5 | AM65: =Repdd!AM160 -> 508523.75 | AN65: =Repdd!AN160 -> 649757.5 | AO65: =Repdd!AO160 -> 795506.25 | AP65: =Repdd!AP160 -> 943643.75 | AQ65: =Repdd!AQ160 -> 1092831.25 | AR65: =Repdd!AR160 -> 1242281.25 | AS65: =Repdd!AS160 -> 1391862.5 | AT65: =Repdd!AT160 -> 1541487.5 | AU65: =Repdd!AU160 -> 1691112.5 | AV65: =Repdd!AV160 -> 1840737.5 | AW65: =Repdd!AW160 -> 1990362.5 | AX65: =Repdd!AX160 -> 2139987.5 | AY65: =Repdd!AY160 -> 2289612.5 | AZ65: =Repdd!AZ160 -> 2430487.5 | BA65: =Repdd!BA160 -> 2545112.5 | BB65: =Repdd!BB160 -> 2631737.5 | BC65: =Repdd!BC160 -> 2689268.75 | BD65: =Repdd!BD160 -> 2721425 | BE65: =Repdd!BE160 -> 2738618.75 | BF65: =Repdd!BF160 -> 2747062.5 | BG65: =Repdd!BG160 -> 2750956.25 | BH65: =Repdd!BH160 -> 2752443.75 | BI65: =Repdd!BI160 -> 2752881.25 | BJ65: =Repdd!BJ160 -> 2753056.25 | BK65: =Repdd!BK160 -> 2753100 | BL65: =Repdd!BL160 -> 2753100 | BM65: =Repdd!BM160 -> 2753100 | BN65: =Repdd!BN160 -> 2753100 | BO65: =Repdd!BO160 -> 2753100 | BP65: =Repdd!BP160 -> 2753100 | BQ65: =Repdd!BQ160 -> 2753100 | BR65: =Repdd!BR160 -> 2753100 | BS65: =Repdd!BS160 -> 2753100 | BT65: =Repdd!BT160 -> 2753100 | BU65: =Repdd!BU160 -> 2753100 | BV65: =Repdd!BV160 -> 0 | BW65: =Repdd!BW160 -> 0 | BX65: =Repdd!BX160 -> 0 | BY65: =Repdd!BY160 -> 0 | BZ65: =Repdd!BZ160 -> 0 | CA65: =Repdd!CA160 -> 0 | CB65: =Repdd!CB160 -> 0 | CC65: =Repdd!CC160 -> 0 | CD65: =Repdd!CD160 -> 0 | CE65: =Repdd!CE160 -> 0 | CF65: =Repdd!CF160 -> 0 | CG65: =Repdd!CG160 -> 0 | CH65: =Repdd!CH160 -> 0 | CI65: =Repdd!CI160 -> 0 | CJ65: =Repdd!CJ160 -> 0 | CK65: =Repdd!CK160 -> 0 | CL65: =Repdd!CL160 -> 0 | CM65: =Repdd!CM160 -> 0 | CN65: =Repdd!CN160 -> 0 | CO65: =Repdd!CO160 -> 0 | CP65: =Repdd!CP160 -> 0 | CQ65: =Repdd!CQ160 -> 0 | CR65: =Repdd!CR160 -> 0 | CS65: =Repdd!CS160 -> 0 | CT65: =Repdd!CT160 -> 0
A66: =ROW() -> 66 | C66: =Lists!$N$13 -> v | F66: =F64 -> Закупка сырья и материалов | G66: =BP!$F$22 -> Сырье | M66: =Lists!$R$8 -> руб. | S66: =Repdd!S161 -> 0.2 | W66: =SUM(INDIRECT(ADDRESS(ROW(),SUMIFS($1:$1,$5:$5,1))):INDIRECT(ADDRESS(ROW(),SUMIFS($1:$1,$5:$5,MAX($5:$5))))) -> 9028852 | Z66: =Repdd!Z161 -> 0 | AA66: =Repdd!AA161 -> 0 | AB66: =Repdd!AB161 -> 0 | AC66: =Repdd!AC161 -> 400 | AD66: =Repdd!AD161 -> 1600 | AE66: =Repdd!AE161 -> 2880 | AF66: =Repdd!AF161 -> 4210 | AG66: =Repdd!AG161 -> 5370 | AH66: =Repdd!AH161 -> 7054 | AI66: =Repdd!AI161 -> 11454 | AJ66: =Repdd!AJ161 -> 18862 | AK66: =Repdd!AK161 -> 29497 | AL66: =Repdd!AL161 -> 42970 | AM66: =Repdd!AM161 -> 58117 | AN66: =Repdd!AN161 -> 74258 | AO66: =Repdd!AO161 -> 90915 | AP66: =Repdd!AP161 -> 107845 | AQ66: =Repdd!AQ161 -> 124895 | AR66: =Repdd!AR161 -> 141975 | AS66: =Repdd!AS161 -> 159070 | AT66: =Repdd!AT161 -> 176170 | AU66: =Repdd!AU161 -> 193270 | AV66: =Repdd!AV161 -> 210370 | AW66: =Repdd!AW161 -> 227470 | AX66: =Repdd!AX161 -> 244570 | AY66: =Repdd!AY161 -> 261670 | AZ66: =Repdd!AZ161 -> 277770 | BA66: =Repdd!BA161 -> 290870 | BB66: =Repdd!BB161 -> 300770 | BC66: =Repdd!BC161 -> 307345 | BD66: =Repdd!BD161 -> 311020 | BE66: =Repdd!BE161 -> 312985 | BF66: =Repdd!BF161 -> 313950 | BG66: =Repdd!BG161 -> 314395 | BH66: =Repdd!BH161 -> 314565 | BI66: =Repdd!BI161 -> 314615 | BJ66: =Repdd!BJ161 -> 314635 | BK66: =Repdd!BK161 -> 314640 | BL66: =Repdd!BL161 -> 314640 | BM66: =Repdd!BM161 -> 314640 | BN66: =Repdd!BN161 -> 314640 | BO66: =Repdd!BO161 -> 314640 | BP66: =Repdd!BP161 -> 314640 | BQ66: =Repdd!BQ161 -> 314640 | BR66: =Repdd!BR161 -> 314640 | BS66: =Repdd!BS161 -> 314640 | BT66: =Repdd!BT161 -> 314640 | BU66: =Repdd!BU161 -> 314640 | BV66: =Repdd!BV161 -> 0 | BW66: =Repdd!BW161 -> 0 | BX66: =Repdd!BX161 -> 0 | BY66: =Repdd!BY161 -> 0 | BZ66: =Repdd!BZ161 -> 0 | CA66: =Repdd!CA161 -> 0 | CB66: =Repdd!CB161 -> 0 | CC66: =Repdd!CC161 -> 0 | CD66: =Repdd!CD161 -> 0 | CE66: =Repdd!CE161 -> 0 | CF66: =Repdd!CF161 -> 0 | CG66: =Repdd!CG161 -> 0 | CH66: =Repdd!CH161 -> 0 | CI66: =Repdd!CI161 -> 0 | CJ66: =Repdd!CJ161 -> 0 | CK66: =Repdd!CK161 -> 0 | CL66: =Repdd!CL161 -> 0 | CM66: =Repdd!CM161 -> 0 | CN66: =Repdd!CN161 -> 0 | CO66: =Repdd!CO161 -> 0 | CP66: =Repdd!CP161 -> 0 | CQ66: =Repdd!CQ161 -> 0 | CR66: =Repdd!CR161 -> 0 | CS66: =Repdd!CS161 -> 0 | CT66: =Repdd!CT161 -> 0
A67: =ROW() -> 67 | C67: =Lists!$N$13 -> v | F67: =F64 -> Закупка сырья и материалов | G67: =BP!$F$23 -> Материал | M67: =Lists!$R$8 -> руб. | S67: =Repdd!S162 -> 0.2 | W67: =SUM(INDIRECT(ADDRESS(ROW(),SUMIFS($1:$1,$5:$5,1))):INDIRECT(ADDRESS(ROW(),SUMIFS($1:$1,$5:$5,MAX($5:$5))))) -> 10166580.67 | Z67: =Repdd!Z162 -> 0 | AA67: =Repdd!AA162 -> 0 | AB67: =Repdd!AB162 -> 0 | AC67: =Repdd!AC162 -> 0 | AD67: =Repdd!AD162 -> 466.6666667 | AE67: =Repdd!AE162 -> 1866.666667 | AF67: =Repdd!AF162 -> 3360 | AG67: =Repdd!AG162 -> 4911.666667 | AH67: =Repdd!AH162 -> 6265 | AI67: =Repdd!AI162 -> 8229.666667 | AJ67: =Repdd!AJ162 -> 13363 | AK67: =Repdd!AK162 -> 22005.66667 | AL67: =Repdd!AL162 -> 34413.16667 | AM67: =Repdd!AM162 -> 50131.66667 | AN67: =Repdd!AN162 -> 67803.16667 | AO67: =Repdd!AO162 -> 86634.33333 | AP67: =Repdd!AP162 -> 106067.5 | AQ67: =Repdd!AQ162 -> 125819.1667 | AR67: =Repdd!AR162 -> 145710.8333 | AS67: =Repdd!AS162 -> 165637.5 | AT67: =Repdd!AT162 -> 185581.6667 | AU67: =Repdd!AU162 -> 205531.6667 | AV67: =Repdd!AV162 -> 225481.6667 | AW67: =Repdd!AW162 -> 245431.6667 | AX67: =Repdd!AX162 -> 265381.6667 | AY67: =Repdd!AY162 -> 285331.6667 | AZ67: =Repdd!AZ162 -> 305281.6667 | BA67: =Repdd!BA162 -> 324065 | BB67: =Repdd!BB162 -> 339348.3333 | BC67: =Repdd!BC162 -> 350898.3333 | BD67: =Repdd!BD162 -> 358569.1667 | BE67: =Repdd!BE162 -> 362856.6667 | BF67: =Repdd!BF162 -> 365149.1667 | BG67: =Repdd!BG162 -> 366275 | BH67: =Repdd!BH162 -> 366794.1667 | BI67: =Repdd!BI162 -> 366992.5 | BJ67: =Repdd!BJ162 -> 367050.8333 | BK67: =Repdd!BK162 -> 367074.1667 | BL67: =Repdd!BL162 -> 367080 | BM67: =Repdd!BM162 -> 367080 | BN67: =Repdd!BN162 -> 367080 | BO67: =Repdd!BO162 -> 367080 | BP67: =Repdd!BP162 -> 367080 | BQ67: =Repdd!BQ162 -> 367080 | BR67: =Repdd!BR162 -> 367080 | BS67: =Repdd!BS162 -> 367080 | BT67: =Repdd!BT162 -> 367080 | BU67: =Repdd!BU162 -> 367080 | BV67: =Repdd!BV162 -> 0 | BW67: =Repdd!BW162 -> 0 | BX67: =Repdd!BX162 -> 0 | BY67: =Repdd!BY162 -> 0 | BZ67: =Repdd!BZ162 -> 0 | CA67: =Repdd!CA162 -> 0 | CB67: =Repdd!CB162 -> 0 | CC67: =Repdd!CC162 -> 0 | CD67: =Repdd!CD162 -> 0 | CE67: =Repdd!CE162 -> 0 | CF67: =Repdd!CF162 -> 0 | CG67: =Repdd!CG162 -> 0 | CH67: =Repdd!CH162 -> 0 | CI67: =Repdd!CI162 -> 0 | CJ67: =Repdd!CJ162 -> 0 | CK67: =Repdd!CK162 -> 0 | CL67: =Repdd!CL162 -> 0 | CM67: =Repdd!CM162 -> 0 | CN67: =Repdd!CN162 -> 0 | CO67: =Repdd!CO162 -> 0 | CP67: =Repdd!CP162 -> 0 | CQ67: =Repdd!CQ162 -> 0 | CR67: =Repdd!CR162 -> 0 | CS67: =Repdd!CS162 -> 0 | CT67: =Repdd!CT162 -> 0
A68: =ROW() -> 68 | C68: =Lists!$N$13 -> v | F68: =F64 -> Закупка сырья и материалов | G68: =BP!$F$25 -> Упаковка | M68: =Lists!$R$8 -> руб. | S68: =Repdd!S163 -> 0.2 | W68: =SUM(INDIRECT(ADDRESS(ROW(),SUMIFS($1:$1,$5:$5,1))):INDIRECT(ADDRESS(ROW(),SUMIFS($1:$1,$5:$5,MAX($5:$5))))) -> 29047373.33 | Z68: =Repdd!Z163 -> 0 | AA68: =Repdd!AA163 -> 0 | AB68: =Repdd!AB163 -> 0 | AC68: =Repdd!AC163 -> 0 | AD68: =Repdd!AD163 -> 1333.333333 | AE68: =Repdd!AE163 -> 5333.333333 | AF68: =Repdd!AF163 -> 9600 | AG68: =Repdd!AG163 -> 14033.33333 | AH68: =Repdd!AH163 -> 17900 | AI68: =Repdd!AI163 -> 23513.33333 | AJ68: =Repdd!AJ163 -> 38180 | AK68: =Repdd!AK163 -> 62873.33333 | AL68: =Repdd!AL163 -> 98323.33333 | AM68: =Repdd!AM163 -> 143233.3333 | AN68: =Repdd!AN163 -> 193723.3333 | AO68: =Repdd!AO163 -> 247526.6667 | AP68: =Repdd!AP163 -> 303050 | AQ68: =Repdd!AQ163 -> 359483.3333 | AR68: =Repdd!AR163 -> 416316.6667 | AS68: =Repdd!AS163 -> 473250 | AT68: =Repdd!AT163 -> 530233.3333 | AU68: =Repdd!AU163 -> 587233.3333 | AV68: =Repdd!AV163 -> 644233.3333 | AW68: =Repdd!AW163 -> 701233.3333 | AX68: =Repdd!AX163 -> 758233.3333 | AY68: =Repdd!AY163 -> 815233.3333 | AZ68: =Repdd!AZ163 -> 872233.3333 | BA68: =Repdd!BA163 -> 925900 | BB68: =Repdd!BB163 -> 969566.6667 | BC68: =Repdd!BC163 -> 1002566.667 | BD68: =Repdd!BD163 -> 1024483.333 | BE68: =Repdd!BE163 -> 1036733.333 | BF68: =Repdd!BF163 -> 1043283.333 | BG68: =Repdd!BG163 -> 1046500 | BH68: =Repdd!BH163 -> 1047983.333 | BI68: =Repdd!BI163 -> 1048550 | BJ68: =Repdd!BJ163 -> 1048716.667 | BK68: =Repdd!BK163 -> 1048783.333 | BL68: =Repdd!BL163 -> 1048800 | BM68: =Repdd!BM163 -> 1048800 | BN68: =Repdd!BN163 -> 1048800 | BO68: =Repdd!BO163 -> 1048800 | BP68: =Repdd!BP163 -> 1048800 | BQ68: =Repdd!BQ163 -> 1048800 | BR68: =Repdd!BR163 -> 1048800 | BS68: =Repdd!BS163 -> 1048800 | BT68: =Repdd!BT163 -> 1048800 | BU68: =Repdd!BU163 -> 1048800 | BV68: =Repdd!BV163 -> 0 | BW68: =Repdd!BW163 -> 0 | BX68: =Repdd!BX163 -> 0 | BY68: =Repdd!BY163 -> 0 | BZ68: =Repdd!BZ163 -> 0 | CA68: =Repdd!CA163 -> 0 | CB68: =Repdd!CB163 -> 0 | CC68: =Repdd!CC163 -> 0 | CD68: =Repdd!CD163 -> 0 | CE68: =Repdd!CE163 -> 0 | CF68: =Repdd!CF163 -> 0 | CG68: =Repdd!CG163 -> 0 | CH68: =Repdd!CH163 -> 0 | CI68: =Repdd!CI163 -> 0 | CJ68: =Repdd!CJ163 -> 0 | CK68: =Repdd!CK163 -> 0 | CL68: =Repdd!CL163 -> 0 | CM68: =Repdd!CM163 -> 0 | CN68: =Repdd!CN163 -> 0 | CO68: =Repdd!CO163 -> 0 | CP68: =Repdd!CP163 -> 0 | CQ68: =Repdd!CQ163 -> 0 | CR68: =Repdd!CR163 -> 0 | CS68: =Repdd!CS163 -> 0 | CT68: =Repdd!CT163 -> 0
A69: =ROW() -> 69 | E69: =Lists!$N$9 -> пустая строка
A70: =ROW() -> 70 | F70: =BP!$F$91 -> Поступление в пр-во ПФ | M70: =Lists!$R$8 -> руб. | V70: =W70-SUM(W71:W76) -> 0 | W70: =SUM(INDIRECT(ADDRESS(ROW(),SUMIFS($1:$1,$5:$5,1))):INDIRECT(ADDRESS(ROW(),SUMIFS($1:$1,$5:$5,MAX($5:$5))))) -> 104294594 | Z70: =Repdd!Z165 -> 0 | AA70: =Repdd!AA165 -> 0 | AB70: =Repdd!AB165 -> 0 | AC70: =Repdd!AC165 -> 0 | AD70: =Repdd!AD165 -> 4787.333333 | AE70: =Repdd!AE165 -> 19149.33333 | AF70: =Repdd!AF165 -> 34468.8 | AG70: =Repdd!AG165 -> 50386.68333 | AH70: =Repdd!AH165 -> 64269.95 | AI70: =Repdd!AI165 -> 84424.62333 | AJ70: =Repdd!AJ165 -> 137085.29 | AK70: =Repdd!AK165 -> 225746.7033 | AL70: =Repdd!AL165 -> 353029.9283 | AM70: =Repdd!AM165 -> 514279.2833 | AN70: =Repdd!AN165 -> 695563.6283 | AO70: =Repdd!AO165 -> 888744.4967 | AP70: =Repdd!AP165 -> 1088101.025 | AQ70: =Repdd!AQ165 -> 1290724.908 | AR70: =Repdd!AR165 -> 1494784.992 | AS70: =Repdd!AS165 -> 1699204.125 | AT70: =Repdd!AT165 -> 1903802.783 | AU70: =Repdd!AU165 -> 2108461.283 | AV70: =Repdd!AV165 -> 2313119.783 | AW70: =Repdd!AW165 -> 2517778.283 | AX70: =Repdd!AX165 -> 2722436.783 | AY70: =Repdd!AY165 -> 2927095.283 | AZ70: =Repdd!AZ165 -> 3131753.783 | BA70: =Repdd!BA165 -> 3324443.95 | BB70: =Repdd!BB165 -> 3481229.117 | BC70: =Repdd!BC165 -> 3599715.617 | BD70: =Repdd!BD165 -> 3678407.408 | BE70: =Repdd!BE165 -> 3722391.033 | BF70: =Repdd!BF165 -> 3745908.808 | BG70: =Repdd!BG165 -> 3757458.25 | BH70: =Repdd!BH165 -> 3762784.158 | BI70: =Repdd!BI165 -> 3764818.775 | BJ70: =Repdd!BJ165 -> 3765417.192 | BK70: =Repdd!BK165 -> 3765656.558 | BL70: =Repdd!BL165 -> 3765716.4 | BM70: =Repdd!BM165 -> 3765716.4 | BN70: =Repdd!BN165 -> 3765716.4 | BO70: =Repdd!BO165 -> 3765716.4 | BP70: =Repdd!BP165 -> 3765716.4 | BQ70: =Repdd!BQ165 -> 3765716.4 | BR70: =Repdd!BR165 -> 3765716.4 | BS70: =Repdd!BS165 -> 3765716.4 | BT70: =Repdd!BT165 -> 3765716.4 | BU70: =Repdd!BU165 -> 3765716.4 | BV70: =Repdd!BV165 -> 0 | BW70: =Repdd!BW165 -> 0 | BX70: =Repdd!BX165 -> 0 | BY70: =Repdd!BY165 -> 0 | BZ70: =Repdd!BZ165 -> 0 | CA70: =Repdd!CA165 -> 0 | CB70: =Repdd!CB165 -> 0 | CC70: =Repdd!CC165 -> 0 | CD70: =Repdd!CD165 -> 0 | CE70: =Repdd!CE165 -> 0 | CF70: =Repdd!CF165 -> 0 | CG70: =Repdd!CG165 -> 0 | CH70: =Repdd!CH165 -> 0 | CI70: =Repdd!CI165 -> 0 | CJ70: =Repdd!CJ165 -> 0 | CK70: =Repdd!CK165 -> 0 | CL70: =Repdd!CL165 -> 0 | CM70: =Repdd!CM165 -> 0 | CN70: =Repdd!CN165 -> 0 | CO70: =Repdd!CO165 -> 0 | CP70: =Repdd!CP165 -> 0 | CQ70: =Repdd!CQ165 -> 0 | CR70: =Repdd!CR165 -> 0 | CS70: =Repdd!CS165 -> 0 | CT70: =Repdd!CT165 -> 0
A71: =ROW() -> 71 | F71: =$F$70 -> Поступление в пр-во ПФ | G71: =BP!$F$21 -> Основа | M71: =Lists!$R$8 -> руб. | S71: =Repdd!S166 -> 0.2 | W71: =SUM(INDIRECT(ADDRESS(ROW(),SUMIFS($1:$1,$5:$5,1))):INDIRECT(ADDRESS(ROW(),SUMIFS($1:$1,$5:$5,MAX($5:$5))))) -> 76249355 | Z71: =Repdd!Z166 -> 0 | AA71: =Repdd!AA166 -> 0 | AB71: =Repdd!AB166 -> 0 | AC71: =Repdd!AC166 -> 0 | AD71: =Repdd!AD166 -> 3500 | AE71: =Repdd!AE166 -> 14000 | AF71: =Repdd!AF166 -> 25200 | AG71: =Repdd!AG166 -> 36837.5 | AH71: =Repdd!AH166 -> 46987.5 | AI71: =Repdd!AI166 -> 61722.5 | AJ71: =Repdd!AJ166 -> 100222.5 | AK71: =Repdd!AK166 -> 165042.5 | AL71: =Repdd!AL166 -> 258098.75 | AM71: =Repdd!AM166 -> 375987.5 | AN71: =Repdd!AN166 -> 508523.75 | AO71: =Repdd!AO166 -> 649757.5 | AP71: =Repdd!AP166 -> 795506.25 | AQ71: =Repdd!AQ166 -> 943643.75 | AR71: =Repdd!AR166 -> 1092831.25 | AS71: =Repdd!AS166 -> 1242281.25 | AT71: =Repdd!AT166 -> 1391862.5 | AU71: =Repdd!AU166 -> 1541487.5 | AV71: =Repdd!AV166 -> 1691112.5 | AW71: =Repdd!AW166 -> 1840737.5 | AX71: =Repdd!AX166 -> 1990362.5 | AY71: =Repdd!AY166 -> 2139987.5 | AZ71: =Repdd!AZ166 -> 2289612.5 | BA71: =Repdd!BA166 -> 2430487.5 | BB71: =Repdd!BB166 -> 2545112.5 | BC71: =Repdd!BC166 -> 2631737.5 | BD71: =Repdd!BD166 -> 2689268.75 | BE71: =Repdd!BE166 -> 2721425 | BF71: =Repdd!BF166 -> 2738618.75 | BG71: =Repdd!BG166 -> 2747062.5 | BH71: =Repdd!BH166 -> 2750956.25 | BI71: =Repdd!BI166 -> 2752443.75 | BJ71: =Repdd!BJ166 -> 2752881.25 | BK71: =Repdd!BK166 -> 2753056.25 | BL71: =Repdd!BL166 -> 2753100 | BM71: =Repdd!BM166 -> 2753100 | BN71: =Repdd!BN166 -> 2753100 | BO71: =Repdd!BO166 -> 2753100 | BP71: =Repdd!BP166 -> 2753100 | BQ71: =Repdd!BQ166 -> 2753100 | BR71: =Repdd!BR166 -> 2753100 | BS71: =Repdd!BS166 -> 2753100 | BT71: =Repdd!BT166 -> 2753100 | BU71: =Repdd!BU166 -> 2753100 | BV71: =Repdd!BV166 -> 0 | BW71: =Repdd!BW166 -> 0 | BX71: =Repdd!BX166 -> 0 | BY71: =Repdd!BY166 -> 0 | BZ71: =Repdd!BZ166 -> 0 | CA71: =Repdd!CA166 -> 0 | CB71: =Repdd!CB166 -> 0 | CC71: =Repdd!CC166 -> 0 | CD71: =Repdd!CD166 -> 0 | CE71: =Repdd!CE166 -> 0 | CF71: =Repdd!CF166 -> 0 | CG71: =Repdd!CG166 -> 0 | CH71: =Repdd!CH166 -> 0 | CI71: =Repdd!CI166 -> 0 | CJ71: =Repdd!CJ166 -> 0 | CK71: =Repdd!CK166 -> 0 | CL71: =Repdd!CL166 -> 0 | CM71: =Repdd!CM166 -> 0 | CN71: =Repdd!CN166 -> 0 | CO71: =Repdd!CO166 -> 0 | CP71: =Repdd!CP166 -> 0 | CQ71: =Repdd!CQ166 -> 0 | CR71: =Repdd!CR166 -> 0 | CS71: =Repdd!CS166 -> 0 | CT71: =Repdd!CT166 -> 0
A72: =ROW() -> 72 | F72: =$F$70 -> Поступление в пр-во ПФ | G72: =BP!$F$22 -> Сырье | M72: =Lists!$R$8 -> руб. | S72: =Repdd!S167 -> 0.2 | W72: =SUM(INDIRECT(ADDRESS(ROW(),SUMIFS($1:$1,$5:$5,1))):INDIRECT(ADDRESS(ROW(),SUMIFS($1:$1,$5:$5,MAX($5:$5))))) -> 8714212 | Z72: =Repdd!Z167 -> 0 | AA72: =Repdd!AA167 -> 0 | AB72: =Repdd!AB167 -> 0 | AC72: =Repdd!AC167 -> 0 | AD72: =Repdd!AD167 -> 400 | AE72: =Repdd!AE167 -> 1600 | AF72: =Repdd!AF167 -> 2880 | AG72: =Repdd!AG167 -> 4210 | AH72: =Repdd!AH167 -> 5370 | AI72: =Repdd!AI167 -> 7054 | AJ72: =Repdd!AJ167 -> 11454 | AK72: =Repdd!AK167 -> 18862 | AL72: =Repdd!AL167 -> 29497 | AM72: =Repdd!AM167 -> 42970 | AN72: =Repdd!AN167 -> 58117 | AO72: =Repdd!AO167 -> 74258 | AP72: =Repdd!AP167 -> 90915 | AQ72: =Repdd!AQ167 -> 107845 | AR72: =Repdd!AR167 -> 124895 | AS72: =Repdd!AS167 -> 141975 | AT72: =Repdd!AT167 -> 159070 | AU72: =Repdd!AU167 -> 176170 | AV72: =Repdd!AV167 -> 193270 | AW72: =Repdd!AW167 -> 210370 | AX72: =Repdd!AX167 -> 227470 | AY72: =Repdd!AY167 -> 244570 | AZ72: =Repdd!AZ167 -> 261670 | BA72: =Repdd!BA167 -> 277770 | BB72: =Repdd!BB167 -> 290870 | BC72: =Repdd!BC167 -> 300770 | BD72: =Repdd!BD167 -> 307345 | BE72: =Repdd!BE167 -> 311020 | BF72: =Repdd!BF167 -> 312985 | BG72: =Repdd!BG167 -> 313950 | BH72: =Repdd!BH167 -> 314395 | BI72: =Repdd!BI167 -> 314565 | BJ72: =Repdd!BJ167 -> 314615 | BK72: =Repdd!BK167 -> 314635 | BL72: =Repdd!BL167 -> 314640 | BM72: =Repdd!BM167 -> 314640 | BN72: =Repdd!BN167 -> 314640 | BO72: =Repdd!BO167 -> 314640 | BP72: =Repdd!BP167 -> 314640 | BQ72: =Repdd!BQ167 -> 314640 | BR72: =Repdd!BR167 -> 314640 | BS72: =Repdd!BS167 -> 314640 | BT72: =Repdd!BT167 -> 314640 | BU72: =Repdd!BU167 -> 314640 | BV72: =Repdd!BV167 -> 0 | BW72: =Repdd!BW167 -> 0 | BX72: =Repdd!BX167 -> 0 | BY72: =Repdd!BY167 -> 0 | BZ72: =Repdd!BZ167 -> 0 | CA72: =Repdd!CA167 -> 0 | CB72: =Repdd!CB167 -> 0 | CC72: =Repdd!CC167 -> 0 | CD72: =Repdd!CD167 -> 0 | CE72: =Repdd!CE167 -> 0 | CF72: =Repdd!CF167 -> 0 | CG72: =Repdd!CG167 -> 0 | CH72: =Repdd!CH167 -> 0 | CI72: =Repdd!CI167 -> 0 | CJ72: =Repdd!CJ167 -> 0 | CK72: =Repdd!CK167 -> 0 | CL72: =Repdd!CL167 -> 0 | CM72: =Repdd!CM167 -> 0 | CN72: =Repdd!CN167 -> 0 | CO72: =Repdd!CO167 -> 0 | CP72: =Repdd!CP167 -> 0 | CQ72: =Repdd!CQ167 -> 0 | CR72: =Repdd!CR167 -> 0 | CS72: =Repdd!CS167 -> 0 | CT72: =Repdd!CT167 -> 0
A73: =ROW() -> 73 | F73: Поступление в пр-во ПФ | G73: =BP!$F$26 -> ФОТ првПерс | M73: =Lists!$R$8 -> руб. | S73: =Repdd!S168 -> 0 | W73: =SUM(INDIRECT(ADDRESS(ROW(),SUMIFS($1:$1,$5:$5,1))):INDIRECT(ADDRESS(ROW(),SUMIFS($1:$1,$5:$5,MAX($5:$5))))) -> 13071318 | Z73: =Repdd!Z168 -> 0 | AA73: =Repdd!AA168 -> 0 | AB73: =Repdd!AB168 -> 0 | AC73: =Repdd!AC168 -> 0 | AD73: =Repdd!AD168 -> 600 | AE73: =Repdd!AE168 -> 2400 | AF73: =Repdd!AF168 -> 4320 | AG73: =Repdd!AG168 -> 6315 | AH73: =Repdd!AH168 -> 8055 | AI73: =Repdd!AI168 -> 10581 | AJ73: =Repdd!AJ168 -> 17181 | AK73: =Repdd!AK168 -> 28293 | AL73: =Repdd!AL168 -> 44245.5 | AM73: =Repdd!AM168 -> 64455 | AN73: =Repdd!AN168 -> 87175.5 | AO73: =Repdd!AO168 -> 111387 | AP73: =Repdd!AP168 -> 136372.5 | AQ73: =Repdd!AQ168 -> 161767.5 | AR73: =Repdd!AR168 -> 187342.5 | AS73: =Repdd!AS168 -> 212962.5 | AT73: =Repdd!AT168 -> 238605 | AU73: =Repdd!AU168 -> 264255 | AV73: =Repdd!AV168 -> 289905 | AW73: =Repdd!AW168 -> 315555 | AX73: =Repdd!AX168 -> 341205 | AY73: =Repdd!AY168 -> 366855 | AZ73: =Repdd!AZ168 -> 392505 | BA73: =Repdd!BA168 -> 416655 | BB73: =Repdd!BB168 -> 436305 | BC73: =Repdd!BC168 -> 451155 | BD73: =Repdd!BD168 -> 461017.5 | BE73: =Repdd!BE168 -> 466530 | BF73: =Repdd!BF168 -> 469477.5 | BG73: =Repdd!BG168 -> 470925 | BH73: =Repdd!BH168 -> 471592.5 | BI73: =Repdd!BI168 -> 471847.5 | BJ73: =Repdd!BJ168 -> 471922.5 | BK73: =Repdd!BK168 -> 471952.5 | BL73: =Repdd!BL168 -> 471960 | BM73: =Repdd!BM168 -> 471960 | BN73: =Repdd!BN168 -> 471960 | BO73: =Repdd!BO168 -> 471960 | BP73: =Repdd!BP168 -> 471960 | BQ73: =Repdd!BQ168 -> 471960 | BR73: =Repdd!BR168 -> 471960 | BS73: =Repdd!BS168 -> 471960 | BT73: =Repdd!BT168 -> 471960 | BU73: =Repdd!BU168 -> 471960 | BV73: =Repdd!BV168 -> 0 | BW73: =Repdd!BW168 -> 0 | BX73: =Repdd!BX168 -> 0 | BY73: =Repdd!BY168 -> 0 | BZ73: =Repdd!BZ168 -> 0 | CA73: =Repdd!CA168 -> 0 | CB73: =Repdd!CB168 -> 0 | CC73: =Repdd!CC168 -> 0 | CD73: =Repdd!CD168 -> 0 | CE73: =Repdd!CE168 -> 0 | CF73: =Repdd!CF168 -> 0 | CG73: =Repdd!CG168 -> 0 | CH73: =Repdd!CH168 -> 0 | CI73: =Repdd!CI168 -> 0 | CJ73: =Repdd!CJ168 -> 0 | CK73: =Repdd!CK168 -> 0 | CL73: =Repdd!CL168 -> 0 | CM73: =Repdd!CM168 -> 0 | CN73: =Repdd!CN168 -> 0 | CO73: =Repdd!CO168 -> 0 | CP73: =Repdd!CP168 -> 0 | CQ73: =Repdd!CQ168 -> 0 | CR73: =Repdd!CR168 -> 0 | CS73: =Repdd!CS168 -> 0 | CT73: =Repdd!CT168 -> 0
A74: =ROW() -> 74 | F74: Поступление в пр-во ПФ | G74: =BP!$F$28 -> Соцсборы | M74: =Lists!$R$8 -> руб. | S74: =Repdd!S169 -> 0 | W74: =SUM(INDIRECT(ADDRESS(ROW(),SUMIFS($1:$1,$5:$5,1))):INDIRECT(ADDRESS(ROW(),SUMIFS($1:$1,$5:$5,MAX($5:$5))))) -> 3921395.4 | Z74: =Repdd!Z169 -> 0 | AA74: =Repdd!AA169 -> 0 | AB74: =Repdd!AB169 -> 0 | AC74: =Repdd!AC169 -> 0 | AD74: =Repdd!AD169 -> 180 | AE74: =Repdd!AE169 -> 720 | AF74: =Repdd!AF169 -> 1296 | AG74: =Repdd!AG169 -> 1894.5 | AH74: =Repdd!AH169 -> 2416.5 | AI74: =Repdd!AI169 -> 3174.3 | AJ74: =Repdd!AJ169 -> 5154.3 | AK74: =Repdd!AK169 -> 8487.9 | AL74: =Repdd!AL169 -> 13273.65 | AM74: =Repdd!AM169 -> 19336.5 | AN74: =Repdd!AN169 -> 26152.65 | AO74: =Repdd!AO169 -> 33416.1 | AP74: =Repdd!AP169 -> 40911.75 | AQ74: =Repdd!AQ169 -> 48530.25 | AR74: =Repdd!AR169 -> 56202.75 | AS74: =Repdd!AS169 -> 63888.75 | AT74: =Repdd!AT169 -> 71581.5 | AU74: =Repdd!AU169 -> 79276.5 | AV74: =Repdd!AV169 -> 86971.5 | AW74: =Repdd!AW169 -> 94666.5 | AX74: =Repdd!AX169 -> 102361.5 | AY74: =Repdd!AY169 -> 110056.5 | AZ74: =Repdd!AZ169 -> 117751.5 | BA74: =Repdd!BA169 -> 124996.5 | BB74: =Repdd!BB169 -> 130891.5 | BC74: =Repdd!BC169 -> 135346.5 | BD74: =Repdd!BD169 -> 138305.25 | BE74: =Repdd!BE169 -> 139959 | BF74: =Repdd!BF169 -> 140843.25 | BG74: =Repdd!BG169 -> 141277.5 | BH74: =Repdd!BH169 -> 141477.75 | BI74: =Repdd!BI169 -> 141554.25 | BJ74: =Repdd!BJ169 -> 141576.75 | BK74: =Repdd!BK169 -> 141585.75 | BL74: =Repdd!BL169 -> 141588 | BM74: =Repdd!BM169 -> 141588 | BN74: =Repdd!BN169 -> 141588 | BO74: =Repdd!BO169 -> 141588 | BP74: =Repdd!BP169 -> 141588 | BQ74: =Repdd!BQ169 -> 141588 | BR74: =Repdd!BR169 -> 141588 | BS74: =Repdd!BS169 -> 141588 | BT74: =Repdd!BT169 -> 141588 | BU74: =Repdd!BU169 -> 141588 | BV74: =Repdd!BV169 -> 0 | BW74: =Repdd!BW169 -> 0 | BX74: =Repdd!BX169 -> 0 | BY74: =Repdd!BY169 -> 0 | BZ74: =Repdd!BZ169 -> 0 | CA74: =Repdd!CA169 -> 0 | CB74: =Repdd!CB169 -> 0 | CC74: =Repdd!CC169 -> 0 | CD74: =Repdd!CD169 -> 0 | CE74: =Repdd!CE169 -> 0 | CF74: =Repdd!CF169 -> 0 | CG74: =Repdd!CG169 -> 0 | CH74: =Repdd!CH169 -> 0 | CI74: =Repdd!CI169 -> 0 | CJ74: =Repdd!CJ169 -> 0 | CK74: =Repdd!CK169 -> 0 | CL74: =Repdd!CL169 -> 0 | CM74: =Repdd!CM169 -> 0 | CN74: =Repdd!CN169 -> 0 | CO74: =Repdd!CO169 -> 0 | CP74: =Repdd!CP169 -> 0 | CQ74: =Repdd!CQ169 -> 0 | CR74: =Repdd!CR169 -> 0 | CS74: =Repdd!CS169 -> 0 | CT74: =Repdd!CT169 -> 0
A75: =ROW() -> 75 | C75: =Lists!$N$13 -> v | F75: Поступление в пр-во ПФ | G75: =BP!$F$29 -> ЭлЭн | M75: =Lists!$R$8 -> руб. | S75: =Repdd!S170 -> 0.2 | W75: =SUM(INDIRECT(ADDRESS(ROW(),SUMIFS($1:$1,$5:$5,1))):INDIRECT(ADDRESS(ROW(),SUMIFS($1:$1,$5:$5,MAX($5:$5))))) -> 2338313.553 | Z75: =Repdd!Z170 -> 0 | AA75: =Repdd!AA170 -> 0 | AB75: =Repdd!AB170 -> 0 | AC75: =Repdd!AC170 -> 0 | AD75: =Repdd!AD170 -> 107.3333333 | AE75: =Repdd!AE170 -> 429.3333333 | AF75: =Repdd!AF170 -> 772.8 | AG75: =Repdd!AG170 -> 1129.683333 | AH75: =Repdd!AH170 -> 1440.95 | AI75: =Repdd!AI170 -> 1892.823333 | AJ75: =Repdd!AJ170 -> 3073.49 | AK75: =Repdd!AK170 -> 5061.303333 | AL75: =Repdd!AL170 -> 7915.028333 | AM75: =Repdd!AM170 -> 11530.28333 | AN75: =Repdd!AN170 -> 15594.72833 | AO75: =Repdd!AO170 -> 19925.89667 | AP75: =Repdd!AP170 -> 24395.525 | AQ75: =Repdd!AQ170 -> 28938.40833 | AR75: =Repdd!AR170 -> 33513.49167 | AS75: =Repdd!AS170 -> 38096.625 | AT75: =Repdd!AT170 -> 42683.78333 | AU75: =Repdd!AU170 -> 47272.28333 | AV75: =Repdd!AV170 -> 51860.78333 | AW75: =Repdd!AW170 -> 56449.28333 | AX75: =Repdd!AX170 -> 61037.78333 | AY75: =Repdd!AY170 -> 65626.28333 | AZ75: =Repdd!AZ170 -> 70214.78333 | BA75: =Repdd!BA170 -> 74534.95 | BB75: =Repdd!BB170 -> 78050.11667 | BC75: =Repdd!BC170 -> 80706.61667 | BD75: =Repdd!BD170 -> 82470.90833 | BE75: =Repdd!BE170 -> 83457.03333 | BF75: =Repdd!BF170 -> 83984.30833 | BG75: =Repdd!BG170 -> 84243.25 | BH75: =Repdd!BH170 -> 84362.65833 | BI75: =Repdd!BI170 -> 84408.275 | BJ75: =Repdd!BJ170 -> 84421.69167 | BK75: =Repdd!BK170 -> 84427.05833 | BL75: =Repdd!BL170 -> 84428.4 | BM75: =Repdd!BM170 -> 84428.4 | BN75: =Repdd!BN170 -> 84428.4 | BO75: =Repdd!BO170 -> 84428.4 | BP75: =Repdd!BP170 -> 84428.4 | BQ75: =Repdd!BQ170 -> 84428.4 | BR75: =Repdd!BR170 -> 84428.4 | BS75: =Repdd!BS170 -> 84428.4 | BT75: =Repdd!BT170 -> 84428.4 | BU75: =Repdd!BU170 -> 84428.4 | BV75: =Repdd!BV170 -> 0 | BW75: =Repdd!BW170 -> 0 | BX75: =Repdd!BX170 -> 0 | BY75: =Repdd!BY170 -> 0 | BZ75: =Repdd!BZ170 -> 0 | CA75: =Repdd!CA170 -> 0 | CB75: =Repdd!CB170 -> 0 | CC75: =Repdd!CC170 -> 0 | CD75: =Repdd!CD170 -> 0 | CE75: =Repdd!CE170 -> 0 | CF75: =Repdd!CF170 -> 0 | CG75: =Repdd!CG170 -> 0 | CH75: =Repdd!CH170 -> 0 | CI75: =Repdd!CI170 -> 0 | CJ75: =Repdd!CJ170 -> 0 | CK75: =Repdd!CK170 -> 0 | CL75: =Repdd!CL170 -> 0 | CM75: =Repdd!CM170 -> 0 | CN75: =Repdd!CN170 -> 0 | CO75: =Repdd!CO170 -> 0 | CP75: =Repdd!CP170 -> 0 | CQ75: =Repdd!CQ170 -> 0 | CR75: =Repdd!CR170 -> 0 | CS75: =Repdd!CS170 -> 0 | CT75: =Repdd!CT170 -> 0
A76: =ROW() -> 76 | E76: =Lists!$N$9 -> пустая строка
A77: =ROW() -> 77 | F77: =BP!$F$115 -> Вн.пр-во | M77: =Lists!$R$8 -> руб. | V77: =W77-SUM(W78:W84) -> 0 | W77: =SUM(INDIRECT(ADDRESS(ROW(),SUMIFS($1:$1,$5:$5,1))):INDIRECT(ADDRESS(ROW(),SUMIFS($1:$1,$5:$5,MAX($5:$5))))) -> 348268397.6 | Z77: =Repdd!Z172 -> 0 | AA77: =Repdd!AA172 -> 0 | AB77: =Repdd!AB172 -> 0 | AC77: =Repdd!AC172 -> 0 | AD77: =Repdd!AD172 -> 0 | AE77: =Repdd!AE172 -> 11387.33333 | AF77: =Repdd!AF172 -> 50949.33333 | AG77: =Repdd!AG172 -> 103588.8 | AH77: =Repdd!AH172 -> 158731.6833 | AI77: =Repdd!AI172 -> 209709.95 | AJ77: =Repdd!AJ172 -> 273310.6233 | AK77: =Repdd!AK172 -> 421305.29 | AL77: =Repdd!AL172 -> 691598.7033 | AM77: =Repdd!AM172 -> 1094367.428 | AN77: =Repdd!AN172 -> 1621493.783 | AO77: =Repdd!AO172 -> 2234589.128 | AP77: =Repdd!AP172 -> 2898580.997 | AQ77: =Repdd!AQ172 -> 3590681.525 | AR77: =Repdd!AR172 -> 4297519.908 | AS77: =Repdd!AS172 -> 5011459.992 | AT77: =Repdd!AT172 -> 5727874.125 | AU77: =Repdd!AU172 -> 6445120.283 | AV77: =Repdd!AV172 -> 7162711.283 | AW77: =Repdd!AW172 -> 7880369.783 | AX77: =Repdd!AX172 -> 8598028.283 | AY77: =Repdd!AY172 -> 9315686.783 | AZ77: =Repdd!AZ172 -> 10033345.28 | BA77: =Repdd!BA172 -> 10751003.78 | BB77: =Repdd!BB172 -> 11440193.95 | BC77: =Repdd!BC172 -> 12030479.12 | BD77: =Repdd!BD172 -> 12489165.62 | BE77: =Repdd!BE172 -> 12809994.91 | BF77: =Repdd!BF172 -> 13003378.53 | BG77: =Repdd!BG172 -> 13108931.31 | BH77: =Repdd!BH172 -> 13162930.75 | BI77: =Repdd!BI172 -> 13188626.66 | BJ77: =Repdd!BJ172 -> 13199473.78 | BK77: =Repdd!BK172 -> 13203192.19 | BL77: =Repdd!BL172 -> 13204436.56 | BM77: =Repdd!BM172 -> 13204848.9 | BN77: =Repdd!BN172 -> 13204916.4 | BO77: =Repdd!BO172 -> 13204916.4 | BP77: =Repdd!BP172 -> 13204916.4 | BQ77: =Repdd!BQ172 -> 13204916.4 | BR77: =Repdd!BR172 -> 13204916.4 | BS77: =Repdd!BS172 -> 13204916.4 | BT77: =Repdd!BT172 -> 13204916.4 | BU77: =Repdd!BU172 -> 13204916.4 | BV77: =Repdd!BV172 -> 0 | BW77: =Repdd!BW172 -> 0 | BX77: =Repdd!BX172 -> 0 | BY77: =Repdd!BY172 -> 0 | BZ77: =Repdd!BZ172 -> 0 | CA77: =Repdd!CA172 -> 0 | CB77: =Repdd!CB172 -> 0 | CC77: =Repdd!CC172 -> 0 | CD77: =Repdd!CD172 -> 0 | CE77: =Repdd!CE172 -> 0 | CF77: =Repdd!CF172 -> 0 | CG77: =Repdd!CG172 -> 0 | CH77: =Repdd!CH172 -> 0 | CI77: =Repdd!CI172 -> 0 | CJ77: =Repdd!CJ172 -> 0 | CK77: =Repdd!CK172 -> 0 | CL77: =Repdd!CL172 -> 0 | CM77: =Repdd!CM172 -> 0 | CN77: =Repdd!CN172 -> 0 | CO77: =Repdd!CO172 -> 0 | CP77: =Repdd!CP172 -> 0 | CQ77: =Repdd!CQ172 -> 0 | CR77: =Repdd!CR172 -> 0 | CS77: =Repdd!CS172 -> 0 | CT77: =Repdd!CT172 -> 0
A78: =ROW() -> 78 | F78: =$F$77 -> Вн.пр-во | G78: =BP!$F$21 -> Основа | M78: =Lists!$R$8 -> руб. | S78: =Repdd!S173 -> 0.2 | W78: =SUM(INDIRECT(ADDRESS(ROW(),SUMIFS($1:$1,$5:$5,1))):INDIRECT(ADDRESS(ROW(),SUMIFS($1:$1,$5:$5,MAX($5:$5))))) -> 73496255 | Z78: =Repdd!Z173 -> 0 | AA78: =Repdd!AA173 -> 0 | AB78: =Repdd!AB173 -> 0 | AC78: =Repdd!AC173 -> 0 | AD78: =Repdd!AD173 -> 0 | AE78: =Repdd!AE173 -> 3500 | AF78: =Repdd!AF173 -> 14000 | AG78: =Repdd!AG173 -> 25200 | AH78: =Repdd!AH173 -> 36837.5 | AI78: =Repdd!AI173 -> 46987.5 | AJ78: =Repdd!AJ173 -> 61722.5 | AK78: =Repdd!AK173 -> 100222.5 | AL78: =Repdd!AL173 -> 165042.5 | AM78: =Repdd!AM173 -> 258098.75 | AN78: =Repdd!AN173 -> 375987.5 | AO78: =Repdd!AO173 -> 508523.75 | AP78: =Repdd!AP173 -> 649757.5 | AQ78: =Repdd!AQ173 -> 795506.25 | AR78: =Repdd!AR173 -> 943643.75 | AS78: =Repdd!AS173 -> 1092831.25 | AT78: =Repdd!AT173 -> 1242281.25 | AU78: =Repdd!AU173 -> 1391862.5 | AV78: =Repdd!AV173 -> 1541487.5 | AW78: =Repdd!AW173 -> 1691112.5 | AX78: =Repdd!AX173 -> 1840737.5 | AY78: =Repdd!AY173 -> 1990362.5 | AZ78: =Repdd!AZ173 -> 2139987.5 | BA78: =Repdd!BA173 -> 2289612.5 | BB78: =Repdd!BB173 -> 2430487.5 | BC78: =Repdd!BC173 -> 2545112.5 | BD78: =Repdd!BD173 -> 2631737.5 | BE78: =Repdd!BE173 -> 2689268.75 | BF78: =Repdd!BF173 -> 2721425 | BG78: =Repdd!BG173 -> 2738618.75 | BH78: =Repdd!BH173 -> 2747062.5 | BI78: =Repdd!BI173 -> 2750956.25 | BJ78: =Repdd!BJ173 -> 2752443.75 | BK78: =Repdd!BK173 -> 2752881.25 | BL78: =Repdd!BL173 -> 2753056.25 | BM78: =Repdd!BM173 -> 2753100 | BN78: =Repdd!BN173 -> 2753100 | BO78: =Repdd!BO173 -> 2753100 | BP78: =Repdd!BP173 -> 2753100 | BQ78: =Repdd!BQ173 -> 2753100 | BR78: =Repdd!BR173 -> 2753100 | BS78: =Repdd!BS173 -> 2753100 | BT78: =Repdd!BT173 -> 2753100 | BU78: =Repdd!BU173 -> 2753100 | BV78: =Repdd!BV173 -> 0 | BW78: =Repdd!BW173 -> 0 | BX78: =Repdd!BX173 -> 0 | BY78: =Repdd!BY173 -> 0 | BZ78: =Repdd!BZ173 -> 0 | CA78: =Repdd!CA173 -> 0 | CB78: =Repdd!CB173 -> 0 | CC78: =Repdd!CC173 -> 0 | CD78: =Repdd!CD173 -> 0 | CE78: =Repdd!CE173 -> 0 | CF78: =Repdd!CF173 -> 0 | CG78: =Repdd!CG173 -> 0 | CH78: =Repdd!CH173 -> 0 | CI78: =Repdd!CI173 -> 0 | CJ78: =Repdd!CJ173 -> 0 | CK78: =Repdd!CK173 -> 0 | CL78: =Repdd!CL173 -> 0 | CM78: =Repdd!CM173 -> 0 | CN78: =Repdd!CN173 -> 0 | CO78: =Repdd!CO173 -> 0 | CP78: =Repdd!CP173 -> 0 | CQ78: =Repdd!CQ173 -> 0 | CR78: =Repdd!CR173 -> 0 | CS78: =Repdd!CS173 -> 0 | CT78: =Repdd!CT173 -> 0
A79: =ROW() -> 79 | F79: =$F$77 -> Вн.пр-во | G79: =BP!$F$22 -> Сырье | M79: =Lists!$R$8 -> руб. | S79: =Repdd!S174 -> 0.2 | W79: =SUM(INDIRECT(ADDRESS(ROW(),SUMIFS($1:$1,$5:$5,1))):INDIRECT(ADDRESS(ROW(),SUMIFS($1:$1,$5:$5,MAX($5:$5))))) -> 8399572 | Z79: =Repdd!Z174 -> 0 | AA79: =Repdd!AA174 -> 0 | AB79: =Repdd!AB174 -> 0 | AC79: =Repdd!AC174 -> 0 | AD79: =Repdd!AD174 -> 0 | AE79: =Repdd!AE174 -> 400 | AF79: =Repdd!AF174 -> 1600 | AG79: =Repdd!AG174 -> 2880 | AH79: =Repdd!AH174 -> 4210 | AI79: =Repdd!AI174 -> 5370 | AJ79: =Repdd!AJ174 -> 7054 | AK79: =Repdd!AK174 -> 11454 | AL79: =Repdd!AL174 -> 18862 | AM79: =Repdd!AM174 -> 29497 | AN79: =Repdd!AN174 -> 42970 | AO79: =Repdd!AO174 -> 58117 | AP79: =Repdd!AP174 -> 74258 | AQ79: =Repdd!AQ174 -> 90915 | AR79: =Repdd!AR174 -> 107845 | AS79: =Repdd!AS174 -> 124895 | AT79: =Repdd!AT174 -> 141975 | AU79: =Repdd!AU174 -> 159070 | AV79: =Repdd!AV174 -> 176170 | AW79: =Repdd!AW174 -> 193270 | AX79: =Repdd!AX174 -> 210370 | AY79: =Repdd!AY174 -> 227470 | AZ79: =Repdd!AZ174 -> 244570 | BA79: =Repdd!BA174 -> 261670 | BB79: =Repdd!BB174 -> 277770 | BC79: =Repdd!BC174 -> 290870 | BD79: =Repdd!BD174 -> 300770 | BE79: =Repdd!BE174 -> 307345 | BF79: =Repdd!BF174 -> 311020 | BG79: =Repdd!BG174 -> 312985 | BH79: =Repdd!BH174 -> 313950 | BI79: =Repdd!BI174 -> 314395 | BJ79: =Repdd!BJ174 -> 314565 | BK79: =Repdd!BK174 -> 314615 | BL79: =Repdd!BL174 -> 314635 | BM79: =Repdd!BM174 -> 314640 | BN79: =Repdd!BN174 -> 314640 | BO79: =Repdd!BO174 -> 314640 | BP79: =Repdd!BP174 -> 314640 | BQ79: =Repdd!BQ174 -> 314640 | BR79: =Repdd!BR174 -> 314640 | BS79: =Repdd!BS174 -> 314640 | BT79: =Repdd!BT174 -> 314640 | BU79: =Repdd!BU174 -> 314640 | BV79: =Repdd!BV174 -> 0 | BW79: =Repdd!BW174 -> 0 | BX79: =Repdd!BX174 -> 0 | BY79: =Repdd!BY174 -> 0 | BZ79: =Repdd!BZ174 -> 0 | CA79: =Repdd!CA174 -> 0 | CB79: =Repdd!CB174 -> 0 | CC79: =Repdd!CC174 -> 0 | CD79: =Repdd!CD174 -> 0 | CE79: =Repdd!CE174 -> 0 | CF79: =Repdd!CF174 -> 0 | CG79: =Repdd!CG174 -> 0 | CH79: =Repdd!CH174 -> 0 | CI79: =Repdd!CI174 -> 0 | CJ79: =Repdd!CJ174 -> 0 | CK79: =Repdd!CK174 -> 0 | CL79: =Repdd!CL174 -> 0 | CM79: =Repdd!CM174 -> 0 | CN79: =Repdd!CN174 -> 0 | CO79: =Repdd!CO174 -> 0 | CP79: =Repdd!CP174 -> 0 | CQ79: =Repdd!CQ174 -> 0 | CR79: =Repdd!CR174 -> 0 | CS79: =Repdd!CS174 -> 0 | CT79: =Repdd!CT174 -> 0
A80: =ROW() -> 80 | C80: =Lists!$N$13 -> v | F80: Вн.пр-во | G80: =BP!$F$24 -> Вн.пр-во | M80: =Lists!$R$8 -> руб. | S80: =Repdd!S175 -> 0 | W80: =SUM(INDIRECT(ADDRESS(ROW(),SUMIFS($1:$1,$5:$5,1))):INDIRECT(ADDRESS(ROW(),SUMIFS($1:$1,$5:$5,MAX($5:$5))))) -> 247739520 | Z80: =Repdd!Z175 -> 0 | AA80: =Repdd!AA175 -> 0 | AB80: =Repdd!AB175 -> 0 | AC80: =Repdd!AC175 -> 0 | AD80: =Repdd!AD175 -> 0 | AE80: =Repdd!AE175 -> 6600 | AF80: =Repdd!AF175 -> 31800 | AG80: =Repdd!AG175 -> 69120 | AH80: =Repdd!AH175 -> 108345 | AI80: =Repdd!AI175 -> 145440 | AJ80: =Repdd!AJ175 -> 188886 | AK80: =Repdd!AK175 -> 284220 | AL80: =Repdd!AL175 -> 465852 | AM80: =Repdd!AM175 -> 741337.5 | AN80: =Repdd!AN175 -> 1107214.5 | AO80: =Repdd!AO175 -> 1539025.5 | AP80: =Repdd!AP175 -> 2009836.5 | AQ80: =Repdd!AQ175 -> 2502580.5 | AR80: =Repdd!AR175 -> 3006795 | AS80: =Repdd!AS175 -> 3516675 | AT80: =Repdd!AT175 -> 4028670 | AU80: =Repdd!AU175 -> 4541317.5 | AV80: =Repdd!AV175 -> 5054250 | AW80: =Repdd!AW175 -> 5567250 | AX80: =Repdd!AX175 -> 6080250 | AY80: =Repdd!AY175 -> 6593250 | AZ80: =Repdd!AZ175 -> 7106250 | BA80: =Repdd!BA175 -> 7619250 | BB80: =Repdd!BB175 -> 8115750 | BC80: =Repdd!BC175 -> 8549250 | BD80: =Repdd!BD175 -> 8889450 | BE80: =Repdd!BE175 -> 9131587.5 | BF80: =Repdd!BF175 -> 9280987.5 | BG80: =Repdd!BG175 -> 9363022.5 | BH80: =Repdd!BH175 -> 9405472.5 | BI80: =Repdd!BI175 -> 9425842.5 | BJ80: =Repdd!BJ175 -> 9434655 | BK80: =Repdd!BK175 -> 9437775 | BL80: =Repdd!BL175 -> 9438780 | BM80: =Repdd!BM175 -> 9439132.5 | BN80: =Repdd!BN175 -> 9439200 | BO80: =Repdd!BO175 -> 9439200 | BP80: =Repdd!BP175 -> 9439200 | BQ80: =Repdd!BQ175 -> 9439200 | BR80: =Repdd!BR175 -> 9439200 | BS80: =Repdd!BS175 -> 9439200 | BT80: =Repdd!BT175 -> 9439200 | BU80: =Repdd!BU175 -> 9439200 | BV80: =Repdd!BV175 -> 0 | BW80: =Repdd!BW175 -> 0 | BX80: =Repdd!BX175 -> 0 | BY80: =Repdd!BY175 -> 0 | BZ80: =Repdd!BZ175 -> 0 | CA80: =Repdd!CA175 -> 0 | CB80: =Repdd!CB175 -> 0 | CC80: =Repdd!CC175 -> 0 | CD80: =Repdd!CD175 -> 0 | CE80: =Repdd!CE175 -> 0 | CF80: =Repdd!CF175 -> 0 | CG80: =Repdd!CG175 -> 0 | CH80: =Repdd!CH175 -> 0 | CI80: =Repdd!CI175 -> 0 | CJ80: =Repdd!CJ175 -> 0 | CK80: =Repdd!CK175 -> 0 | CL80: =Repdd!CL175 -> 0 | CM80: =Repdd!CM175 -> 0 | CN80: =Repdd!CN175 -> 0 | CO80: =Repdd!CO175 -> 0 | CP80: =Repdd!CP175 -> 0 | CQ80: =Repdd!CQ175 -> 0 | CR80: =Repdd!CR175 -> 0 | CS80: =Repdd!CS175 -> 0 | CT80: =Repdd!CT175 -> 0
A81: =ROW() -> 81 | F81: Вн.пр-во | G81: =BP!$F$26 -> ФОТ првПерс | M81: =Lists!$R$8 -> руб. | S81: =Repdd!S176 -> 0 | W81: =SUM(INDIRECT(ADDRESS(ROW(),SUMIFS($1:$1,$5:$5,1))):INDIRECT(ADDRESS(ROW(),SUMIFS($1:$1,$5:$5,MAX($5:$5))))) -> 12599358 | Z81: =Repdd!Z176 -> 0 | AA81: =Repdd!AA176 -> 0 | AB81: =Repdd!AB176 -> 0 | AC81: =Repdd!AC176 -> 0 | AD81: =Repdd!AD176 -> 0 | AE81: =Repdd!AE176 -> 600 | AF81: =Repdd!AF176 -> 2400 | AG81: =Repdd!AG176 -> 4320 | AH81: =Repdd!AH176 -> 6315 | AI81: =Repdd!AI176 -> 8055 | AJ81: =Repdd!AJ176 -> 10581 | AK81: =Repdd!AK176 -> 17181 | AL81: =Repdd!AL176 -> 28293 | AM81: =Repdd!AM176 -> 44245.5 | AN81: =Repdd!AN176 -> 64455 | AO81: =Repdd!AO176 -> 87175.5 | AP81: =Repdd!AP176 -> 111387 | AQ81: =Repdd!AQ176 -> 136372.5 | AR81: =Repdd!AR176 -> 161767.5 | AS81: =Repdd!AS176 -> 187342.5 | AT81: =Repdd!AT176 -> 212962.5 | AU81: =Repdd!AU176 -> 238605 | AV81: =Repdd!AV176 -> 264255 | AW81: =Repdd!AW176 -> 289905 | AX81: =Repdd!AX176 -> 315555 | AY81: =Repdd!AY176 -> 341205 | AZ81: =Repdd!AZ176 -> 366855 | BA81: =Repdd!BA176 -> 392505 | BB81: =Repdd!BB176 -> 416655 | BC81: =Repdd!BC176 -> 436305 | BD81: =Repdd!BD176 -> 451155 | BE81: =Repdd!BE176 -> 461017.5 | BF81: =Repdd!BF176 -> 466530 | BG81: =Repdd!BG176 -> 469477.5 | BH81: =Repdd!BH176 -> 470925 | BI81: =Repdd!BI176 -> 471592.5 | BJ81: =Repdd!BJ176 -> 471847.5 | BK81: =Repdd!BK176 -> 471922.5 | BL81: =Repdd!BL176 -> 471952.5 | BM81: =Repdd!BM176 -> 471960 | BN81: =Repdd!BN176 -> 471960 | BO81: =Repdd!BO176 -> 471960 | BP81: =Repdd!BP176 -> 471960 | BQ81: =Repdd!BQ176 -> 471960 | BR81: =Repdd!BR176 -> 471960 | BS81: =Repdd!BS176 -> 471960 | BT81: =Repdd!BT176 -> 471960 | BU81: =Repdd!BU176 -> 471960 | BV81: =Repdd!BV176 -> 0 | BW81: =Repdd!BW176 -> 0 | BX81: =Repdd!BX176 -> 0 | BY81: =Repdd!BY176 -> 0 | BZ81: =Repdd!BZ176 -> 0 | CA81: =Repdd!CA176 -> 0 | CB81: =Repdd!CB176 -> 0 | CC81: =Repdd!CC176 -> 0 | CD81: =Repdd!CD176 -> 0 | CE81: =Repdd!CE176 -> 0 | CF81: =Repdd!CF176 -> 0 | CG81: =Repdd!CG176 -> 0 | CH81: =Repdd!CH176 -> 0 | CI81: =Repdd!CI176 -> 0 | CJ81: =Repdd!CJ176 -> 0 | CK81: =Repdd!CK176 -> 0 | CL81: =Repdd!CL176 -> 0 | CM81: =Repdd!CM176 -> 0 | CN81: =Repdd!CN176 -> 0 | CO81: =Repdd!CO176 -> 0 | CP81: =Repdd!CP176 -> 0 | CQ81: =Repdd!CQ176 -> 0 | CR81: =Repdd!CR176 -> 0 | CS81: =Repdd!CS176 -> 0 | CT81: =Repdd!CT176 -> 0
A82: =ROW() -> 82 | F82: Вн.пр-во | G82: =BP!$F$28 -> Соцсборы | M82: =Lists!$R$8 -> руб. | S82: =Repdd!S177 -> 0 | W82: =SUM(INDIRECT(ADDRESS(ROW(),SUMIFS($1:$1,$5:$5,1))):INDIRECT(ADDRESS(ROW(),SUMIFS($1:$1,$5:$5,MAX($5:$5))))) -> 3779807.4 | Z82: =Repdd!Z177 -> 0 | AA82: =Repdd!AA177 -> 0 | AB82: =Repdd!AB177 -> 0 | AC82: =Repdd!AC177 -> 0 | AD82: =Repdd!AD177 -> 0 | AE82: =Repdd!AE177 -> 180 | AF82: =Repdd!AF177 -> 720 | AG82: =Repdd!AG177 -> 1296 | AH82: =Repdd!AH177 -> 1894.5 | AI82: =Repdd!AI177 -> 2416.5 | AJ82: =Repdd!AJ177 -> 3174.3 | AK82: =Repdd!AK177 -> 5154.3 | AL82: =Repdd!AL177 -> 8487.9 | AM82: =Repdd!AM177 -> 13273.65 | AN82: =Repdd!AN177 -> 19336.5 | AO82: =Repdd!AO177 -> 26152.65 | AP82: =Repdd!AP177 -> 33416.1 | AQ82: =Repdd!AQ177 -> 40911.75 | AR82: =Repdd!AR177 -> 48530.25 | AS82: =Repdd!AS177 -> 56202.75 | AT82: =Repdd!AT177 -> 63888.75 | AU82: =Repdd!AU177 -> 71581.5 | AV82: =Repdd!AV177 -> 79276.5 | AW82: =Repdd!AW177 -> 86971.5 | AX82: =Repdd!AX177 -> 94666.5 | AY82: =Repdd!AY177 -> 102361.5 | AZ82: =Repdd!AZ177 -> 110056.5 | BA82: =Repdd!BA177 -> 117751.5 | BB82: =Repdd!BB177 -> 124996.5 | BC82: =Repdd!BC177 -> 130891.5 | BD82: =Repdd!BD177 -> 135346.5 | BE82: =Repdd!BE177 -> 138305.25 | BF82: =Repdd!BF177 -> 139959 | BG82: =Repdd!BG177 -> 140843.25 | BH82: =Repdd!BH177 -> 141277.5 | BI82: =Repdd!BI177 -> 141477.75 | BJ82: =Repdd!BJ177 -> 141554.25 | BK82: =Repdd!BK177 -> 141576.75 | BL82: =Repdd!BL177 -> 141585.75 | BM82: =Repdd!BM177 -> 141588 | BN82: =Repdd!BN177 -> 141588 | BO82: =Repdd!BO177 -> 141588 | BP82: =Repdd!BP177 -> 141588 | BQ82: =Repdd!BQ177 -> 141588 | BR82: =Repdd!BR177 -> 141588 | BS82: =Repdd!BS177 -> 141588 | BT82: =Repdd!BT177 -> 141588 | BU82: =Repdd!BU177 -> 141588 | BV82: =Repdd!BV177 -> 0 | BW82: =Repdd!BW177 -> 0 | BX82: =Repdd!BX177 -> 0 | BY82: =Repdd!BY177 -> 0 | BZ82: =Repdd!BZ177 -> 0 | CA82: =Repdd!CA177 -> 0 | CB82: =Repdd!CB177 -> 0 | CC82: =Repdd!CC177 -> 0 | CD82: =Repdd!CD177 -> 0 | CE82: =Repdd!CE177 -> 0 | CF82: =Repdd!CF177 -> 0 | CG82: =Repdd!CG177 -> 0 | CH82: =Repdd!CH177 -> 0 | CI82: =Repdd!CI177 -> 0 | CJ82: =Repdd!CJ177 -> 0 | CK82: =Repdd!CK177 -> 0 | CL82: =Repdd!CL177 -> 0 | CM82: =Repdd!CM177 -> 0 | CN82: =Repdd!CN177 -> 0 | CO82: =Repdd!CO177 -> 0 | CP82: =Repdd!CP177 -> 0 | CQ82: =Repdd!CQ177 -> 0 | CR82: =Repdd!CR177 -> 0 | CS82: =Repdd!CS177 -> 0 | CT82: =Repdd!CT177 -> 0
A83: =ROW() -> 83 | F83: Вн.пр-во | G83: =BP!$F$29 -> ЭлЭн | M83: =Lists!$R$8 -> руб. | S83: =Repdd!S178 -> 0.2 | W83: =SUM(INDIRECT(ADDRESS(ROW(),SUMIFS($1:$1,$5:$5,1))):INDIRECT(ADDRESS(ROW(),SUMIFS($1:$1,$5:$5,MAX($5:$5))))) -> 2253885.153 | Z83: =Repdd!Z178 -> 0 | AA83: =Repdd!AA178 -> 0 | AB83: =Repdd!AB178 -> 0 | AC83: =Repdd!AC178 -> 0 | AD83: =Repdd!AD178 -> 0 | AE83: =Repdd!AE178 -> 107.3333333 | AF83: =Repdd!AF178 -> 429.3333333 | AG83: =Repdd!AG178 -> 772.8 | AH83: =Repdd!AH178 -> 1129.683333 | AI83: =Repdd!AI178 -> 1440.95 | AJ83: =Repdd!AJ178 -> 1892.823333 | AK83: =Repdd!AK178 -> 3073.49 | AL83: =Repdd!AL178 -> 5061.303333 | AM83: =Repdd!AM178 -> 7915.028333 | AN83: =Repdd!AN178 -> 11530.28333 | AO83: =Repdd!AO178 -> 15594.72833 | AP83: =Repdd!AP178 -> 19925.89667 | AQ83: =Repdd!AQ178 -> 24395.525 | AR83: =Repdd!AR178 -> 28938.40833 | AS83: =Repdd!AS178 -> 33513.49167 | AT83: =Repdd!AT178 -> 38096.625 | AU83: =Repdd!AU178 -> 42683.78333 | AV83: =Repdd!AV178 -> 47272.28333 | AW83: =Repdd!AW178 -> 51860.78333 | AX83: =Repdd!AX178 -> 56449.28333 | AY83: =Repdd!AY178 -> 61037.78333 | AZ83: =Repdd!AZ178 -> 65626.28333 | BA83: =Repdd!BA178 -> 70214.78333 | BB83: =Repdd!BB178 -> 74534.95 | BC83: =Repdd!BC178 -> 78050.11667 | BD83: =Repdd!BD178 -> 80706.61667 | BE83: =Repdd!BE178 -> 82470.90833 | BF83: =Repdd!BF178 -> 83457.03333 | BG83: =Repdd!BG178 -> 83984.30833 | BH83: =Repdd!BH178 -> 84243.25 | BI83: =Repdd!BI178 -> 84362.65833 | BJ83: =Repdd!BJ178 -> 84408.275 | BK83: =Repdd!BK178 -> 84421.69167 | BL83: =Repdd!BL178 -> 84427.05833 | BM83: =Repdd!BM178 -> 84428.4 | BN83: =Repdd!BN178 -> 84428.4 | BO83: =Repdd!BO178 -> 84428.4 | BP83: =Repdd!BP178 -> 84428.4 | BQ83: =Repdd!BQ178 -> 84428.4 | BR83: =Repdd!BR178 -> 84428.4 | BS83: =Repdd!BS178 -> 84428.4 | BT83: =Repdd!BT178 -> 84428.4 | BU83: =Repdd!BU178 -> 84428.4 | BV83: =Repdd!BV178 -> 0 | BW83: =Repdd!BW178 -> 0 | BX83: =Repdd!BX178 -> 0 | BY83: =Repdd!BY178 -> 0 | BZ83: =Repdd!BZ178 -> 0 | CA83: =Repdd!CA178 -> 0 | CB83: =Repdd!CB178 -> 0 | CC83: =Repdd!CC178 -> 0 | CD83: =Repdd!CD178 -> 0 | CE83: =Repdd!CE178 -> 0 | CF83: =Repdd!CF178 -> 0 | CG83: =Repdd!CG178 -> 0 | CH83: =Repdd!CH178 -> 0 | CI83: =Repdd!CI178 -> 0 | CJ83: =Repdd!CJ178 -> 0 | CK83: =Repdd!CK178 -> 0 | CL83: =Repdd!CL178 -> 0 | CM83: =Repdd!CM178 -> 0 | CN83: =Repdd!CN178 -> 0 | CO83: =Repdd!CO178 -> 0 | CP83: =Repdd!CP178 -> 0 | CQ83: =Repdd!CQ178 -> 0 | CR83: =Repdd!CR178 -> 0 | CS83: =Repdd!CS178 -> 0 | CT83: =Repdd!CT178 -> 0
A84: =ROW() -> 84 | E84: =Lists!$N$9 -> пустая строка
A85: =ROW() -> 85 | F85: =BP!$F$139 -> Поступление в пр-во ГП | M85: =Lists!$R$8 -> руб. | V85: =Repdd!V180 -> 0 | W85: =SUM(INDIRECT(ADDRESS(ROW(),SUMIFS($1:$1,$5:$5,1))):INDIRECT(ADDRESS(ROW(),SUMIFS($1:$1,$5:$5,MAX($5:$5))))) -> 384694206.4 | Z85: =Repdd!Z180 -> 0 | AA85: =Repdd!AA180 -> 0 | AB85: =Repdd!AB180 -> 0 | AC85: =Repdd!AC180 -> 0 | AD85: =Repdd!AD180 -> 0 | AE85: =Repdd!AE180 -> 0 | AF85: =Repdd!AF180 -> 0 | AG85: =Repdd!AG180 -> 19803.33333 | AH85: =Repdd!AH180 -> 79213.33333 | AI85: =Repdd!AI180 -> 142584 | AJ85: =Repdd!AJ180 -> 208430.0833 | AK85: =Repdd!AK180 -> 265859.75 | AL85: =Repdd!AL180 -> 349231.7833 | AM85: =Repdd!AM180 -> 567068.45 | AN85: =Repdd!AN180 -> 933826.1833 | AO85: =Repdd!AO180 -> 1460347.308 | AP85: =Repdd!AP180 -> 2127373.083 | AQ85: =Repdd!AQ180 -> 2877275.808 | AR85: =Repdd!AR180 -> 3676389.817 | AS85: =Repdd!AS180 -> 4501050.125 | AT85: =Repdd!AT180 -> 5339226.208 | AU85: =Repdd!AU180 -> 6183343.292 | AV85: =Repdd!AV180 -> 7028945.625 | AW85: =Repdd!AW180 -> 7875290.583 | AX85: =Repdd!AX180 -> 8721883.083 | AY85: =Repdd!AY180 -> 9568475.583 | AZ85: =Repdd!AZ180 -> 10415068.08 | BA85: =Repdd!BA180 -> 11261660.58 | BB85: =Repdd!BB180 -> 12108253.08 | BC85: =Repdd!BC180 -> 12954845.58 | BD85: =Repdd!BD180 -> 13751929.75 | BE85: =Repdd!BE180 -> 14400488.92 | BF85: =Repdd!BF180 -> 14890621.42 | BG85: =Repdd!BG180 -> 15216138.71 | BH85: =Repdd!BH180 -> 15398081.83 | BI85: =Repdd!BI180 -> 15495365.71 | BJ85: =Repdd!BJ180 -> 15543141.25 | BK85: =Repdd!BK180 -> 15565172.46 | BL85: =Repdd!BL180 -> 15573588.88 | BM85: =Repdd!BM180 -> 15576064.29 | BN85: =Repdd!BN180 -> 15577054.46 | BO85: =Repdd!BO180 -> 15577302 | BP85: =Repdd!BP180 -> 15577302 | BQ85: =Repdd!BQ180 -> 15577302 | BR85: =Repdd!BR180 -> 15577302 | BS85: =Repdd!BS180 -> 15577302 | BT85: =Repdd!BT180 -> 15577302 | BU85: =Repdd!BU180 -> 15577302 | BV85: =Repdd!BV180 -> 0 | BW85: =Repdd!BW180 -> 0 | BX85: =Repdd!BX180 -> 0 | BY85: =Repdd!BY180 -> 0 | BZ85: =Repdd!BZ180 -> 0 | CA85: =Repdd!CA180 -> 0 | CB85: =Repdd!CB180 -> 0 | CC85: =Repdd!CC180 -> 0 | CD85: =Repdd!CD180 -> 0 | CE85: =Repdd!CE180 -> 0 | CF85: =Repdd!CF180 -> 0 | CG85: =Repdd!CG180 -> 0 | CH85: =Repdd!CH180 -> 0 | CI85: =Repdd!CI180 -> 0 | CJ85: =Repdd!CJ180 -> 0 | CK85: =Repdd!CK180 -> 0 | CL85: =Repdd!CL180 -> 0 | CM85: =Repdd!CM180 -> 0 | CN85: =Repdd!CN180 -> 0 | CO85: =Repdd!CO180 -> 0 | CP85: =Repdd!CP180 -> 0 | CQ85: =Repdd!CQ180 -> 0 | CR85: =Repdd!CR180 -> 0 | CS85: =Repdd!CS180 -> 0 | CT85: =Repdd!CT180 -> 0
A86: =ROW() -> 86 | F86: =BP!$F$163 -> Поступление ГП на склад ГП | M86: =Lists!$R$8 -> руб. | V86: =Repdd!V191 -> 0 | W86: =SUM(INDIRECT(ADDRESS(ROW(),SUMIFS($1:$1,$5:$5,1))):INDIRECT(ADDRESS(ROW(),SUMIFS($1:$1,$5:$5,MAX($5:$5))))) -> 369116904.4 | Z86: =Repdd!Z191 -> 0 | AA86: =Repdd!AA191 -> 0 | AB86: =Repdd!AB191 -> 0 | AC86: =Repdd!AC191 -> 0 | AD86: =Repdd!AD191 -> 0 | AE86: =Repdd!AE191 -> 0 | AF86: =Repdd!AF191 -> 0 | AG86: =Repdd!AG191 -> 0 | AH86: =Repdd!AH191 -> 19803.33333 | AI86: =Repdd!AI191 -> 79213.33333 | AJ86: =Repdd!AJ191 -> 142584 | AK86: =Repdd!AK191 -> 208430.0833 | AL86: =Repdd!AL191 -> 265859.75 | AM86: =Repdd!AM191 -> 349231.7833 | AN86: =Repdd!AN191 -> 567068.45 | AO86: =Repdd!AO191 -> 933826.1833 | AP86: =Repdd!AP191 -> 1460347.308 | AQ86: =Repdd!AQ191 -> 2127373.083 | AR86: =Repdd!AR191 -> 2877275.808 | AS86: =Repdd!AS191 -> 3676389.817 | AT86: =Repdd!AT191 -> 4501050.125 | AU86: =Repdd!AU191 -> 5339226.208 | AV86: =Repdd!AV191 -> 6183343.292 | AW86: =Repdd!AW191 -> 7028945.625 | AX86: =Repdd!AX191 -> 7875290.583 | AY86: =Repdd!AY191 -> 8721883.083 | AZ86: =Repdd!AZ191 -> 9568475.583 | BA86: =Repdd!BA191 -> 10415068.08 | BB86: =Repdd!BB191 -> 11261660.58 | BC86: =Repdd!BC191 -> 12108253.08 | BD86: =Repdd!BD191 -> 12954845.58 | BE86: =Repdd!BE191 -> 13751929.75 | BF86: =Repdd!BF191 -> 14400488.92 | BG86: =Repdd!BG191 -> 14890621.42 | BH86: =Repdd!BH191 -> 15216138.71 | BI86: =Repdd!BI191 -> 15398081.83 | BJ86: =Repdd!BJ191 -> 15495365.71 | BK86: =Repdd!BK191 -> 15543141.25 | BL86: =Repdd!BL191 -> 15565172.46 | BM86: =Repdd!BM191 -> 15573588.88 | BN86: =Repdd!BN191 -> 15576064.29 | BO86: =Repdd!BO191 -> 15577054.46 | BP86: =Repdd!BP191 -> 15577302 | BQ86: =Repdd!BQ191 -> 15577302 | BR86: =Repdd!BR191 -> 15577302 | BS86: =Repdd!BS191 -> 15577302 | BT86: =Repdd!BT191 -> 15577302 | BU86: =Repdd!BU191 -> 15577302 | BV86: =Repdd!BV191 -> 0 | BW86: =Repdd!BW191 -> 0 | BX86: =Repdd!BX191 -> 0 | BY86: =Repdd!BY191 -> 0 | BZ86: =Repdd!BZ191 -> 0 | CA86: =Repdd!CA191 -> 0 | CB86: =Repdd!CB191 -> 0 | CC86: =Repdd!CC191 -> 0 | CD86: =Repdd!CD191 -> 0 | CE86: =Repdd!CE191 -> 0 | CF86: =Repdd!CF191 -> 0 | CG86: =Repdd!CG191 -> 0 | CH86: =Repdd!CH191 -> 0 | CI86: =Repdd!CI191 -> 0 | CJ86: =Repdd!CJ191 -> 0 | CK86: =Repdd!CK191 -> 0 | CL86: =Repdd!CL191 -> 0 | CM86: =Repdd!CM191 -> 0 | CN86: =Repdd!CN191 -> 0 | CO86: =Repdd!CO191 -> 0 | CP86: =Repdd!CP191 -> 0 | CQ86: =Repdd!CQ191 -> 0 | CR86: =Repdd!CR191 -> 0 | CS86: =Repdd!CS191 -> 0 | CT86: =Repdd!CT191 -> 0
A87: =ROW() -> 87
A88: =ROW() -> 88 | F88: Отчет о прибылях и убытках с НДС
A89: =ROW() -> 89 | C89: =Lists!$N$10 -> в натуральных величинах | F89: =BP!$F$201 -> Продажи | M89: =Lists!$R$8 -> руб. | V89: =W89-SUMIFS(Potoki!$W:$W,Potoki!$F:$F,F89,Potoki!$G:$G,"") -> 0 | W89: =SUM(INDIRECT(ADDRESS(ROW(),SUMIFS($1:$1,$5:$5,1))):INDIRECT(ADDRESS(ROW(),SUMIFS($1:$1,$5:$5,MAX($5:$5))))) -> 886304995.1 | Z89: =Repdd!Z204 -> 0 | AA89: =Repdd!AA204 -> 0 | AB89: =Repdd!AB204 -> 0 | AC89: =Repdd!AC204 -> 0 | AD89: =Repdd!AD204 -> 0 | AE89: =Repdd!AE204 -> 0 | AF89: =Repdd!AF204 -> 0 | AG89: =Repdd!AG204 -> 0 | AH89: =Repdd!AH204 -> 6292.2 | AI89: =Repdd!AI204 -> 54532.4 | AJ89: =Repdd!AJ204 -> 173245.24 | AK89: =Repdd!AK204 -> 322737.425 | AL89: =Repdd!AL204 -> 482559.305 | AM89: =Repdd!AM204 -> 641972.192 | AN89: =Repdd!AN204 -> 878700.4865 | AO89: =Repdd!AO204 -> 1374643.825 | AP89: =Repdd!AP204 -> 2217090.753 | AQ89: =Repdd!AQ204 -> 3442532.359 | AR89: =Repdd!AR204 -> 5017312.714 | AS89: =Repdd!AS204 -> 6837499.88 | AT89: =Repdd!AT204 -> 8812596.553 | AU89: =Repdd!AU204 -> 10875789.79 | AV89: =Repdd!AV204 -> 12986207.57 | AW89: =Repdd!AW204 -> 15119467.6 | AX89: =Repdd!AX204 -> 17261676.72 | AY89: =Repdd!AY204 -> 19407440.14 | AZ89: =Repdd!AZ204 -> 21554482.98 | BA89: =Repdd!BA204 -> 23701845.67 | BB89: =Repdd!BB204 -> 25849283.08 | BC89: =Repdd!BC204 -> 27996732.29 | BD89: =Repdd!BD204 -> 30144181.49 | BE89: =Repdd!BE204 -> 32275900.2 | BF89: =Repdd!BF204 -> 34287018.41 | BG89: =Repdd!BG204 -> 36001354.52 | BH89: =Repdd!BH204 -> 37341960.16 | BI89: =Repdd!BI204 -> 38283011.11 | BJ89: =Repdd!BJ204 -> 38864856.08 | BK89: =Repdd!BK204 -> 39195707.82 | BL89: =Repdd!BL204 -> 39369483.97 | BM89: =Repdd!BM204 -> 39454251.7 | BN89: =Repdd!BN204 -> 39491411.07 | BO89: =Repdd!BO204 -> 39505630.13 | BP89: =Repdd!BP204 -> 39510874.95 | BQ89: =Repdd!BQ204 -> 39512560.73 | BR89: =Repdd!BR204 -> 39512967.1 | BS89: =Repdd!BS204 -> 39513053.62 | BT89: =Repdd!BT204 -> 39513065.42 | BU89: =Repdd!BU204 -> 39513065.42 | BV89: =Repdd!BV204 -> 0 | BW89: =Repdd!BW204 -> 0 | BX89: =Repdd!BX204 -> 0 | BY89: =Repdd!BY204 -> 0 | BZ89: =Repdd!BZ204 -> 0 | CA89: =Repdd!CA204 -> 0 | CB89: =Repdd!CB204 -> 0 | CC89: =Repdd!CC204 -> 0 | CD89: =Repdd!CD204 -> 0 | CE89: =Repdd!CE204 -> 0 | CF89: =Repdd!CF204 -> 0 | CG89: =Repdd!CG204 -> 0 | CH89: =Repdd!CH204 -> 0 | CI89: =Repdd!CI204 -> 0 | CJ89: =Repdd!CJ204 -> 0 | CK89: =Repdd!CK204 -> 0 | CL89: =Repdd!CL204 -> 0 | CM89: =Repdd!CM204 -> 0 | CN89: =Repdd!CN204 -> 0 | CO89: =Repdd!CO204 -> 0 | CP89: =Repdd!CP204 -> 0 | CQ89: =Repdd!CQ204 -> 0 | CR89: =Repdd!CR204 -> 0 | CS89: =Repdd!CS204 -> 0 | CT89: =Repdd!CT204 -> 0
A90: =ROW() -> 90 | F90: =Potoki!$F$120 -> Себестоимость продаж в натуральных величинах | G90: =BP!$F$20 -> Продукт | M90: =BP!$M$20 -> шт | V90: =W90-SUMIFS(Potoki!$W:$W,Potoki!$F:$F,F90,Potoki!$G:$G,G90) -> 0 | W90: =SUM(INDIRECT(ADDRESS(ROW(),SUMIFS($1:$1,$5:$5,1))):INDIRECT(ADDRESS(ROW(),SUMIFS($1:$1,$5:$5,MAX($5:$5))))) -> 698369.2 | Z90: =Repdd!Z205 -> 0 | AA90: =Repdd!AA205 -> 0 | AB90: =Repdd!AB205 -> 0 | AC90: =Repdd!AC205 -> 0 | AD90: =Repdd!AD205 -> 0 | AE90: =Repdd!AE205 -> 0 | AF90: =Repdd!AF205 -> 0 | AG90: =Repdd!AG205 -> 0 | AH90: =Repdd!AH205 -> 4 | AI90: =Repdd!AI205 -> 36 | AJ90: =Repdd!AJ205 -> 118.8 | AK90: =Repdd!AK205 -> 230.1 | AL90: =Repdd!AL205 -> 354.2 | AM90: =Repdd!AM205 -> 481.09 | AN90: =Repdd!AN205 -> 657.99 | AO90: =Repdd!AO205 -> 1012.42 | AP90: =Repdd!AP205 -> 1621.81 | AQ90: =Repdd!AQ205 -> 2525.91 | AR90: =Repdd!AR205 -> 3712.985 | AS90: =Repdd!AS205 -> 5111.96 | AT90: =Repdd!AT205 -> 6652.16 | AU90: =Repdd!AU205 -> 8276.67 | AV90: =Repdd!AV205 -> 9947.24 | AW90: =Repdd!AW205 -> 11641.065 | AX90: =Repdd!AX205 -> 13344.85 | AY90: =Repdd!AY205 -> 15052.75 | AZ90: =Repdd!AZ205 -> 16762.175 | BA90: =Repdd!BA205 -> 18472.025 | BB90: =Repdd!BB205 -> 20182 | BC90: =Repdd!BC205 -> 21892 | BD90: =Repdd!BD205 -> 23602 | BE90: =Repdd!BE205 -> 25302 | BF90: =Repdd!BF205 -> 26922 | BG90: =Repdd!BG205 -> 28335 | BH90: =Repdd!BH205 -> 29469.75 | BI90: =Repdd!BI205 -> 30294.25 | BJ90: =Repdd!BJ205 -> 30826.525 | BK90: =Repdd!BK205 -> 31141.55 | BL90: =Repdd!BL205 -> 31313 | BM90: =Repdd!BM205 -> 31399.1 | BN90: =Repdd!BN205 -> 31438.7 | BO90: =Repdd!BO205 -> 31454.925 | BP90: =Repdd!BP205 -> 31461.15 | BQ90: =Repdd!BQ205 -> 31463.25 | BR90: =Repdd!BR205 -> 31463.825 | BS90: =Repdd!BS205 -> 31463.975 | BT90: =Repdd!BT205 -> 31464 | BU90: =Repdd!BU205 -> 31464 | BV90: =Repdd!BV205 -> 0 | BW90: =Repdd!BW205 -> 0 | BX90: =Repdd!BX205 -> 0 | BY90: =Repdd!BY205 -> 0 | BZ90: =Repdd!BZ205 -> 0 | CA90: =Repdd!CA205 -> 0 | CB90: =Repdd!CB205 -> 0 | CC90: =Repdd!CC205 -> 0 | CD90: =Repdd!CD205 -> 0 | CE90: =Repdd!CE205 -> 0 | CF90: =Repdd!CF205 -> 0 | CG90: =Repdd!CG205 -> 0 | CH90: =Repdd!CH205 -> 0 | CI90: =Repdd!CI205 -> 0 | CJ90: =Repdd!CJ205 -> 0 | CK90: =Repdd!CK205 -> 0 | CL90: =Repdd!CL205 -> 0 | CM90: =Repdd!CM205 -> 0 | CN90: =Repdd!CN205 -> 0 | CO90: =Repdd!CO205 -> 0 | CP90: =Repdd!CP205 -> 0 | CQ90: =Repdd!CQ205 -> 0 | CR90: =Repdd!CR205 -> 0 | CS90: =Repdd!CS205 -> 0 | CT90: =Repdd!CT205 -> 0
A91: =ROW() -> 91 | G91: Средний чек | M91: =Lists!$R$8 -> руб. | W91: =IF(W90=0,0,W89/W90) -> 1269.106649 | Z91: =IF(Z90=0,0,Z89/Z90) -> 0 | AA91: 0 | AB91: 0 | AC91: 0 | AD91: 0 | AE91: 0 | AF91: 0 | AG91: 0 | AH91: 1573.05 | AI91: 1514.788889 | AJ91: 1458.293266 | AK91: 1402.596371 | AL91: 1362.392165 | AM91: 1334.41184 | AN91: 1335.431369 | AO91: 1357.780195 | AP91: 1367.047159 | AQ91: 1362.887972 | AR91: 1351.288172 | AS91: 1337.549566 | AT91: 1324.772187 | AU91: 1314.029651 | AV91: 1305.50862 | AW91: 1298.8045 | AX91: 1293.508486 | AY91: 1289.295321 | AZ91: 1285.900128 | BA91: 1283.121134 | BB91: 1280.808794 | BC91: 1278.856764 | BD91: 1277.18759 | BE91: 1275.626441 | BF91: 1273.568769 | BG91: 1270.561303 | BH91: 1267.128502 | BI91: 1263.705525 | BJ91: 1260.760208 | BK91: 1258.630602 | BL91: 1257.288793 | BM91: 1256.540847 | BN91: 1256.140078 | BO91: 1255.944185 | BP91: 1255.862387 | BQ91: 1255.832145 | BR91: 1255.82211 | BS91: 1255.818873 | BT91: 1255.81825 | BU91: 1255.81825 | BV91: 0 | BW91: 0 | BX91: 0 | BY91: 0 | BZ91: 0 | CA91: 0 | CB91: 0 | CC91: 0 | CD91: 0 | CE91: 0 | CF91: 0 | CG91: 0 | CH91: 0 | CI91: 0 | CJ91: 0 | CK91: 0 | CL91: =IF(CL90=0,0,CL89/CL90) -> 0 | CM91: 0 | CN91: 0 | CO91: 0 | CP91: 0 | CQ91: 0 | CR91: 0 | CS91: 0 | CT91: 0
A92: =ROW() -> 92 | F92: =BP!$F$188 -> Себестоимость продаж | M92: =Lists!$R$8 -> руб. | V92: =W92-SUM(W93:W102) -> 0 | W92: =SUM(INDIRECT(ADDRESS(ROW(),SUMIFS($1:$1,$5:$5,1))):INDIRECT(ADDRESS(ROW(),SUMIFS($1:$1,$5:$5,MAX($5:$5))))) -> 366189890 | Z92: =Repdd!Z207 -> 0 | AA92: =Repdd!AA207 -> 0 | AB92: =Repdd!AB207 -> 0 | AC92: =Repdd!AC207 -> 0 | AD92: =Repdd!AD207 -> 0 | AE92: =Repdd!AE207 -> 0 | AF92: =Repdd!AF207 -> 0 | AG92: =Repdd!AG207 -> 0 | AH92: =Repdd!AH207 -> 2097.4 | AI92: =Repdd!AI207 -> 18876.6 | AJ92: =Repdd!AJ207 -> 62292.78 | AK92: =Repdd!AK207 -> 120652.935 | AL92: =Repdd!AL207 -> 185724.77 | AM92: =Repdd!AM207 -> 252259.5415 | AN92: =Repdd!AN207 -> 345017.0565 | AO92: =Repdd!AO207 -> 530862.427 | AP92: =Repdd!AP207 -> 850396.0735 | AQ92: =Repdd!AQ207 -> 1324460.908 | AR92: =Repdd!AR207 -> 1946903.685 | AS92: =Repdd!AS207 -> 2680456.226 | AT92: =Repdd!AT207 -> 3488060.096 | AU92: =Repdd!AU207 -> 4339871.914 | AV92: =Repdd!AV207 -> 5215835.294 | AW92: =Repdd!AW207 -> 6103992.433 | AX92: =Repdd!AX207 -> 6997372.097 | AY92: =Repdd!AY207 -> 7892909.463 | AZ92: =Repdd!AZ207 -> 8789246.461 | BA92: =Repdd!BA207 -> 9685806.309 | BB92: =Repdd!BB207 -> 10582431.7 | BC92: =Repdd!BC207 -> 11479070.2 | BD92: =Repdd!BD207 -> 12375708.7 | BE92: =Repdd!BE207 -> 13267103.7 | BF92: =Repdd!BF207 -> 14116550.7 | BG92: =Repdd!BG207 -> 14857457.25 | BH92: =Repdd!BH207 -> 15452463.41 | BI92: =Repdd!BI207 -> 15884789.99 | BJ92: =Repdd!BJ207 -> 16163888.38 | BK92: =Repdd!BK207 -> 16329071.74 | BL92: =Repdd!BL207 -> 16418971.55 | BM92: =Repdd!BM207 -> 16464118.08 | BN92: =Repdd!BN207 -> 16484882.34 | BO92: =Repdd!BO207 -> 16493389.92 | BP92: =Repdd!BP207 -> 16496654 | BQ92: =Repdd!BQ207 -> 16497755.14 | BR92: =Repdd!BR207 -> 16498056.64 | BS92: =Repdd!BS207 -> 16498135.29 | BT92: =Repdd!BT207 -> 16498148.4 | BU92: =Repdd!BU207 -> 16498148.4 | BV92: =Repdd!BV207 -> 0 | BW92: =Repdd!BW207 -> 0 | BX92: =Repdd!BX207 -> 0 | BY92: =Repdd!BY207 -> 0 | BZ92: =Repdd!BZ207 -> 0 | CA92: =Repdd!CA207 -> 0 | CB92: =Repdd!CB207 -> 0 | CC92: =Repdd!CC207 -> 0 | CD92: =Repdd!CD207 -> 0 | CE92: =Repdd!CE207 -> 0 | CF92: =Repdd!CF207 -> 0 | CG92: =Repdd!CG207 -> 0 | CH92: =Repdd!CH207 -> 0 | CI92: =Repdd!CI207 -> 0 | CJ92: =Repdd!CJ207 -> 0 | CK92: =Repdd!CK207 -> 0 | CL92: =Repdd!CL207 -> 0 | CM92: =Repdd!CM207 -> 0 | CN92: =Repdd!CN207 -> 0 | CO92: =Repdd!CO207 -> 0 | CP92: =Repdd!CP207 -> 0 | CQ92: =Repdd!CQ207 -> 0 | CR92: =Repdd!CR207 -> 0 | CS92: =Repdd!CS207 -> 0 | CT92: =Repdd!CT207 -> 0
A93: =ROW() -> 93 | F93: =$F$92 -> Себестоимость продаж | G93: =BP!$F$21 -> Основа | M93: =Lists!$R$8 -> руб. | W93: =SUM(INDIRECT(ADDRESS(ROW(),SUMIFS($1:$1,$5:$5,1))):INDIRECT(ADDRESS(ROW(),SUMIFS($1:$1,$5:$5,MAX($5:$5))))) -> 73328766 | Z93: =Repdd!Z208 -> 0 | AA93: =Repdd!AA208 -> 0 | AB93: =Repdd!AB208 -> 0 | AC93: =Repdd!AC208 -> 0 | AD93: =Repdd!AD208 -> 0 | AE93: =Repdd!AE208 -> 0 | AF93: =Repdd!AF208 -> 0 | AG93: =Repdd!AG208 -> 0 | AH93: =Repdd!AH208 -> 420 | AI93: =Repdd!AI208 -> 3780 | AJ93: =Repdd!AJ208 -> 12474 | AK93: =Repdd!AK208 -> 24160.5 | AL93: =Repdd!AL208 -> 37191 | AM93: =Repdd!AM208 -> 50514.45 | AN93: =Repdd!AN208 -> 69088.95 | AO93: =Repdd!AO208 -> 106304.1 | AP93: =Repdd!AP208 -> 170290.05 | AQ93: =Repdd!AQ208 -> 265220.55 | AR93: =Repdd!AR208 -> 389863.425 | AS93: =Repdd!AS208 -> 536755.8 | AT93: =Repdd!AT208 -> 698476.8 | AU93: =Repdd!AU208 -> 869050.35 | AV93: =Repdd!AV208 -> 1044460.2 | AW93: =Repdd!AW208 -> 1222311.825 | AX93: =Repdd!AX208 -> 1401209.25 | AY93: =Repdd!AY208 -> 1580538.75 | AZ93: =Repdd!AZ208 -> 1760028.375 | BA93: =Repdd!BA208 -> 1939562.625 | BB93: =Repdd!BB208 -> 2119110 | BC93: =Repdd!BC208 -> 2298660 | BD93: =Repdd!BD208 -> 2478210 | BE93: =Repdd!BE208 -> 2656710 | BF93: =Repdd!BF208 -> 2826810 | BG93: =Repdd!BG208 -> 2975175 | BH93: =Repdd!BH208 -> 3094323.75 | BI93: =Repdd!BI208 -> 3180896.25 | BJ93: =Repdd!BJ208 -> 3236785.125 | BK93: =Repdd!BK208 -> 3269862.75 | BL93: =Repdd!BL208 -> 3287865 | BM93: =Repdd!BM208 -> 3296905.5 | BN93: =Repdd!BN208 -> 3301063.5 | BO93: =Repdd!BO208 -> 3302767.125 | BP93: =Repdd!BP208 -> 3303420.75 | BQ93: =Repdd!BQ208 -> 3303641.25 | BR93: =Repdd!BR208 -> 3303701.625 | BS93: =Repdd!BS208 -> 3303717.375 | BT93: =Repdd!BT208 -> 3303720 | BU93: =Repdd!BU208 -> 3303720 | BV93: =Repdd!BV208 -> 0 | BW93: =Repdd!BW208 -> 0 | BX93: =Repdd!BX208 -> 0 | BY93: =Repdd!BY208 -> 0 | BZ93: =Repdd!BZ208 -> 0 | CA93: =Repdd!CA208 -> 0 | CB93: =Repdd!CB208 -> 0 | CC93: =Repdd!CC208 -> 0 | CD93: =Repdd!CD208 -> 0 | CE93: =Repdd!CE208 -> 0 | CF93: =Repdd!CF208 -> 0 | CG93: =Repdd!CG208 -> 0 | CH93: =Repdd!CH208 -> 0 | CI93: =Repdd!CI208 -> 0 | CJ93: =Repdd!CJ208 -> 0 | CK93: =Repdd!CK208 -> 0 | CL93: =Repdd!CL208 -> 0 | CM93: =Repdd!CM208 -> 0 | CN93: =Repdd!CN208 -> 0 | CO93: =Repdd!CO208 -> 0 | CP93: =Repdd!CP208 -> 0 | CQ93: =Repdd!CQ208 -> 0 | CR93: =Repdd!CR208 -> 0 | CS93: =Repdd!CS208 -> 0 | CT93: =Repdd!CT208 -> 0
A94: =ROW() -> 94 | F94: Себестоимость продаж | G94: =BP!$F$22 -> Сырье | M94: =Lists!$R$8 -> руб. | W94: =SUM(INDIRECT(ADDRESS(ROW(),SUMIFS($1:$1,$5:$5,1))):INDIRECT(ADDRESS(ROW(),SUMIFS($1:$1,$5:$5,MAX($5:$5))))) -> 8380430.4 | Z94: =Repdd!Z209 -> 0 | AA94: =Repdd!AA209 -> 0 | AB94: =Repdd!AB209 -> 0 | AC94: =Repdd!AC209 -> 0 | AD94: =Repdd!AD209 -> 0 | AE94: =Repdd!AE209 -> 0 | AF94: =Repdd!AF209 -> 0 | AG94: =Repdd!AG209 -> 0 | AH94: =Repdd!AH209 -> 48 | AI94: =Repdd!AI209 -> 432 | AJ94: =Repdd!AJ209 -> 1425.6 | AK94: =Repdd!AK209 -> 2761.2 | AL94: =Repdd!AL209 -> 4250.4 | AM94: =Repdd!AM209 -> 5773.08 | AN94: =Repdd!AN209 -> 7895.88 | AO94: =Repdd!AO209 -> 12149.04 | AP94: =Repdd!AP209 -> 19461.72 | AQ94: =Repdd!AQ209 -> 30310.92 | AR94: =Repdd!AR209 -> 44555.82 | AS94: =Repdd!AS209 -> 61343.52 | AT94: =Repdd!AT209 -> 79825.92 | AU94: =Repdd!AU209 -> 99320.04 | AV94: =Repdd!AV209 -> 119366.88 | AW94: =Repdd!AW209 -> 139692.78 | AX94: =Repdd!AX209 -> 160138.2 | AY94: =Repdd!AY209 -> 180633 | AZ94: =Repdd!AZ209 -> 201146.1 | BA94: =Repdd!BA209 -> 221664.3 | BB94: =Repdd!BB209 -> 242184 | BC94: =Repdd!BC209 -> 262704 | BD94: =Repdd!BD209 -> 283224 | BE94: =Repdd!BE209 -> 303624 | BF94: =Repdd!BF209 -> 323064 | BG94: =Repdd!BG209 -> 340020 | BH94: =Repdd!BH209 -> 353637 | BI94: =Repdd!BI209 -> 363531 | BJ94: =Repdd!BJ209 -> 369918.3 | BK94: =Repdd!BK209 -> 373698.6 | BL94: =Repdd!BL209 -> 375756 | BM94: =Repdd!BM209 -> 376789.2 | BN94: =Repdd!BN209 -> 377264.4 | BO94: =Repdd!BO209 -> 377459.1 | BP94: =Repdd!BP209 -> 377533.8 | BQ94: =Repdd!BQ209 -> 377559 | BR94: =Repdd!BR209 -> 377565.9 | BS94: =Repdd!BS209 -> 377567.7 | BT94: =Repdd!BT209 -> 377568 | BU94: =Repdd!BU209 -> 377568 | BV94: =Repdd!BV209 -> 0 | BW94: =Repdd!BW209 -> 0 | BX94: =Repdd!BX209 -> 0 | BY94: =Repdd!BY209 -> 0 | BZ94: =Repdd!BZ209 -> 0 | CA94: =Repdd!CA209 -> 0 | CB94: =Repdd!CB209 -> 0 | CC94: =Repdd!CC209 -> 0 | CD94: =Repdd!CD209 -> 0 | CE94: =Repdd!CE209 -> 0 | CF94: =Repdd!CF209 -> 0 | CG94: =Repdd!CG209 -> 0 | CH94: =Repdd!CH209 -> 0 | CI94: =Repdd!CI209 -> 0 | CJ94: =Repdd!CJ209 -> 0 | CK94: =Repdd!CK209 -> 0 | CL94: =Repdd!CL209 -> 0 | CM94: =Repdd!CM209 -> 0 | CN94: =Repdd!CN209 -> 0 | CO94: =Repdd!CO209 -> 0 | CP94: =Repdd!CP209 -> 0 | CQ94: =Repdd!CQ209 -> 0 | CR94: =Repdd!CR209 -> 0 | CS94: =Repdd!CS209 -> 0 | CT94: =Repdd!CT209 -> 0
A95: =ROW() -> 95 | F95: Себестоимость продаж | G95: =BP!$F$23 -> Материал | M95: =Lists!$R$8 -> руб. | W95: =SUM(INDIRECT(ADDRESS(ROW(),SUMIFS($1:$1,$5:$5,1))):INDIRECT(ADDRESS(ROW(),SUMIFS($1:$1,$5:$5,MAX($5:$5))))) -> 9777168.8 | Z95: =Repdd!Z210 -> 0 | AA95: =Repdd!AA210 -> 0 | AB95: =Repdd!AB210 -> 0 | AC95: =Repdd!AC210 -> 0 | AD95: =Repdd!AD210 -> 0 | AE95: =Repdd!AE210 -> 0 | AF95: =Repdd!AF210 -> 0 | AG95: =Repdd!AG210 -> 0 | AH95: =Repdd!AH210 -> 56 | AI95: =Repdd!AI210 -> 504 | AJ95: =Repdd!AJ210 -> 1663.2 | AK95: =Repdd!AK210 -> 3221.4 | AL95: =Repdd!AL210 -> 4958.8 | AM95: =Repdd!AM210 -> 6735.26 | AN95: =Repdd!AN210 -> 9211.86 | AO95: =Repdd!AO210 -> 14173.88 | AP95: =Repdd!AP210 -> 22705.34 | AQ95: =Repdd!AQ210 -> 35362.74 | AR95: =Repdd!AR210 -> 51981.79 | AS95: =Repdd!AS210 -> 71567.44 | AT95: =Repdd!AT210 -> 93130.24 | AU95: =Repdd!AU210 -> 115873.38 | AV95: =Repdd!AV210 -> 139261.36 | AW95: =Repdd!AW210 -> 162974.91 | AX95: =Repdd!AX210 -> 186827.9 | AY95: =Repdd!AY210 -> 210738.5 | AZ95: =Repdd!AZ210 -> 234670.45 | BA95: =Repdd!BA210 -> 258608.35 | BB95: =Repdd!BB210 -> 282548 | BC95: =Repdd!BC210 -> 306488 | BD95: =Repdd!BD210 -> 330428 | BE95: =Repdd!BE210 -> 354228 | BF95: =Repdd!BF210 -> 376908 | BG95: =Repdd!BG210 -> 396690 | BH95: =Repdd!BH210 -> 412576.5 | BI95: =Repdd!BI210 -> 424119.5 | BJ95: =Repdd!BJ210 -> 431571.35 | BK95: =Repdd!BK210 -> 435981.7 | BL95: =Repdd!BL210 -> 438382 | BM95: =Repdd!BM210 -> 439587.4 | BN95: =Repdd!BN210 -> 440141.8 | BO95: =Repdd!BO210 -> 440368.95 | BP95: =Repdd!BP210 -> 440456.1 | BQ95: =Repdd!BQ210 -> 440485.5 | BR95: =Repdd!BR210 -> 440493.55 | BS95: =Repdd!BS210 -> 440495.65 | BT95: =Repdd!BT210 -> 440496 | BU95: =Repdd!BU210 -> 440496 | BV95: =Repdd!BV210 -> 0 | BW95: =Repdd!BW210 -> 0 | BX95: =Repdd!BX210 -> 0 | BY95: =Repdd!BY210 -> 0 | BZ95: =Repdd!BZ210 -> 0 | CA95: =Repdd!CA210 -> 0 | CB95: =Repdd!CB210 -> 0 | CC95: =Repdd!CC210 -> 0 | CD95: =Repdd!CD210 -> 0 | CE95: =Repdd!CE210 -> 0 | CF95: =Repdd!CF210 -> 0 | CG95: =Repdd!CG210 -> 0 | CH95: =Repdd!CH210 -> 0 | CI95: =Repdd!CI210 -> 0 | CJ95: =Repdd!CJ210 -> 0 | CK95: =Repdd!CK210 -> 0 | CL95: =Repdd!CL210 -> 0 | CM95: =Repdd!CM210 -> 0 | CN95: =Repdd!CN210 -> 0 | CO95: =Repdd!CO210 -> 0 | CP95: =Repdd!CP210 -> 0 | CQ95: =Repdd!CQ210 -> 0 | CR95: =Repdd!CR210 -> 0 | CS95: =Repdd!CS210 -> 0 | CT95: =Repdd!CT210 -> 0
A96: =ROW() -> 96 | F96: Себестоимость продаж | G96: =BP!$F$24 -> Вн.пр-во | M96: =Lists!$R$8 -> руб. | W96: =SUM(INDIRECT(ADDRESS(ROW(),SUMIFS($1:$1,$5:$5,1))):INDIRECT(ADDRESS(ROW(),SUMIFS($1:$1,$5:$5,MAX($5:$5))))) -> 209510760 | Z96: =Repdd!Z211 -> 0 | AA96: =Repdd!AA211 -> 0 | AB96: =Repdd!AB211 -> 0 | AC96: =Repdd!AC211 -> 0 | AD96: =Repdd!AD211 -> 0 | AE96: =Repdd!AE211 -> 0 | AF96: =Repdd!AF211 -> 0 | AG96: =Repdd!AG211 -> 0 | AH96: =Repdd!AH211 -> 1200 | AI96: =Repdd!AI211 -> 10800 | AJ96: =Repdd!AJ211 -> 35640 | AK96: =Repdd!AK211 -> 69030 | AL96: =Repdd!AL211 -> 106260 | AM96: =Repdd!AM211 -> 144327 | AN96: =Repdd!AN211 -> 197397 | AO96: =Repdd!AO211 -> 303726 | AP96: =Repdd!AP211 -> 486543 | AQ96: =Repdd!AQ211 -> 757773 | AR96: =Repdd!AR211 -> 1113895.5 | AS96: =Repdd!AS211 -> 1533588 | AT96: =Repdd!AT211 -> 1995648 | AU96: =Repdd!AU211 -> 2483001 | AV96: =Repdd!AV211 -> 2984172 | AW96: =Repdd!AW211 -> 3492319.5 | AX96: =Repdd!AX211 -> 4003455 | AY96: =Repdd!AY211 -> 4515825 | AZ96: =Repdd!AZ211 -> 5028652.5 | BA96: =Repdd!BA211 -> 5541607.5 | BB96: =Repdd!BB211 -> 6054600 | BC96: =Repdd!BC211 -> 6567600 | BD96: =Repdd!BD211 -> 7080600 | BE96: =Repdd!BE211 -> 7590600 | BF96: =Repdd!BF211 -> 8076600 | BG96: =Repdd!BG211 -> 8500500 | BH96: =Repdd!BH211 -> 8840925 | BI96: =Repdd!BI211 -> 9088275 | BJ96: =Repdd!BJ211 -> 9247957.5 | BK96: =Repdd!BK211 -> 9342465 | BL96: =Repdd!BL211 -> 9393900 | BM96: =Repdd!BM211 -> 9419730 | BN96: =Repdd!BN211 -> 9431610 | BO96: =Repdd!BO211 -> 9436477.5 | BP96: =Repdd!BP211 -> 9438345 | BQ96: =Repdd!BQ211 -> 9438975 | BR96: =Repdd!BR211 -> 9439147.5 | BS96: =Repdd!BS211 -> 9439192.5 | BT96: =Repdd!BT211 -> 9439200 | BU96: =Repdd!BU211 -> 9439200 | BV96: =Repdd!BV211 -> 0 | BW96: =Repdd!BW211 -> 0 | BX96: =Repdd!BX211 -> 0 | BY96: =Repdd!BY211 -> 0 | BZ96: =Repdd!BZ211 -> 0 | CA96: =Repdd!CA211 -> 0 | CB96: =Repdd!CB211 -> 0 | CC96: =Repdd!CC211 -> 0 | CD96: =Repdd!CD211 -> 0 | CE96: =Repdd!CE211 -> 0 | CF96: =Repdd!CF211 -> 0 | CG96: =Repdd!CG211 -> 0 | CH96: =Repdd!CH211 -> 0 | CI96: =Repdd!CI211 -> 0 | CJ96: =Repdd!CJ211 -> 0 | CK96: =Repdd!CK211 -> 0 | CL96: =Repdd!CL211 -> 0 | CM96: =Repdd!CM211 -> 0 | CN96: =Repdd!CN211 -> 0 | CO96: =Repdd!CO211 -> 0 | CP96: =Repdd!CP211 -> 0 | CQ96: =Repdd!CQ211 -> 0 | CR96: =Repdd!CR211 -> 0 | CS96: =Repdd!CS211 -> 0 | CT96: =Repdd!CT211 -> 0
A97: =ROW() -> 97 | F97: Себестоимость продаж | G97: =BP!$F$25 -> Упаковка | M97: =Lists!$R$8 -> руб. | W97: =SUM(INDIRECT(ADDRESS(ROW(),SUMIFS($1:$1,$5:$5,1))):INDIRECT(ADDRESS(ROW(),SUMIFS($1:$1,$5:$5,MAX($5:$5))))) -> 27934768 | Z97: =Repdd!Z212 -> 0 | AA97: =Repdd!AA212 -> 0 | AB97: =Repdd!AB212 -> 0 | AC97: =Repdd!AC212 -> 0 | AD97: =Repdd!AD212 -> 0 | AE97: =Repdd!AE212 -> 0 | AF97: =Repdd!AF212 -> 0 | AG97: =Repdd!AG212 -> 0 | AH97: =Repdd!AH212 -> 160 | AI97: =Repdd!AI212 -> 1440 | AJ97: =Repdd!AJ212 -> 4752 | AK97: =Repdd!AK212 -> 9204 | AL97: =Repdd!AL212 -> 14168 | AM97: =Repdd!AM212 -> 19243.6 | AN97: =Repdd!AN212 -> 26319.6 | AO97: =Repdd!AO212 -> 40496.8 | AP97: =Repdd!AP212 -> 64872.4 | AQ97: =Repdd!AQ212 -> 101036.4 | AR97: =Repdd!AR212 -> 148519.4 | AS97: =Repdd!AS212 -> 204478.4 | AT97: =Repdd!AT212 -> 266086.4 | AU97: =Repdd!AU212 -> 331066.8 | AV97: =Repdd!AV212 -> 397889.6 | AW97: =Repdd!AW212 -> 465642.6 | AX97: =Repdd!AX212 -> 533794 | AY97: =Repdd!AY212 -> 602110 | AZ97: =Repdd!AZ212 -> 670487 | BA97: =Repdd!BA212 -> 738881 | BB97: =Repdd!BB212 -> 807280 | BC97: =Repdd!BC212 -> 875680 | BD97: =Repdd!BD212 -> 944080 | BE97: =Repdd!BE212 -> 1012080 | BF97: =Repdd!BF212 -> 1076880 | BG97: =Repdd!BG212 -> 1133400 | BH97: =Repdd!BH212 -> 1178790 | BI97: =Repdd!BI212 -> 1211770 | BJ97: =Repdd!BJ212 -> 1233061 | BK97: =Repdd!BK212 -> 1245662 | BL97: =Repdd!BL212 -> 1252520 | BM97: =Repdd!BM212 -> 1255964 | BN97: =Repdd!BN212 -> 1257548 | BO97: =Repdd!BO212 -> 1258197 | BP97: =Repdd!BP212 -> 1258446 | BQ97: =Repdd!BQ212 -> 1258530 | BR97: =Repdd!BR212 -> 1258553 | BS97: =Repdd!BS212 -> 1258559 | BT97: =Repdd!BT212 -> 1258560 | BU97: =Repdd!BU212 -> 1258560 | BV97: =Repdd!BV212 -> 0 | BW97: =Repdd!BW212 -> 0 | BX97: =Repdd!BX212 -> 0 | BY97: =Repdd!BY212 -> 0 | BZ97: =Repdd!BZ212 -> 0 | CA97: =Repdd!CA212 -> 0 | CB97: =Repdd!CB212 -> 0 | CC97: =Repdd!CC212 -> 0 | CD97: =Repdd!CD212 -> 0 | CE97: =Repdd!CE212 -> 0 | CF97: =Repdd!CF212 -> 0 | CG97: =Repdd!CG212 -> 0 | CH97: =Repdd!CH212 -> 0 | CI97: =Repdd!CI212 -> 0 | CJ97: =Repdd!CJ212 -> 0 | CK97: =Repdd!CK212 -> 0 | CL97: =Repdd!CL212 -> 0 | CM97: =Repdd!CM212 -> 0 | CN97: =Repdd!CN212 -> 0 | CO97: =Repdd!CO212 -> 0 | CP97: =Repdd!CP212 -> 0 | CQ97: =Repdd!CQ212 -> 0 | CR97: =Repdd!CR212 -> 0 | CS97: =Repdd!CS212 -> 0 | CT97: =Repdd!CT212 -> 0
A98: =ROW() -> 98 | F98: Себестоимость продаж | G98: =BP!$F$26 -> ФОТ првПерс | M98: =Lists!$R$8 -> руб. | W98: =SUM(INDIRECT(ADDRESS(ROW(),SUMIFS($1:$1,$5:$5,1))):INDIRECT(ADDRESS(ROW(),SUMIFS($1:$1,$5:$5,MAX($5:$5))))) -> 17459230 | Z98: =Repdd!Z213 -> 0 | AA98: =Repdd!AA213 -> 0 | AB98: =Repdd!AB213 -> 0 | AC98: =Repdd!AC213 -> 0 | AD98: =Repdd!AD213 -> 0 | AE98: =Repdd!AE213 -> 0 | AF98: =Repdd!AF213 -> 0 | AG98: =Repdd!AG213 -> 0 | AH98: =Repdd!AH213 -> 100 | AI98: =Repdd!AI213 -> 900 | AJ98: =Repdd!AJ213 -> 2970 | AK98: =Repdd!AK213 -> 5752.5 | AL98: =Repdd!AL213 -> 8855 | AM98: =Repdd!AM213 -> 12027.25 | AN98: =Repdd!AN213 -> 16449.75 | AO98: =Repdd!AO213 -> 25310.5 | AP98: =Repdd!AP213 -> 40545.25 | AQ98: =Repdd!AQ213 -> 63147.75 | AR98: =Repdd!AR213 -> 92824.625 | AS98: =Repdd!AS213 -> 127799 | AT98: =Repdd!AT213 -> 166304 | AU98: =Repdd!AU213 -> 206916.75 | AV98: =Repdd!AV213 -> 248681 | AW98: =Repdd!AW213 -> 291026.625 | AX98: =Repdd!AX213 -> 333621.25 | AY98: =Repdd!AY213 -> 376318.75 | AZ98: =Repdd!AZ213 -> 419054.375 | BA98: =Repdd!BA213 -> 461800.625 | BB98: =Repdd!BB213 -> 504550 | BC98: =Repdd!BC213 -> 547300 | BD98: =Repdd!BD213 -> 590050 | BE98: =Repdd!BE213 -> 632550 | BF98: =Repdd!BF213 -> 673050 | BG98: =Repdd!BG213 -> 708375 | BH98: =Repdd!BH213 -> 736743.75 | BI98: =Repdd!BI213 -> 757356.25 | BJ98: =Repdd!BJ213 -> 770663.125 | BK98: =Repdd!BK213 -> 778538.75 | BL98: =Repdd!BL213 -> 782825 | BM98: =Repdd!BM213 -> 784977.5 | BN98: =Repdd!BN213 -> 785967.5 | BO98: =Repdd!BO213 -> 786373.125 | BP98: =Repdd!BP213 -> 786528.75 | BQ98: =Repdd!BQ213 -> 786581.25 | BR98: =Repdd!BR213 -> 786595.625 | BS98: =Repdd!BS213 -> 786599.375 | BT98: =Repdd!BT213 -> 786600 | BU98: =Repdd!BU213 -> 786600 | BV98: =Repdd!BV213 -> 0 | BW98: =Repdd!BW213 -> 0 | BX98: =Repdd!BX213 -> 0 | BY98: =Repdd!BY213 -> 0 | BZ98: =Repdd!BZ213 -> 0 | CA98: =Repdd!CA213 -> 0 | CB98: =Repdd!CB213 -> 0 | CC98: =Repdd!CC213 -> 0 | CD98: =Repdd!CD213 -> 0 | CE98: =Repdd!CE213 -> 0 | CF98: =Repdd!CF213 -> 0 | CG98: =Repdd!CG213 -> 0 | CH98: =Repdd!CH213 -> 0 | CI98: =Repdd!CI213 -> 0 | CJ98: =Repdd!CJ213 -> 0 | CK98: =Repdd!CK213 -> 0 | CL98: =Repdd!CL213 -> 0 | CM98: =Repdd!CM213 -> 0 | CN98: =Repdd!CN213 -> 0 | CO98: =Repdd!CO213 -> 0 | CP98: =Repdd!CP213 -> 0 | CQ98: =Repdd!CQ213 -> 0 | CR98: =Repdd!CR213 -> 0 | CS98: =Repdd!CS213 -> 0 | CT98: =Repdd!CT213 -> 0
A99: =ROW() -> 99 | F99: Себестоимость продаж | G99: =BP!$F$27 -> ФОТ упак | M99: =Lists!$R$8 -> руб. | W99: =SUM(INDIRECT(ADDRESS(ROW(),SUMIFS($1:$1,$5:$5,1))):INDIRECT(ADDRESS(ROW(),SUMIFS($1:$1,$5:$5,MAX($5:$5))))) -> 8729615 | Z99: =Repdd!Z214 -> 0 | AA99: =Repdd!AA214 -> 0 | AB99: =Repdd!AB214 -> 0 | AC99: =Repdd!AC214 -> 0 | AD99: =Repdd!AD214 -> 0 | AE99: =Repdd!AE214 -> 0 | AF99: =Repdd!AF214 -> 0 | AG99: =Repdd!AG214 -> 0 | AH99: =Repdd!AH214 -> 50 | AI99: =Repdd!AI214 -> 450 | AJ99: =Repdd!AJ214 -> 1485 | AK99: =Repdd!AK214 -> 2876.25 | AL99: =Repdd!AL214 -> 4427.5 | AM99: =Repdd!AM214 -> 6013.625 | AN99: =Repdd!AN214 -> 8224.875 | AO99: =Repdd!AO214 -> 12655.25 | AP99: =Repdd!AP214 -> 20272.625 | AQ99: =Repdd!AQ214 -> 31573.875 | AR99: =Repdd!AR214 -> 46412.3125 | AS99: =Repdd!AS214 -> 63899.5 | AT99: =Repdd!AT214 -> 83152 | AU99: =Repdd!AU214 -> 103458.375 | AV99: =Repdd!AV214 -> 124340.5 | AW99: =Repdd!AW214 -> 145513.3125 | AX99: =Repdd!AX214 -> 166810.625 | AY99: =Repdd!AY214 -> 188159.375 | AZ99: =Repdd!AZ214 -> 209527.1875 | BA99: =Repdd!BA214 -> 230900.3125 | BB99: =Repdd!BB214 -> 252275 | BC99: =Repdd!BC214 -> 273650 | BD99: =Repdd!BD214 -> 295025 | BE99: =Repdd!BE214 -> 316275 | BF99: =Repdd!BF214 -> 336525 | BG99: =Repdd!BG214 -> 354187.5 | BH99: =Repdd!BH214 -> 368371.875 | BI99: =Repdd!BI214 -> 378678.125 | BJ99: =Repdd!BJ214 -> 385331.5625 | BK99: =Repdd!BK214 -> 389269.375 | BL99: =Repdd!BL214 -> 391412.5 | BM99: =Repdd!BM214 -> 392488.75 | BN99: =Repdd!BN214 -> 392983.75 | BO99: =Repdd!BO214 -> 393186.5625 | BP99: =Repdd!BP214 -> 393264.375 | BQ99: =Repdd!BQ214 -> 393290.625 | BR99: =Repdd!BR214 -> 393297.8125 | BS99: =Repdd!BS214 -> 393299.6875 | BT99: =Repdd!BT214 -> 393300 | BU99: =Repdd!BU214 -> 393300 | BV99: =Repdd!BV214 -> 0 | BW99: =Repdd!BW214 -> 0 | BX99: =Repdd!BX214 -> 0 | BY99: =Repdd!BY214 -> 0 | BZ99: =Repdd!BZ214 -> 0 | CA99: =Repdd!CA214 -> 0 | CB99: =Repdd!CB214 -> 0 | CC99: =Repdd!CC214 -> 0 | CD99: =Repdd!CD214 -> 0 | CE99: =Repdd!CE214 -> 0 | CF99: =Repdd!CF214 -> 0 | CG99: =Repdd!CG214 -> 0 | CH99: =Repdd!CH214 -> 0 | CI99: =Repdd!CI214 -> 0 | CJ99: =Repdd!CJ214 -> 0 | CK99: =Repdd!CK214 -> 0 | CL99: =Repdd!CL214 -> 0 | CM99: =Repdd!CM214 -> 0 | CN99: =Repdd!CN214 -> 0 | CO99: =Repdd!CO214 -> 0 | CP99: =Repdd!CP214 -> 0 | CQ99: =Repdd!CQ214 -> 0 | CR99: =Repdd!CR214 -> 0 | CS99: =Repdd!CS214 -> 0 | CT99: =Repdd!CT214 -> 0
A100: =ROW() -> 100 | F100: Себестоимость продаж | G100: =BP!$F$28 -> Соцсборы | M100: =Lists!$R$8 -> руб. | W100: =SUM(INDIRECT(ADDRESS(ROW(),SUMIFS($1:$1,$5:$5,1))):INDIRECT(ADDRESS(ROW(),SUMIFS($1:$1,$5:$5,MAX($5:$5))))) -> 7856653.5 | Z100: =Repdd!Z215 -> 0 | AA100: =Repdd!AA215 -> 0 | AB100: =Repdd!AB215 -> 0 | AC100: =Repdd!AC215 -> 0 | AD100: =Repdd!AD215 -> 0 | AE100: =Repdd!AE215 -> 0 | AF100: =Repdd!AF215 -> 0 | AG100: =Repdd!AG215 -> 0 | AH100: =Repdd!AH215 -> 45 | AI100: =Repdd!AI215 -> 405 | AJ100: =Repdd!AJ215 -> 1336.5 | AK100: =Repdd!AK215 -> 2588.625 | AL100: =Repdd!AL215 -> 3984.75 | AM100: =Repdd!AM215 -> 5412.2625 | AN100: =Repdd!AN215 -> 7402.3875 | AO100: =Repdd!AO215 -> 11389.725 | AP100: =Repdd!AP215 -> 18245.3625 | AQ100: =Repdd!AQ215 -> 28416.4875 | AR100: =Repdd!AR215 -> 41771.08125 | AS100: =Repdd!AS215 -> 57509.55 | AT100: =Repdd!AT215 -> 74836.8 | AU100: =Repdd!AU215 -> 93112.5375 | AV100: =Repdd!AV215 -> 111906.45 | AW100: =Repdd!AW215 -> 130961.9813 | AX100: =Repdd!AX215 -> 150129.5625 | AY100: =Repdd!AY215 -> 169343.4375 | AZ100: =Repdd!AZ215 -> 188574.4688 | BA100: =Repdd!BA215 -> 207810.2812 | BB100: =Repdd!BB215 -> 227047.5 | BC100: =Repdd!BC215 -> 246285 | BD100: =Repdd!BD215 -> 265522.5 | BE100: =Repdd!BE215 -> 284647.5 | BF100: =Repdd!BF215 -> 302872.5 | BG100: =Repdd!BG215 -> 318768.75 | BH100: =Repdd!BH215 -> 331534.6875 | BI100: =Repdd!BI215 -> 340810.3125 | BJ100: =Repdd!BJ215 -> 346798.4062 | BK100: =Repdd!BK215 -> 350342.4375 | BL100: =Repdd!BL215 -> 352271.25 | BM100: =Repdd!BM215 -> 353239.875 | BN100: =Repdd!BN215 -> 353685.375 | BO100: =Repdd!BO215 -> 353867.9062 | BP100: =Repdd!BP215 -> 353937.9375 | BQ100: =Repdd!BQ215 -> 353961.5625 | BR100: =Repdd!BR215 -> 353968.0313 | BS100: =Repdd!BS215 -> 353969.7188 | BT100: =Repdd!BT215 -> 353970 | BU100: =Repdd!BU215 -> 353970 | BV100: =Repdd!BV215 -> 0 | BW100: =Repdd!BW215 -> 0 | BX100: =Repdd!BX215 -> 0 | BY100: =Repdd!BY215 -> 0 | BZ100: =Repdd!BZ215 -> 0 | CA100: =Repdd!CA215 -> 0 | CB100: =Repdd!CB215 -> 0 | CC100: =Repdd!CC215 -> 0 | CD100: =Repdd!CD215 -> 0 | CE100: =Repdd!CE215 -> 0 | CF100: =Repdd!CF215 -> 0 | CG100: =Repdd!CG215 -> 0 | CH100: =Repdd!CH215 -> 0 | CI100: =Repdd!CI215 -> 0 | CJ100: =Repdd!CJ215 -> 0 | CK100: =Repdd!CK215 -> 0 | CL100: =Repdd!CL215 -> 0 | CM100: =Repdd!CM215 -> 0 | CN100: =Repdd!CN215 -> 0 | CO100: =Repdd!CO215 -> 0 | CP100: =Repdd!CP215 -> 0 | CQ100: =Repdd!CQ215 -> 0 | CR100: =Repdd!CR215 -> 0 | CS100: =Repdd!CS215 -> 0 | CT100: =Repdd!CT215 -> 0
A101: =ROW() -> 101 | F101: Себестоимость продаж | G101: =BP!$F$29 -> ЭлЭн | M101: =Lists!$R$8 -> руб. | W101: =SUM(INDIRECT(ADDRESS(ROW(),SUMIFS($1:$1,$5:$5,1))):INDIRECT(ADDRESS(ROW(),SUMIFS($1:$1,$5:$5,MAX($5:$5))))) -> 3212498.32 | Z101: =Repdd!Z216 -> 0 | AA101: =Repdd!AA216 -> 0 | AB101: =Repdd!AB216 -> 0 | AC101: =Repdd!AC216 -> 0 | AD101: =Repdd!AD216 -> 0 | AE101: =Repdd!AE216 -> 0 | AF101: =Repdd!AF216 -> 0 | AG101: =Repdd!AG216 -> 0 | AH101: =Repdd!AH216 -> 18.4 | AI101: =Repdd!AI216 -> 165.6 | AJ101: =Repdd!AJ216 -> 546.48 | AK101: =Repdd!AK216 -> 1058.46 | AL101: =Repdd!AL216 -> 1629.32 | AM101: =Repdd!AM216 -> 2213.014 | AN101: =Repdd!AN216 -> 3026.754 | AO101: =Repdd!AO216 -> 4657.132 | AP101: =Repdd!AP216 -> 7460.326 | AQ101: =Repdd!AQ216 -> 11619.186 | AR101: =Repdd!AR216 -> 17079.731 | AS101: =Repdd!AS216 -> 23515.016 | AT101: =Repdd!AT216 -> 30599.936 | AU101: =Repdd!AU216 -> 38072.682 | AV101: =Repdd!AV216 -> 45757.304 | AW101: =Repdd!AW216 -> 53548.899 | AX101: =Repdd!AX216 -> 61386.31 | AY101: =Repdd!AY216 -> 69242.65 | AZ101: =Repdd!AZ216 -> 77106.005 | BA101: =Repdd!BA216 -> 84971.315 | BB101: =Repdd!BB216 -> 92837.2 | BC101: =Repdd!BC216 -> 100703.2 | BD101: =Repdd!BD216 -> 108569.2 | BE101: =Repdd!BE216 -> 116389.2 | BF101: =Repdd!BF216 -> 123841.2 | BG101: =Repdd!BG216 -> 130341 | BH101: =Repdd!BH216 -> 135560.85 | BI101: =Repdd!BI216 -> 139353.55 | BJ101: =Repdd!BJ216 -> 141802.015 | BK101: =Repdd!BK216 -> 143251.13 | BL101: =Repdd!BL216 -> 144039.8 | BM101: =Repdd!BM216 -> 144435.86 | BN101: =Repdd!BN216 -> 144618.02 | BO101: =Repdd!BO216 -> 144692.655 | BP101: =Repdd!BP216 -> 144721.29 | BQ101: =Repdd!BQ216 -> 144730.95 | BR101: =Repdd!BR216 -> 144733.595 | BS101: =Repdd!BS216 -> 144734.285 | BT101: =Repdd!BT216 -> 144734.4 | BU101: =Repdd!BU216 -> 144734.4 | BV101: =Repdd!BV216 -> 0 | BW101: =Repdd!BW216 -> 0 | BX101: =Repdd!BX216 -> 0 | BY101: =Repdd!BY216 -> 0 | BZ101: =Repdd!BZ216 -> 0 | CA101: =Repdd!CA216 -> 0 | CB101: =Repdd!CB216 -> 0 | CC101: =Repdd!CC216 -> 0 | CD101: =Repdd!CD216 -> 0 | CE101: =Repdd!CE216 -> 0 | CF101: =Repdd!CF216 -> 0 | CG101: =Repdd!CG216 -> 0 | CH101: =Repdd!CH216 -> 0 | CI101: =Repdd!CI216 -> 0 | CJ101: =Repdd!CJ216 -> 0 | CK101: =Repdd!CK216 -> 0 | CL101: =Repdd!CL216 -> 0 | CM101: =Repdd!CM216 -> 0 | CN101: =Repdd!CN216 -> 0 | CO101: =Repdd!CO216 -> 0 | CP101: =Repdd!CP216 -> 0 | CQ101: =Repdd!CQ216 -> 0 | CR101: =Repdd!CR216 -> 0 | CS101: =Repdd!CS216 -> 0 | CT101: =Repdd!CT216 -> 0
A102: =ROW() -> 102 | E102: =Lists!$N$9 -> пустая строка | V102: =W92-SUMIFS(Potoki!$W:$W,Potoki!$F:$F,F92,Potoki!$G:$G,"") -> 0
A103: =ROW() -> 103 | F103: Валовая прибыль | M103: =Lists!$R$8 -> руб. | V103: =W103-(W89-W92) -> 0 | W103: =SUM(INDIRECT(ADDRESS(ROW(),SUMIFS($1:$1,$5:$5,1))):INDIRECT(ADDRESS(ROW(),SUMIFS($1:$1,$5:$5,MAX($5:$5))))) -> 520115105.1 | Z103: =Repdd!Z218 -> 0 | AA103: =Repdd!AA218 -> 0 | AB103: =Repdd!AB218 -> 0 | AC103: =Repdd!AC218 -> 0 | AD103: =Repdd!AD218 -> 0 | AE103: =Repdd!AE218 -> 0 | AF103: =Repdd!AF218 -> 0 | AG103: =Repdd!AG218 -> 0 | AH103: =Repdd!AH218 -> 4194.8 | AI103: =Repdd!AI218 -> 35655.8 | AJ103: =Repdd!AJ218 -> 110952.46 | AK103: =Repdd!AK218 -> 202084.49 | AL103: =Repdd!AL218 -> 296834.535 | AM103: =Repdd!AM218 -> 389712.6505 | AN103: =Repdd!AN218 -> 533683.43 | AO103: =Repdd!AO218 -> 843781.3983 | AP103: =Repdd!AP218 -> 1366694.679 | AQ103: =Repdd!AQ218 -> 2118071.45 | AR103: =Repdd!AR218 -> 3070409.029 | AS103: =Repdd!AS218 -> 4157043.654 | AT103: =Repdd!AT218 -> 5324536.457 | AU103: =Repdd!AU218 -> 6535917.88 | AV103: =Repdd!AV218 -> 7770372.276 | AW103: =Repdd!AW218 -> 9015475.171 | AX103: =Repdd!AX218 -> 10264304.62 | AY103: =Repdd!AY218 -> 11514530.68 | AZ103: =Repdd!AZ218 -> 12765236.52 | BA103: =Repdd!BA218 -> 14016039.36 | BB103: =Repdd!BB218 -> 15266851.38 | BC103: =Repdd!BC218 -> 16517662.09 | BD103: =Repdd!BD218 -> 17768472.79 | BE103: =Repdd!BE218 -> 19008796.5 | BF103: =Repdd!BF218 -> 20170467.71 | BG103: =Repdd!BG218 -> 21143897.27 | BH103: =Repdd!BH218 -> 21889496.75 | BI103: =Repdd!BI218 -> 22398221.12 | BJ103: =Repdd!BJ218 -> 22700967.7 | BK103: =Repdd!BK218 -> 22866636.08 | BL103: =Repdd!BL218 -> 22950512.42 | BM103: =Repdd!BM218 -> 22990133.62 | BN103: =Repdd!BN218 -> 23006528.73 | BO103: =Repdd!BO218 -> 23012240.21 | BP103: =Repdd!BP218 -> 23014220.94 | BQ103: =Repdd!BQ218 -> 23014805.59 | BR103: =Repdd!BR218 -> 23014910.46 | BS103: =Repdd!BS218 -> 23014918.33 | BT103: =Repdd!BT218 -> 23014917.02 | BU103: =Repdd!BU218 -> 23014917.02 | BV103: =Repdd!BV218 -> 0 | BW103: =Repdd!BW218 -> 0 | BX103: =Repdd!BX218 -> 0 | BY103: =Repdd!BY218 -> 0 | BZ103: =Repdd!BZ218 -> 0 | CA103: =Repdd!CA218 -> 0 | CB103: =Repdd!CB218 -> 0 | CC103: =Repdd!CC218 -> 0 | CD103: =Repdd!CD218 -> 0 | CE103: =Repdd!CE218 -> 0 | CF103: =Repdd!CF218 -> 0 | CG103: =Repdd!CG218 -> 0 | CH103: =Repdd!CH218 -> 0 | CI103: =Repdd!CI218 -> 0 | CJ103: =Repdd!CJ218 -> 0 | CK103: =Repdd!CK218 -> 0 | CL103: =Repdd!CL218 -> 0 | CM103: =Repdd!CM218 -> 0 | CN103: =Repdd!CN218 -> 0 | CO103: =Repdd!CO218 -> 0 | CP103: =Repdd!CP218 -> 0 | CQ103: =Repdd!CQ218 -> 0 | CR103: =Repdd!CR218 -> 0 | CS103: =Repdd!CS218 -> 0 | CT103: =Repdd!CT218 -> 0
A104: =ROW() -> 104 | F104: Рентабельность продаж | M104: % | W104: =IF(W$89=0,0,W103/W$89) -> 0.5868353535 | Z104: =IF(Z$89=0,0,Z103/Z$89) -> 0 | AA104: =IF(AA$89=0,0,AA103/AA$89) -> 0 | AB104: 0 | AC104: 0 | AD104: 0 | AE104: 0 | AF104: 0 | AG104: 0 | AH104: 0.6666666667 | AI104: 0.6538461538 | AJ104: 0.6404358354 | AK104: 0.6261575955 | AL104: 0.6151255026 | AM104: 0.607055345 | AN104: 0.6073553369 | AO104: 0.6138181999 | AP104: 0.6164360559 | AQ104: 0.6152655166 | AR104: 0.6119628582 | AS104: 0.6079771447 | AT104: 0.6041960987 | AU104: 0.6009602984 | AV104: 0.5983557735 | AW104: 0.5962825813 | AX104: 0.5946296405 | AY104: 0.5933049694 | AZ104: 0.5922311628 | BA104: 0.5913480138 | BB104: 0.5906102437 | BC104: 0.5899853568 | BD104: 0.5894495028 | BE104: 0.588947059 | BF104: 0.5882829317 | BG104: 0.5873083819 | BH104: 0.5861903514 | BI104: 0.5850694726 | BJ104: 0.5841001354 | BK104: 0.5833964317 | BL104: 0.5829518222 | BM104: 0.5827035775 | BN104: 0.5825704401 | BO104: 0.5825053323 | BP104: 0.5824781399 | BQ104: 0.5824680853 | BR104: 0.582464749 | BS104: 0.5824636726 | BT104: 0.5824634656 | BU104: 0.5824634656 | BV104: 0 | BW104: 0 | BX104: 0 | BY104: 0 | BZ104: 0 | CA104: 0 | CB104: 0 | CC104: 0 | CD104: 0 | CE104: 0 | CF104: 0 | CG104: 0 | CH104: 0 | CI104: 0 | CJ104: 0 | CK104: 0 | CL104: 0 | CM104: =IF(CM$89=0,0,CM103/CM$89) -> 0 | CN104: 0 | CO104: 0 | CP104: 0 | CQ104: 0 | CR104: 0 | CS104: 0 | CT104: 0
A105: =ROW() -> 105
A106: =ROW() -> 106 | C106: =Lists!$N$11 -> 24 | F106: Отчет о прибылях и убытках без НДС | S106: ставка НДС:
A107: =ROW() -> 107 | C107: =Lists!$N$12 -> в натуральных величинах | F107: Выручка | M107: =Lists!$R$8 -> руб. | S107: =Repdd!S241 -> 0.2 | W107: =SUM(INDIRECT(ADDRESS(ROW(),SUMIFS($1:$1,$5:$5,1))):INDIRECT(ADDRESS(ROW(),SUMIFS($1:$1,$5:$5,MAX($5:$5))))) -> 738587495.9 | Z107: =Repdd!Z241 -> 0 | AA107: =Repdd!AA241 -> 0 | AB107: =Repdd!AB241 -> 0 | AC107: =Repdd!AC241 -> 0 | AD107: =Repdd!AD241 -> 0 | AE107: =Repdd!AE241 -> 0 | AF107: =Repdd!AF241 -> 0 | AG107: =Repdd!AG241 -> 0 | AH107: =Repdd!AH241 -> 5243.5 | AI107: =Repdd!AI241 -> 45443.66667 | AJ107: =Repdd!AJ241 -> 144371.0333 | AK107: =Repdd!AK241 -> 268947.8542 | AL107: =Repdd!AL241 -> 402132.7542 | AM107: =Repdd!AM241 -> 534976.8267 | AN107: =Repdd!AN241 -> 732250.4054 | AO107: =Repdd!AO241 -> 1145536.521 | AP107: =Repdd!AP241 -> 1847575.627 | AQ107: =Repdd!AQ241 -> 2868776.965 | AR107: =Repdd!AR241 -> 4181093.928 | AS107: =Repdd!AS241 -> 5697916.567 | AT107: =Repdd!AT241 -> 7343830.461 | AU107: =Repdd!AU241 -> 9063158.162 | AV107: =Repdd!AV241 -> 10821839.64 | AW107: =Repdd!AW241 -> 12599556.34 | AX107: =Repdd!AX241 -> 14384730.6 | AY107: =Repdd!AY241 -> 16172866.79 | AZ107: =Repdd!AZ241 -> 17962069.15 | BA107: =Repdd!BA241 -> 19751538.06 | BB107: =Repdd!BB241 -> 21541069.23 | BC107: =Repdd!BC241 -> 23330610.24 | BD107: =Repdd!BD241 -> 25120151.24 | BE107: =Repdd!BE241 -> 26896583.5 | BF107: =Repdd!BF241 -> 28572515.34 | BG107: =Repdd!BG241 -> 30001128.76 | BH107: =Repdd!BH241 -> 31118300.13 | BI107: =Repdd!BI241 -> 31902509.25 | BJ107: =Repdd!BJ241 -> 32387380.07 | BK107: =Repdd!BK241 -> 32663089.85 | BL107: =Repdd!BL241 -> 32807903.31 | BM107: =Repdd!BM241 -> 32878543.08 | BN107: =Repdd!BN241 -> 32909509.23 | BO107: =Repdd!BO241 -> 32921358.45 | BP107: =Repdd!BP241 -> 32925729.12 | BQ107: =Repdd!BQ241 -> 32927133.94 | BR107: =Repdd!BR241 -> 32927472.59 | BS107: =Repdd!BS241 -> 32927544.68 | BT107: =Repdd!BT241 -> 32927554.52 | BU107: =Repdd!BU241 -> 32927554.52 | BV107: =Repdd!BV241 -> 0 | BW107: =Repdd!BW241 -> 0 | BX107: =Repdd!BX241 -> 0 | BY107: =Repdd!BY241 -> 0 | BZ107: =Repdd!BZ241 -> 0 | CA107: =Repdd!CA241 -> 0 | CB107: =Repdd!CB241 -> 0 | CC107: =Repdd!CC241 -> 0 | CD107: =Repdd!CD241 -> 0 | CE107: =Repdd!CE241 -> 0 | CF107: =Repdd!CF241 -> 0 | CG107: =Repdd!CG241 -> 0 | CH107: =Repdd!CH241 -> 0 | CI107: =Repdd!CI241 -> 0 | CJ107: =Repdd!CJ241 -> 0 | CK107: =Repdd!CK241 -> 0 | CL107: =Repdd!CL241 -> 0 | CM107: =Repdd!CM241 -> 0 | CN107: =Repdd!CN241 -> 0 | CO107: =Repdd!CO241 -> 0 | CP107: =Repdd!CP241 -> 0 | CQ107: =Repdd!CQ241 -> 0 | CR107: =Repdd!CR241 -> 0 | CS107: =Repdd!CS241 -> 0 | CT107: =Repdd!CT241 -> 0
A108: =ROW() -> 108 | F108: =Potoki!$F$120 -> Себестоимость продаж в натуральных величинах | G108: =BP!$F$20 -> Продукт | M108: =BP!$M$20 -> шт | V108: =W108-SUMIFS(Potoki!$W:$W,Potoki!$F:$F,F108,Potoki!$G:$G,G108) -> 0 | W108: =SUM(INDIRECT(ADDRESS(ROW(),SUMIFS($1:$1,$5:$5,1))):INDIRECT(ADDRESS(ROW(),SUMIFS($1:$1,$5:$5,MAX($5:$5))))) -> 698369.2 | Z108: =Repdd!Z242 -> 0 | AA108: =Repdd!AA242 -> 0 | AB108: =Repdd!AB242 -> 0 | AC108: =Repdd!AC242 -> 0 | AD108: =Repdd!AD242 -> 0 | AE108: =Repdd!AE242 -> 0 | AF108: =Repdd!AF242 -> 0 | AG108: =Repdd!AG242 -> 0 | AH108: =Repdd!AH242 -> 4 | AI108: =Repdd!AI242 -> 36 | AJ108: =Repdd!AJ242 -> 118.8 | AK108: =Repdd!AK242 -> 230.1 | AL108: =Repdd!AL242 -> 354.2 | AM108: =Repdd!AM242 -> 481.09 | AN108: =Repdd!AN242 -> 657.99 | AO108: =Repdd!AO242 -> 1012.42 | AP108: =Repdd!AP242 -> 1621.81 | AQ108: =Repdd!AQ242 -> 2525.91 | AR108: =Repdd!AR242 -> 3712.985 | AS108: =Repdd!AS242 -> 5111.96 | AT108: =Repdd!AT242 -> 6652.16 | AU108: =Repdd!AU242 -> 8276.67 | AV108: =Repdd!AV242 -> 9947.24 | AW108: =Repdd!AW242 -> 11641.065 | AX108: =Repdd!AX242 -> 13344.85 | AY108: =Repdd!AY242 -> 15052.75 | AZ108: =Repdd!AZ242 -> 16762.175 | BA108: =Repdd!BA242 -> 18472.025 | BB108: =Repdd!BB242 -> 20182 | BC108: =Repdd!BC242 -> 21892 | BD108: =Repdd!BD242 -> 23602 | BE108: =Repdd!BE242 -> 25302 | BF108: =Repdd!BF242 -> 26922 | BG108: =Repdd!BG242 -> 28335 | BH108: =Repdd!BH242 -> 29469.75 | BI108: =Repdd!BI242 -> 30294.25 | BJ108: =Repdd!BJ242 -> 30826.525 | BK108: =Repdd!BK242 -> 31141.55 | BL108: =Repdd!BL242 -> 31313 | BM108: =Repdd!BM242 -> 31399.1 | BN108: =Repdd!BN242 -> 31438.7 | BO108: =Repdd!BO242 -> 31454.925 | BP108: =Repdd!BP242 -> 31461.15 | BQ108: =Repdd!BQ242 -> 31463.25 | BR108: =Repdd!BR242 -> 31463.825 | BS108: =Repdd!BS242 -> 31463.975 | BT108: =Repdd!BT242 -> 31464 | BU108: =Repdd!BU242 -> 31464 | BV108: =Repdd!BV242 -> 0 | BW108: =Repdd!BW242 -> 0 | BX108: =Repdd!BX242 -> 0 | BY108: =Repdd!BY242 -> 0 | BZ108: =Repdd!BZ242 -> 0 | CA108: =Repdd!CA242 -> 0 | CB108: =Repdd!CB242 -> 0 | CC108: =Repdd!CC242 -> 0 | CD108: =Repdd!CD242 -> 0 | CE108: =Repdd!CE242 -> 0 | CF108: =Repdd!CF242 -> 0 | CG108: =Repdd!CG242 -> 0 | CH108: =Repdd!CH242 -> 0 | CI108: =Repdd!CI242 -> 0 | CJ108: =Repdd!CJ242 -> 0 | CK108: =Repdd!CK242 -> 0 | CL108: =Repdd!CL242 -> 0 | CM108: =Repdd!CM242 -> 0 | CN108: =Repdd!CN242 -> 0 | CO108: =Repdd!CO242 -> 0 | CP108: =Repdd!CP242 -> 0 | CQ108: =Repdd!CQ242 -> 0 | CR108: =Repdd!CR242 -> 0 | CS108: =Repdd!CS242 -> 0 | CT108: =Repdd!CT242 -> 0
A109: =ROW() -> 109 | G109: Средний чек | M109: =Lists!$R$8 -> руб. | W109: =IF(W108=0,0,W107/W108) -> 1057.588874 | Z109: =IF(Z108=0,0,Z107/Z108) -> 0 | AA109: =IF(AA108=0,0,AA107/AA108) -> 0 | AB109: =IF(AB108=0,0,AB107/AB108) -> 0 | AC109: 0 | AD109: 0 | AE109: 0 | AF109: 0 | AG109: 0 | AH109: 1310.875 | AI109: 1262.324074 | AJ109: 1215.244388 | AK109: 1168.830309 | AL109: 1135.326805 | AM109: 1112.009866 | AN109: 1112.859474 | AO109: 1131.483496 | AP109: 1139.205966 | AQ109: 1135.739977 | AR109: 1126.073477 | AS109: 1114.624638 | AT109: 1103.976823 | AU109: 1095.024709 | AV109: 1087.92385 | AW109: 1082.337083 | AX109: 1077.923738 | AY109: 1074.412767 | AZ109: 1071.58344 | BA109: 1069.267612 | BB109: 1067.340662 | BC109: 1065.71397 | BD109: 1064.322991 | BE109: 1063.022034 | BF109: 1061.307308 | BG109: 1058.801086 | BH109: 1055.940418 | BI109: 1053.087938 | BJ109: 1050.633507 | BK109: 1048.858835 | BL109: 1047.740661 | BM109: 1047.117372 | BN109: 1046.783398 | BO109: 1046.620154 | BP109: 1046.551989 | BQ109: 1046.526787 | BR109: 1046.518425 | BS109: 1046.515727 | BT109: 1046.515208 | BU109: 1046.515208 | BV109: 0 | BW109: 0 | BX109: 0 | BY109: 0 | BZ109: 0 | CA109: 0 | CB109: 0 | CC109: 0 | CD109: 0 | CE109: 0 | CF109: 0 | CG109: 0 | CH109: 0 | CI109: 0 | CJ109: 0 | CK109: 0 | CL109: 0 | CM109: 0 | CN109: =IF(CN108=0,0,CN107/CN108) -> 0 | CO109: 0 | CP109: 0 | CQ109: 0 | CR109: 0 | CS109: 0 | CT109: 0
A110: =ROW() -> 110 | F110: Себестоимость | M110: =Lists!$R$8 -> руб. | V110: =W110-SUM(#REF!) ->  | W110: =SUM(INDIRECT(ADDRESS(ROW(),SUMIFS($1:$1,$5:$5,1))):INDIRECT(ADDRESS(ROW(),SUMIFS($1:$1,$5:$5,MAX($5:$5))))) -> 345750951.4 | Z110: =Repdd!Z244 -> 0 | AA110: =Repdd!AA244 -> 0 | AB110: =Repdd!AB244 -> 0 | AC110: =Repdd!AC244 -> 0 | AD110: =Repdd!AD244 -> 0 | AE110: =Repdd!AE244 -> 0 | AF110: =Repdd!AF244 -> 0 | AG110: =Repdd!AG244 -> 0 | AH110: =Repdd!AH244 -> 1980.333333 | AI110: =Repdd!AI244 -> 17823 | AJ110: =Repdd!AJ244 -> 58815.9 | AK110: =Repdd!AK244 -> 113918.675 | AL110: =Repdd!AL244 -> 175358.5167 | AM110: =Repdd!AM244 -> 238179.6408 | AN110: =Repdd!AN244 -> 325759.8825 | AO110: =Repdd!AO244 -> 501232.2683 | AP110: =Repdd!AP244 -> 802931.1008 | AQ110: =Repdd!AQ244 -> 1250535.943 | AR110: =Repdd!AR244 -> 1838236.99 | AS110: =Repdd!AS244 -> 2530846.197 | AT110: =Repdd!AT244 -> 3293373.547 | AU110: =Repdd!AU244 -> 4097641.373 | AV110: =Repdd!AV244 -> 4924712.737 | AW110: =Repdd!AW244 -> 5763297.264 | AX110: =Repdd!AX244 -> 6606812.821 | AY110: =Repdd!AY244 -> 7452365.646 | AZ110: =Repdd!AZ244 -> 8298673.473 | BA110: =Repdd!BA244 -> 9145191.71 | BB110: =Repdd!BB244 -> 9991771.833 | BC110: =Repdd!BC244 -> 10838364.33 | BD110: =Repdd!BD244 -> 11684956.83 | BE110: =Repdd!BE244 -> 12526598.5 | BF110: =Repdd!BF244 -> 13328633.5 | BG110: =Repdd!BG244 -> 14028186.25 | BH110: =Repdd!BH244 -> 14589982.06 | BI110: =Repdd!BI244 -> 14998178.27 | BJ110: =Repdd!BJ244 -> 15261698.75 | BK110: =Repdd!BK244 -> 15417662.38 | BL110: =Repdd!BL244 -> 15502544.42 | BM110: =Repdd!BM244 -> 15545171.09 | BN110: =Repdd!BN244 -> 15564776.39 | BO110: =Repdd!BO244 -> 15572809.12 | BP110: =Repdd!BP244 -> 15575891.01 | BQ110: =Repdd!BQ244 -> 15576930.69 | BR110: =Repdd!BR244 -> 15577215.36 | BS110: =Repdd!BS244 -> 15577289.62 | BT110: =Repdd!BT244 -> 15577302 | BU110: =Repdd!BU244 -> 15577302 | BV110: =Repdd!BV244 -> 0 | BW110: =Repdd!BW244 -> 0 | BX110: =Repdd!BX244 -> 0 | BY110: =Repdd!BY244 -> 0 | BZ110: =Repdd!BZ244 -> 0 | CA110: =Repdd!CA244 -> 0 | CB110: =Repdd!CB244 -> 0 | CC110: =Repdd!CC244 -> 0 | CD110: =Repdd!CD244 -> 0 | CE110: =Repdd!CE244 -> 0 | CF110: =Repdd!CF244 -> 0 | CG110: =Repdd!CG244 -> 0 | CH110: =Repdd!CH244 -> 0 | CI110: =Repdd!CI244 -> 0 | CJ110: =Repdd!CJ244 -> 0 | CK110: =Repdd!CK244 -> 0 | CL110: =Repdd!CL244 -> 0 | CM110: =Repdd!CM244 -> 0 | CN110: =Repdd!CN244 -> 0 | CO110: =Repdd!CO244 -> 0 | CP110: =Repdd!CP244 -> 0 | CQ110: =Repdd!CQ244 -> 0 | CR110: =Repdd!CR244 -> 0 | CS110: =Repdd!CS244 -> 0 | CT110: =Repdd!CT244 -> 0
A111: =ROW() -> 111 | F111: Валовая прибыль | M111: =Lists!$R$8 -> руб. | V111: =W111-(W107-W110) -> 0 | W111: =SUM(INDIRECT(ADDRESS(ROW(),SUMIFS($1:$1,$5:$5,1))):INDIRECT(ADDRESS(ROW(),SUMIFS($1:$1,$5:$5,MAX($5:$5))))) -> 392836544.5 | Z111: =Repdd!Z255 -> 0 | AA111: =Repdd!AA255 -> 0 | AB111: =Repdd!AB255 -> 0 | AC111: =Repdd!AC255 -> 0 | AD111: =Repdd!AD255 -> 0 | AE111: =Repdd!AE255 -> 0 | AF111: =Repdd!AF255 -> 0 | AG111: =Repdd!AG255 -> 0 | AH111: =Repdd!AH255 -> 3263.166667 | AI111: =Repdd!AI255 -> 27620.66667 | AJ111: =Repdd!AJ255 -> 85555.13333 | AK111: =Repdd!AK255 -> 155029.1792 | AL111: =Repdd!AL255 -> 226774.2375 | AM111: =Repdd!AM255 -> 296797.1858 | AN111: =Repdd!AN255 -> 406490.5229 | AO111: =Repdd!AO255 -> 644304.2527 | AP111: =Repdd!AP255 -> 1044644.526 | AQ111: =Repdd!AQ255 -> 1618241.023 | AR111: =Repdd!AR255 -> 2342856.938 | AS111: =Repdd!AS255 -> 3167070.37 | AT111: =Repdd!AT255 -> 4050456.914 | AU111: =Repdd!AU255 -> 4965516.79 | AV111: =Repdd!AV255 -> 5897126.905 | AW111: =Repdd!AW255 -> 6836259.073 | AX111: =Repdd!AX255 -> 7777917.779 | AY111: =Repdd!AY255 -> 8720501.139 | AZ111: =Repdd!AZ255 -> 9663395.676 | BA111: =Repdd!BA255 -> 10606346.35 | BB111: =Repdd!BB255 -> 11549297.4 | BC111: =Repdd!BC255 -> 12492245.9 | BD111: =Repdd!BD255 -> 13435194.41 | BE111: =Repdd!BE255 -> 14369985 | BF111: =Repdd!BF255 -> 15243881.84 | BG111: =Repdd!BG255 -> 15972942.51 | BH111: =Repdd!BH255 -> 16528318.07 | BI111: =Repdd!BI255 -> 16904330.98 | BJ111: =Repdd!BJ255 -> 17125681.32 | BK111: =Repdd!BK255 -> 17245427.47 | BL111: =Repdd!BL255 -> 17305358.89 | BM111: =Repdd!BM255 -> 17333371.99 | BN111: =Repdd!BN255 -> 17344732.84 | BO111: =Repdd!BO255 -> 17348549.33 | BP111: =Repdd!BP255 -> 17349838.11 | BQ111: =Repdd!BQ255 -> 17350203.26 | BR111: =Repdd!BR255 -> 17350257.22 | BS111: =Repdd!BS255 -> 17350255.06 | BT111: =Repdd!BT255 -> 17350252.52 | BU111: =Repdd!BU255 -> 17350252.52 | BV111: =Repdd!BV255 -> 0 | BW111: =Repdd!BW255 -> 0 | BX111: =Repdd!BX255 -> 0 | BY111: =Repdd!BY255 -> 0 | BZ111: =Repdd!BZ255 -> 0 | CA111: =Repdd!CA255 -> 0 | CB111: =Repdd!CB255 -> 0 | CC111: =Repdd!CC255 -> 0 | CD111: =Repdd!CD255 -> 0 | CE111: =Repdd!CE255 -> 0 | CF111: =Repdd!CF255 -> 0 | CG111: =Repdd!CG255 -> 0 | CH111: =Repdd!CH255 -> 0 | CI111: =Repdd!CI255 -> 0 | CJ111: =Repdd!CJ255 -> 0 | CK111: =Repdd!CK255 -> 0 | CL111: =Repdd!CL255 -> 0 | CM111: =Repdd!CM255 -> 0 | CN111: =Repdd!CN255 -> 0 | CO111: =Repdd!CO255 -> 0 | CP111: =Repdd!CP255 -> 0 | CQ111: =Repdd!CQ255 -> 0 | CR111: =Repdd!CR255 -> 0 | CS111: =Repdd!CS255 -> 0 | CT111: =Repdd!CT255 -> 0
A112: =ROW() -> 112 | F112: Рентабельность продаж | M112: % | W112: =IF(W$107=0,0,W111/W$107) -> 0.5318754334 | Z112: =IF(Z$107=0,0,Z111/Z$107) -> 0 | AA112: =IF(AA$107=0,0,AA111/AA$107) -> 0 | AB112: 0 | AC112: 0 | AD112: 0 | AE112: 0 | AF112: 0 | AG112: 0 | AH112: 0.6223260545 | AI112: 0.6078001335 | AJ112: 0.5926059498 | AK112: 0.5764283922 | AL112: 0.5639287901 | AM112: 0.5547851253 | AN112: 0.5551250227 | AO112: 0.5624475875 | AP112: 0.5654136756 | AQ112: 0.564087429 | AR112: 0.560345445 | AS112: 0.5558295445 | AT112: 0.5515455369 | AU112: 0.5478793044 | AV112: 0.5449283209 | AW112: 0.5425793489 | AX112: 0.5407065308 | AY112: 0.5392056495 | AZ112: 0.5379890031 | BA112: 0.5369883761 | BB112: 0.5361524664 | BC112: 0.5354444559 | BD112: 0.5348373216 | BE112: 0.5342680419 | BF112: 0.5335155711 | BG112: 0.5324113849 | BH112: 0.5311446319 | BI112: 0.5298746518 | BJ112: 0.5287763716 | BK112: 0.5279790599 | BL112: 0.5274753077 | BM112: 0.527194041 | BN112: 0.5270431934 | BO112: 0.5269694249 | BP112: 0.5269386152 | BQ112: 0.5269272232 | BR112: 0.526923443 | BS112: 0.5269222235 | BT112: 0.5269219889 | BU112: 0.5269219889 | BV112: 0 | BW112: 0 | BX112: 0 | BY112: 0 | BZ112: 0 | CA112: 0 | CB112: 0 | CC112: 0 | CD112: 0 | CE112: 0 | CF112: 0 | CG112: 0 | CH112: 0 | CI112: 0 | CJ112: 0 | CK112: 0 | CL112: 0 | CM112: =IF(CM$107=0,0,CM111/CM$107) -> 0 | CN112: 0 | CO112: 0 | CP112: 0 | CQ112: 0 | CR112: 0 | CS112: 0 | CT112: 0
A113: =ROW() -> 113 | F113: Переменные расходы | M113: =Lists!$R$8 -> руб. | V113: =W113-SUM(#REF!) ->  | W113: =SUM(INDIRECT(ADDRESS(ROW(),SUMIFS($1:$1,$5:$5,1))):INDIRECT(ADDRESS(ROW(),SUMIFS($1:$1,$5:$5,MAX($5:$5))))) -> 75145026.27 | Z113: =Repdd!Z257 -> 16666.66667 | AA113: =Repdd!AA257 -> 108333.3333 | AB113: =Repdd!AB257 -> 325000 | AC113: =Repdd!AC257 -> 458333.3333 | AD113: =Repdd!AD257 -> 583333.3333 | AE113: =Repdd!AE257 -> 666666.6667 | AF113: =Repdd!AF257 -> 666666.6667 | AG113: =Repdd!AG257 -> 666666.6667 | AH113: =Repdd!AH257 -> 666986.0435 | AI113: =Repdd!AI257 -> 669434.5991 | AJ113: =Repdd!AJ257 -> 675460.1751 | AK113: =Repdd!AK257 -> 683048.036 | AL113: =Repdd!AL257 -> 691160.2071 | AM113: =Repdd!AM257 -> 699251.6188 | AN113: =Repdd!AN257 -> 711267.3732 | AO113: =Repdd!AO257 -> 736440.2548 | AP113: =Repdd!AP257 -> 779200.8185 | AQ113: =Repdd!AQ257 -> 841401.2637 | AR113: =Repdd!AR257 -> 921333.2968 | AS113: =Repdd!AS257 -> 1013721.585 | AT113: =Repdd!AT257 -> 1113972.704 | AU113: =Repdd!AU257 -> 1218695.391 | AV113: =Repdd!AV257 -> 1325815.081 | AW113: =Repdd!AW257 -> 1434094.189 | AX113: =Repdd!AX257 -> 1542827.53 | AY113: =Repdd!AY257 -> 1651741.28 | AZ113: =Repdd!AZ257 -> 1760719.969 | BA113: =Repdd!BA257 -> 1869714.894 | BB113: =Repdd!BB257 -> 1978713.611 | BC113: =Repdd!BC257 -> 2087712.927 | BD113: =Repdd!BD257 -> 2196712.242 | BE113: =Repdd!BE257 -> 2304913.116 | BF113: =Repdd!BF257 -> 2406992.601 | BG113: =Repdd!BG257 -> 2494008.146 | BH113: =Repdd!BH257 -> 2562054.038 | BI113: =Repdd!BI257 -> 2609819.503 | BJ113: =Repdd!BJ257 -> 2639352.544 | BK113: =Repdd!BK257 -> 2656145.776 | BL113: =Repdd!BL257 -> 2664966.232 | BM113: =Repdd!BM257 -> 2669268.836 | BN113: =Repdd!BN257 -> 2671154.956 | BO113: =Repdd!BO257 -> 2671876.681 | BP113: =Repdd!BP257 -> 2672142.895 | BQ113: =Repdd!BQ257 -> 2672228.461 | BR113: =Repdd!BR257 -> 2672249.088 | BS113: =Repdd!BS257 -> 2672253.479 | BT113: =Repdd!BT257 -> 2672254.078 | BU113: =Repdd!BU257 -> 2672254.078 | BV113: =Repdd!BV257 -> 0 | BW113: =Repdd!BW257 -> 0 | BX113: =Repdd!BX257 -> 0 | BY113: =Repdd!BY257 -> 0 | BZ113: =Repdd!BZ257 -> 0 | CA113: =Repdd!CA257 -> 0 | CB113: =Repdd!CB257 -> 0 | CC113: =Repdd!CC257 -> 0 | CD113: =Repdd!CD257 -> 0 | CE113: =Repdd!CE257 -> 0 | CF113: =Repdd!CF257 -> 0 | CG113: =Repdd!CG257 -> 0 | CH113: =Repdd!CH257 -> 0 | CI113: =Repdd!CI257 -> 0 | CJ113: =Repdd!CJ257 -> 0 | CK113: =Repdd!CK257 -> 0 | CL113: =Repdd!CL257 -> 0 | CM113: =Repdd!CM257 -> 0 | CN113: =Repdd!CN257 -> 0 | CO113: =Repdd!CO257 -> 0 | CP113: =Repdd!CP257 -> 0 | CQ113: =Repdd!CQ257 -> 0 | CR113: =Repdd!CR257 -> 0 | CS113: =Repdd!CS257 -> 0 | CT113: =Repdd!CT257 -> 0
A114: =ROW() -> 114 | F114: Маржинальная прибыль | M114: =Lists!$R$8 -> руб. | V114: =IF(ABS(W114-(W111-W113))<0.001,0,W114-(W111-W113)) -> 0 | W114: =SUM(INDIRECT(ADDRESS(ROW(),SUMIFS($1:$1,$5:$5,1))):INDIRECT(ADDRESS(ROW(),SUMIFS($1:$1,$5:$5,MAX($5:$5))))) -> 317691518.2 | Z114: =Repdd!Z262 -> -16666.66667 | AA114: =Repdd!AA262 -> -108333.3333 | AB114: =Repdd!AB262 -> -325000 | AC114: =Repdd!AC262 -> -458333.3333 | AD114: =Repdd!AD262 -> -583333.3333 | AE114: =Repdd!AE262 -> -666666.6667 | AF114: =Repdd!AF262 -> -666666.6667 | AG114: =Repdd!AG262 -> -666666.6667 | AH114: =Repdd!AH262 -> -663722.8768 | AI114: =Repdd!AI262 -> -641813.9324 | AJ114: =Repdd!AJ262 -> -589905.0417 | AK114: =Repdd!AK262 -> -528018.8568 | AL114: =Repdd!AL262 -> -464385.9696 | AM114: =Repdd!AM262 -> -402454.433 | AN114: =Repdd!AN262 -> -304776.8503 | AO114: =Repdd!AO262 -> -92136.00206 | AP114: =Repdd!AP262 -> 265443.7079 | AQ114: =Repdd!AQ262 -> 776839.7593 | AR114: =Repdd!AR262 -> 1421523.641 | AS114: =Repdd!AS262 -> 2153348.785 | AT114: =Repdd!AT262 -> 2936484.211 | AU114: =Repdd!AU262 -> 3746821.398 | AV114: =Repdd!AV262 -> 4571311.824 | AW114: =Repdd!AW262 -> 5402164.884 | AX114: =Repdd!AX262 -> 6235090.249 | AY114: =Repdd!AY262 -> 7068759.859 | AZ114: =Repdd!AZ262 -> 7902675.706 | BA114: =Repdd!BA262 -> 8736631.453 | BB114: =Repdd!BB262 -> 9570583.787 | BC114: =Repdd!BC262 -> 10404532.98 | BD114: =Repdd!BD262 -> 11238482.17 | BE114: =Repdd!BE262 -> 12065071.88 | BF114: =Repdd!BF262 -> 12836889.24 | BG114: =Repdd!BG262 -> 13478934.37 | BH114: =Repdd!BH262 -> 13966264.03 | BI114: =Repdd!BI262 -> 14294511.48 | BJ114: =Repdd!BJ262 -> 14486328.77 | BK114: =Repdd!BK262 -> 14589281.7 | BL114: =Repdd!BL262 -> 14640392.66 | BM114: =Repdd!BM262 -> 14664103.16 | BN114: =Repdd!BN262 -> 14673577.88 | BO114: =Repdd!BO262 -> 14676672.65 | BP114: =Repdd!BP262 -> 14677695.21 | BQ114: =Repdd!BQ262 -> 14677974.79 | BR114: =Repdd!BR262 -> 14678008.14 | BS114: =Repdd!BS262 -> 14678001.58 | BT114: =Repdd!BT262 -> 14677998.44 | BU114: =Repdd!BU262 -> 14677998.44 | BV114: =Repdd!BV262 -> 0 | BW114: =Repdd!BW262 -> 0 | BX114: =Repdd!BX262 -> 0 | BY114: =Repdd!BY262 -> 0 | BZ114: =Repdd!BZ262 -> 0 | CA114: =Repdd!CA262 -> 0 | CB114: =Repdd!CB262 -> 0 | CC114: =Repdd!CC262 -> 0 | CD114: =Repdd!CD262 -> 0 | CE114: =Repdd!CE262 -> 0 | CF114: =Repdd!CF262 -> 0 | CG114: =Repdd!CG262 -> 0 | CH114: =Repdd!CH262 -> 0 | CI114: =Repdd!CI262 -> 0 | CJ114: =Repdd!CJ262 -> 0 | CK114: =Repdd!CK262 -> 0 | CL114: =Repdd!CL262 -> 0 | CM114: =Repdd!CM262 -> 0 | CN114: =Repdd!CN262 -> 0 | CO114: =Repdd!CO262 -> 0 | CP114: =Repdd!CP262 -> 0 | CQ114: =Repdd!CQ262 -> 0 | CR114: =Repdd!CR262 -> 0 | CS114: =Repdd!CS262 -> 0 | CT114: =Repdd!CT262 -> 0
A115: =ROW() -> 115 | F115: Маржа | M115: % | W115: =IF(W$107=0,0,W114/W$107) -> 0.4301338974 | Z115: =IF(Z$107=0,0,Z114/Z$107) -> 0 | AA115: =IF(AA$107=0,0,AA114/AA$107) -> 0 | AB115: 0 | AC115: 0 | AD115: 0 | AE115: 0 | AF115: 0 | AG115: 0 | AH115: -126.5801234 | AI115: -14.12328669 | AJ115: -4.08603463 | AK115: -1.963275961 | AL115: -1.154807622 | AM115: -0.7522838615 | AN115: -0.4162194353 | AO115: -0.08043043619 | AP115: 0.1436713626 | AQ115: 0.2707912705 | AR115: 0.3399884492 | AS115: 0.3779186234 | AT115: 0.3998572987 | AU115: 0.4134123372 | AV115: 0.4224154095 | AW115: 0.4287583419 | AX115: 0.433452 | AY115: 0.4370752541 | AZ115: 0.4399646634 | BA115: 0.4423266394 | BB115: 0.4442947416 | BC115: 0.4459606016 | BD115: 0.4473891124 | BE115: 0.4485726555 | BF115: 0.4492740344 | BG115: 0.4492809078 | BH115: 0.4488119201 | BI115: 0.4480685631 | BJ115: 0.4472831313 | BK115: 0.4466595709 | BL115: 0.4462459098 | BM115: 0.4460083015 | BN115: 0.4458765331 | BO115: 0.4458100558 | BP115: 0.4457819342 | BQ115: 0.445771406 | BR115: 0.4457678341 | BS115: 0.445766659 | BT115: 0.4457664304 | BU115: 0.4457664304 | BV115: 0 | BW115: 0 | BX115: 0 | BY115: 0 | BZ115: 0 | CA115: 0 | CB115: 0 | CC115: 0 | CD115: 0 | CE115: 0 | CF115: 0 | CG115: 0 | CH115: 0 | CI115: 0 | CJ115: 0 | CK115: 0 | CL115: 0 | CM115: =IF(CM$107=0,0,CM114/CM$107) -> 0 | CN115: 0 | CO115: 0 | CP115: 0 | CQ115: 0 | CR115: 0 | CS115: 0 | CT115: 0
A116: =ROW() -> 116 | F116: Постоянные расходы | M116: =Lists!$R$8 -> руб. | V116: =IF(ABS(W116-SUM(#REF!))<0.001,0,W116-SUM(#REF!)) ->  | W116: =SUM(INDIRECT(ADDRESS(ROW(),SUMIFS($1:$1,$5:$5,1))):INDIRECT(ADDRESS(ROW(),SUMIFS($1:$1,$5:$5,MAX($5:$5))))) -> 81381818.18 | Z116: =Repdd!Z264 -> 1695454.545 | AA116: =Repdd!AA264 -> 1695454.545 | AB116: =Repdd!AB264 -> 1695454.545 | AC116: =Repdd!AC264 -> 1695454.545 | AD116: =Repdd!AD264 -> 1695454.545 | AE116: =Repdd!AE264 -> 1695454.545 | AF116: =Repdd!AF264 -> 1695454.545 | AG116: =Repdd!AG264 -> 1695454.545 | AH116: =Repdd!AH264 -> 1695454.545 | AI116: =Repdd!AI264 -> 1695454.545 | AJ116: =Repdd!AJ264 -> 1695454.545 | AK116: =Repdd!AK264 -> 1695454.545 | AL116: =Repdd!AL264 -> 1695454.545 | AM116: =Repdd!AM264 -> 1695454.545 | AN116: =Repdd!AN264 -> 1695454.545 | AO116: =Repdd!AO264 -> 1695454.545 | AP116: =Repdd!AP264 -> 1695454.545 | AQ116: =Repdd!AQ264 -> 1695454.545 | AR116: =Repdd!AR264 -> 1695454.545 | AS116: =Repdd!AS264 -> 1695454.545 | AT116: =Repdd!AT264 -> 1695454.545 | AU116: =Repdd!AU264 -> 1695454.545 | AV116: =Repdd!AV264 -> 1695454.545 | AW116: =Repdd!AW264 -> 1695454.545 | AX116: =Repdd!AX264 -> 1695454.545 | AY116: =Repdd!AY264 -> 1695454.545 | AZ116: =Repdd!AZ264 -> 1695454.545 | BA116: =Repdd!BA264 -> 1695454.545 | BB116: =Repdd!BB264 -> 1695454.545 | BC116: =Repdd!BC264 -> 1695454.545 | BD116: =Repdd!BD264 -> 1695454.545 | BE116: =Repdd!BE264 -> 1695454.545 | BF116: =Repdd!BF264 -> 1695454.545 | BG116: =Repdd!BG264 -> 1695454.545 | BH116: =Repdd!BH264 -> 1695454.545 | BI116: =Repdd!BI264 -> 1695454.545 | BJ116: =Repdd!BJ264 -> 1695454.545 | BK116: =Repdd!BK264 -> 1695454.545 | BL116: =Repdd!BL264 -> 1695454.545 | BM116: =Repdd!BM264 -> 1695454.545 | BN116: =Repdd!BN264 -> 1695454.545 | BO116: =Repdd!BO264 -> 1695454.545 | BP116: =Repdd!BP264 -> 1695454.545 | BQ116: =Repdd!BQ264 -> 1695454.545 | BR116: =Repdd!BR264 -> 1695454.545 | BS116: =Repdd!BS264 -> 1695454.545 | BT116: =Repdd!BT264 -> 1695454.545 | BU116: =Repdd!BU264 -> 1695454.545 | BV116: =Repdd!BV264 -> 0 | BW116: =Repdd!BW264 -> 0 | BX116: =Repdd!BX264 -> 0 | BY116: =Repdd!BY264 -> 0 | BZ116: =Repdd!BZ264 -> 0 | CA116: =Repdd!CA264 -> 0 | CB116: =Repdd!CB264 -> 0 | CC116: =Repdd!CC264 -> 0 | CD116: =Repdd!CD264 -> 0 | CE116: =Repdd!CE264 -> 0 | CF116: =Repdd!CF264 -> 0 | CG116: =Repdd!CG264 -> 0 | CH116: =Repdd!CH264 -> 0 | CI116: =Repdd!CI264 -> 0 | CJ116: =Repdd!CJ264 -> 0 | CK116: =Repdd!CK264 -> 0 | CL116: =Repdd!CL264 -> 0 | CM116: =Repdd!CM264 -> 0 | CN116: =Repdd!CN264 -> 0 | CO116: =Repdd!CO264 -> 0 | CP116: =Repdd!CP264 -> 0 | CQ116: =Repdd!CQ264 -> 0 | CR116: =Repdd!CR264 -> 0 | CS116: =Repdd!CS264 -> 0 | CT116: =Repdd!CT264 -> 0
A117: =ROW() -> 117 | F117: EBITDA (Операционная прибыль) | M117: =Lists!$R$8 -> руб. | V117: =IF(ABS(W117-(W114-W116))<0.001,0,W117-(W114-W116)) -> 0 | W117: =SUM(INDIRECT(ADDRESS(ROW(),SUMIFS($1:$1,$5:$5,1))):INDIRECT(ADDRESS(ROW(),SUMIFS($1:$1,$5:$5,MAX($5:$5))))) -> 236309700 | Z117: =Repdd!Z271 -> -1712121.212 | AA117: =Repdd!AA271 -> -1803787.879 | AB117: =Repdd!AB271 -> -2020454.545 | AC117: =Repdd!AC271 -> -2153787.879 | AD117: =Repdd!AD271 -> -2278787.879 | AE117: =Repdd!AE271 -> -2362121.212 | AF117: =Repdd!AF271 -> -2362121.212 | AG117: =Repdd!AG271 -> -2362121.212 | AH117: =Repdd!AH271 -> -2359177.422 | AI117: =Repdd!AI271 -> -2337268.478 | AJ117: =Repdd!AJ271 -> -2285359.587 | AK117: =Repdd!AK271 -> -2223473.402 | AL117: =Repdd!AL271 -> -2159840.515 | AM117: =Repdd!AM271 -> -2097908.978 | AN117: =Repdd!AN271 -> -2000231.396 | AO117: =Repdd!AO271 -> -1787590.548 | AP117: =Repdd!AP271 -> -1430010.838 | AQ117: =Repdd!AQ271 -> -918614.7861 | AR117: =Repdd!AR271 -> -273930.9047 | AS117: =Repdd!AS271 -> 457894.2396 | AT117: =Repdd!AT271 -> 1241029.665 | AU117: =Repdd!AU271 -> 2051366.853 | AV117: =Repdd!AV271 -> 2875857.278 | AW117: =Repdd!AW271 -> 3706710.339 | AX117: =Repdd!AX271 -> 4539635.703 | AY117: =Repdd!AY271 -> 5373305.314 | AZ117: =Repdd!AZ271 -> 6207221.161 | BA117: =Repdd!BA271 -> 7041176.907 | BB117: =Repdd!BB271 -> 7875129.242 | BC117: =Repdd!BC271 -> 8709078.432 | BD117: =Repdd!BD271 -> 9543027.623 | BE117: =Repdd!BE271 -> 10369617.34 | BF117: =Repdd!BF271 -> 11141434.69 | BG117: =Repdd!BG271 -> 11783479.82 | BH117: =Repdd!BH271 -> 12270809.49 | BI117: =Repdd!BI271 -> 12599056.94 | BJ117: =Repdd!BJ271 -> 12790874.23 | BK117: =Repdd!BK271 -> 12893827.15 | BL117: =Repdd!BL271 -> 12944938.11 | BM117: =Repdd!BM271 -> 12968648.61 | BN117: =Repdd!BN271 -> 12978123.34 | BO117: =Repdd!BO271 -> 12981218.1 | BP117: =Repdd!BP271 -> 12982240.67 | BQ117: =Repdd!BQ271 -> 12982520.25 | BR117: =Repdd!BR271 -> 12982553.59 | BS117: =Repdd!BS271 -> 12982547.04 | BT117: =Repdd!BT271 -> 12982543.89 | BU117: =Repdd!BU271 -> 12982543.89 | BV117: =Repdd!BV271 -> 0 | BW117: =Repdd!BW271 -> 0 | BX117: =Repdd!BX271 -> 0 | BY117: =Repdd!BY271 -> 0 | BZ117: =Repdd!BZ271 -> 0 | CA117: =Repdd!CA271 -> 0 | CB117: =Repdd!CB271 -> 0 | CC117: =Repdd!CC271 -> 0 | CD117: =Repdd!CD271 -> 0 | CE117: =Repdd!CE271 -> 0 | CF117: =Repdd!CF271 -> 0 | CG117: =Repdd!CG271 -> 0 | CH117: =Repdd!CH271 -> 0 | CI117: =Repdd!CI271 -> 0 | CJ117: =Repdd!CJ271 -> 0 | CK117: =Repdd!CK271 -> 0 | CL117: =Repdd!CL271 -> 0 | CM117: =Repdd!CM271 -> 0 | CN117: =Repdd!CN271 -> 0 | CO117: =Repdd!CO271 -> 0 | CP117: =Repdd!CP271 -> 0 | CQ117: =Repdd!CQ271 -> 0 | CR117: =Repdd!CR271 -> 0 | CS117: =Repdd!CS271 -> 0 | CT117: =Repdd!CT271 -> 0
A118: =ROW() -> 118 | F118: Операционная рентабельность | M118: % | W118: =IF(W$107=0,0,W117/W$107) -> 0.3199481461 | Z118: =IF(Z$107=0,0,Z117/Z$107) -> 0 | AA118: =IF(AA$107=0,0,AA117/AA$107) -> 0 | AB118: 0 | AC118: 0 | AD118: 0 | AE118: 0 | AF118: 0 | AG118: 0 | AH118: -449.924177 | AI118: -51.43221596 | AJ118: -15.82976539 | AK118: -8.267303002 | AL118: -5.370963924 | AM118: -3.921495052 | AN118: -2.731622108 | AO118: -1.560483245 | AP118: -0.7739931272 | AQ118: -0.3202112946 | AR118: -0.06551656324 | AS118: 0.08036169612 | AT118: 0.168989422 | AU118: 0.2263412837 | AV118: 0.2657456933 | AW118: 0.2941937192 | AX118: 0.3155871201 | AY118: 0.3322419819 | AZ118: 0.3455738373 | BA118: 0.3564875245 | BB118: 0.3655867384 | BC118: 0.373289783 | BD118: 0.3798953092 | BE118: 0.3855365994 | BF118: 0.3899353823 | BG118: 0.3927678827 | BH118: 0.3943277568 | BI118: 0.3949236982 | BJ118: 0.3949338971 | BK118: 0.3947522176 | BL118: 0.3945676745 | BM118: 0.3944410973 | BN118: 0.394357851 | BO118: 0.3943099165 | BP118: 0.3942886313 | BQ118: 0.3942803 | BR118: 0.3942772576 | BS118: 0.3942761952 | BT118: 0.394275982 | BU118: 0.394275982 | BV118: 0 | BW118: 0 | BX118: 0 | BY118: 0 | BZ118: 0 | CA118: 0 | CB118: 0 | CC118: 0 | CD118: 0 | CE118: 0 | CF118: 0 | CG118: 0 | CH118: 0 | CI118: 0 | CJ118: 0 | CK118: 0 | CL118: 0 | CM118: =IF(CM$107=0,0,CM117/CM$107) -> 0 | CN118: 0 | CO118: 0 | CP118: 0 | CQ118: 0 | CR118: 0 | CS118: 0 | CT118: 0
A119: =ROW() -> 119 | F119: Амортизация | M119: =Lists!$R$8 -> руб. | S119: =Repdd!S273 -> 0.2 | W119: =SUM(INDIRECT(ADDRESS(ROW(),SUMIFS($1:$1,$5:$5,1))):INDIRECT(ADDRESS(ROW(),SUMIFS($1:$1,$5:$5,MAX($5:$5))))) -> 20535714.29 | Z119: =Repdd!Z273 -> 0 | AA119: =Repdd!AA273 -> 0 | AB119: =Repdd!AB273 -> 0 | AC119: =Repdd!AC273 -> 297619.0476 | AD119: =Repdd!AD273 -> 297619.0476 | AE119: =Repdd!AE273 -> 297619.0476 | AF119: =Repdd!AF273 -> 297619.0476 | AG119: =Repdd!AG273 -> 297619.0476 | AH119: =Repdd!AH273 -> 297619.0476 | AI119: =Repdd!AI273 -> 297619.0476 | AJ119: =Repdd!AJ273 -> 297619.0476 | AK119: =Repdd!AK273 -> 297619.0476 | AL119: =Repdd!AL273 -> 297619.0476 | AM119: =Repdd!AM273 -> 297619.0476 | AN119: =Repdd!AN273 -> 297619.0476 | AO119: =Repdd!AO273 -> 297619.0476 | AP119: =Repdd!AP273 -> 297619.0476 | AQ119: =Repdd!AQ273 -> 297619.0476 | AR119: =Repdd!AR273 -> 297619.0476 | AS119: =Repdd!AS273 -> 297619.0476 | AT119: =Repdd!AT273 -> 297619.0476 | AU119: =Repdd!AU273 -> 297619.0476 | AV119: =Repdd!AV273 -> 297619.0476 | AW119: =Repdd!AW273 -> 297619.0476 | AX119: =Repdd!AX273 -> 595238.0952 | AY119: =Repdd!AY273 -> 595238.0952 | AZ119: =Repdd!AZ273 -> 595238.0952 | BA119: =Repdd!BA273 -> 595238.0952 | BB119: =Repdd!BB273 -> 595238.0952 | BC119: =Repdd!BC273 -> 595238.0952 | BD119: =Repdd!BD273 -> 595238.0952 | BE119: =Repdd!BE273 -> 595238.0952 | BF119: =Repdd!BF273 -> 595238.0952 | BG119: =Repdd!BG273 -> 595238.0952 | BH119: =Repdd!BH273 -> 595238.0952 | BI119: =Repdd!BI273 -> 595238.0952 | BJ119: =Repdd!BJ273 -> 595238.0952 | BK119: =Repdd!BK273 -> 595238.0952 | BL119: =Repdd!BL273 -> 595238.0952 | BM119: =Repdd!BM273 -> 595238.0952 | BN119: =Repdd!BN273 -> 595238.0952 | BO119: =Repdd!BO273 -> 595238.0952 | BP119: =Repdd!BP273 -> 595238.0952 | BQ119: =Repdd!BQ273 -> 595238.0952 | BR119: =Repdd!BR273 -> 595238.0952 | BS119: =Repdd!BS273 -> 595238.0952 | BT119: =Repdd!BT273 -> 595238.0952 | BU119: =Repdd!BU273 -> 595238.0952 | BV119: =Repdd!BV273 -> 0 | BW119: =Repdd!BW273 -> 0 | BX119: =Repdd!BX273 -> 0 | BY119: =Repdd!BY273 -> 0 | BZ119: =Repdd!BZ273 -> 0 | CA119: =Repdd!CA273 -> 0 | CB119: =Repdd!CB273 -> 0 | CC119: =Repdd!CC273 -> 0 | CD119: =Repdd!CD273 -> 0 | CE119: =Repdd!CE273 -> 0 | CF119: =Repdd!CF273 -> 0 | CG119: =Repdd!CG273 -> 0 | CH119: =Repdd!CH273 -> 0 | CI119: =Repdd!CI273 -> 0 | CJ119: =Repdd!CJ273 -> 0 | CK119: =Repdd!CK273 -> 0 | CL119: =Repdd!CL273 -> 0 | CM119: =Repdd!CM273 -> 0 | CN119: =Repdd!CN273 -> 0 | CO119: =Repdd!CO273 -> 0 | CP119: =Repdd!CP273 -> 0 | CQ119: =Repdd!CQ273 -> 0 | CR119: =Repdd!CR273 -> 0 | CS119: =Repdd!CS273 -> 0 | CT119: =Repdd!CT273 -> 0
A120: =ROW() -> 120 | F120: EBIT (Прибыль до %% и НП) | M120: =Lists!$R$8 -> руб. | V120: =W120-(W117-W119) -> 0 | W120: =SUM(INDIRECT(ADDRESS(ROW(),SUMIFS($1:$1,$5:$5,1))):INDIRECT(ADDRESS(ROW(),SUMIFS($1:$1,$5:$5,MAX($5:$5))))) -> 215773985.7 | Z120: =Repdd!Z274 -> -1712121.212 | AA120: =Repdd!AA274 -> -1803787.879 | AB120: =Repdd!AB274 -> -2020454.545 | AC120: =Repdd!AC274 -> -2451406.926 | AD120: =Repdd!AD274 -> -2576406.926 | AE120: =Repdd!AE274 -> -2659740.26 | AF120: =Repdd!AF274 -> -2659740.26 | AG120: =Repdd!AG274 -> -2659740.26 | AH120: =Repdd!AH274 -> -2656796.47 | AI120: =Repdd!AI274 -> -2634887.525 | AJ120: =Repdd!AJ274 -> -2582978.635 | AK120: =Repdd!AK274 -> -2521092.45 | AL120: =Repdd!AL274 -> -2457459.563 | AM120: =Repdd!AM274 -> -2395528.026 | AN120: =Repdd!AN274 -> -2297850.443 | AO120: =Repdd!AO274 -> -2085209.595 | AP120: =Repdd!AP274 -> -1727629.885 | AQ120: =Repdd!AQ274 -> -1216233.834 | AR120: =Repdd!AR274 -> -571549.9524 | AS120: =Repdd!AS274 -> 160275.192 | AT120: =Repdd!AT274 -> 943410.6175 | AU120: =Repdd!AU274 -> 1753747.805 | AV120: =Repdd!AV274 -> 2578238.231 | AW120: =Repdd!AW274 -> 3409091.291 | AX120: =Repdd!AX274 -> 3944397.608 | AY120: =Repdd!AY274 -> 4778067.219 | AZ120: =Repdd!AZ274 -> 5611983.066 | BA120: =Repdd!BA274 -> 6445938.812 | BB120: =Repdd!BB274 -> 7279891.147 | BC120: =Repdd!BC274 -> 8113840.337 | BD120: =Repdd!BD274 -> 8947789.527 | BE120: =Repdd!BE274 -> 9774379.243 | BF120: =Repdd!BF274 -> 10546196.6 | BG120: =Repdd!BG274 -> 11188241.73 | BH120: =Repdd!BH274 -> 11675571.39 | BI120: =Repdd!BI274 -> 12003818.84 | BJ120: =Repdd!BJ274 -> 12195636.13 | BK120: =Repdd!BK274 -> 12298589.06 | BL120: =Repdd!BL274 -> 12349700.02 | BM120: =Repdd!BM274 -> 12373410.51 | BN120: =Repdd!BN274 -> 12382885.24 | BO120: =Repdd!BO274 -> 12385980.01 | BP120: =Repdd!BP274 -> 12387002.57 | BQ120: =Repdd!BQ274 -> 12387282.15 | BR120: =Repdd!BR274 -> 12387315.5 | BS120: =Repdd!BS274 -> 12387308.94 | BT120: =Repdd!BT274 -> 12387305.8 | BU120: =Repdd!BU274 -> 12387305.8 | BV120: =Repdd!BV274 -> 0 | BW120: =Repdd!BW274 -> 0 | BX120: =Repdd!BX274 -> 0 | BY120: =Repdd!BY274 -> 0 | BZ120: =Repdd!BZ274 -> 0 | CA120: =Repdd!CA274 -> 0 | CB120: =Repdd!CB274 -> 0 | CC120: =Repdd!CC274 -> 0 | CD120: =Repdd!CD274 -> 0 | CE120: =Repdd!CE274 -> 0 | CF120: =Repdd!CF274 -> 0 | CG120: =Repdd!CG274 -> 0 | CH120: =Repdd!CH274 -> 0 | CI120: =Repdd!CI274 -> 0 | CJ120: =Repdd!CJ274 -> 0 | CK120: =Repdd!CK274 -> 0 | CL120: =Repdd!CL274 -> 0 | CM120: =Repdd!CM274 -> 0 | CN120: =Repdd!CN274 -> 0 | CO120: =Repdd!CO274 -> 0 | CP120: =Repdd!CP274 -> 0 | CQ120: =Repdd!CQ274 -> 0 | CR120: =Repdd!CR274 -> 0 | CS120: =Repdd!CS274 -> 0 | CT120: =Repdd!CT274 -> 0
A121: =ROW() -> 121 | F121: Прибыль до налога на прибыль (НП) | M121: =Lists!$R$8 -> руб. | V121: =Repdd!V277 -> 0 | W121: =SUM(INDIRECT(ADDRESS(ROW(),SUMIFS($1:$1,$5:$5,1))):INDIRECT(ADDRESS(ROW(),SUMIFS($1:$1,$5:$5,MAX($5:$5))))) -> 215773985.7 | Z121: =Repdd!Z277 -> -1712121.212 | AA121: =Repdd!AA277 -> -1803787.879 | AB121: =Repdd!AB277 -> -2020454.545 | AC121: =Repdd!AC277 -> -2451406.926 | AD121: =Repdd!AD277 -> -2576406.926 | AE121: =Repdd!AE277 -> -2659740.26 | AF121: =Repdd!AF277 -> -2659740.26 | AG121: =Repdd!AG277 -> -2659740.26 | AH121: =Repdd!AH277 -> -2656796.47 | AI121: =Repdd!AI277 -> -2634887.525 | AJ121: =Repdd!AJ277 -> -2582978.635 | AK121: =Repdd!AK277 -> -2521092.45 | AL121: =Repdd!AL277 -> -2457459.563 | AM121: =Repdd!AM277 -> -2395528.026 | AN121: =Repdd!AN277 -> -2297850.443 | AO121: =Repdd!AO277 -> -2085209.595 | AP121: =Repdd!AP277 -> -1727629.885 | AQ121: =Repdd!AQ277 -> -1216233.834 | AR121: =Repdd!AR277 -> -571549.9524 | AS121: =Repdd!AS277 -> 160275.192 | AT121: =Repdd!AT277 -> 943410.6175 | AU121: =Repdd!AU277 -> 1753747.805 | AV121: =Repdd!AV277 -> 2578238.231 | AW121: =Repdd!AW277 -> 3409091.291 | AX121: =Repdd!AX277 -> 3944397.608 | AY121: =Repdd!AY277 -> 4778067.219 | AZ121: =Repdd!AZ277 -> 5611983.066 | BA121: =Repdd!BA277 -> 6445938.812 | BB121: =Repdd!BB277 -> 7279891.147 | BC121: =Repdd!BC277 -> 8113840.337 | BD121: =Repdd!BD277 -> 8947789.527 | BE121: =Repdd!BE277 -> 9774379.243 | BF121: =Repdd!BF277 -> 10546196.6 | BG121: =Repdd!BG277 -> 11188241.73 | BH121: =Repdd!BH277 -> 11675571.39 | BI121: =Repdd!BI277 -> 12003818.84 | BJ121: =Repdd!BJ277 -> 12195636.13 | BK121: =Repdd!BK277 -> 12298589.06 | BL121: =Repdd!BL277 -> 12349700.02 | BM121: =Repdd!BM277 -> 12373410.51 | BN121: =Repdd!BN277 -> 12382885.24 | BO121: =Repdd!BO277 -> 12385980.01 | BP121: =Repdd!BP277 -> 12387002.57 | BQ121: =Repdd!BQ277 -> 12387282.15 | BR121: =Repdd!BR277 -> 12387315.5 | BS121: =Repdd!BS277 -> 12387308.94 | BT121: =Repdd!BT277 -> 12387305.8 | BU121: =Repdd!BU277 -> 12387305.8 | BV121: =Repdd!BV277 -> 0 | BW121: =Repdd!BW277 -> 0 | BX121: =Repdd!BX277 -> 0 | BY121: =Repdd!BY277 -> 0 | BZ121: =Repdd!BZ277 -> 0 | CA121: =Repdd!CA277 -> 0 | CB121: =Repdd!CB277 -> 0 | CC121: =Repdd!CC277 -> 0 | CD121: =Repdd!CD277 -> 0 | CE121: =Repdd!CE277 -> 0 | CF121: =Repdd!CF277 -> 0 | CG121: =Repdd!CG277 -> 0 | CH121: =Repdd!CH277 -> 0 | CI121: =Repdd!CI277 -> 0 | CJ121: =Repdd!CJ277 -> 0 | CK121: =Repdd!CK277 -> 0 | CL121: =Repdd!CL277 -> 0 | CM121: =Repdd!CM277 -> 0 | CN121: =Repdd!CN277 -> 0 | CO121: =Repdd!CO277 -> 0 | CP121: =Repdd!CP277 -> 0 | CQ121: =Repdd!CQ277 -> 0 | CR121: =Repdd!CR277 -> 0 | CS121: =Repdd!CS277 -> 0 | CT121: =Repdd!CT277 -> 0
A122: =ROW() -> 122 | F122: Налог на прибыль | M122: =Lists!$R$8 -> руб. | S122: =Repdd!S278 -> 0.2 | W122: =SUM(INDIRECT(ADDRESS(ROW(),SUMIFS($1:$1,$5:$5,1))):INDIRECT(ADDRESS(ROW(),SUMIFS($1:$1,$5:$5,MAX($5:$5))))) -> 43154797.15 | Z122: =Repdd!Z278 -> 0 | AA122: =Repdd!AA278 -> 0 | AB122: =Repdd!AB278 -> 0 | AC122: =Repdd!AC278 -> 0 | AD122: =Repdd!AD278 -> 0 | AE122: =Repdd!AE278 -> 0 | AF122: =Repdd!AF278 -> 0 | AG122: =Repdd!AG278 -> 0 | AH122: =Repdd!AH278 -> 0 | AI122: =Repdd!AI278 -> 0 | AJ122: =Repdd!AJ278 -> 0 | AK122: =Repdd!AK278 -> 0 | AL122: =Repdd!AL278 -> 0 | AM122: =Repdd!AM278 -> 0 | AN122: =Repdd!AN278 -> 0 | AO122: =Repdd!AO278 -> 0 | AP122: =Repdd!AP278 -> 0 | AQ122: =Repdd!AQ278 -> 0 | AR122: =Repdd!AR278 -> 0 | AS122: =Repdd!AS278 -> 0 | AT122: =Repdd!AT278 -> 0 | AU122: =Repdd!AU278 -> 0 | AV122: =Repdd!AV278 -> 0 | AW122: =Repdd!AW278 -> 0 | AX122: =Repdd!AX278 -> 0 | AY122: =Repdd!AY278 -> 0 | AZ122: =Repdd!AZ278 -> 0 | BA122: =Repdd!BA278 -> 0 | BB122: =Repdd!BB278 -> 0 | BC122: =Repdd!BC278 -> 665653.3355 | BD122: =Repdd!BD278 -> 1789557.905 | BE122: =Repdd!BE278 -> 1954875.849 | BF122: =Repdd!BF278 -> 2109239.32 | BG122: =Repdd!BG278 -> 2237648.345 | BH122: =Repdd!BH278 -> 2335114.278 | BI122: =Repdd!BI278 -> 2400763.768 | BJ122: =Repdd!BJ278 -> 2439127.227 | BK122: =Repdd!BK278 -> 2459717.812 | BL122: =Repdd!BL278 -> 2469940.004 | BM122: =Repdd!BM278 -> 2474682.103 | BN122: =Repdd!BN278 -> 2476577.048 | BO122: =Repdd!BO278 -> 2477196.001 | BP122: =Repdd!BP278 -> 2477400.515 | BQ122: =Repdd!BQ278 -> 2477456.431 | BR122: =Repdd!BR278 -> 2477463.099 | BS122: =Repdd!BS278 -> 2477461.788 | BT122: =Repdd!BT278 -> 2477461.159 | BU122: =Repdd!BU278 -> 2477461.159 | BV122: =Repdd!BV278 -> 0 | BW122: =Repdd!BW278 -> 0 | BX122: =Repdd!BX278 -> 0 | BY122: =Repdd!BY278 -> 0 | BZ122: =Repdd!BZ278 -> 0 | CA122: =Repdd!CA278 -> 0 | CB122: =Repdd!CB278 -> 0 | CC122: =Repdd!CC278 -> 0 | CD122: =Repdd!CD278 -> 0 | CE122: =Repdd!CE278 -> 0 | CF122: =Repdd!CF278 -> 0 | CG122: =Repdd!CG278 -> 0 | CH122: =Repdd!CH278 -> 0 | CI122: =Repdd!CI278 -> 0 | CJ122: =Repdd!CJ278 -> 0 | CK122: =Repdd!CK278 -> 0 | CL122: =Repdd!CL278 -> 0 | CM122: =Repdd!CM278 -> 0 | CN122: =Repdd!CN278 -> 0 | CO122: =Repdd!CO278 -> 0 | CP122: =Repdd!CP278 -> 0 | CQ122: =Repdd!CQ278 -> 0 | CR122: =Repdd!CR278 -> 0 | CS122: =Repdd!CS278 -> 0 | CT122: =Repdd!CT278 -> 0
A123: =ROW() -> 123 | F123: Чистая прибыль | M123: =Lists!$R$8 -> руб. | V123: =W123-(W121-W122) -> 0 | W123: =SUM(INDIRECT(ADDRESS(ROW(),SUMIFS($1:$1,$5:$5,1))):INDIRECT(ADDRESS(ROW(),SUMIFS($1:$1,$5:$5,MAX($5:$5))))) -> 172619188.6 | Z123: =Repdd!Z279 -> -1712121.212 | AA123: =Repdd!AA279 -> -1803787.879 | AB123: =Repdd!AB279 -> -2020454.545 | AC123: =Repdd!AC279 -> -2451406.926 | AD123: =Repdd!AD279 -> -2576406.926 | AE123: =Repdd!AE279 -> -2659740.26 | AF123: =Repdd!AF279 -> -2659740.26 | AG123: =Repdd!AG279 -> -2659740.26 | AH123: =Repdd!AH279 -> -2656796.47 | AI123: =Repdd!AI279 -> -2634887.525 | AJ123: =Repdd!AJ279 -> -2582978.635 | AK123: =Repdd!AK279 -> -2521092.45 | AL123: =Repdd!AL279 -> -2457459.563 | AM123: =Repdd!AM279 -> -2395528.026 | AN123: =Repdd!AN279 -> -2297850.443 | AO123: =Repdd!AO279 -> -2085209.595 | AP123: =Repdd!AP279 -> -1727629.885 | AQ123: =Repdd!AQ279 -> -1216233.834 | AR123: =Repdd!AR279 -> -571549.9524 | AS123: =Repdd!AS279 -> 160275.192 | AT123: =Repdd!AT279 -> 943410.6175 | AU123: =Repdd!AU279 -> 1753747.805 | AV123: =Repdd!AV279 -> 2578238.231 | AW123: =Repdd!AW279 -> 3409091.291 | AX123: =Repdd!AX279 -> 3944397.608 | AY123: =Repdd!AY279 -> 4778067.219 | AZ123: =Repdd!AZ279 -> 5611983.066 | BA123: =Repdd!BA279 -> 6445938.812 | BB123: =Repdd!BB279 -> 7279891.147 | BC123: =Repdd!BC279 -> 7448187.002 | BD123: =Repdd!BD279 -> 7158231.622 | BE123: =Repdd!BE279 -> 7819503.395 | BF123: =Repdd!BF279 -> 8436957.278 | BG123: =Repdd!BG279 -> 8950593.381 | BH123: =Repdd!BH279 -> 9340457.114 | BI123: =Repdd!BI279 -> 9603055.072 | BJ123: =Repdd!BJ279 -> 9756508.906 | BK123: =Repdd!BK279 -> 9838871.246 | BL123: =Repdd!BL279 -> 9879760.014 | BM123: =Repdd!BM279 -> 9898728.412 | BN123: =Repdd!BN279 -> 9906308.192 | BO123: =Repdd!BO279 -> 9908784.004 | BP123: =Repdd!BP279 -> 9909602.059 | BQ123: =Repdd!BQ279 -> 9909825.722 | BR123: =Repdd!BR279 -> 9909852.397 | BS123: =Repdd!BS279 -> 9909847.152 | BT123: =Repdd!BT279 -> 9909844.637 | BU123: =Repdd!BU279 -> 9909844.637 | BV123: =Repdd!BV279 -> 0 | BW123: =Repdd!BW279 -> 0 | BX123: =Repdd!BX279 -> 0 | BY123: =Repdd!BY279 -> 0 | BZ123: =Repdd!BZ279 -> 0 | CA123: =Repdd!CA279 -> 0 | CB123: =Repdd!CB279 -> 0 | CC123: =Repdd!CC279 -> 0 | CD123: =Repdd!CD279 -> 0 | CE123: =Repdd!CE279 -> 0 | CF123: =Repdd!CF279 -> 0 | CG123: =Repdd!CG279 -> 0 | CH123: =Repdd!CH279 -> 0 | CI123: =Repdd!CI279 -> 0 | CJ123: =Repdd!CJ279 -> 0 | CK123: =Repdd!CK279 -> 0 | CL123: =Repdd!CL279 -> 0 | CM123: =Repdd!CM279 -> 0 | CN123: =Repdd!CN279 -> 0 | CO123: =Repdd!CO279 -> 0 | CP123: =Repdd!CP279 -> 0 | CQ123: =Repdd!CQ279 -> 0 | CR123: =Repdd!CR279 -> 0 | CS123: =Repdd!CS279 -> 0 | CT123: =Repdd!CT279 -> 0
A124: =ROW() -> 124 | F124: Итоговая рентабельность | M124: % | W124: =IF(W$107=0,0,W123/W$107) -> 0.233715287 | Z124: =IF(Z$107=0,0,Z123/Z$107) -> 0 | AA124: =IF(AA$107=0,0,AA123/AA$107) -> 0 | AB124: 0 | AC124: 0 | AD124: 0 | AE124: 0 | AF124: 0 | AG124: 0 | AH124: -506.6837932 | AI124: -57.98140244 | AJ124: -17.89125266 | AK124: -9.37390803 | AL124: -6.111065406 | AM124: -4.477816434 | AN124: -3.138066468 | AO124: -1.820290804 | AP124: -0.9350793871 | AQ124: -0.4239555213 | AR124: -0.1366986636 | AS124: 0.02812873621 | AT124: 0.128463017 | AU124: 0.1935029461 | AV124: 0.2382439877 | AW124: 0.2705723281 | AX124: 0.2742072631 | AY124: 0.2954372457 | AZ124: 0.3124352222 | BA124: 0.3263512337 | BB124: 0.3379540295 | BC124: 0.3192452716 | BD124: 0.2849597342 | BE124: 0.2907247827 | BF124: 0.2952822731 | BG124: 0.2983418875 | BH124: 0.300159619 | BI124: 0.3010125315 | BJ124: 0.3012441539 | BK124: 0.3012229183 | BL124: 0.3011396346 | BM124: 0.3010695573 | BN124: 0.3010165883 | BO124: 0.3009834488 | BP124: 0.3009683407 | BQ124: 0.3009622927 | BR124: 0.3009600075 | BS124: 0.3009591893 | BT124: 0.300959023 | BU124: 0.300959023 | BV124: 0 | BW124: 0 | BX124: 0 | BY124: 0 | BZ124: 0 | CA124: 0 | CB124: 0 | CC124: 0 | CD124: 0 | CE124: 0 | CF124: 0 | CG124: 0 | CH124: 0 | CI124: 0 | CJ124: 0 | CK124: 0 | CL124: 0 | CM124: =IF(CM$107=0,0,CM123/CM$107) -> 0 | CN124: 0 | CO124: 0 | CP124: 0 | CQ124: 0 | CR124: 0 | CS124: 0 | CT124: 0
A126: =ROW() -> 126 | F126: НДС начисленный (к возмещению)
A127: =ROW() -> 127 | F127: НДС по капзатратам к возмещению | M127: =Lists!$R$8 -> руб. | W127: =SUM(INDIRECT(ADDRESS(ROW(),SUMIFS($1:$1,$5:$5,1))):INDIRECT(ADDRESS(ROW(),SUMIFS($1:$1,$5:$5,MAX($5:$5))))) -> 10000000 | Z127: =Repdd!Z283 -> 833333.3333 | AA127: =Repdd!AA283 -> 2500000 | AB127: =Repdd!AB283 -> 1666666.667 | AC127: =Repdd!AC283 -> 0 | AD127: =Repdd!AD283 -> 0 | AE127: =Repdd!AE283 -> 0 | AF127: =Repdd!AF283 -> 0 | AG127: =Repdd!AG283 -> 0 | AH127: =Repdd!AH283 -> 0 | AI127: =Repdd!AI283 -> 0 | AJ127: =Repdd!AJ283 -> 0 | AK127: =Repdd!AK283 -> 0 | AL127: =Repdd!AL283 -> 0 | AM127: =Repdd!AM283 -> 0 | AN127: =Repdd!AN283 -> 0 | AO127: =Repdd!AO283 -> 0 | AP127: =Repdd!AP283 -> 0 | AQ127: =Repdd!AQ283 -> 0 | AR127: =Repdd!AR283 -> 0 | AS127: =Repdd!AS283 -> 0 | AT127: =Repdd!AT283 -> 0 | AU127: =Repdd!AU283 -> 833333.3333 | AV127: =Repdd!AV283 -> 2500000 | AW127: =Repdd!AW283 -> 1666666.667 | AX127: =Repdd!AX283 -> 0 | AY127: =Repdd!AY283 -> 0 | AZ127: =Repdd!AZ283 -> 0 | BA127: =Repdd!BA283 -> 0 | BB127: =Repdd!BB283 -> 0 | BC127: =Repdd!BC283 -> 0 | BD127: =Repdd!BD283 -> 0 | BE127: =Repdd!BE283 -> 0 | BF127: =Repdd!BF283 -> 0 | BG127: =Repdd!BG283 -> 0 | BH127: =Repdd!BH283 -> 0 | BI127: =Repdd!BI283 -> 0 | BJ127: =Repdd!BJ283 -> 0 | BK127: =Repdd!BK283 -> 0 | BL127: =Repdd!BL283 -> 0 | BM127: =Repdd!BM283 -> 0 | BN127: =Repdd!BN283 -> 0 | BO127: =Repdd!BO283 -> 0 | BP127: =Repdd!BP283 -> 0 | BQ127: =Repdd!BQ283 -> 0 | BR127: =Repdd!BR283 -> 0 | BS127: =Repdd!BS283 -> 0 | BT127: =Repdd!BT283 -> 0 | BU127: =Repdd!BU283 -> 0 | BV127: =Repdd!BV283 -> 0 | BW127: =Repdd!BW283 -> 0 | BX127: =Repdd!BX283 -> 0 | BY127: =Repdd!BY283 -> 0 | BZ127: =Repdd!BZ283 -> 0 | CA127: =Repdd!CA283 -> 0 | CB127: =Repdd!CB283 -> 0 | CC127: =Repdd!CC283 -> 0 | CD127: =Repdd!CD283 -> 0 | CE127: =Repdd!CE283 -> 0 | CF127: =Repdd!CF283 -> 0 | CG127: =Repdd!CG283 -> 0 | CH127: =Repdd!CH283 -> 0 | CI127: =Repdd!CI283 -> 0 | CJ127: =Repdd!CJ283 -> 0 | CK127: =Repdd!CK283 -> 0 | CL127: =Repdd!CL283 -> 0 | CM127: =Repdd!CM283 -> 0 | CN127: =Repdd!CN283 -> 0 | CO127: =Repdd!CO283 -> 0 | CP127: =Repdd!CP283 -> 0 | CQ127: =Repdd!CQ283 -> 0 | CR127: =Repdd!CR283 -> 0 | CS127: =Repdd!CS283 -> 0 | CT127: =Repdd!CT283 -> 0
A128: =ROW() -> 128 | F128: НДС начисленный | M128: =Lists!$R$8 -> руб. | W128: =SUM(INDIRECT(ADDRESS(ROW(),SUMIFS($1:$1,$5:$5,1))):INDIRECT(ADDRESS(ROW(),SUMIFS($1:$1,$5:$5,MAX($5:$5))))) -> 104780612.3 | Z128: =Repdd!Z284 -> -57878.78788 | AA128: =Repdd!AA284 -> -76212.12121 | AB128: =Repdd!AB284 -> -119545.4545 | AC128: =Repdd!AC284 -> -146992.1212 | AD128: =Repdd!AD284 -> -174713.5879 | AE128: =Repdd!AE284 -> -195020.6545 | AF128: =Repdd!AF284 -> -198834.8479 | AG128: =Repdd!AG284 -> -202374.4245 | AH128: =Repdd!AH284 -> -205801.5331 | AI128: =Repdd!AI284 -> -208422.7708 | AJ128: =Repdd!AJ284 -> -208406.8152 | AK128: =Repdd!AK284 -> -212702.8139 | AL128: =Repdd!AL284 -> -223996.3025 | AM128: =Repdd!AM284 -> -241387.4506 | AN128: =Repdd!AN284 -> -250211.2011 | AO128: =Repdd!AO284 -> -220256.5854 | AP128: =Repdd!AP284 -> -136843.6207 | AQ128: =Repdd!AQ284 -> 6329.13802 | AR128: =Repdd!AR284 -> 204300.4827 | AS128: =Repdd!AS284 -> 440835.0808 | AT128: =Repdd!AT284 -> 701725.8566 | AU128: =Repdd!AU284 -> 976477.6396 | AV128: =Repdd!AV284 -> 1258663.019 | AW128: =Repdd!AW284 -> 1544443.979 | AX128: =Repdd!AX284 -> 1831633.626 | AY128: =Repdd!AY284 -> 2119382.807 | AZ128: =Repdd!AZ284 -> 2409283.399 | BA128: =Repdd!BA284 -> 2706038.01 | BB128: =Repdd!BB284 -> 3011905.385 | BC128: =Repdd!BC284 -> 3327310.099 | BD128: =Repdd!BD284 -> 3651563.755 | BE128: =Repdd!BE284 -> 3979510.183 | BF128: =Repdd!BF284 -> 4292125.538 | BG128: =Repdd!BG284 -> 4560064.338 | BH128: =Repdd!BH284 -> 4770267.759 | BI128: =Repdd!BI284 -> 4918107.173 | BJ128: =Repdd!BJ284 -> 5009594.8 | BK128: =Repdd!BK284 -> 5061639.826 | BL128: =Repdd!BL284 -> 5088987.725 | BM128: =Repdd!BM284 -> 5102331.071 | BN128: =Repdd!BN284 -> 5108180.398 | BO128: =Repdd!BO284 -> 5110418.708 | BP128: =Repdd!BP284 -> 5111244.368 | BQ128: =Repdd!BQ284 -> 5111509.751 | BR128: =Repdd!BR284 -> 5111573.724 | BS128: =Repdd!BS284 -> 5111587.344 | BT128: =Repdd!BT284 -> 5111589.201 | BU128: =Repdd!BU284 -> 5111589.201 | BV128: =Repdd!BV284 -> 0 | BW128: =Repdd!BW284 -> 0 | BX128: =Repdd!BX284 -> 0 | BY128: =Repdd!BY284 -> 0 | BZ128: =Repdd!BZ284 -> 0 | CA128: =Repdd!CA284 -> 0 | CB128: =Repdd!CB284 -> 0 | CC128: =Repdd!CC284 -> 0 | CD128: =Repdd!CD284 -> 0 | CE128: =Repdd!CE284 -> 0 | CF128: =Repdd!CF284 -> 0 | CG128: =Repdd!CG284 -> 0 | CH128: =Repdd!CH284 -> 0 | CI128: =Repdd!CI284 -> 0 | CJ128: =Repdd!CJ284 -> 0 | CK128: =Repdd!CK284 -> 0 | CL128: =Repdd!CL284 -> 0 | CM128: =Repdd!CM284 -> 0 | CN128: =Repdd!CN284 -> 0 | CO128: =Repdd!CO284 -> 0 | CP128: =Repdd!CP284 -> 0 | CQ128: =Repdd!CQ284 -> 0 | CR128: =Repdd!CR284 -> 0 | CS128: =Repdd!CS284 -> 0 | CT128: =Repdd!CT284 -> 0
A129: =ROW() -> 129
A130: =ROW() -> 130 | F130: Отчет о движении денежных средств
A131: =ROW() -> 131 | C131: =Lists!$N$10 -> в натуральных величинах | F131: Поступления ДС от продаж | M131: =Lists!$R$8 -> руб. | S131: =Repdd!S287 -> 1 | W131: =SUM(INDIRECT(ADDRESS(ROW(),SUMIFS($1:$1,$5:$5,1))):INDIRECT(ADDRESS(ROW(),SUMIFS($1:$1,$5:$5,MAX($5:$5))))) -> 846791929.7 | Z131: =Repdd!Z287 -> 0 | AA131: =Repdd!AA287 -> 0 | AB131: =Repdd!AB287 -> 0 | AC131: =Repdd!AC287 -> 0 | AD131: =Repdd!AD287 -> 0 | AE131: =Repdd!AE287 -> 0 | AF131: =Repdd!AF287 -> 0 | AG131: =Repdd!AG287 -> 0 | AH131: =Repdd!AH287 -> 0 | AI131: =Repdd!AI287 -> 6292.2 | AJ131: =Repdd!AJ287 -> 54532.4 | AK131: =Repdd!AK287 -> 173245.24 | AL131: =Repdd!AL287 -> 322737.425 | AM131: =Repdd!AM287 -> 482559.305 | AN131: =Repdd!AN287 -> 641972.192 | AO131: =Repdd!AO287 -> 878700.4865 | AP131: =Repdd!AP287 -> 1374643.825 | AQ131: =Repdd!AQ287 -> 2217090.753 | AR131: =Repdd!AR287 -> 3442532.359 | AS131: =Repdd!AS287 -> 5017312.714 | AT131: =Repdd!AT287 -> 6837499.88 | AU131: =Repdd!AU287 -> 8812596.553 | AV131: =Repdd!AV287 -> 10875789.79 | AW131: =Repdd!AW287 -> 12986207.57 | AX131: =Repdd!AX287 -> 15119467.6 | AY131: =Repdd!AY287 -> 17261676.72 | AZ131: =Repdd!AZ287 -> 19407440.14 | BA131: =Repdd!BA287 -> 21554482.98 | BB131: =Repdd!BB287 -> 23701845.67 | BC131: =Repdd!BC287 -> 25849283.08 | BD131: =Repdd!BD287 -> 27996732.29 | BE131: =Repdd!BE287 -> 30144181.49 | BF131: =Repdd!BF287 -> 32275900.2 | BG131: =Repdd!BG287 -> 34287018.41 | BH131: =Repdd!BH287 -> 36001354.52 | BI131: =Repdd!BI287 -> 37341960.16 | BJ131: =Repdd!BJ287 -> 38283011.11 | BK131: =Repdd!BK287 -> 38864856.08 | BL131: =Repdd!BL287 -> 39195707.82 | BM131: =Repdd!BM287 -> 39369483.97 | BN131: =Repdd!BN287 -> 39454251.7 | BO131: =Repdd!BO287 -> 39491411.07 | BP131: =Repdd!BP287 -> 39505630.13 | BQ131: =Repdd!BQ287 -> 39510874.95 | BR131: =Repdd!BR287 -> 39512560.73 | BS131: =Repdd!BS287 -> 39512967.1 | BT131: =Repdd!BT287 -> 39513053.62 | BU131: =Repdd!BU287 -> 39513065.42 | BV131: =Repdd!BV287 -> 0 | BW131: =Repdd!BW287 -> 0 | BX131: =Repdd!BX287 -> 0 | BY131: =Repdd!BY287 -> 0 | BZ131: =Repdd!BZ287 -> 0 | CA131: =Repdd!CA287 -> 0 | CB131: =Repdd!CB287 -> 0 | CC131: =Repdd!CC287 -> 0 | CD131: =Repdd!CD287 -> 0 | CE131: =Repdd!CE287 -> 0 | CF131: =Repdd!CF287 -> 0 | CG131: =Repdd!CG287 -> 0 | CH131: =Repdd!CH287 -> 0 | CI131: =Repdd!CI287 -> 0 | CJ131: =Repdd!CJ287 -> 0 | CK131: =Repdd!CK287 -> 0 | CL131: =Repdd!CL287 -> 0 | CM131: =Repdd!CM287 -> 0 | CN131: =Repdd!CN287 -> 0 | CO131: =Repdd!CO287 -> 0 | CP131: =Repdd!CP287 -> 0 | CQ131: =Repdd!CQ287 -> 0 | CR131: =Repdd!CR287 -> 0 | CS131: =Repdd!CS287 -> 0 | CT131: =Repdd!CT287 -> 0
A132: =ROW() -> 132 | F132: Оплата себестоимостных затрат | M132: =Lists!$R$8 -> руб. | V132: =W132-SUM(W133:W142) -> 0 | W132: =SUM(INDIRECT(ADDRESS(ROW(),SUMIFS($1:$1,$5:$5,1))):INDIRECT(ADDRESS(ROW(),SUMIFS($1:$1,$5:$5,MAX($5:$5))))) -> 432915122.9 | Z132: =Repdd!Z288 -> 0 | AA132: =Repdd!AA288 -> 0 | AB132: =Repdd!AB288 -> 4680 | AC132: =Repdd!AC288 -> 20320 | AD132: =Repdd!AD288 -> 40656 | AE132: =Repdd!AE288 -> 63925.8 | AF132: =Repdd!AF288 -> 93936.2 | AG132: =Repdd!AG288 -> 148249.16 | AH132: =Repdd!AH288 -> 249656.12 | AI132: =Repdd!AI288 -> 401823.44 | AJ132: =Repdd!AJ288 -> 606886.628 | AK132: =Repdd!AK288 -> 874948.518 | AL132: =Repdd!AL288 -> 1236667.474 | AM132: =Repdd!AM288 -> 1715920.186 | AN132: =Repdd!AN288 -> 2316150.242 | AO132: =Repdd!AO288 -> 3026438.33 | AP132: =Repdd!AP288 -> 3818021.487 | AQ132: =Repdd!AQ288 -> 4659682.99 | AR132: =Repdd!AR288 -> 5529488.711 | AS132: =Repdd!AS288 -> 6414242.694 | AT132: =Repdd!AT288 -> 7306351.845 | AU132: =Repdd!AU288 -> 8201453.275 | AV132: =Repdd!AV288 -> 9097586.125 | AW132: =Repdd!AW288 -> 9994095.865 | AX132: =Repdd!AX288 -> 10890719.05 | AY132: =Repdd!AY288 -> 11775657.55 | AZ132: =Repdd!AZ288 -> 12621496.05 | BA132: =Repdd!BA288 -> 13416494.55 | BB132: =Repdd!BB288 -> 14153318.55 | BC132: =Repdd!BC288 -> 14815116.55 | BD132: =Repdd!BD288 -> 15370382.15 | BE132: =Repdd!BE288 -> 15799130.35 | BF132: =Repdd!BF288 -> 16101560.25 | BG132: =Repdd!BG288 -> 16290868.43 | BH132: =Repdd!BH288 -> 16397123.13 | BI132: =Repdd!BI288 -> 16452512.7 | BJ132: =Repdd!BJ288 -> 16479496.23 | BK132: =Repdd!BK288 -> 16491426.13 | BL132: =Repdd!BL288 -> 16495961.61 | BM132: =Repdd!BM288 -> 16497498.68 | BN132: =Repdd!BN288 -> 16498004.32 | BO132: =Repdd!BO288 -> 16498133.09 | BP132: =Repdd!BP288 -> 16498148.4 | BQ132: =Repdd!BQ288 -> 16498148.4 | BR132: =Repdd!BR288 -> 16498148.4 | BS132: =Repdd!BS288 -> 16498148.4 | BT132: =Repdd!BT288 -> 16498148.4 | BU132: =Repdd!BU288 -> 11558300.4 | BV132: =Repdd!BV288 -> 0 | BW132: =Repdd!BW288 -> 0 | BX132: =Repdd!BX288 -> 0 | BY132: =Repdd!BY288 -> 0 | BZ132: =Repdd!BZ288 -> 0 | CA132: =Repdd!CA288 -> 0 | CB132: =Repdd!CB288 -> 0 | CC132: =Repdd!CC288 -> 0 | CD132: =Repdd!CD288 -> 0 | CE132: =Repdd!CE288 -> 0 | CF132: =Repdd!CF288 -> 0 | CG132: =Repdd!CG288 -> 0 | CH132: =Repdd!CH288 -> 0 | CI132: =Repdd!CI288 -> 0 | CJ132: =Repdd!CJ288 -> 0 | CK132: =Repdd!CK288 -> 0 | CL132: =Repdd!CL288 -> 0 | CM132: =Repdd!CM288 -> 0 | CN132: =Repdd!CN288 -> 0 | CO132: =Repdd!CO288 -> 0 | CP132: =Repdd!CP288 -> 0 | CQ132: =Repdd!CQ288 -> 0 | CR132: =Repdd!CR288 -> 0 | CS132: =Repdd!CS288 -> 0 | CT132: =Repdd!CT288 -> 0
A133: =ROW() -> 133 | F133: =$F$132 -> Оплата себестоимостных затрат | G133: =BP!$F$21 -> Основа | M133: =Lists!$R$8 -> руб. | S133: =Repdd!S289 -> -1 | W133: =SUM(INDIRECT(ADDRESS(ROW(),SUMIFS($1:$1,$5:$5,1))):INDIRECT(ADDRESS(ROW(),SUMIFS($1:$1,$5:$5,MAX($5:$5))))) -> 94802946 | Z133: =Repdd!Z289 -> 0 | AA133: =Repdd!AA289 -> 0 | AB133: =Repdd!AB289 -> 4200 | AC133: =Repdd!AC289 -> 16800 | AD133: =Repdd!AD289 -> 30240 | AE133: =Repdd!AE289 -> 44205 | AF133: =Repdd!AF289 -> 56385 | AG133: =Repdd!AG289 -> 74067 | AH133: =Repdd!AH289 -> 120267 | AI133: =Repdd!AI289 -> 198051 | AJ133: =Repdd!AJ289 -> 309718.5 | AK133: =Repdd!AK289 -> 451185 | AL133: =Repdd!AL289 -> 610228.5 | AM133: =Repdd!AM289 -> 779709 | AN133: =Repdd!AN289 -> 954607.5 | AO133: =Repdd!AO289 -> 1132372.5 | AP133: =Repdd!AP289 -> 1311397.5 | AQ133: =Repdd!AQ289 -> 1490737.5 | AR133: =Repdd!AR289 -> 1670235 | AS133: =Repdd!AS289 -> 1849785 | AT133: =Repdd!AT289 -> 2029335 | AU133: =Repdd!AU289 -> 2208885 | AV133: =Repdd!AV289 -> 2388435 | AW133: =Repdd!AW289 -> 2567985 | AX133: =Repdd!AX289 -> 2747535 | AY133: =Repdd!AY289 -> 2916585 | AZ133: =Repdd!AZ289 -> 3054135 | BA133: =Repdd!BA289 -> 3158085 | BB133: =Repdd!BB289 -> 3227122.5 | BC133: =Repdd!BC289 -> 3265710 | BD133: =Repdd!BD289 -> 3286342.5 | BE133: =Repdd!BE289 -> 3296475 | BF133: =Repdd!BF289 -> 3301147.5 | BG133: =Repdd!BG289 -> 3302932.5 | BH133: =Repdd!BH289 -> 3303457.5 | BI133: =Repdd!BI289 -> 3303667.5 | BJ133: =Repdd!BJ289 -> 3303720 | BK133: =Repdd!BK289 -> 3303720 | BL133: =Repdd!BL289 -> 3303720 | BM133: =Repdd!BM289 -> 3303720 | BN133: =Repdd!BN289 -> 3303720 | BO133: =Repdd!BO289 -> 3303720 | BP133: =Repdd!BP289 -> 3303720 | BQ133: =Repdd!BQ289 -> 3303720 | BR133: =Repdd!BR289 -> 3303720 | BS133: =Repdd!BS289 -> 3303720 | BT133: =Repdd!BT289 -> 3303720 | BU133: =Repdd!BU289 -> 0 | BV133: =Repdd!BV289 -> 0 | BW133: =Repdd!BW289 -> 0 | BX133: =Repdd!BX289 -> 0 | BY133: =Repdd!BY289 -> 0 | BZ133: =Repdd!BZ289 -> 0 | CA133: =Repdd!CA289 -> 0 | CB133: =Repdd!CB289 -> 0 | CC133: =Repdd!CC289 -> 0 | CD133: =Repdd!CD289 -> 0 | CE133: =Repdd!CE289 -> 0 | CF133: =Repdd!CF289 -> 0 | CG133: =Repdd!CG289 -> 0 | CH133: =Repdd!CH289 -> 0 | CI133: =Repdd!CI289 -> 0 | CJ133: =Repdd!CJ289 -> 0 | CK133: =Repdd!CK289 -> 0 | CL133: =Repdd!CL289 -> 0 | CM133: =Repdd!CM289 -> 0 | CN133: =Repdd!CN289 -> 0 | CO133: =Repdd!CO289 -> 0 | CP133: =Repdd!CP289 -> 0 | CQ133: =Repdd!CQ289 -> 0 | CR133: =Repdd!CR289 -> 0 | CS133: =Repdd!CS289 -> 0 | CT133: =Repdd!CT289 -> 0
A134: =ROW() -> 134 | F134: =$F$132 -> Оплата себестоимостных затрат | G134: =BP!$F$22 -> Сырье | M134: =Lists!$R$8 -> руб. | S134: =Repdd!S290 -> -1 | W134: =SUM(INDIRECT(ADDRESS(ROW(),SUMIFS($1:$1,$5:$5,1))):INDIRECT(ADDRESS(ROW(),SUMIFS($1:$1,$5:$5,MAX($5:$5))))) -> 10834622.4 | Z134: =Repdd!Z290 -> 0 | AA134: =Repdd!AA290 -> 0 | AB134: =Repdd!AB290 -> 480 | AC134: =Repdd!AC290 -> 1920 | AD134: =Repdd!AD290 -> 3456 | AE134: =Repdd!AE290 -> 5052 | AF134: =Repdd!AF290 -> 6444 | AG134: =Repdd!AG290 -> 8464.8 | AH134: =Repdd!AH290 -> 13744.8 | AI134: =Repdd!AI290 -> 22634.4 | AJ134: =Repdd!AJ290 -> 35396.4 | AK134: =Repdd!AK290 -> 51564 | AL134: =Repdd!AL290 -> 69740.4 | AM134: =Repdd!AM290 -> 89109.6 | AN134: =Repdd!AN290 -> 109098 | AO134: =Repdd!AO290 -> 129414 | AP134: =Repdd!AP290 -> 149874 | AQ134: =Repdd!AQ290 -> 170370 | AR134: =Repdd!AR290 -> 190884 | AS134: =Repdd!AS290 -> 211404 | AT134: =Repdd!AT290 -> 231924 | AU134: =Repdd!AU290 -> 252444 | AV134: =Repdd!AV290 -> 272964 | AW134: =Repdd!AW290 -> 293484 | AX134: =Repdd!AX290 -> 314004 | AY134: =Repdd!AY290 -> 333324 | AZ134: =Repdd!AZ290 -> 349044 | BA134: =Repdd!BA290 -> 360924 | BB134: =Repdd!BB290 -> 368814 | BC134: =Repdd!BC290 -> 373224 | BD134: =Repdd!BD290 -> 375582 | BE134: =Repdd!BE290 -> 376740 | BF134: =Repdd!BF290 -> 377274 | BG134: =Repdd!BG290 -> 377478 | BH134: =Repdd!BH290 -> 377538 | BI134: =Repdd!BI290 -> 377562 | BJ134: =Repdd!BJ290 -> 377568 | BK134: =Repdd!BK290 -> 377568 | BL134: =Repdd!BL290 -> 377568 | BM134: =Repdd!BM290 -> 377568 | BN134: =Repdd!BN290 -> 377568 | BO134: =Repdd!BO290 -> 377568 | BP134: =Repdd!BP290 -> 377568 | BQ134: =Repdd!BQ290 -> 377568 | BR134: =Repdd!BR290 -> 377568 | BS134: =Repdd!BS290 -> 377568 | BT134: =Repdd!BT290 -> 377568 | BU134: =Repdd!BU290 -> 0 | BV134: =Repdd!BV290 -> 0 | BW134: =Repdd!BW290 -> 0 | BX134: =Repdd!BX290 -> 0 | BY134: =Repdd!BY290 -> 0 | BZ134: =Repdd!BZ290 -> 0 | CA134: =Repdd!CA290 -> 0 | CB134: =Repdd!CB290 -> 0 | CC134: =Repdd!CC290 -> 0 | CD134: =Repdd!CD290 -> 0 | CE134: =Repdd!CE290 -> 0 | CF134: =Repdd!CF290 -> 0 | CG134: =Repdd!CG290 -> 0 | CH134: =Repdd!CH290 -> 0 | CI134: =Repdd!CI290 -> 0 | CJ134: =Repdd!CJ290 -> 0 | CK134: =Repdd!CK290 -> 0 | CL134: =Repdd!CL290 -> 0 | CM134: =Repdd!CM290 -> 0 | CN134: =Repdd!CN290 -> 0 | CO134: =Repdd!CO290 -> 0 | CP134: =Repdd!CP290 -> 0 | CQ134: =Repdd!CQ290 -> 0 | CR134: =Repdd!CR290 -> 0 | CS134: =Repdd!CS290 -> 0 | CT134: =Repdd!CT290 -> 0
A135: =ROW() -> 135 | F135: Оплата себестоимостных затрат | G135: =BP!$F$23 -> Материал | M135: =Lists!$R$8 -> руб. | S135: =Repdd!S291 -> 0 | W135: =SUM(INDIRECT(ADDRESS(ROW(),SUMIFS($1:$1,$5:$5,1))):INDIRECT(ADDRESS(ROW(),SUMIFS($1:$1,$5:$5,MAX($5:$5))))) -> 12199896.8 | Z135: =Repdd!Z291 -> 0 | AA135: =Repdd!AA291 -> 0 | AB135: =Repdd!AB291 -> 0 | AC135: =Repdd!AC291 -> 0 | AD135: =Repdd!AD291 -> 560 | AE135: =Repdd!AE291 -> 2240 | AF135: =Repdd!AF291 -> 4032 | AG135: =Repdd!AG291 -> 5894 | AH135: =Repdd!AH291 -> 7518 | AI135: =Repdd!AI291 -> 9875.6 | AJ135: =Repdd!AJ291 -> 16035.6 | AK135: =Repdd!AK291 -> 26406.8 | AL135: =Repdd!AL291 -> 41295.8 | AM135: =Repdd!AM291 -> 60158 | AN135: =Repdd!AN291 -> 81363.8 | AO135: =Repdd!AO291 -> 103961.2 | AP135: =Repdd!AP291 -> 127281 | AQ135: =Repdd!AQ291 -> 150983 | AR135: =Repdd!AR291 -> 174853 | AS135: =Repdd!AS291 -> 198765 | AT135: =Repdd!AT291 -> 222698 | AU135: =Repdd!AU291 -> 246638 | AV135: =Repdd!AV291 -> 270578 | AW135: =Repdd!AW291 -> 294518 | AX135: =Repdd!AX291 -> 318458 | AY135: =Repdd!AY291 -> 342398 | AZ135: =Repdd!AZ291 -> 366338 | BA135: =Repdd!BA291 -> 388878 | BB135: =Repdd!BB291 -> 407218 | BC135: =Repdd!BC291 -> 421078 | BD135: =Repdd!BD291 -> 430283 | BE135: =Repdd!BE291 -> 435428 | BF135: =Repdd!BF291 -> 438179 | BG135: =Repdd!BG291 -> 439530 | BH135: =Repdd!BH291 -> 440153 | BI135: =Repdd!BI291 -> 440391 | BJ135: =Repdd!BJ291 -> 440461 | BK135: =Repdd!BK291 -> 440489 | BL135: =Repdd!BL291 -> 440496 | BM135: =Repdd!BM291 -> 440496 | BN135: =Repdd!BN291 -> 440496 | BO135: =Repdd!BO291 -> 440496 | BP135: =Repdd!BP291 -> 440496 | BQ135: =Repdd!BQ291 -> 440496 | BR135: =Repdd!BR291 -> 440496 | BS135: =Repdd!BS291 -> 440496 | BT135: =Repdd!BT291 -> 440496 | BU135: =Repdd!BU291 -> 440496 | BV135: =Repdd!BV291 -> 0 | BW135: =Repdd!BW291 -> 0 | BX135: =Repdd!BX291 -> 0 | BY135: =Repdd!BY291 -> 0 | BZ135: =Repdd!BZ291 -> 0 | CA135: =Repdd!CA291 -> 0 | CB135: =Repdd!CB291 -> 0 | CC135: =Repdd!CC291 -> 0 | CD135: =Repdd!CD291 -> 0 | CE135: =Repdd!CE291 -> 0 | CF135: =Repdd!CF291 -> 0 | CG135: =Repdd!CG291 -> 0 | CH135: =Repdd!CH291 -> 0 | CI135: =Repdd!CI291 -> 0 | CJ135: =Repdd!CJ291 -> 0 | CK135: =Repdd!CK291 -> 0 | CL135: =Repdd!CL291 -> 0 | CM135: =Repdd!CM291 -> 0 | CN135: =Repdd!CN291 -> 0 | CO135: =Repdd!CO291 -> 0 | CP135: =Repdd!CP291 -> 0 | CQ135: =Repdd!CQ291 -> 0 | CR135: =Repdd!CR291 -> 0 | CS135: =Repdd!CS291 -> 0 | CT135: =Repdd!CT291 -> 0
A136: =ROW() -> 136 | F136: Оплата себестоимостных затрат | G136: =BP!$F$24 -> Вн.пр-во | M136: =Lists!$R$8 -> руб. | S136: =Repdd!S292 -> 1 | W136: =SUM(INDIRECT(ADDRESS(ROW(),SUMIFS($1:$1,$5:$5,1))):INDIRECT(ADDRESS(ROW(),SUMIFS($1:$1,$5:$5,MAX($5:$5))))) -> 238300320 | Z136: =Repdd!Z292 -> 0 | AA136: =Repdd!AA292 -> 0 | AB136: =Repdd!AB292 -> 0 | AC136: =Repdd!AC292 -> 0 | AD136: =Repdd!AD292 -> 0 | AE136: =Repdd!AE292 -> 0 | AF136: =Repdd!AF292 -> 6600 | AG136: =Repdd!AG292 -> 31800 | AH136: =Repdd!AH292 -> 69120 | AI136: =Repdd!AI292 -> 108345 | AJ136: =Repdd!AJ292 -> 145440 | AK136: =Repdd!AK292 -> 188886 | AL136: =Repdd!AL292 -> 284220 | AM136: =Repdd!AM292 -> 465852 | AN136: =Repdd!AN292 -> 741337.5 | AO136: =Repdd!AO292 -> 1107214.5 | AP136: =Repdd!AP292 -> 1539025.5 | AQ136: =Repdd!AQ292 -> 2009836.5 | AR136: =Repdd!AR292 -> 2502580.5 | AS136: =Repdd!AS292 -> 3006795 | AT136: =Repdd!AT292 -> 3516675 | AU136: =Repdd!AU292 -> 4028670 | AV136: =Repdd!AV292 -> 4541317.5 | AW136: =Repdd!AW292 -> 5054250 | AX136: =Repdd!AX292 -> 5567250 | AY136: =Repdd!AY292 -> 6080250 | AZ136: =Repdd!AZ292 -> 6593250 | BA136: =Repdd!BA292 -> 7106250 | BB136: =Repdd!BB292 -> 7619250 | BC136: =Repdd!BC292 -> 8115750 | BD136: =Repdd!BD292 -> 8549250 | BE136: =Repdd!BE292 -> 8889450 | BF136: =Repdd!BF292 -> 9131587.5 | BG136: =Repdd!BG292 -> 9280987.5 | BH136: =Repdd!BH292 -> 9363022.5 | BI136: =Repdd!BI292 -> 9405472.5 | BJ136: =Repdd!BJ292 -> 9425842.5 | BK136: =Repdd!BK292 -> 9434655 | BL136: =Repdd!BL292 -> 9437775 | BM136: =Repdd!BM292 -> 9438780 | BN136: =Repdd!BN292 -> 9439132.5 | BO136: =Repdd!BO292 -> 9439200 | BP136: =Repdd!BP292 -> 9439200 | BQ136: =Repdd!BQ292 -> 9439200 | BR136: =Repdd!BR292 -> 9439200 | BS136: =Repdd!BS292 -> 9439200 | BT136: =Repdd!BT292 -> 9439200 | BU136: =Repdd!BU292 -> 9439200 | BV136: =Repdd!BV292 -> 0 | BW136: =Repdd!BW292 -> 0 | BX136: =Repdd!BX292 -> 0 | BY136: =Repdd!BY292 -> 0 | BZ136: =Repdd!BZ292 -> 0 | CA136: =Repdd!CA292 -> 0 | CB136: =Repdd!CB292 -> 0 | CC136: =Repdd!CC292 -> 0 | CD136: =Repdd!CD292 -> 0 | CE136: =Repdd!CE292 -> 0 | CF136: =Repdd!CF292 -> 0 | CG136: =Repdd!CG292 -> 0 | CH136: =Repdd!CH292 -> 0 | CI136: =Repdd!CI292 -> 0 | CJ136: =Repdd!CJ292 -> 0 | CK136: =Repdd!CK292 -> 0 | CL136: =Repdd!CL292 -> 0 | CM136: =Repdd!CM292 -> 0 | CN136: =Repdd!CN292 -> 0 | CO136: =Repdd!CO292 -> 0 | CP136: =Repdd!CP292 -> 0 | CQ136: =Repdd!CQ292 -> 0 | CR136: =Repdd!CR292 -> 0 | CS136: =Repdd!CS292 -> 0 | CT136: =Repdd!CT292 -> 0
A137: =ROW() -> 137 | F137: Оплата себестоимостных затрат | G137: =BP!$F$25 -> Упаковка | M137: =Lists!$R$8 -> руб. | S137: =Repdd!S293 -> -1 | W137: =SUM(INDIRECT(ADDRESS(ROW(),SUMIFS($1:$1,$5:$5,1))):INDIRECT(ADDRESS(ROW(),SUMIFS($1:$1,$5:$5,MAX($5:$5))))) -> 34856848 | Z137: =Repdd!Z293 -> 0 | AA137: =Repdd!AA293 -> 0 | AB137: =Repdd!AB293 -> 0 | AC137: =Repdd!AC293 -> 1600 | AD137: =Repdd!AD293 -> 6400 | AE137: =Repdd!AE293 -> 11520 | AF137: =Repdd!AF293 -> 16840 | AG137: =Repdd!AG293 -> 21480 | AH137: =Repdd!AH293 -> 28216 | AI137: =Repdd!AI293 -> 45816 | AJ137: =Repdd!AJ293 -> 75448 | AK137: =Repdd!AK293 -> 117988 | AL137: =Repdd!AL293 -> 171880 | AM137: =Repdd!AM293 -> 232468 | AN137: =Repdd!AN293 -> 297032 | AO137: =Repdd!AO293 -> 363660 | AP137: =Repdd!AP293 -> 431380 | AQ137: =Repdd!AQ293 -> 499580 | AR137: =Repdd!AR293 -> 567900 | AS137: =Repdd!AS293 -> 636280 | AT137: =Repdd!AT293 -> 704680 | AU137: =Repdd!AU293 -> 773080 | AV137: =Repdd!AV293 -> 841480 | AW137: =Repdd!AW293 -> 909880 | AX137: =Repdd!AX293 -> 978280 | AY137: =Repdd!AY293 -> 1046680 | AZ137: =Repdd!AZ293 -> 1111080 | BA137: =Repdd!BA293 -> 1163480 | BB137: =Repdd!BB293 -> 1203080 | BC137: =Repdd!BC293 -> 1229380 | BD137: =Repdd!BD293 -> 1244080 | BE137: =Repdd!BE293 -> 1251940 | BF137: =Repdd!BF293 -> 1255800 | BG137: =Repdd!BG293 -> 1257580 | BH137: =Repdd!BH293 -> 1258260 | BI137: =Repdd!BI293 -> 1258460 | BJ137: =Repdd!BJ293 -> 1258540 | BK137: =Repdd!BK293 -> 1258560 | BL137: =Repdd!BL293 -> 1258560 | BM137: =Repdd!BM293 -> 1258560 | BN137: =Repdd!BN293 -> 1258560 | BO137: =Repdd!BO293 -> 1258560 | BP137: =Repdd!BP293 -> 1258560 | BQ137: =Repdd!BQ293 -> 1258560 | BR137: =Repdd!BR293 -> 1258560 | BS137: =Repdd!BS293 -> 1258560 | BT137: =Repdd!BT293 -> 1258560 | BU137: =Repdd!BU293 -> 0 | BV137: =Repdd!BV293 -> 0 | BW137: =Repdd!BW293 -> 0 | BX137: =Repdd!BX293 -> 0 | BY137: =Repdd!BY293 -> 0 | BZ137: =Repdd!BZ293 -> 0 | CA137: =Repdd!CA293 -> 0 | CB137: =Repdd!CB293 -> 0 | CC137: =Repdd!CC293 -> 0 | CD137: =Repdd!CD293 -> 0 | CE137: =Repdd!CE293 -> 0 | CF137: =Repdd!CF293 -> 0 | CG137: =Repdd!CG293 -> 0 | CH137: =Repdd!CH293 -> 0 | CI137: =Repdd!CI293 -> 0 | CJ137: =Repdd!CJ293 -> 0 | CK137: =Repdd!CK293 -> 0 | CL137: =Repdd!CL293 -> 0 | CM137: =Repdd!CM293 -> 0 | CN137: =Repdd!CN293 -> 0 | CO137: =Repdd!CO293 -> 0 | CP137: =Repdd!CP293 -> 0 | CQ137: =Repdd!CQ293 -> 0 | CR137: =Repdd!CR293 -> 0 | CS137: =Repdd!CS293 -> 0 | CT137: =Repdd!CT293 -> 0
A138: =ROW() -> 138 | F138: Оплата себестоимостных затрат | G138: =BP!$F$26 -> ФОТ првПерс | M138: =Lists!$R$8 -> руб. | S138: =Repdd!S294 -> 1 | W138: =SUM(INDIRECT(ADDRESS(ROW(),SUMIFS($1:$1,$5:$5,1))):INDIRECT(ADDRESS(ROW(),SUMIFS($1:$1,$5:$5,MAX($5:$5))))) -> 20055010 | Z138: =Repdd!Z294 -> 0 | AA138: =Repdd!AA294 -> 0 | AB138: =Repdd!AB294 -> 0 | AC138: =Repdd!AC294 -> 0 | AD138: =Repdd!AD294 -> 0 | AE138: =Repdd!AE294 -> 600 | AF138: =Repdd!AF294 -> 2400 | AG138: =Repdd!AG294 -> 4320 | AH138: =Repdd!AH294 -> 6715 | AI138: =Repdd!AI294 -> 9655 | AJ138: =Repdd!AJ294 -> 13461 | AK138: =Repdd!AK294 -> 21391 | AL138: =Repdd!AL294 -> 33663 | AM138: =Repdd!AM294 -> 51299.5 | AN138: =Repdd!AN294 -> 75909 | AO138: =Repdd!AO294 -> 106037.5 | AP138: =Repdd!AP294 -> 140884 | AQ138: =Repdd!AQ294 -> 179342.5 | AR138: =Repdd!AR294 -> 219884.5 | AS138: =Repdd!AS294 -> 261600.5 | AT138: =Repdd!AT294 -> 303877.5 | AU138: =Repdd!AU294 -> 346450 | AV138: =Repdd!AV294 -> 389150 | AW138: =Repdd!AW294 -> 431880 | AX138: =Repdd!AX294 -> 474625 | AY138: =Repdd!AY294 -> 517375 | AZ138: =Repdd!AZ294 -> 560125 | BA138: =Repdd!BA294 -> 602875 | BB138: =Repdd!BB294 -> 644125 | BC138: =Repdd!BC294 -> 680875 | BD138: =Repdd!BD294 -> 712825 | BE138: =Repdd!BE294 -> 738787.5 | BF138: =Repdd!BF294 -> 757400 | BG138: =Repdd!BG294 -> 770247.5 | BH138: =Repdd!BH294 -> 778270 | BI138: =Repdd!BI294 -> 782612.5 | BJ138: =Repdd!BJ294 -> 784832.5 | BK138: =Repdd!BK294 -> 785872.5 | BL138: =Repdd!BL294 -> 786347.5 | BM138: =Repdd!BM294 -> 786525 | BN138: =Repdd!BN294 -> 786575 | BO138: =Repdd!BO294 -> 786595 | BP138: =Repdd!BP294 -> 786600 | BQ138: =Repdd!BQ294 -> 786600 | BR138: =Repdd!BR294 -> 786600 | BS138: =Repdd!BS294 -> 786600 | BT138: =Repdd!BT294 -> 786600 | BU138: =Repdd!BU294 -> 786600 | BV138: =Repdd!BV294 -> 0 | BW138: =Repdd!BW294 -> 0 | BX138: =Repdd!BX294 -> 0 | BY138: =Repdd!BY294 -> 0 | BZ138: =Repdd!BZ294 -> 0 | CA138: =Repdd!CA294 -> 0 | CB138: =Repdd!CB294 -> 0 | CC138: =Repdd!CC294 -> 0 | CD138: =Repdd!CD294 -> 0 | CE138: =Repdd!CE294 -> 0 | CF138: =Repdd!CF294 -> 0 | CG138: =Repdd!CG294 -> 0 | CH138: =Repdd!CH294 -> 0 | CI138: =Repdd!CI294 -> 0 | CJ138: =Repdd!CJ294 -> 0 | CK138: =Repdd!CK294 -> 0 | CL138: =Repdd!CL294 -> 0 | CM138: =Repdd!CM294 -> 0 | CN138: =Repdd!CN294 -> 0 | CO138: =Repdd!CO294 -> 0 | CP138: =Repdd!CP294 -> 0 | CQ138: =Repdd!CQ294 -> 0 | CR138: =Repdd!CR294 -> 0 | CS138: =Repdd!CS294 -> 0 | CT138: =Repdd!CT294 -> 0
A139: =ROW() -> 139 | F139: Оплата себестоимостных затрат | G139: =BP!$F$27 -> ФОТ упак | M139: =Lists!$R$8 -> руб. | S139: =Repdd!S295 -> 1 | W139: =SUM(INDIRECT(ADDRESS(ROW(),SUMIFS($1:$1,$5:$5,1))):INDIRECT(ADDRESS(ROW(),SUMIFS($1:$1,$5:$5,MAX($5:$5))))) -> 9319565 | Z139: =Repdd!Z295 -> 0 | AA139: =Repdd!AA295 -> 0 | AB139: =Repdd!AB295 -> 0 | AC139: =Repdd!AC295 -> 0 | AD139: =Repdd!AD295 -> 0 | AE139: =Repdd!AE295 -> 0 | AF139: =Repdd!AF295 -> 0 | AG139: =Repdd!AG295 -> 0 | AH139: =Repdd!AH295 -> 500 | AI139: =Repdd!AI295 -> 2000 | AJ139: =Repdd!AJ295 -> 3600 | AK139: =Repdd!AK295 -> 5262.5 | AL139: =Repdd!AL295 -> 6712.5 | AM139: =Repdd!AM295 -> 8817.5 | AN139: =Repdd!AN295 -> 14317.5 | AO139: =Repdd!AO295 -> 23577.5 | AP139: =Repdd!AP295 -> 36871.25 | AQ139: =Repdd!AQ295 -> 53712.5 | AR139: =Repdd!AR295 -> 72646.25 | AS139: =Repdd!AS295 -> 92822.5 | AT139: =Repdd!AT295 -> 113643.75 | AU139: =Repdd!AU295 -> 134806.25 | AV139: =Repdd!AV295 -> 156118.75 | AW139: =Repdd!AW295 -> 177468.75 | AX139: =Repdd!AX295 -> 198837.5 | AY139: =Repdd!AY295 -> 220212.5 | AZ139: =Repdd!AZ295 -> 241587.5 | BA139: =Repdd!BA295 -> 262962.5 | BB139: =Repdd!BB295 -> 284337.5 | BC139: =Repdd!BC295 -> 305712.5 | BD139: =Repdd!BD295 -> 327087.5 | BE139: =Repdd!BE295 -> 347212.5 | BF139: =Repdd!BF295 -> 363587.5 | BG139: =Repdd!BG295 -> 375962.5 | BH139: =Repdd!BH295 -> 384181.25 | BI139: =Repdd!BI295 -> 388775 | BJ139: =Repdd!BJ295 -> 391231.25 | BK139: =Repdd!BK295 -> 392437.5 | BL139: =Repdd!BL295 -> 392993.75 | BM139: =Repdd!BM295 -> 393206.25 | BN139: =Repdd!BN295 -> 393268.75 | BO139: =Repdd!BO295 -> 393293.75 | BP139: =Repdd!BP295 -> 393300 | BQ139: =Repdd!BQ295 -> 393300 | BR139: =Repdd!BR295 -> 393300 | BS139: =Repdd!BS295 -> 393300 | BT139: =Repdd!BT295 -> 393300 | BU139: =Repdd!BU295 -> 393300 | BV139: =Repdd!BV295 -> 0 | BW139: =Repdd!BW295 -> 0 | BX139: =Repdd!BX295 -> 0 | BY139: =Repdd!BY295 -> 0 | BZ139: =Repdd!BZ295 -> 0 | CA139: =Repdd!CA295 -> 0 | CB139: =Repdd!CB295 -> 0 | CC139: =Repdd!CC295 -> 0 | CD139: =Repdd!CD295 -> 0 | CE139: =Repdd!CE295 -> 0 | CF139: =Repdd!CF295 -> 0 | CG139: =Repdd!CG295 -> 0 | CH139: =Repdd!CH295 -> 0 | CI139: =Repdd!CI295 -> 0 | CJ139: =Repdd!CJ295 -> 0 | CK139: =Repdd!CK295 -> 0 | CL139: =Repdd!CL295 -> 0 | CM139: =Repdd!CM295 -> 0 | CN139: =Repdd!CN295 -> 0 | CO139: =Repdd!CO295 -> 0 | CP139: =Repdd!CP295 -> 0 | CQ139: =Repdd!CQ295 -> 0 | CR139: =Repdd!CR295 -> 0 | CS139: =Repdd!CS295 -> 0 | CT139: =Repdd!CT295 -> 0
A140: =ROW() -> 140 | F140: Оплата себестоимостных затрат | G140: =BP!$F$28 -> Соцсборы | M140: =Lists!$R$8 -> руб. | S140: =Repdd!S296 -> 1 | W140: =SUM(INDIRECT(ADDRESS(ROW(),SUMIFS($1:$1,$5:$5,1))):INDIRECT(ADDRESS(ROW(),SUMIFS($1:$1,$5:$5,MAX($5:$5))))) -> 8812372.5 | Z140: =Repdd!Z296 -> 0 | AA140: =Repdd!AA296 -> 0 | AB140: =Repdd!AB296 -> 0 | AC140: =Repdd!AC296 -> 0 | AD140: =Repdd!AD296 -> 0 | AE140: =Repdd!AE296 -> 180 | AF140: =Repdd!AF296 -> 720 | AG140: =Repdd!AG296 -> 1296 | AH140: =Repdd!AH296 -> 2164.5 | AI140: =Repdd!AI296 -> 3496.5 | AJ140: =Repdd!AJ296 -> 5118.3 | AK140: =Repdd!AK296 -> 7996.05 | AL140: =Repdd!AL296 -> 12112.65 | AM140: =Repdd!AM296 -> 18035.1 | AN140: =Repdd!AN296 -> 27067.95 | AO140: =Repdd!AO296 -> 38884.5 | AP140: =Repdd!AP296 -> 53326.575 | AQ140: =Repdd!AQ296 -> 69916.5 | AR140: =Repdd!AR296 -> 87759.225 | AS140: =Repdd!AS296 -> 106326.9 | AT140: =Repdd!AT296 -> 125256.375 | AU140: =Repdd!AU296 -> 144376.875 | AV140: =Repdd!AV296 -> 163580.625 | AW140: =Repdd!AW296 -> 182804.625 | AX140: =Repdd!AX296 -> 202038.75 | AY140: =Repdd!AY296 -> 221276.25 | AZ140: =Repdd!AZ296 -> 240513.75 | BA140: =Repdd!BA296 -> 259751.25 | BB140: =Repdd!BB296 -> 278538.75 | BC140: =Repdd!BC296 -> 295976.25 | BD140: =Repdd!BD296 -> 311973.75 | BE140: =Repdd!BE296 -> 325800 | BF140: =Repdd!BF296 -> 336296.25 | BG140: =Repdd!BG296 -> 343863 | BH140: =Repdd!BH296 -> 348735.375 | BI140: =Repdd!BI296 -> 351416.25 | BJ140: =Repdd!BJ296 -> 352819.125 | BK140: =Repdd!BK296 -> 353493 | BL140: =Repdd!BL296 -> 353802.375 | BM140: =Repdd!BM296 -> 353919.375 | BN140: =Repdd!BN296 -> 353953.125 | BO140: =Repdd!BO296 -> 353966.625 | BP140: =Repdd!BP296 -> 353970 | BQ140: =Repdd!BQ296 -> 353970 | BR140: =Repdd!BR296 -> 353970 | BS140: =Repdd!BS296 -> 353970 | BT140: =Repdd!BT296 -> 353970 | BU140: =Repdd!BU296 -> 353970 | BV140: =Repdd!BV296 -> 0 | BW140: =Repdd!BW296 -> 0 | BX140: =Repdd!BX296 -> 0 | BY140: =Repdd!BY296 -> 0 | BZ140: =Repdd!BZ296 -> 0 | CA140: =Repdd!CA296 -> 0 | CB140: =Repdd!CB296 -> 0 | CC140: =Repdd!CC296 -> 0 | CD140: =Repdd!CD296 -> 0 | CE140: =Repdd!CE296 -> 0 | CF140: =Repdd!CF296 -> 0 | CG140: =Repdd!CG296 -> 0 | CH140: =Repdd!CH296 -> 0 | CI140: =Repdd!CI296 -> 0 | CJ140: =Repdd!CJ296 -> 0 | CK140: =Repdd!CK296 -> 0 | CL140: =Repdd!CL296 -> 0 | CM140: =Repdd!CM296 -> 0 | CN140: =Repdd!CN296 -> 0 | CO140: =Repdd!CO296 -> 0 | CP140: =Repdd!CP296 -> 0 | CQ140: =Repdd!CQ296 -> 0 | CR140: =Repdd!CR296 -> 0 | CS140: =Repdd!CS296 -> 0 | CT140: =Repdd!CT296 -> 0
A141: =ROW() -> 141 | F141: Оплата себестоимостных затрат | G141: =BP!$F$29 -> ЭлЭн | M141: =Lists!$R$8 -> руб. | S141: =Repdd!S297 -> 1 | W141: =SUM(INDIRECT(ADDRESS(ROW(),SUMIFS($1:$1,$5:$5,1))):INDIRECT(ADDRESS(ROW(),SUMIFS($1:$1,$5:$5,MAX($5:$5))))) -> 3733542.16 | Z141: =Repdd!Z297 -> 0 | AA141: =Repdd!AA297 -> 0 | AB141: =Repdd!AB297 -> 0 | AC141: =Repdd!AC297 -> 0 | AD141: =Repdd!AD297 -> 0 | AE141: =Repdd!AE297 -> 128.8 | AF141: =Repdd!AF297 -> 515.2 | AG141: =Repdd!AG297 -> 927.36 | AH141: =Repdd!AH297 -> 1410.82 | AI141: =Repdd!AI297 -> 1949.94 | AJ141: =Repdd!AJ297 -> 2668.828 | AK141: =Repdd!AK297 -> 4269.168 | AL141: =Repdd!AL297 -> 6814.624 | AM141: =Repdd!AM297 -> 10471.486 | AN141: =Repdd!AN297 -> 15416.992 | AO141: =Repdd!AO297 -> 21316.63 | AP141: =Repdd!AP297 -> 27981.662 | AQ141: =Repdd!AQ297 -> 35204.49 | AR141: =Repdd!AR297 -> 42746.236 | AS141: =Repdd!AS297 -> 50463.794 | AT141: =Repdd!AT297 -> 58262.22 | AU141: =Repdd!AU297 -> 66103.15 | AV141: =Repdd!AV297 -> 73962.25 | AW141: =Repdd!AW297 -> 81825.49 | AX141: =Repdd!AX297 -> 89690.8 | AY141: =Repdd!AY297 -> 97556.8 | AZ141: =Repdd!AZ297 -> 105422.8 | BA141: =Repdd!BA297 -> 113288.8 | BB141: =Repdd!BB297 -> 120832.8 | BC141: =Repdd!BC297 -> 127410.8 | BD141: =Repdd!BD297 -> 132958.4 | BE141: =Repdd!BE297 -> 137297.35 | BF141: =Repdd!BF297 -> 140288.5 | BG141: =Repdd!BG297 -> 142287.43 | BH141: =Repdd!BH297 -> 143505.51 | BI141: =Repdd!BI297 -> 144155.95 | BJ141: =Repdd!BJ297 -> 144481.86 | BK141: =Repdd!BK297 -> 144631.13 | BL141: =Repdd!BL297 -> 144698.98 | BM141: =Repdd!BM297 -> 144724.05 | BN141: =Repdd!BN297 -> 144730.95 | BO141: =Repdd!BO297 -> 144733.71 | BP141: =Repdd!BP297 -> 144734.4 | BQ141: =Repdd!BQ297 -> 144734.4 | BR141: =Repdd!BR297 -> 144734.4 | BS141: =Repdd!BS297 -> 144734.4 | BT141: =Repdd!BT297 -> 144734.4 | BU141: =Repdd!BU297 -> 144734.4 | BV141: =Repdd!BV297 -> 0 | BW141: =Repdd!BW297 -> 0 | BX141: =Repdd!BX297 -> 0 | BY141: =Repdd!BY297 -> 0 | BZ141: =Repdd!BZ297 -> 0 | CA141: =Repdd!CA297 -> 0 | CB141: =Repdd!CB297 -> 0 | CC141: =Repdd!CC297 -> 0 | CD141: =Repdd!CD297 -> 0 | CE141: =Repdd!CE297 -> 0 | CF141: =Repdd!CF297 -> 0 | CG141: =Repdd!CG297 -> 0 | CH141: =Repdd!CH297 -> 0 | CI141: =Repdd!CI297 -> 0 | CJ141: =Repdd!CJ297 -> 0 | CK141: =Repdd!CK297 -> 0 | CL141: =Repdd!CL297 -> 0 | CM141: =Repdd!CM297 -> 0 | CN141: =Repdd!CN297 -> 0 | CO141: =Repdd!CO297 -> 0 | CP141: =Repdd!CP297 -> 0 | CQ141: =Repdd!CQ297 -> 0 | CR141: =Repdd!CR297 -> 0 | CS141: =Repdd!CS297 -> 0 | CT141: =Repdd!CT297 -> 0
A142: =ROW() -> 142 | E142: =Lists!$N$9 -> пустая строка
A143: =ROW() -> 143 | F143: Финпоток от продаж | M143: =Lists!$R$8 -> руб. | V143: =W143-(W131-W132) -> 0 | W143: =SUM(INDIRECT(ADDRESS(ROW(),SUMIFS($1:$1,$5:$5,1))):INDIRECT(ADDRESS(ROW(),SUMIFS($1:$1,$5:$5,MAX($5:$5))))) -> 413876806.8 | Z143: =Repdd!Z299 -> 0 | AA143: =Repdd!AA299 -> 0 | AB143: =Repdd!AB299 -> -4680 | AC143: =Repdd!AC299 -> -20320 | AD143: =Repdd!AD299 -> -40656 | AE143: =Repdd!AE299 -> -63925.8 | AF143: =Repdd!AF299 -> -93936.2 | AG143: =Repdd!AG299 -> -148249.16 | AH143: =Repdd!AH299 -> -249656.12 | AI143: =Repdd!AI299 -> -395531.24 | AJ143: =Repdd!AJ299 -> -552354.228 | AK143: =Repdd!AK299 -> -701703.278 | AL143: =Repdd!AL299 -> -913930.049 | AM143: =Repdd!AM299 -> -1233360.881 | AN143: =Repdd!AN299 -> -1674178.05 | AO143: =Repdd!AO299 -> -2147737.843 | AP143: =Repdd!AP299 -> -2443377.662 | AQ143: =Repdd!AQ299 -> -2442592.237 | AR143: =Repdd!AR299 -> -2086956.352 | AS143: =Repdd!AS299 -> -1396929.98 | AT143: =Repdd!AT299 -> -468851.9651 | AU143: =Repdd!AU299 -> 611143.2783 | AV143: =Repdd!AV299 -> 1778203.67 | AW143: =Repdd!AW299 -> 2992111.705 | AX143: =Repdd!AX299 -> 4228748.554 | AY143: =Repdd!AY299 -> 5486019.17 | AZ143: =Repdd!AZ299 -> 6785944.092 | BA143: =Repdd!BA299 -> 8137988.428 | BB143: =Repdd!BB299 -> 9548527.118 | BC143: =Repdd!BC299 -> 11034166.53 | BD143: =Repdd!BD299 -> 12626350.14 | BE143: =Repdd!BE299 -> 14345051.14 | BF143: =Repdd!BF299 -> 16174339.95 | BG143: =Repdd!BG299 -> 17996149.98 | BH143: =Repdd!BH299 -> 19604231.38 | BI143: =Repdd!BI299 -> 20889447.46 | BJ143: =Repdd!BJ299 -> 21803514.87 | BK143: =Repdd!BK299 -> 22373429.95 | BL143: =Repdd!BL299 -> 22699746.22 | BM143: =Repdd!BM299 -> 22871985.29 | BN143: =Repdd!BN299 -> 22956247.38 | BO143: =Repdd!BO299 -> 22993277.99 | BP143: =Repdd!BP299 -> 23007481.73 | BQ143: =Repdd!BQ299 -> 23012726.55 | BR143: =Repdd!BR299 -> 23014412.33 | BS143: =Repdd!BS299 -> 23014818.7 | BT143: =Repdd!BT299 -> 23014905.22 | BU143: =Repdd!BU299 -> 27954765.02 | BV143: =Repdd!BV299 -> 0 | BW143: =Repdd!BW299 -> 0 | BX143: =Repdd!BX299 -> 0 | BY143: =Repdd!BY299 -> 0 | BZ143: =Repdd!BZ299 -> 0 | CA143: =Repdd!CA299 -> 0 | CB143: =Repdd!CB299 -> 0 | CC143: =Repdd!CC299 -> 0 | CD143: =Repdd!CD299 -> 0 | CE143: =Repdd!CE299 -> 0 | CF143: =Repdd!CF299 -> 0 | CG143: =Repdd!CG299 -> 0 | CH143: =Repdd!CH299 -> 0 | CI143: =Repdd!CI299 -> 0 | CJ143: =Repdd!CJ299 -> 0 | CK143: =Repdd!CK299 -> 0 | CL143: =Repdd!CL299 -> 0 | CM143: =Repdd!CM299 -> 0 | CN143: =Repdd!CN299 -> 0 | CO143: =Repdd!CO299 -> 0 | CP143: =Repdd!CP299 -> 0 | CQ143: =Repdd!CQ299 -> 0 | CR143: =Repdd!CR299 -> 0 | CS143: =Repdd!CS299 -> 0 | CT143: =Repdd!CT299 -> 0
A144: =ROW() -> 144 | F144: Оплата переменных расходов | M144: =Lists!$R$8 -> руб. | V144: =W144-SUM(W145:W148) -> 0 | W144: =SUM(INDIRECT(ADDRESS(ROW(),SUMIFS($1:$1,$5:$5,1))):INDIRECT(ADDRESS(ROW(),SUMIFS($1:$1,$5:$5,MAX($5:$5))))) -> 87392646.43 | Z144: =Repdd!Z300 -> 150000 | AA144: =Repdd!AA300 -> 390000 | AB144: =Repdd!AB300 -> 550000 | AC144: =Repdd!AC300 -> 700000 | AD144: =Repdd!AD300 -> 800000 | AE144: =Repdd!AE300 -> 800000 | AF144: =Repdd!AF300 -> 800000 | AG144: =Repdd!AG300 -> 800000 | AH144: =Repdd!AH300 -> 800062.922 | AI144: =Repdd!AI300 -> 800859.934 | AJ144: =Repdd!AJ300 -> 804459.0724 | AK144: =Repdd!AK300 -> 811889.6362 | AL144: =Repdd!AL300 -> 820962.4643 | AM144: =Repdd!AM300 -> 830547.6872 | AN144: =Repdd!AN300 -> 840885.6145 | AO144: =Repdd!AO300 -> 857681.4626 | AP144: =Repdd!AP300 -> 890903.0988 | AQ144: =Repdd!AQ300 -> 945279.8612 | AR144: =Repdd!AR300 -> 1022299.745 | AS144: =Repdd!AS300 -> 1119240.634 | AT144: =Repdd!AT300 -> 1230000.96 | AU144: =Repdd!AU300 -> 1349387.726 | AV144: =Repdd!AV300 -> 1473651.565 | AW144: =Repdd!AW300 -> 1600505.055 | AX144: =Repdd!AX300 -> 1728590.147 | AY144: =Repdd!AY300 -> 1857158.237 | AZ144: =Repdd!AZ300 -> 1985916.837 | BA144: =Repdd!BA300 -> 2114742.606 | BB144: =Repdd!BB300 -> 2243585.114 | BC144: =Repdd!BC300 -> 2372431.477 | BD144: =Repdd!BD300 -> 2501278.429 | BE144: =Repdd!BE300 -> 2629968.077 | BF144: =Repdd!BF300 -> 2756665.194 | BG144: =Repdd!BG300 -> 2874364.466 | BH144: =Repdd!BH300 -> 2973487.327 | BI144: =Repdd!BI300 -> 3049928.119 | BJ144: =Repdd!BJ300 -> 3102799.116 | BK144: =Repdd!BK300 -> 3135199.882 | BL144: =Repdd!BL300 -> 3153480.231 | BM144: =Repdd!BM300 -> 3163016.715 | BN144: =Repdd!BN300 -> 3167626.696 | BO144: =Repdd!BO300 -> 3169626.855 | BP144: =Repdd!BP300 -> 3170390.256 | BQ144: =Repdd!BQ300 -> 3170669.355 | BR144: =Repdd!BR300 -> 3170757.708 | BS144: =Repdd!BS300 -> 3170778.891 | BT144: =Repdd!BT300 -> 3170783.335 | BU144: =Repdd!BU300 -> 2370783.925 | BV144: =Repdd!BV300 -> 0 | BW144: =Repdd!BW300 -> 0 | BX144: =Repdd!BX300 -> 0 | BY144: =Repdd!BY300 -> 0 | BZ144: =Repdd!BZ300 -> 0 | CA144: =Repdd!CA300 -> 0 | CB144: =Repdd!CB300 -> 0 | CC144: =Repdd!CC300 -> 0 | CD144: =Repdd!CD300 -> 0 | CE144: =Repdd!CE300 -> 0 | CF144: =Repdd!CF300 -> 0 | CG144: =Repdd!CG300 -> 0 | CH144: =Repdd!CH300 -> 0 | CI144: =Repdd!CI300 -> 0 | CJ144: =Repdd!CJ300 -> 0 | CK144: =Repdd!CK300 -> 0 | CL144: =Repdd!CL300 -> 0 | CM144: =Repdd!CM300 -> 0 | CN144: =Repdd!CN300 -> 0 | CO144: =Repdd!CO300 -> 0 | CP144: =Repdd!CP300 -> 0 | CQ144: =Repdd!CQ300 -> 0 | CR144: =Repdd!CR300 -> 0 | CS144: =Repdd!CS300 -> 0 | CT144: =Repdd!CT300 -> 0
A145: =ROW() -> 145 | F145: =#REF! ->  | G145: =BP!$F$203 -> Маркетинговые расходы | M145: =Lists!$R$8 -> руб. | S145: =Repdd!S301 -> -1 | W145: =SUM(INDIRECT(ADDRESS(ROW(),SUMIFS($1:$1,$5:$5,1))):INDIRECT(ADDRESS(ROW(),SUMIFS($1:$1,$5:$5,MAX($5:$5))))) -> 36190000 | Z145: =Repdd!Z301 -> 150000 | AA145: =Repdd!AA301 -> 390000 | AB145: =Repdd!AB301 -> 550000 | AC145: =Repdd!AC301 -> 700000 | AD145: =Repdd!AD301 -> 800000 | AE145: =Repdd!AE301 -> 800000 | AF145: =Repdd!AF301 -> 800000 | AG145: =Repdd!AG301 -> 800000 | AH145: =Repdd!AH301 -> 800000 | AI145: =Repdd!AI301 -> 800000 | AJ145: =Repdd!AJ301 -> 800000 | AK145: =Repdd!AK301 -> 800000 | AL145: =Repdd!AL301 -> 800000 | AM145: =Repdd!AM301 -> 800000 | AN145: =Repdd!AN301 -> 800000 | AO145: =Repdd!AO301 -> 800000 | AP145: =Repdd!AP301 -> 800000 | AQ145: =Repdd!AQ301 -> 800000 | AR145: =Repdd!AR301 -> 800000 | AS145: =Repdd!AS301 -> 800000 | AT145: =Repdd!AT301 -> 800000 | AU145: =Repdd!AU301 -> 800000 | AV145: =Repdd!AV301 -> 800000 | AW145: =Repdd!AW301 -> 800000 | AX145: =Repdd!AX301 -> 800000 | AY145: =Repdd!AY301 -> 800000 | AZ145: =Repdd!AZ301 -> 800000 | BA145: =Repdd!BA301 -> 800000 | BB145: =Repdd!BB301 -> 800000 | BC145: =Repdd!BC301 -> 800000 | BD145: =Repdd!BD301 -> 800000 | BE145: =Repdd!BE301 -> 800000 | BF145: =Repdd!BF301 -> 800000 | BG145: =Repdd!BG301 -> 800000 | BH145: =Repdd!BH301 -> 800000 | BI145: =Repdd!BI301 -> 800000 | BJ145: =Repdd!BJ301 -> 800000 | BK145: =Repdd!BK301 -> 800000 | BL145: =Repdd!BL301 -> 800000 | BM145: =Repdd!BM301 -> 800000 | BN145: =Repdd!BN301 -> 800000 | BO145: =Repdd!BO301 -> 800000 | BP145: =Repdd!BP301 -> 800000 | BQ145: =Repdd!BQ301 -> 800000 | BR145: =Repdd!BR301 -> 800000 | BS145: =Repdd!BS301 -> 800000 | BT145: =Repdd!BT301 -> 800000 | BU145: =Repdd!BU301 -> 0 | BV145: =Repdd!BV301 -> 0 | BW145: =Repdd!BW301 -> 0 | BX145: =Repdd!BX301 -> 0 | BY145: =Repdd!BY301 -> 0 | BZ145: =Repdd!BZ301 -> 0 | CA145: =Repdd!CA301 -> 0 | CB145: =Repdd!CB301 -> 0 | CC145: =Repdd!CC301 -> 0 | CD145: =Repdd!CD301 -> 0 | CE145: =Repdd!CE301 -> 0 | CF145: =Repdd!CF301 -> 0 | CG145: =Repdd!CG301 -> 0 | CH145: =Repdd!CH301 -> 0 | CI145: =Repdd!CI301 -> 0 | CJ145: =Repdd!CJ301 -> 0 | CK145: =Repdd!CK301 -> 0 | CL145: =Repdd!CL301 -> 0 | CM145: =Repdd!CM301 -> 0 | CN145: =Repdd!CN301 -> 0 | CO145: =Repdd!CO301 -> 0 | CP145: =Repdd!CP301 -> 0 | CQ145: =Repdd!CQ301 -> 0 | CR145: =Repdd!CR301 -> 0 | CS145: =Repdd!CS301 -> 0 | CT145: =Repdd!CT301 -> 0
A146: =ROW() -> 146 | F146: =#REF! ->  | G146: Транспортные расходы | M146: =Lists!$R$8 -> руб. | S146: =Repdd!S302 -> 1 | W146: =SUM(INDIRECT(ADDRESS(ROW(),SUMIFS($1:$1,$5:$5,1))):INDIRECT(ADDRESS(ROW(),SUMIFS($1:$1,$5:$5,MAX($5:$5))))) -> 42339596.48 | Z146: =Repdd!Z302 -> 0 | AA146: =Repdd!AA302 -> 0 | AB146: =Repdd!AB302 -> 0 | AC146: =Repdd!AC302 -> 0 | AD146: =Repdd!AD302 -> 0 | AE146: =Repdd!AE302 -> 0 | AF146: =Repdd!AF302 -> 0 | AG146: =Repdd!AG302 -> 0 | AH146: =Repdd!AH302 -> 0 | AI146: =Repdd!AI302 -> 314.61 | AJ146: =Repdd!AJ302 -> 2726.62 | AK146: =Repdd!AK302 -> 8662.262 | AL146: =Repdd!AL302 -> 16136.87125 | AM146: =Repdd!AM302 -> 24127.96525 | AN146: =Repdd!AN302 -> 32098.6096 | AO146: =Repdd!AO302 -> 43935.02433 | AP146: =Repdd!AP302 -> 68732.19126 | AQ146: =Repdd!AQ302 -> 110854.5376 | AR146: =Repdd!AR302 -> 172126.6179 | AS146: =Repdd!AS302 -> 250865.6357 | AT146: =Repdd!AT302 -> 341874.994 | AU146: =Repdd!AU302 -> 440629.8277 | AV146: =Repdd!AV302 -> 543789.4897 | AW146: =Repdd!AW302 -> 649310.3785 | AX146: =Repdd!AX302 -> 755973.3802 | AY146: =Repdd!AY302 -> 863083.836 | AZ146: =Repdd!AZ302 -> 970372.0071 | BA146: =Repdd!BA302 -> 1077724.149 | BB146: =Repdd!BB302 -> 1185092.283 | BC146: =Repdd!BC302 -> 1292464.154 | BD146: =Repdd!BD302 -> 1399836.614 | BE146: =Repdd!BE302 -> 1507209.075 | BF146: =Repdd!BF302 -> 1613795.01 | BG146: =Repdd!BG302 -> 1714350.92 | BH146: =Repdd!BH302 -> 1800067.726 | BI146: =Repdd!BI302 -> 1867098.008 | BJ146: =Repdd!BJ302 -> 1914150.555 | BK146: =Repdd!BK302 -> 1943242.804 | BL146: =Repdd!BL302 -> 1959785.391 | BM146: =Repdd!BM302 -> 1968474.198 | BN146: =Repdd!BN302 -> 1972712.585 | BO146: =Repdd!BO302 -> 1974570.554 | BP146: =Repdd!BP302 -> 1975281.507 | BQ146: =Repdd!BQ302 -> 1975543.747 | BR146: =Repdd!BR302 -> 1975628.037 | BS146: =Repdd!BS302 -> 1975648.355 | BT146: =Repdd!BT302 -> 1975652.681 | BU146: =Repdd!BU302 -> 1975653.271 | BV146: =Repdd!BV302 -> 0 | BW146: =Repdd!BW302 -> 0 | BX146: =Repdd!BX302 -> 0 | BY146: =Repdd!BY302 -> 0 | BZ146: =Repdd!BZ302 -> 0 | CA146: =Repdd!CA302 -> 0 | CB146: =Repdd!CB302 -> 0 | CC146: =Repdd!CC302 -> 0 | CD146: =Repdd!CD302 -> 0 | CE146: =Repdd!CE302 -> 0 | CF146: =Repdd!CF302 -> 0 | CG146: =Repdd!CG302 -> 0 | CH146: =Repdd!CH302 -> 0 | CI146: =Repdd!CI302 -> 0 | CJ146: =Repdd!CJ302 -> 0 | CK146: =Repdd!CK302 -> 0 | CL146: =Repdd!CL302 -> 0 | CM146: =Repdd!CM302 -> 0 | CN146: =Repdd!CN302 -> 0 | CO146: =Repdd!CO302 -> 0 | CP146: =Repdd!CP302 -> 0 | CQ146: =Repdd!CQ302 -> 0 | CR146: =Repdd!CR302 -> 0 | CS146: =Repdd!CS302 -> 0 | CT146: =Repdd!CT302 -> 0
A147: =ROW() -> 147 | F147: =#REF! ->  | G147: Прочие переменные расходы | M147: =Lists!$R$8 -> руб. | S147: =Repdd!S303 -> 0 | W147: =SUM(INDIRECT(ADDRESS(ROW(),SUMIFS($1:$1,$5:$5,1))):INDIRECT(ADDRESS(ROW(),SUMIFS($1:$1,$5:$5,MAX($5:$5))))) -> 8863049.951 | Z147: =Repdd!Z303 -> 0 | AA147: =Repdd!AA303 -> 0 | AB147: =Repdd!AB303 -> 0 | AC147: =Repdd!AC303 -> 0 | AD147: =Repdd!AD303 -> 0 | AE147: =Repdd!AE303 -> 0 | AF147: =Repdd!AF303 -> 0 | AG147: =Repdd!AG303 -> 0 | AH147: =Repdd!AH303 -> 62.922 | AI147: =Repdd!AI303 -> 545.324 | AJ147: =Repdd!AJ303 -> 1732.4524 | AK147: =Repdd!AK303 -> 3227.37425 | AL147: =Repdd!AL303 -> 4825.59305 | AM147: =Repdd!AM303 -> 6419.72192 | AN147: =Repdd!AN303 -> 8787.004865 | AO147: =Repdd!AO303 -> 13746.43825 | AP147: =Repdd!AP303 -> 22170.90753 | AQ147: =Repdd!AQ303 -> 34425.32359 | AR147: =Repdd!AR303 -> 50173.12714 | AS147: =Repdd!AS303 -> 68374.9988 | AT147: =Repdd!AT303 -> 88125.96553 | AU147: =Repdd!AU303 -> 108757.8979 | AV147: =Repdd!AV303 -> 129862.0757 | AW147: =Repdd!AW303 -> 151194.676 | AX147: =Repdd!AX303 -> 172616.7672 | AY147: =Repdd!AY303 -> 194074.4014 | AZ147: =Repdd!AZ303 -> 215544.8298 | BA147: =Repdd!BA303 -> 237018.4567 | BB147: =Repdd!BB303 -> 258492.8308 | BC147: =Repdd!BC303 -> 279967.3229 | BD147: =Repdd!BD303 -> 301441.8149 | BE147: =Repdd!BE303 -> 322759.002 | BF147: =Repdd!BF303 -> 342870.1841 | BG147: =Repdd!BG303 -> 360013.5452 | BH147: =Repdd!BH303 -> 373419.6016 | BI147: =Repdd!BI303 -> 382830.1111 | BJ147: =Repdd!BJ303 -> 388648.5608 | BK147: =Repdd!BK303 -> 391957.0782 | BL147: =Repdd!BL303 -> 393694.8397 | BM147: =Repdd!BM303 -> 394542.517 | BN147: =Repdd!BN303 -> 394914.1107 | BO147: =Repdd!BO303 -> 395056.3013 | BP147: =Repdd!BP303 -> 395108.7495 | BQ147: =Repdd!BQ303 -> 395125.6073 | BR147: =Repdd!BR303 -> 395129.671 | BS147: =Repdd!BS303 -> 395130.5362 | BT147: =Repdd!BT303 -> 395130.6542 | BU147: =Repdd!BU303 -> 395130.6542 | BV147: =Repdd!BV303 -> 0 | BW147: =Repdd!BW303 -> 0 | BX147: =Repdd!BX303 -> 0 | BY147: =Repdd!BY303 -> 0 | BZ147: =Repdd!BZ303 -> 0 | CA147: =Repdd!CA303 -> 0 | CB147: =Repdd!CB303 -> 0 | CC147: =Repdd!CC303 -> 0 | CD147: =Repdd!CD303 -> 0 | CE147: =Repdd!CE303 -> 0 | CF147: =Repdd!CF303 -> 0 | CG147: =Repdd!CG303 -> 0 | CH147: =Repdd!CH303 -> 0 | CI147: =Repdd!CI303 -> 0 | CJ147: =Repdd!CJ303 -> 0 | CK147: =Repdd!CK303 -> 0 | CL147: =Repdd!CL303 -> 0 | CM147: =Repdd!CM303 -> 0 | CN147: =Repdd!CN303 -> 0 | CO147: =Repdd!CO303 -> 0 | CP147: =Repdd!CP303 -> 0 | CQ147: =Repdd!CQ303 -> 0 | CR147: =Repdd!CR303 -> 0 | CS147: =Repdd!CS303 -> 0 | CT147: =Repdd!CT303 -> 0
A148: =ROW() -> 148 | E148: =Lists!$N$9 -> пустая строка
A149: =ROW() -> 149 | F149: Оплата постоянных расходов | M149: =Lists!$R$8 -> руб. | V149: =W149-SUM(W150:W155) -> 0 | W149: =SUM(INDIRECT(ADDRESS(ROW(),SUMIFS($1:$1,$5:$5,1))):INDIRECT(ADDRESS(ROW(),SUMIFS($1:$1,$5:$5,MAX($5:$5))))) -> 82700000 | Z149: =Repdd!Z305 -> 750000 | AA149: =Repdd!AA305 -> 1750000 | AB149: =Repdd!AB305 -> 1750000 | AC149: =Repdd!AC305 -> 1750000 | AD149: =Repdd!AD305 -> 1750000 | AE149: =Repdd!AE305 -> 1750000 | AF149: =Repdd!AF305 -> 1750000 | AG149: =Repdd!AG305 -> 1750000 | AH149: =Repdd!AH305 -> 1750000 | AI149: =Repdd!AI305 -> 1750000 | AJ149: =Repdd!AJ305 -> 1750000 | AK149: =Repdd!AK305 -> 1750000 | AL149: =Repdd!AL305 -> 1750000 | AM149: =Repdd!AM305 -> 1750000 | AN149: =Repdd!AN305 -> 1750000 | AO149: =Repdd!AO305 -> 1750000 | AP149: =Repdd!AP305 -> 1750000 | AQ149: =Repdd!AQ305 -> 1750000 | AR149: =Repdd!AR305 -> 1750000 | AS149: =Repdd!AS305 -> 1750000 | AT149: =Repdd!AT305 -> 1750000 | AU149: =Repdd!AU305 -> 1750000 | AV149: =Repdd!AV305 -> 1750000 | AW149: =Repdd!AW305 -> 1750000 | AX149: =Repdd!AX305 -> 1750000 | AY149: =Repdd!AY305 -> 1750000 | AZ149: =Repdd!AZ305 -> 1750000 | BA149: =Repdd!BA305 -> 1750000 | BB149: =Repdd!BB305 -> 1750000 | BC149: =Repdd!BC305 -> 1750000 | BD149: =Repdd!BD305 -> 1750000 | BE149: =Repdd!BE305 -> 1750000 | BF149: =Repdd!BF305 -> 1750000 | BG149: =Repdd!BG305 -> 1750000 | BH149: =Repdd!BH305 -> 1750000 | BI149: =Repdd!BI305 -> 1750000 | BJ149: =Repdd!BJ305 -> 1750000 | BK149: =Repdd!BK305 -> 1750000 | BL149: =Repdd!BL305 -> 1750000 | BM149: =Repdd!BM305 -> 1750000 | BN149: =Repdd!BN305 -> 1750000 | BO149: =Repdd!BO305 -> 1750000 | BP149: =Repdd!BP305 -> 1750000 | BQ149: =Repdd!BQ305 -> 1750000 | BR149: =Repdd!BR305 -> 1750000 | BS149: =Repdd!BS305 -> 1750000 | BT149: =Repdd!BT305 -> 1750000 | BU149: =Repdd!BU305 -> 1450000 | BV149: =Repdd!BV305 -> 0 | BW149: =Repdd!BW305 -> 0 | BX149: =Repdd!BX305 -> 0 | BY149: =Repdd!BY305 -> 0 | BZ149: =Repdd!BZ305 -> 0 | CA149: =Repdd!CA305 -> 0 | CB149: =Repdd!CB305 -> 0 | CC149: =Repdd!CC305 -> 0 | CD149: =Repdd!CD305 -> 0 | CE149: =Repdd!CE305 -> 0 | CF149: =Repdd!CF305 -> 0 | CG149: =Repdd!CG305 -> 0 | CH149: =Repdd!CH305 -> 0 | CI149: =Repdd!CI305 -> 0 | CJ149: =Repdd!CJ305 -> 0 | CK149: =Repdd!CK305 -> 0 | CL149: =Repdd!CL305 -> 0 | CM149: =Repdd!CM305 -> 0 | CN149: =Repdd!CN305 -> 0 | CO149: =Repdd!CO305 -> 0 | CP149: =Repdd!CP305 -> 0 | CQ149: =Repdd!CQ305 -> 0 | CR149: =Repdd!CR305 -> 0 | CS149: =Repdd!CS305 -> 0 | CT149: =Repdd!CT305 -> 0
A150: =ROW() -> 150 | F150: =#REF! ->  | G150: ФОТ управленческого персонала | M150: =Lists!$R$8 -> руб. | S150: =Repdd!S306 -> 1 | W150: =SUM(INDIRECT(ADDRESS(ROW(),SUMIFS($1:$1,$5:$5,1))):INDIRECT(ADDRESS(ROW(),SUMIFS($1:$1,$5:$5,MAX($5:$5))))) -> 47000000 | Z150: =Repdd!Z306 -> 0 | AA150: =Repdd!AA306 -> 1000000 | AB150: =Repdd!AB306 -> 1000000 | AC150: =Repdd!AC306 -> 1000000 | AD150: =Repdd!AD306 -> 1000000 | AE150: =Repdd!AE306 -> 1000000 | AF150: =Repdd!AF306 -> 1000000 | AG150: =Repdd!AG306 -> 1000000 | AH150: =Repdd!AH306 -> 1000000 | AI150: =Repdd!AI306 -> 1000000 | AJ150: =Repdd!AJ306 -> 1000000 | AK150: =Repdd!AK306 -> 1000000 | AL150: =Repdd!AL306 -> 1000000 | AM150: =Repdd!AM306 -> 1000000 | AN150: =Repdd!AN306 -> 1000000 | AO150: =Repdd!AO306 -> 1000000 | AP150: =Repdd!AP306 -> 1000000 | AQ150: =Repdd!AQ306 -> 1000000 | AR150: =Repdd!AR306 -> 1000000 | AS150: =Repdd!AS306 -> 1000000 | AT150: =Repdd!AT306 -> 1000000 | AU150: =Repdd!AU306 -> 1000000 | AV150: =Repdd!AV306 -> 1000000 | AW150: =Repdd!AW306 -> 1000000 | AX150: =Repdd!AX306 -> 1000000 | AY150: =Repdd!AY306 -> 1000000 | AZ150: =Repdd!AZ306 -> 1000000 | BA150: =Repdd!BA306 -> 1000000 | BB150: =Repdd!BB306 -> 1000000 | BC150: =Repdd!BC306 -> 1000000 | BD150: =Repdd!BD306 -> 1000000 | BE150: =Repdd!BE306 -> 1000000 | BF150: =Repdd!BF306 -> 1000000 | BG150: =Repdd!BG306 -> 1000000 | BH150: =Repdd!BH306 -> 1000000 | BI150: =Repdd!BI306 -> 1000000 | BJ150: =Repdd!BJ306 -> 1000000 | BK150: =Repdd!BK306 -> 1000000 | BL150: =Repdd!BL306 -> 1000000 | BM150: =Repdd!BM306 -> 1000000 | BN150: =Repdd!BN306 -> 1000000 | BO150: =Repdd!BO306 -> 1000000 | BP150: =Repdd!BP306 -> 1000000 | BQ150: =Repdd!BQ306 -> 1000000 | BR150: =Repdd!BR306 -> 1000000 | BS150: =Repdd!BS306 -> 1000000 | BT150: =Repdd!BT306 -> 1000000 | BU150: =Repdd!BU306 -> 1000000 | BV150: =Repdd!BV306 -> 0 | BW150: =Repdd!BW306 -> 0 | BX150: =Repdd!BX306 -> 0 | BY150: =Repdd!BY306 -> 0 | BZ150: =Repdd!BZ306 -> 0 | CA150: =Repdd!CA306 -> 0 | CB150: =Repdd!CB306 -> 0 | CC150: =Repdd!CC306 -> 0 | CD150: =Repdd!CD306 -> 0 | CE150: =Repdd!CE306 -> 0 | CF150: =Repdd!CF306 -> 0 | CG150: =Repdd!CG306 -> 0 | CH150: =Repdd!CH306 -> 0 | CI150: =Repdd!CI306 -> 0 | CJ150: =Repdd!CJ306 -> 0 | CK150: =Repdd!CK306 -> 0 | CL150: =Repdd!CL306 -> 0 | CM150: =Repdd!CM306 -> 0 | CN150: =Repdd!CN306 -> 0 | CO150: =Repdd!CO306 -> 0 | CP150: =Repdd!CP306 -> 0 | CQ150: =Repdd!CQ306 -> 0 | CR150: =Repdd!CR306 -> 0 | CS150: =Repdd!CS306 -> 0 | CT150: =Repdd!CT306 -> 0
A151: =ROW() -> 151 | F151: =#REF! ->  | G151: Соцсборы | M151: =Lists!$R$8 -> руб. | S151: =Repdd!S307 -> 1 | W151: =SUM(INDIRECT(ADDRESS(ROW(),SUMIFS($1:$1,$5:$5,1))):INDIRECT(ADDRESS(ROW(),SUMIFS($1:$1,$5:$5,MAX($5:$5))))) -> 14100000 | Z151: =Repdd!Z307 -> 0 | AA151: =Repdd!AA307 -> 300000 | AB151: =Repdd!AB307 -> 300000 | AC151: =Repdd!AC307 -> 300000 | AD151: =Repdd!AD307 -> 300000 | AE151: =Repdd!AE307 -> 300000 | AF151: =Repdd!AF307 -> 300000 | AG151: =Repdd!AG307 -> 300000 | AH151: =Repdd!AH307 -> 300000 | AI151: =Repdd!AI307 -> 300000 | AJ151: =Repdd!AJ307 -> 300000 | AK151: =Repdd!AK307 -> 300000 | AL151: =Repdd!AL307 -> 300000 | AM151: =Repdd!AM307 -> 300000 | AN151: =Repdd!AN307 -> 300000 | AO151: =Repdd!AO307 -> 300000 | AP151: =Repdd!AP307 -> 300000 | AQ151: =Repdd!AQ307 -> 300000 | AR151: =Repdd!AR307 -> 300000 | AS151: =Repdd!AS307 -> 300000 | AT151: =Repdd!AT307 -> 300000 | AU151: =Repdd!AU307 -> 300000 | AV151: =Repdd!AV307 -> 300000 | AW151: =Repdd!AW307 -> 300000 | AX151: =Repdd!AX307 -> 300000 | AY151: =Repdd!AY307 -> 300000 | AZ151: =Repdd!AZ307 -> 300000 | BA151: =Repdd!BA307 -> 300000 | BB151: =Repdd!BB307 -> 300000 | BC151: =Repdd!BC307 -> 300000 | BD151: =Repdd!BD307 -> 300000 | BE151: =Repdd!BE307 -> 300000 | BF151: =Repdd!BF307 -> 300000 | BG151: =Repdd!BG307 -> 300000 | BH151: =Repdd!BH307 -> 300000 | BI151: =Repdd!BI307 -> 300000 | BJ151: =Repdd!BJ307 -> 300000 | BK151: =Repdd!BK307 -> 300000 | BL151: =Repdd!BL307 -> 300000 | BM151: =Repdd!BM307 -> 300000 | BN151: =Repdd!BN307 -> 300000 | BO151: =Repdd!BO307 -> 300000 | BP151: =Repdd!BP307 -> 300000 | BQ151: =Repdd!BQ307 -> 300000 | BR151: =Repdd!BR307 -> 300000 | BS151: =Repdd!BS307 -> 300000 | BT151: =Repdd!BT307 -> 300000 | BU151: =Repdd!BU307 -> 300000 | BV151: =Repdd!BV307 -> 0 | BW151: =Repdd!BW307 -> 0 | BX151: =Repdd!BX307 -> 0 | BY151: =Repdd!BY307 -> 0 | BZ151: =Repdd!BZ307 -> 0 | CA151: =Repdd!CA307 -> 0 | CB151: =Repdd!CB307 -> 0 | CC151: =Repdd!CC307 -> 0 | CD151: =Repdd!CD307 -> 0 | CE151: =Repdd!CE307 -> 0 | CF151: =Repdd!CF307 -> 0 | CG151: =Repdd!CG307 -> 0 | CH151: =Repdd!CH307 -> 0 | CI151: =Repdd!CI307 -> 0 | CJ151: =Repdd!CJ307 -> 0 | CK151: =Repdd!CK307 -> 0 | CL151: =Repdd!CL307 -> 0 | CM151: =Repdd!CM307 -> 0 | CN151: =Repdd!CN307 -> 0 | CO151: =Repdd!CO307 -> 0 | CP151: =Repdd!CP307 -> 0 | CQ151: =Repdd!CQ307 -> 0 | CR151: =Repdd!CR307 -> 0 | CS151: =Repdd!CS307 -> 0 | CT151: =Repdd!CT307 -> 0
A152: =ROW() -> 152 | F152: =#REF! ->  | G152: Аренда офиса | M152: =Lists!$R$8 -> руб. | S152: =Repdd!S308 -> -1 | W152: =SUM(INDIRECT(ADDRESS(ROW(),SUMIFS($1:$1,$5:$5,1))):INDIRECT(ADDRESS(ROW(),SUMIFS($1:$1,$5:$5,MAX($5:$5))))) -> 14400000 | Z152: =Repdd!Z308 -> 600000 | AA152: =Repdd!AA308 -> 300000 | AB152: =Repdd!AB308 -> 300000 | AC152: =Repdd!AC308 -> 300000 | AD152: =Repdd!AD308 -> 300000 | AE152: =Repdd!AE308 -> 300000 | AF152: =Repdd!AF308 -> 300000 | AG152: =Repdd!AG308 -> 300000 | AH152: =Repdd!AH308 -> 300000 | AI152: =Repdd!AI308 -> 300000 | AJ152: =Repdd!AJ308 -> 300000 | AK152: =Repdd!AK308 -> 300000 | AL152: =Repdd!AL308 -> 300000 | AM152: =Repdd!AM308 -> 300000 | AN152: =Repdd!AN308 -> 300000 | AO152: =Repdd!AO308 -> 300000 | AP152: =Repdd!AP308 -> 300000 | AQ152: =Repdd!AQ308 -> 300000 | AR152: =Repdd!AR308 -> 300000 | AS152: =Repdd!AS308 -> 300000 | AT152: =Repdd!AT308 -> 300000 | AU152: =Repdd!AU308 -> 300000 | AV152: =Repdd!AV308 -> 300000 | AW152: =Repdd!AW308 -> 300000 | AX152: =Repdd!AX308 -> 300000 | AY152: =Repdd!AY308 -> 300000 | AZ152: =Repdd!AZ308 -> 300000 | BA152: =Repdd!BA308 -> 300000 | BB152: =Repdd!BB308 -> 300000 | BC152: =Repdd!BC308 -> 300000 | BD152: =Repdd!BD308 -> 300000 | BE152: =Repdd!BE308 -> 300000 | BF152: =Repdd!BF308 -> 300000 | BG152: =Repdd!BG308 -> 300000 | BH152: =Repdd!BH308 -> 300000 | BI152: =Repdd!BI308 -> 300000 | BJ152: =Repdd!BJ308 -> 300000 | BK152: =Repdd!BK308 -> 300000 | BL152: =Repdd!BL308 -> 300000 | BM152: =Repdd!BM308 -> 300000 | BN152: =Repdd!BN308 -> 300000 | BO152: =Repdd!BO308 -> 300000 | BP152: =Repdd!BP308 -> 300000 | BQ152: =Repdd!BQ308 -> 300000 | BR152: =Repdd!BR308 -> 300000 | BS152: =Repdd!BS308 -> 300000 | BT152: =Repdd!BT308 -> 300000 | BU152: =Repdd!BU308 -> 0 | BV152: =Repdd!BV308 -> 0 | BW152: =Repdd!BW308 -> 0 | BX152: =Repdd!BX308 -> 0 | BY152: =Repdd!BY308 -> 0 | BZ152: =Repdd!BZ308 -> 0 | CA152: =Repdd!CA308 -> 0 | CB152: =Repdd!CB308 -> 0 | CC152: =Repdd!CC308 -> 0 | CD152: =Repdd!CD308 -> 0 | CE152: =Repdd!CE308 -> 0 | CF152: =Repdd!CF308 -> 0 | CG152: =Repdd!CG308 -> 0 | CH152: =Repdd!CH308 -> 0 | CI152: =Repdd!CI308 -> 0 | CJ152: =Repdd!CJ308 -> 0 | CK152: =Repdd!CK308 -> 0 | CL152: =Repdd!CL308 -> 0 | CM152: =Repdd!CM308 -> 0 | CN152: =Repdd!CN308 -> 0 | CO152: =Repdd!CO308 -> 0 | CP152: =Repdd!CP308 -> 0 | CQ152: =Repdd!CQ308 -> 0 | CR152: =Repdd!CR308 -> 0 | CS152: =Repdd!CS308 -> 0 | CT152: =Repdd!CT308 -> 0
A153: =ROW() -> 153 | F153: =#REF! ->  | G153: Расходы на персонал | M153: =Lists!$R$8 -> руб. | S153: =Repdd!S309 -> 0 | W153: =SUM(INDIRECT(ADDRESS(ROW(),SUMIFS($1:$1,$5:$5,1))):INDIRECT(ADDRESS(ROW(),SUMIFS($1:$1,$5:$5,MAX($5:$5))))) -> 4800000 | Z153: =Repdd!Z309 -> 100000 | AA153: =Repdd!AA309 -> 100000 | AB153: =Repdd!AB309 -> 100000 | AC153: =Repdd!AC309 -> 100000 | AD153: =Repdd!AD309 -> 100000 | AE153: =Repdd!AE309 -> 100000 | AF153: =Repdd!AF309 -> 100000 | AG153: =Repdd!AG309 -> 100000 | AH153: =Repdd!AH309 -> 100000 | AI153: =Repdd!AI309 -> 100000 | AJ153: =Repdd!AJ309 -> 100000 | AK153: =Repdd!AK309 -> 100000 | AL153: =Repdd!AL309 -> 100000 | AM153: =Repdd!AM309 -> 100000 | AN153: =Repdd!AN309 -> 100000 | AO153: =Repdd!AO309 -> 100000 | AP153: =Repdd!AP309 -> 100000 | AQ153: =Repdd!AQ309 -> 100000 | AR153: =Repdd!AR309 -> 100000 | AS153: =Repdd!AS309 -> 100000 | AT153: =Repdd!AT309 -> 100000 | AU153: =Repdd!AU309 -> 100000 | AV153: =Repdd!AV309 -> 100000 | AW153: =Repdd!AW309 -> 100000 | AX153: =Repdd!AX309 -> 100000 | AY153: =Repdd!AY309 -> 100000 | AZ153: =Repdd!AZ309 -> 100000 | BA153: =Repdd!BA309 -> 100000 | BB153: =Repdd!BB309 -> 100000 | BC153: =Repdd!BC309 -> 100000 | BD153: =Repdd!BD309 -> 100000 | BE153: =Repdd!BE309 -> 100000 | BF153: =Repdd!BF309 -> 100000 | BG153: =Repdd!BG309 -> 100000 | BH153: =Repdd!BH309 -> 100000 | BI153: =Repdd!BI309 -> 100000 | BJ153: =Repdd!BJ309 -> 100000 | BK153: =Repdd!BK309 -> 100000 | BL153: =Repdd!BL309 -> 100000 | BM153: =Repdd!BM309 -> 100000 | BN153: =Repdd!BN309 -> 100000 | BO153: =Repdd!BO309 -> 100000 | BP153: =Repdd!BP309 -> 100000 | BQ153: =Repdd!BQ309 -> 100000 | BR153: =Repdd!BR309 -> 100000 | BS153: =Repdd!BS309 -> 100000 | BT153: =Repdd!BT309 -> 100000 | BU153: =Repdd!BU309 -> 100000 | BV153: =Repdd!BV309 -> 0 | BW153: =Repdd!BW309 -> 0 | BX153: =Repdd!BX309 -> 0 | BY153: =Repdd!BY309 -> 0 | BZ153: =Repdd!BZ309 -> 0 | CA153: =Repdd!CA309 -> 0 | CB153: =Repdd!CB309 -> 0 | CC153: =Repdd!CC309 -> 0 | CD153: =Repdd!CD309 -> 0 | CE153: =Repdd!CE309 -> 0 | CF153: =Repdd!CF309 -> 0 | CG153: =Repdd!CG309 -> 0 | CH153: =Repdd!CH309 -> 0 | CI153: =Repdd!CI309 -> 0 | CJ153: =Repdd!CJ309 -> 0 | CK153: =Repdd!CK309 -> 0 | CL153: =Repdd!CL309 -> 0 | CM153: =Repdd!CM309 -> 0 | CN153: =Repdd!CN309 -> 0 | CO153: =Repdd!CO309 -> 0 | CP153: =Repdd!CP309 -> 0 | CQ153: =Repdd!CQ309 -> 0 | CR153: =Repdd!CR309 -> 0 | CS153: =Repdd!CS309 -> 0 | CT153: =Repdd!CT309 -> 0
A154: =ROW() -> 154 | F154: =#REF! ->  | G154: Прочие расходы | M154: =Lists!$R$8 -> руб. | S154: =Repdd!S310 -> 0 | W154: =SUM(INDIRECT(ADDRESS(ROW(),SUMIFS($1:$1,$5:$5,1))):INDIRECT(ADDRESS(ROW(),SUMIFS($1:$1,$5:$5,MAX($5:$5))))) -> 2400000 | Z154: =Repdd!Z310 -> 50000 | AA154: =Repdd!AA310 -> 50000 | AB154: =Repdd!AB310 -> 50000 | AC154: =Repdd!AC310 -> 50000 | AD154: =Repdd!AD310 -> 50000 | AE154: =Repdd!AE310 -> 50000 | AF154: =Repdd!AF310 -> 50000 | AG154: =Repdd!AG310 -> 50000 | AH154: =Repdd!AH310 -> 50000 | AI154: =Repdd!AI310 -> 50000 | AJ154: =Repdd!AJ310 -> 50000 | AK154: =Repdd!AK310 -> 50000 | AL154: =Repdd!AL310 -> 50000 | AM154: =Repdd!AM310 -> 50000 | AN154: =Repdd!AN310 -> 50000 | AO154: =Repdd!AO310 -> 50000 | AP154: =Repdd!AP310 -> 50000 | AQ154: =Repdd!AQ310 -> 50000 | AR154: =Repdd!AR310 -> 50000 | AS154: =Repdd!AS310 -> 50000 | AT154: =Repdd!AT310 -> 50000 | AU154: =Repdd!AU310 -> 50000 | AV154: =Repdd!AV310 -> 50000 | AW154: =Repdd!AW310 -> 50000 | AX154: =Repdd!AX310 -> 50000 | AY154: =Repdd!AY310 -> 50000 | AZ154: =Repdd!AZ310 -> 50000 | BA154: =Repdd!BA310 -> 50000 | BB154: =Repdd!BB310 -> 50000 | BC154: =Repdd!BC310 -> 50000 | BD154: =Repdd!BD310 -> 50000 | BE154: =Repdd!BE310 -> 50000 | BF154: =Repdd!BF310 -> 50000 | BG154: =Repdd!BG310 -> 50000 | BH154: =Repdd!BH310 -> 50000 | BI154: =Repdd!BI310 -> 50000 | BJ154: =Repdd!BJ310 -> 50000 | BK154: =Repdd!BK310 -> 50000 | BL154: =Repdd!BL310 -> 50000 | BM154: =Repdd!BM310 -> 50000 | BN154: =Repdd!BN310 -> 50000 | BO154: =Repdd!BO310 -> 50000 | BP154: =Repdd!BP310 -> 50000 | BQ154: =Repdd!BQ310 -> 50000 | BR154: =Repdd!BR310 -> 50000 | BS154: =Repdd!BS310 -> 50000 | BT154: =Repdd!BT310 -> 50000 | BU154: =Repdd!BU310 -> 50000 | BV154: =Repdd!BV310 -> 0 | BW154: =Repdd!BW310 -> 0 | BX154: =Repdd!BX310 -> 0 | BY154: =Repdd!BY310 -> 0 | BZ154: =Repdd!BZ310 -> 0 | CA154: =Repdd!CA310 -> 0 | CB154: =Repdd!CB310 -> 0 | CC154: =Repdd!CC310 -> 0 | CD154: =Repdd!CD310 -> 0 | CE154: =Repdd!CE310 -> 0 | CF154: =Repdd!CF310 -> 0 | CG154: =Repdd!CG310 -> 0 | CH154: =Repdd!CH310 -> 0 | CI154: =Repdd!CI310 -> 0 | CJ154: =Repdd!CJ310 -> 0 | CK154: =Repdd!CK310 -> 0 | CL154: =Repdd!CL310 -> 0 | CM154: =Repdd!CM310 -> 0 | CN154: =Repdd!CN310 -> 0 | CO154: =Repdd!CO310 -> 0 | CP154: =Repdd!CP310 -> 0 | CQ154: =Repdd!CQ310 -> 0 | CR154: =Repdd!CR310 -> 0 | CS154: =Repdd!CS310 -> 0 | CT154: =Repdd!CT310 -> 0
A155: =ROW() -> 155 | E155: =Lists!$N$9 -> пустая строка
